Workbook

Sheet Cover Sheet
C2: Model Details
C4: Model Name: | D4: TasNetworks (Public Lighting Model)

Sheet Model Structure (hidden)
B9: Model Overview
B11: Legend
B20: Model Structure

Sheet Change Log (hidden)
C3: Change Log
C4: ='Cover Sheet'!D4 -> TasNetworks (Public Lighting Model)
C12: Change Log
G14: Net Equity ['000']
C15: Date | D15: Filename | E15: Nature of Change Made (Type below) | F15: Analyst | G15: =2018 -> 2018 | H15: =G15+1 -> 2019 | I15: 2020 | J15: 2021 | K15: 2022 | L15: 2023 | M15: 2024
C16: =NOW() -> 2016-01-18T11:44:18.680 | D16: =MID(CELL("filename"), SEARCH("[", CELL("filename")) + 1, SEARCH("]", CELL("filename")) - SEARCH("[", CELL("filename")) - 1) -> TasNetworks Public Lighting Model AER Submission.xlsm | F16: mahambreyd
C17: 2015-07-18T11:17:41.560 | D17: 20150717_V10_Aurora Public Lighting Model(test databook).xlsm | F17: mahambreyd

Sheet Data Book (hidden)
C2: Assumptions Book
C3: ='Cover Sheet'!D4 -> TasNetworks (Public Lighting Model)
C10: Global Assumptions/Economic assumptions | D10: Input | E10: Units | F10: Check | G10: Data Owner | H10: Supporting Document Reference | I10: Notes

Sheet Check Summary
B2: RAB Revenue Equals prices | C2: ='Revenue Nominal RAB'!G23 -> 2017-18 | D2: ='Revenue Nominal RAB'!H23 -> 2018-19
C3: ='Revenue Nominal RAB'!G86 -> TRUE | D3: ='Revenue Nominal RAB'!H86 -> TRUE
C4: ='Revenue Nominal RAB'!G155 -> TRUE | D4: ='Revenue Nominal RAB'!H155 -> TRUE
C5: ='Revenue Nominal RAB'!G224 -> TRUE | D5: ='Revenue Nominal RAB'!H224 -> TRUE
B7: UnSmoothed CL Volumes | C7: ='Unsmoothed Prices'!J68 -> TRUE | D7: ='Unsmoothed Prices'!K68 -> TRUE
B8: UnSmoothed PL Volumes | C8: ='Unsmoothed Prices'!J129 -> TRUE | D8: ='Unsmoothed Prices'!K129 -> TRUE
B9: UnSmoothed Total Volumes | C9: ='Unsmoothed Prices'!J131 -> TRUE | D9: ='Unsmoothed Prices'!K131 -> TRUE
B11: Smoothed CL Volumes | C11: ='Smoothed Prices'!J68 -> TRUE | D11: ='Smoothed Prices'!K68 -> TRUE
B12: Smoothed PL Volumes | C12: ='Smoothed Prices'!J129 -> TRUE | D12: ='Smoothed Prices'!K129 -> TRUE
B13: Smoothed Total Volumes | C13: ='Smoothed Prices'!J131 -> TRUE | D13: ='Smoothed Prices'!K131 -> TRUE
B15: Input Checks | C15: =Inputs!F26 -> TRUE
C16: =Inputs!F27 -> TRUE
C17: =Inputs!F28 -> TRUE
C18: =Inputs!F29 -> TRUE
C19: =Inputs!L40 -> TRUE
C20: =Inputs!L43 -> TRUE
C21: =Inputs!L47 -> TRUE
C22: =Inputs!F53 -> TRUE
C23: =Inputs!F54 -> TRUE
C24: =Inputs!F56 -> TRUE
C25: =Inputs!F57 -> TRUE
B28: build up check | C28: ='Combined Annuity Prices CL'!E5 -> 6382.181358 | D28: ='Combined Annuity Prices CL'!F5 -> 6382.181358

Sheet Model Information
B2: Process information
B3: Public lighting includes many parts that have different life cycles which also vary depending on the light type. The main parts in a light are as follow:
B5: o Light Bracket - most lights have a bracket which allows the luminaire to be attached to a power pole, this is capital expenditure. There are some lights that are on private piles that do not require brackets, these poles and built in brackets are not the responsibility of TasNetworks. Brackets are assumed to have a life cycle of 40 years
B9: o Luminaire - The luminaire is the light fitting that the lamp is within and is a capital expenditure. Luminaires are assumed to have a life cycle of 20 years
B12: o Lamp - Within the luminaire is a lamp that requires replacement depending on the light type. Normal lights have a life cycle of 4.5 years on average therefore the replacement program is every 4 years as opex expenditure. LED lights are the exception as they last 20 years and are replaced when the luminaire requires replacing.
B16: o PE Cell - Public lights are switched on and off using PE Cells which in the last 30 years have replaced overhead switch wires as a new technology. They are replaced either with the lamp on after 1o year as opex.
B19: o Installation Cost - The TasNetworks POW has inbuilt unit prices for both Opex and capex installation costs of public lights. These prices have been used for luminaire /Bracket capex installation excluding the material proportion plus actual materials from the warehouse prices. The same method has been used for Opex maintenance (Lamp & PE Cell replacement), using the POW unit rate net of materials plus actual materials for the individual light type. The 2 unit rates are determined using the Major/minor allocation of the light.
B25: Public lighting prices have previously used the annuity method rather than a RAB method. The annuity method is more accurate and produces more cost reflective prices compared to the RAB method which has some unreliable data. The opening RAB data was estimated by the business therefore its accuracy is unknown, because of this the PTRM output is used as a indicator test for the Annuity method.
B32: Assumptions
B33: Brackets
B34: A sample base for brackets has been sourced from the thread leader which aligns the light type with bracket type and cost. This sample base of 10,000 out of a total of 40,000+ lights is assumed to represent the whole fleet of brackets.
B37: Of the 40,000+ public lights there are a number of private poles for the public light that do not require a bracket. The public lighting asset management plan has the total number of brackets in the fleet (not down to type assigned to light type for costing). Therefore the cost of the brackets is weighted so that only the total number of brackets are recovered.
B41: Lamps
B42: Lamps have a assumed life cycle of 4.5 years therefore they are replaced within the POW after 4 years. LEDs do not require a lamp replacement within the 20 year life cycle of the luminaire.
B47: PE Cells
B48: There are two types of PE Cells and it is assumed that major lights have the more expensive cell installed while the minor lights have the smaller and cheaper PE Cell.
B51: PE Cells have a assumed 10 year life therefore to align with the 4 year lamp replacement program they are replaced after 8 years however with LED's they are replaced after 10 years.
B54: Installation and maintenance cost
B55: The POW assumption about what lights are major and minor for work to be completed is based on lights less than or greater than 100 watts. This results in a higher cost associated with the major lights due to higher costs performing maintenance and installation.
B58: It is assumed that the cost of performing a Lamp replacement is the same doing the PE Cell at the same time or only PE cell.
B61: It is assumed that the cost of performing a luminaire installation/replacement is the same doing the Brackett at the same time
B64: Other assumptions
B65: It is assumed that contract prices for materials are to remain consistent with the agrees 3% annual increase to remain the same.
B68: Where a warehouse price is not available due to the light type is obsolete the previous determination prices have been indexed.
B71: Indirect capex that is not included in the unit price build up is included in the annuity calculation and assumed to have a 40 year life given it is work on the street lights that have the same life.
B74: Private contract lights are owned by client and TasNetworks just performs maintenance on the light. Capital replacements are the responsibility of the owner.

Sheet Smoothed Prices
B4: Private Contract Lights
F6: Days | G6: ='Master Data'!I23 -> 365 | H6: ='Master Data'!J23 -> 365
F7: Indexation | G7: ='Master Data'!I32 -> 1 | H7: ='Master Data'!J32 -> 1.025 | M7: =HLOOKUP(M9,'Master Data'!$B$20:$P$23,4,FALSE) -> 365 | N7: =HLOOKUP(N9,'Master Data'!$B$20:$P$23,4,FALSE) -> 365 | P7: =HLOOKUP(P9,'Master Data'!$B$20:$P$23,4,FALSE) -> 365 | Q7: =HLOOKUP(Q9,'Master Data'!$B$20:$P$23,4,FALSE) -> 365
B8: Private Contract Lights | C8: Price (cents) per Light per day Real 2017/18 Smoothed | G8: Price (cents) per Light per day Nominal Smoothed | J8: Volumes | M8: Smooth Real Cost Dollars Per Year | P8: Smooth Nominal Cost Dollars Per Year | S8: Revenue Nominal Dollars Per Year | V8: Revenue Real Dollars Per Year
C9: Offered / No Longer Offered / NA | D9: ='Master Data'!I$29 -> 2017-18 | E9: ='Master Data'!J$29 -> 2018-19 | G9: ='Master Data'!I$29 -> 2017-18 | H9: ='Master Data'!J$29 -> 2018-19 | J9: ='Master Data'!I$29 -> 2017-18 | K9: ='Master Data'!J$29 -> 2018-19 | M9: ='Master Data'!I$29 -> 2017-18 | N9: ='Master Data'!J$29 -> 2018-19 | P9: ='Master Data'!I$29 -> 2017-18 | Q9: ='Master Data'!J$29 -> 2018-19 | S9: ='Master Data'!I$29 -> 2017-18 | T9: ='Master Data'!J$29 -> 2018-19 | V9: ='Master Data'!I$29 -> 2017-18 | W9: ='Master Data'!J$29 -> 2018-19
B10: =Inputs!$C69 -> 32W Compact Fluorescent | C10: Not Offered | D10: =IF($C10="NA","",ROUND('Unsmoothed Prices'!D10*'Unsmoothed Prices'!G$141,3)) -> 18.69 | E10: =IF($C10="NA","",ROUND('Unsmoothed Prices'!E10*'Unsmoothed Prices'!H$141,3)) -> 18.451 | G10: =IF($C10="NA","",ROUND(D10*G$7,3)) -> 18.69 | H10: =IF($C10="NA","",ROUND(E10*H$7,3)) -> 18.912 | J10: =IFERROR(VLOOKUP($B10,Volumes!$B$4:$F$32,MATCH(J$9,Volumes!$B$4:$F$4,0),FALSE),0) -> 0 | K10: =IFERROR(VLOOKUP($B10,Volumes!$B$4:$F$32,MATCH(K$9,Volumes!$B$4:$F$4,0),FALSE),0) -> 0 | M10: =IF($C10="NA","",(D10*M$7)/100) -> 68.2185 | N10: =IF($C10="NA","",(E10*N$7)/100) -> 67.34615 | P10: =IF($C10="NA","",ROUND((G10*P$7),2)/100) -> 68.2185 | Q10: =IF($C10="NA","",ROUND((H10*Q$7),2)/100) -> 69.0288 | S10: =IFERROR(P10*J10,0) -> 0 | T10: =IFERROR(Q10*K10,0) -> 0 | V10: =IFERROR(M10*J10,0) -> 0 | W10: =IFERROR(N10*K10,0) -> 0
B11: =Inputs!$C70 -> 42W Compact Fluorescent | C11: Offered | D11: =IF($C11="NA","",ROUND('Unsmoothed Prices'!D11*'Unsmoothed Prices'!G$141,3)) -> 18.69 | E11: =IF($C11="NA","",ROUND('Unsmoothed Prices'!E11*'Unsmoothed Prices'!H$141,3)) -> 18.451 | G11: 18.69 | H11: 18.912 | J11: =IFERROR(VLOOKUP($B11,Volumes!$B$4:$F$32,MATCH(J$9,Volumes!$B$4:$F$4,0),FALSE),0) -> 0 | K11: =IFERROR(VLOOKUP($B11,Volumes!$B$4:$F$32,MATCH(K$9,Volumes!$B$4:$F$4,0),FALSE),0) -> 0 | M11: 68.2185 | N11: 67.34615 | P11: 68.2185 | Q11: 69.0288 | S11: 0 | T11: 0 | V11: 0 | W11: 0
B12: =Inputs!$C71 -> 42W Compact Fluorescent - Bottom Pole Entry | C12: Offered | D12: =IF($C12="NA","",ROUND('Unsmoothed Prices'!D12*'Unsmoothed Prices'!G$141,3)) -> 18.69 | E12: =IF($C12="NA","",ROUND('Unsmoothed Prices'!E12*'Unsmoothed Prices'!H$141,3)) -> 18.451 | G12: 18.69 | H12: 18.912 | J12: =IFERROR(VLOOKUP($B12,Volumes!$B$4:$F$32,MATCH(J$9,Volumes!$B$4:$F$4,0),FALSE),0) -> 0 | K12: =IFERROR(VLOOKUP($B12,Volumes!$B$4:$F$32,MATCH(K$9,Volumes!$B$4:$F$4,0),FALSE),0) -> 0 | M12: 68.2185 | N12: 67.34615 | P12: 68.2185 | Q12: 69.0288 | S12: 0 | T12: 0 | V12: 0 | W12: 0
B13: =Inputs!$C72 -> 2x24W Compact Fluorescent | C13: Not Offered | D13: =IF($C13="NA","",ROUND('Unsmoothed Prices'!D13*'Unsmoothed Prices'!G$141,3)) -> 18.993 | E13: =IF($C13="NA","",ROUND('Unsmoothed Prices'!E13*'Unsmoothed Prices'!H$141,3)) -> 18.75 | G13: 18.993 | H13: 19.219 | J13: =IFERROR(VLOOKUP($B13,Volumes!$B$4:$F$32,MATCH(J$9,Volumes!$B$4:$F$4,0),FALSE),0) -> 0 | K13: =IFERROR(VLOOKUP($B13,Volumes!$B$4:$F$32,MATCH(K$9,Volumes!$B$4:$F$4,0),FALSE),0) -> 0 | M13: 69.32445 | N13: 68.4375 | P13: 69.3245 | Q13: 70.1494 | S13: 0 | T13: 0 | V13: 0 | W13: 0
B14: =Inputs!$C73 -> 1x20W Fluorescent | C14: Obsolete, no new Connections | D14: =IF($C14="NA","",ROUND('Unsmoothed Prices'!D14*'Unsmoothed Prices'!G$141,3)) -> 18.68 | E14: =IF($C14="NA","",ROUND('Unsmoothed Prices'!E14*'Unsmoothed Prices'!H$141,3)) -> 18.44 | G14: 18.68 | H14: 18.901 | J14: =IFERROR(VLOOKUP($B14,Volumes!$B$4:$F$32,MATCH(J$9,Volumes!$B$4:$F$4,0),FALSE),0) -> 0 | K14: =IFERROR(VLOOKUP($B14,Volumes!$B$4:$F$32,MATCH(K$9,Volumes!$B$4:$F$4,0),FALSE),0) -> 0 | M14: 68.182 | N14: 67.306 | P14: 68.182 | Q14: 68.9887 | S14: 0 | T14: 0 | V14: 0 | W14: 0
B15: =Inputs!$C74 -> 1x40W Fluorescent | C15: Obsolete, no new Connections | D15: =IF($C15="NA","",ROUND('Unsmoothed Prices'!D15*'Unsmoothed Prices'!G$141,3)) -> 18.699 | E15: =IF($C15="NA","",ROUND('Unsmoothed Prices'!E15*'Unsmoothed Prices'!H$141,3)) -> 18.459 | G15: 18.699 | H15: 18.92 | J15: =IFERROR(VLOOKUP($B15,Volumes!$B$4:$F$32,MATCH(J$9,Volumes!$B$4:$F$4,0),FALSE),0) -> 0 | K15: =IFERROR(VLOOKUP($B15,Volumes!$B$4:$F$32,MATCH(K$9,Volumes!$B$4:$F$4,0),FALSE),0) -> 0 | M15: 68.25135 | N15: 67.37535 | P15: 68.2514 | Q15: 69.058 | S15: 0 | T15: 0 | V15: 0 | W15: 0
B16: =Inputs!$C75 -> 2x20W Fluorescent | C16: Obsolete, no new Connections | D16: =IF($C16="NA","",ROUND('Unsmoothed Prices'!D16*'Unsmoothed Prices'!G$141,3)) -> 18.972 | E16: =IF($C16="NA","",ROUND('Unsmoothed Prices'!E16*'Unsmoothed Prices'!H$141,3)) -> 18.729 | G16: 18.972 | H16: 19.197 | J16: =IFERROR(VLOOKUP($B16,Volumes!$B$4:$F$32,MATCH(J$9,Volumes!$B$4:$F$4,0),FALSE),0) -> 0 | K16: =IFERROR(VLOOKUP($B16,Volumes!$B$4:$F$32,MATCH(K$9,Volumes!$B$4:$F$4,0),FALSE),0) -> 0 | M16: 69.2478 | N16: 68.36085 | P16: 69.2478 | Q16: 70.0691 | S16: 0 | T16: 0 | V16: 0 | W16: 0
B17: =Inputs!$C76 -> 2x24W Fluorescent | C17: Obsolete, no new Connections | D17: =IF($C17="NA","",ROUND('Unsmoothed Prices'!D17*'Unsmoothed Prices'!G$141,3)) -> 18.784 | E17: =IF($C17="NA","",ROUND('Unsmoothed Prices'!E17*'Unsmoothed Prices'!H$141,3)) -> 18.542 | G17: 18.784 | H17: 19.006 | J17: =IFERROR(VLOOKUP($B17,Volumes!$B$4:$F$32,MATCH(J$9,Volumes!$B$4:$F$4,0),FALSE),0) -> 0 | K17: =IFERROR(VLOOKUP($B17,Volumes!$B$4:$F$32,MATCH(K$9,Volumes!$B$4:$F$4,0),FALSE),0) -> 0 | M17: 68.5616 | N17: 67.6783 | P17: 68.5616 | Q17: 69.3719 | S17: 0 | T17: 0 | V17: 0 | W17: 0
B18: =Inputs!$C77 -> T5 Fluorescent 2 x 24W | C18: Obsolete, no new Connections | D18: =IF($C18="NA","",ROUND('Unsmoothed Prices'!D18*'Unsmoothed Prices'!G$141,3)) -> 18.972 | E18: =IF($C18="NA","",ROUND('Unsmoothed Prices'!E18*'Unsmoothed Prices'!H$141,3)) -> 18.729 | G18: 18.972 | H18: 19.197 | J18: =IFERROR(VLOOKUP($B18,Volumes!$B$4:$F$32,MATCH(J$9,Volumes!$B$4:$F$4,0),FALSE),0) -> 0 | K18: =IFERROR(VLOOKUP($B18,Volumes!$B$4:$F$32,MATCH(K$9,Volumes!$B$4:$F$4,0),FALSE),0) -> 0 | M18: 69.2478 | N18: 68.36085 | P18: 69.2478 | Q18: 70.0691 | S18: 0 | T18: 0 | V18: 0 | W18: 0
B19: =Inputs!$C78 -> 20 Fluorescent 1X20FL | C19: Obsolete, no new Connections | D19: =IF($C19="NA","",ROUND('Unsmoothed Prices'!D19*'Unsmoothed Prices'!G$141,3)) -> 18.68 | E19: =IF($C19="NA","",ROUND('Unsmoothed Prices'!E19*'Unsmoothed Prices'!H$141,3)) -> 18.44 | G19: 18.68 | H19: 18.901 | J19: =IFERROR(VLOOKUP($B19,Volumes!$B$4:$F$32,MATCH(J$9,Volumes!$B$4:$F$4,0),FALSE),0) -> 0 | K19: =IFERROR(VLOOKUP($B19,Volumes!$B$4:$F$32,MATCH(K$9,Volumes!$B$4:$F$4,0),FALSE),0) -> 0 | M19: 68.182 | N19: 67.306 | P19: 68.182 | Q19: 68.9887 | S19: 0 | T19: 0 | V19: 0 | W19: 0
B20: =Inputs!$C79 -> 2x40W Fluorescent | C20: Obsolete, no new Connections | D20: =IF($C20="NA","",ROUND('Unsmoothed Prices'!D20*'Unsmoothed Prices'!G$141,3)) -> 19.01 | E20: =IF($C20="NA","",ROUND('Unsmoothed Prices'!E20*'Unsmoothed Prices'!H$141,3)) -> 18.766 | G20: 19.01 | H20: 19.235 | J20: =IFERROR(VLOOKUP($B20,Volumes!$B$4:$F$32,MATCH(J$9,Volumes!$B$4:$F$4,0),FALSE),0) -> 0 | K20: =IFERROR(VLOOKUP($B20,Volumes!$B$4:$F$32,MATCH(K$9,Volumes!$B$4:$F$4,0),FALSE),0) -> 0 | M20: 69.3865 | N20: 68.4959 | P20: 69.3865 | Q20: 70.2078 | S20: 0 | T20: 0 | V20: 0 | W20: 0
B21: =Inputs!$C80 -> 3x40W Fluorescent | C21: Obsolete, no new Connections | D21: =IF($C21="NA","",ROUND('Unsmoothed Prices'!D21*'Unsmoothed Prices'!G$141,3)) -> 22.895 | E21: =IF($C21="NA","",ROUND('Unsmoothed Prices'!E21*'Unsmoothed Prices'!H$141,3)) -> 22.597 | G21: 22.895 | H21: 23.162 | J21: =IFERROR(VLOOKUP($B21,Volumes!$B$4:$F$32,MATCH(J$9,Volumes!$B$4:$F$4,0),FALSE),0) -> 0 | K21: =IFERROR(VLOOKUP($B21,Volumes!$B$4:$F$32,MATCH(K$9,Volumes!$B$4:$F$4,0),FALSE),0) -> 0 | M21: 83.56675 | N21: 82.47905 | P21: 83.5668 | Q21: 84.5413 | S21: 0 | T21: 0 | V21: 0 | W21: 0
B22: =Inputs!$C81 -> 4x20 Fluorescent | C22: Obsolete, no new Connections | D22: =IF($C22="NA","",ROUND('Unsmoothed Prices'!D22*'Unsmoothed Prices'!G$141,3)) -> 19.557 | E22: =IF($C22="NA","",ROUND('Unsmoothed Prices'!E22*'Unsmoothed Prices'!H$141,3)) -> 19.306 | G22: 19.557 | H22: 19.789 | J22: =IFERROR(VLOOKUP($B22,Volumes!$B$4:$F$32,MATCH(J$9,Volumes!$B$4:$F$4,0),FALSE),0) -> 0 | K22: =IFERROR(VLOOKUP($B22,Volumes!$B$4:$F$32,MATCH(K$9,Volumes!$B$4:$F$4,0),FALSE),0) -> 0 | M22: 71.38305 | N22: 70.4669 | P22: 71.3831 | Q22: 72.2299 | S22: 0 | T22: 0 | V22: 0 | W22: 0
B23: =Inputs!$C82 -> 4x40W Fluorescent | C23: Obsolete, no new Connections | D23: =IF($C23="NA","",ROUND('Unsmoothed Prices'!D23*'Unsmoothed Prices'!G$141,3)) -> 23.206 | E23: =IF($C23="NA","",ROUND('Unsmoothed Prices'!E23*'Unsmoothed Prices'!H$141,3)) -> 22.904 | G23: 23.206 | H23: 23.477 | J23: =IFERROR(VLOOKUP($B23,Volumes!$B$4:$F$32,MATCH(J$9,Volumes!$B$4:$F$4,0),FALSE),0) -> 0 | K23: =IFERROR(VLOOKUP($B23,Volumes!$B$4:$F$32,MATCH(K$9,Volumes!$B$4:$F$4,0),FALSE),0) -> 0 | M23: 84.7019 | N23: 83.5996 | P23: 84.7019 | Q23: 85.6911 | S23: 0 | T23: 0 | V23: 0 | W23: 0
B24: =Inputs!$C83 -> 100W Sodium Vapour | C24: Offered | D24: =IF($C24="NA","",ROUND('Unsmoothed Prices'!D24*'Unsmoothed Prices'!G$141,3)) -> 22.969 | E24: =IF($C24="NA","",ROUND('Unsmoothed Prices'!E24*'Unsmoothed Prices'!H$141,3)) -> 22.67 | G24: 22.969 | H24: 23.237 | J24: =IFERROR(VLOOKUP($B24,Volumes!$B$4:$F$32,MATCH(J$9,Volumes!$B$4:$F$4,0),FALSE),0) -> 5 | K24: =IFERROR(VLOOKUP($B24,Volumes!$B$4:$F$32,MATCH(K$9,Volumes!$B$4:$F$4,0),FALSE),0) -> 5 | M24: 83.83685 | N24: 82.7455 | P24: 83.8369 | Q24: 84.8151 | S24: 419.1845 | T24: 424.0755 | V24: 419.18425 | W24: 413.7275
B25: =Inputs!$C84 -> 0 | C25: NA | D25: =IF($C25="NA","",ROUND('Unsmoothed Prices'!D25*'Unsmoothed Prices'!G$141,3)) ->  | E25: =IF($C25="NA","",ROUND('Unsmoothed Prices'!E25*'Unsmoothed Prices'!H$141,3)) ->  | J25: =IFERROR(VLOOKUP($B25,Volumes!$B$4:$F$32,MATCH(J$9,Volumes!$B$4:$F$4,0),FALSE),0) -> 0 | K25: =IFERROR(VLOOKUP($B25,Volumes!$B$4:$F$32,MATCH(K$9,Volumes!$B$4:$F$4,0),FALSE),0) -> 0 | S25: 0 | T25: 0 | V25: 0 | W25: 0
B26: =Inputs!$C85 -> 150W Sodium Vapour | C26: Offered | D26: =IF($C26="NA","",ROUND('Unsmoothed Prices'!D26*'Unsmoothed Prices'!G$141,3)) -> 22.965 | E26: =IF($C26="NA","",ROUND('Unsmoothed Prices'!E26*'Unsmoothed Prices'!H$141,3)) -> 22.666 | G26: 22.965 | H26: 23.233 | J26: =IFERROR(VLOOKUP($B26,Volumes!$B$4:$F$32,MATCH(J$9,Volumes!$B$4:$F$4,0),FALSE),0) -> 163 | K26: =IFERROR(VLOOKUP($B26,Volumes!$B$4:$F$32,MATCH(K$9,Volumes!$B$4:$F$4,0),FALSE),0) -> 163 | M26: 83.82225 | N26: 82.7309 | P26: 83.8223 | Q26: 84.8005 | S26: 13663.0349 | T26: 13822.4815 | V26: 13663.02675 | W26: 13485.1367
B27: =Inputs!$C86 -> 0 | C27: NA | D27: =IF($C27="NA","",ROUND('Unsmoothed Prices'!D27*'Unsmoothed Prices'!G$141,3)) ->  | E27: =IF($C27="NA","",ROUND('Unsmoothed Prices'!E27*'Unsmoothed Prices'!H$141,3)) ->  | J27: =IFERROR(VLOOKUP($B27,Volumes!$B$4:$F$32,MATCH(J$9,Volumes!$B$4:$F$4,0),FALSE),0) -> 0 | K27: =IFERROR(VLOOKUP($B27,Volumes!$B$4:$F$32,MATCH(K$9,Volumes!$B$4:$F$4,0),FALSE),0) -> 0 | S27: 0 | T27: 0 | V27: 0 | W27: 0
B28: =Inputs!$C87 -> 0 | C28: NA | D28: =IF($C28="NA","",ROUND('Unsmoothed Prices'!D28*'Unsmoothed Prices'!G$141,3)) ->  | E28: =IF($C28="NA","",ROUND('Unsmoothed Prices'!E28*'Unsmoothed Prices'!H$141,3)) ->  | J28: =IFERROR(VLOOKUP($B28,Volumes!$B$4:$F$32,MATCH(J$9,Volumes!$B$4:$F$4,0),FALSE),0) -> 0 | K28: =IFERROR(VLOOKUP($B28,Volumes!$B$4:$F$32,MATCH(K$9,Volumes!$B$4:$F$4,0),FALSE),0) -> 0 | S28: 0 | T28: 0 | V28: 0 | W28: 0
B29: =Inputs!$C88 -> 0 | C29: NA | D29: =IF($C29="NA","",ROUND('Unsmoothed Prices'!D29*'Unsmoothed Prices'!G$141,3)) ->  | E29: =IF($C29="NA","",ROUND('Unsmoothed Prices'!E29*'Unsmoothed Prices'!H$141,3)) ->  | J29: =IFERROR(VLOOKUP($B29,Volumes!$B$4:$F$32,MATCH(J$9,Volumes!$B$4:$F$4,0),FALSE),0) -> 0 | K29: =IFERROR(VLOOKUP($B29,Volumes!$B$4:$F$32,MATCH(K$9,Volumes!$B$4:$F$4,0),FALSE),0) -> 0 | S29: 0 | T29: 0 | V29: 0 | W29: 0
B30: =Inputs!$C89 -> 250W Sodium Vapour | C30: Offered | D30: =IF($C30="NA","",ROUND('Unsmoothed Prices'!D30*'Unsmoothed Prices'!G$141,3)) -> 23.09 | E30: =IF($C30="NA","",ROUND('Unsmoothed Prices'!E30*'Unsmoothed Prices'!H$141,3)) -> 22.789 | G30: 23.09 | H30: 23.359 | J30: =IFERROR(VLOOKUP($B30,Volumes!$B$4:$F$32,MATCH(J$9,Volumes!$B$4:$F$4,0),FALSE),0) -> 165 | K30: =IFERROR(VLOOKUP($B30,Volumes!$B$4:$F$32,MATCH(K$9,Volumes!$B$4:$F$4,0),FALSE),0) -> 165 | M30: 84.2785 | N30: 83.17985 | P30: 84.2785 | Q30: 85.2604 | S30: 13905.9525 | T30: 14067.966 | V30: 13905.9525 | W30: 13724.67525
B31: =Inputs!$C90 -> 0 | C31: NA | D31: =IF($C31="NA","",ROUND('Unsmoothed Prices'!D31*'Unsmoothed Prices'!G$141,3)) ->  | E31: =IF($C31="NA","",ROUND('Unsmoothed Prices'!E31*'Unsmoothed Prices'!H$141,3)) ->  | J31: =IFERROR(VLOOKUP($B31,Volumes!$B$4:$F$32,MATCH(J$9,Volumes!$B$4:$F$4,0),FALSE),0) -> 0 | K31: =IFERROR(VLOOKUP($B31,Volumes!$B$4:$F$32,MATCH(K$9,Volumes!$B$4:$F$4,0),FALSE),0) -> 0 | S31: 0 | T31: 0 | V31: 0 | W31: 0
B32: =Inputs!$C91 -> 0 | C32: NA | D32: =IF($C32="NA","",ROUND('Unsmoothed Prices'!D32*'Unsmoothed Prices'!G$141,3)) ->  | E32: =IF($C32="NA","",ROUND('Unsmoothed Prices'!E32*'Unsmoothed Prices'!H$141,3)) ->  | J32: =IFERROR(VLOOKUP($B32,Volumes!$B$4:$F$32,MATCH(J$9,Volumes!$B$4:$F$4,0),FALSE),0) -> 0 | K32: =IFERROR(VLOOKUP($B32,Volumes!$B$4:$F$32,MATCH(K$9,Volumes!$B$4:$F$4,0),FALSE),0) -> 0 | S32: 0 | T32: 0 | V32: 0 | W32: 0
B33: =Inputs!$C92 -> 0 | C33: NA | D33: =IF($C33="NA","",ROUND('Unsmoothed Prices'!D33*'Unsmoothed Prices'!G$141,3)) ->  | E33: =IF($C33="NA","",ROUND('Unsmoothed Prices'!E33*'Unsmoothed Prices'!H$141,3)) ->  | J33: =IFERROR(VLOOKUP($B33,Volumes!$B$4:$F$32,MATCH(J$9,Volumes!$B$4:$F$4,0),FALSE),0) -> 0 | K33: =IFERROR(VLOOKUP($B33,Volumes!$B$4:$F$32,MATCH(K$9,Volumes!$B$4:$F$4,0),FALSE),0) -> 0 | S33: 0 | T33: 0 | V33: 0 | W33: 0
B34: =Inputs!$C93 -> 250W Sodium Vapour - Flood Light | C34: Offered | D34: =IF($C34="NA","",ROUND('Unsmoothed Prices'!D34*'Unsmoothed Prices'!G$141,3)) -> 23.09 | E34: =IF($C34="NA","",ROUND('Unsmoothed Prices'!E34*'Unsmoothed Prices'!H$141,3)) -> 22.789 | G34: 23.09 | H34: 23.359 | J34: =IFERROR(VLOOKUP($B34,Volumes!$B$4:$F$32,MATCH(J$9,Volumes!$B$4:$F$4,0),FALSE),0) -> 0 | K34: =IFERROR(VLOOKUP($B34,Volumes!$B$4:$F$32,MATCH(K$9,Volumes!$B$4:$F$4,0),FALSE),0) -> 0 | M34: 84.2785 | N34: 83.17985 | P34: 84.2785 | Q34: 85.2604 | S34: 0 | T34: 0 | V34: 0 | W34: 0
B35: =Inputs!$C94 -> 400W Sodium Vapour | C35: Offered | D35: =IF($C35="NA","",ROUND('Unsmoothed Prices'!D35*'Unsmoothed Prices'!G$141,3)) -> 23.132 | E35: =IF($C35="NA","",ROUND('Unsmoothed Prices'!E35*'Unsmoothed Prices'!H$141,3)) -> 22.832 | G35: 23.132 | H35: 23.403 | J35: =IFERROR(VLOOKUP($B35,Volumes!$B$4:$F$32,MATCH(J$9,Volumes!$B$4:$F$4,0),FALSE),0) -> 104 | K35: =IFERROR(VLOOKUP($B35,Volumes!$B$4:$F$32,MATCH(K$9,Volumes!$B$4:$F$4,0),FALSE),0) -> 104 | M35: 84.4318 | N35: 83.3368 | P35: 84.4318 | Q35: 85.421 | S35: 8780.9072 | T35: 8883.784 | V35: 8780.9072 | W35: 8667.0272
B36: =Inputs!$C95 -> 0 | C36: NA | D36: =IF($C36="NA","",ROUND('Unsmoothed Prices'!D36*'Unsmoothed Prices'!G$141,3)) ->  | E36: =IF($C36="NA","",ROUND('Unsmoothed Prices'!E36*'Unsmoothed Prices'!H$141,3)) ->  | J36: =IFERROR(VLOOKUP($B36,Volumes!$B$4:$F$32,MATCH(J$9,Volumes!$B$4:$F$4,0),FALSE),0) -> 0 | K36: =IFERROR(VLOOKUP($B36,Volumes!$B$4:$F$32,MATCH(K$9,Volumes!$B$4:$F$4,0),FALSE),0) -> 0 | S36: 0 | T36: 0 | V36: 0 | W36: 0
B37: =Inputs!$C96 -> 400W Sodium Vapour - Flood Light | C37: Offered | D37: =IF($C37="NA","",ROUND('Unsmoothed Prices'!D37*'Unsmoothed Prices'!G$141,3)) -> 23.132 | E37: =IF($C37="NA","",ROUND('Unsmoothed Prices'!E37*'Unsmoothed Prices'!H$141,3)) -> 22.832 | G37: 23.132 | H37: 23.403 | J37: =IFERROR(VLOOKUP($B37,Volumes!$B$4:$F$32,MATCH(J$9,Volumes!$B$4:$F$4,0),FALSE),0) -> 0 | K37: =IFERROR(VLOOKUP($B37,Volumes!$B$4:$F$32,MATCH(K$9,Volumes!$B$4:$F$4,0),FALSE),0) -> 0 | M37: 84.4318 | N37: 83.3368 | P37: 84.4318 | Q37: 85.421 | S37: 0 | T37: 0 | V37: 0 | W37: 0
B38: =Inputs!$C97 -> 70W Sodium Vapour | C38: Offered | D38: =IF($C38="NA","",ROUND('Unsmoothed Prices'!D38*'Unsmoothed Prices'!G$141,3)) -> 18.889 | E38: =IF($C38="NA","",ROUND('Unsmoothed Prices'!E38*'Unsmoothed Prices'!H$141,3)) -> 18.647 | G38: 18.889 | H38: 19.113 | J38: =IFERROR(VLOOKUP($B38,Volumes!$B$4:$F$32,MATCH(J$9,Volumes!$B$4:$F$4,0),FALSE),0) -> 73 | K38: =IFERROR(VLOOKUP($B38,Volumes!$B$4:$F$32,MATCH(K$9,Volumes!$B$4:$F$4,0),FALSE),0) -> 73 | M38: 68.94485 | N38: 68.06155 | P38: 68.9449 | Q38: 69.7625 | S38: 5032.9777 | T38: 5092.6625 | V38: 5032.97405 | W38: 4968.49315
B39: =Inputs!$C98 -> 0 | C39: NA | D39: =IF($C39="NA","",ROUND('Unsmoothed Prices'!D39*'Unsmoothed Prices'!G$141,3)) ->  | E39: =IF($C39="NA","",ROUND('Unsmoothed Prices'!E39*'Unsmoothed Prices'!H$141,3)) ->  | J39: =IFERROR(VLOOKUP($B39,Volumes!$B$4:$F$32,MATCH(J$9,Volumes!$B$4:$F$4,0),FALSE),0) -> 0 | K39: =IFERROR(VLOOKUP($B39,Volumes!$B$4:$F$32,MATCH(K$9,Volumes!$B$4:$F$4,0),FALSE),0) -> 0 | S39: 0 | T39: 0 | V39: 0 | W39: 0
B40: =Inputs!$C99 -> 100W Incandescent | C40: Obsolete, no new Connections | D40: =IF($C40="NA","",ROUND('Unsmoothed Prices'!D40*'Unsmoothed Prices'!G$141,3)) -> 22.086 | E40: =IF($C40="NA","",ROUND('Unsmoothed Prices'!E40*'Unsmoothed Prices'!H$141,3)) -> 21.799 | G40: 22.086 | H40: 22.344 | J40: =IFERROR(VLOOKUP($B40,Volumes!$B$4:$F$32,MATCH(J$9,Volumes!$B$4:$F$4,0),FALSE),0) -> 0 | K40: =IFERROR(VLOOKUP($B40,Volumes!$B$4:$F$32,MATCH(K$9,Volumes!$B$4:$F$4,0),FALSE),0) -> 0 | M40: 80.6139 | N40: 79.56635 | P40: 80.6139 | Q40: 81.5556 | S40: 0 | T40: 0 | V40: 0 | W40: 0
B41: =Inputs!$C100 -> 60W Incandescent | C41: Obsolete, no new Connections | D41: =IF($C41="NA","",ROUND('Unsmoothed Prices'!D41*'Unsmoothed Prices'!G$141,3)) -> 18.512 | E41: =IF($C41="NA","",ROUND('Unsmoothed Prices'!E41*'Unsmoothed Prices'!H$141,3)) -> 18.275 | G41: 18.512 | H41: 18.732 | J41: =IFERROR(VLOOKUP($B41,Volumes!$B$4:$F$32,MATCH(J$9,Volumes!$B$4:$F$4,0),FALSE),0) -> 0 | K41: =IFERROR(VLOOKUP($B41,Volumes!$B$4:$F$32,MATCH(K$9,Volumes!$B$4:$F$4,0),FALSE),0) -> 0 | M41: 67.5688 | N41: 66.70375 | P41: 67.5688 | Q41: 68.3718 | S41: 0 | T41: 0 | V41: 0 | W41: 0
B42: =Inputs!$C101 -> 18W LED | C42: Offered | D42: =IF($C42="NA","",ROUND('Unsmoothed Prices'!D42*'Unsmoothed Prices'!G$141,3)) -> 12.853 | E42: =IF($C42="NA","",ROUND('Unsmoothed Prices'!E42*'Unsmoothed Prices'!H$141,3)) -> 12.693 | G42: =IF($C42="NA","",ROUND(D42*G$7,3)) -> 12.853 | H42: =IF($C42="NA","",ROUND(E42*H$7,3)) -> 13.01 | J42: =IFERROR(VLOOKUP($B42,Volumes!$B$4:$F$32,MATCH(J$9,Volumes!$B$4:$F$4,0),FALSE),0) -> 4762 | K42: =IFERROR(VLOOKUP($B42,Volumes!$B$4:$F$32,MATCH(K$9,Volumes!$B$4:$F$4,0),FALSE),0) -> 4810 | M42: =IF($C42="NA","",(D42*M$7)/100) -> 46.91345 | N42: =IF($C42="NA","",(E42*N$7)/100) -> 46.32945 | P42: =IF($C42="NA","",ROUND((G42*P$7),2)/100) -> 46.9135 | Q42: =IF($C42="NA","",ROUND((H42*Q$7),2)/100) -> 47.4865 | S42: =IFERROR(P42*J42,0) -> 223402.087 | T42: =IFERROR(Q42*K42,0) -> 228410.065 | V42: =IFERROR(M42*J42,0) -> 223401.8489 | W42: =IFERROR(N42*K42,0) -> 222844.6545
B43: =Inputs!$C102 -> 25W LED | C43: Offered | D43: =IF($C43="NA","",ROUND('Unsmoothed Prices'!D43*'Unsmoothed Prices'!G$141,3)) -> 12.853 | E43: =IF($C43="NA","",ROUND('Unsmoothed Prices'!E43*'Unsmoothed Prices'!H$141,3)) -> 12.693 | G43: 12.853 | H43: 13.01 | J43: =IFERROR(VLOOKUP($B43,Volumes!$B$4:$F$32,MATCH(J$9,Volumes!$B$4:$F$4,0),FALSE),0) -> 29 | K43: =IFERROR(VLOOKUP($B43,Volumes!$B$4:$F$32,MATCH(K$9,Volumes!$B$4:$F$4,0),FALSE),0) -> 29 | M43: 46.91345 | N43: 46.32945 | P43: 46.9135 | Q43: 47.4865 | S43: 1360.4915 | T43: 1377.1085 | V43: 1360.49005 | W43: 1343.55405
B44: =Inputs!$C103 -> 18W LED Decorative - Bottom Pole Entry | C44: Offered | D44: =IF($C44="NA","",ROUND('Unsmoothed Prices'!D44*'Unsmoothed Prices'!G$141,3)) -> 12.853 | E44: =IF($C44="NA","",ROUND('Unsmoothed Prices'!E44*'Unsmoothed Prices'!H$141,3)) -> 12.693 | G44: 12.853 | H44: 13.01 | J44: =IFERROR(VLOOKUP($B44,Volumes!$B$4:$F$32,MATCH(J$9,Volumes!$B$4:$F$4,0),FALSE),0) -> 0 | K44: =IFERROR(VLOOKUP($B44,Volumes!$B$4:$F$32,MATCH(K$9,Volumes!$B$4:$F$4,0),FALSE),0) -> 0 | M44: 46.91345 | N44: 46.32945 | P44: 46.9135 | Q44: 47.4865 | S44: 0 | T44: 0 | V44: 0 | W44: 0
B45: =Inputs!$C104 -> 18W LED Decorative - Side Entry | C45: Offered | D45: =IF($C45="NA","",ROUND('Unsmoothed Prices'!D45*'Unsmoothed Prices'!G$141,3)) -> 12.853 | E45: =IF($C45="NA","",ROUND('Unsmoothed Prices'!E45*'Unsmoothed Prices'!H$141,3)) -> 12.693 | G45: 12.853 | H45: 13.01 | J45: =IFERROR(VLOOKUP($B45,Volumes!$B$4:$F$32,MATCH(J$9,Volumes!$B$4:$F$4,0),FALSE),0) -> 0 | K45: =IFERROR(VLOOKUP($B45,Volumes!$B$4:$F$32,MATCH(K$9,Volumes!$B$4:$F$4,0),FALSE),0) -> 0 | M45: 46.91345 | N45: 46.32945 | P45: 46.9135 | Q45: 47.4865 | S45: 0 | T45: 0 | V45: 0 | W45: 0
B46: =Inputs!$C105 -> 18W LED Decorative - Top Entry | C46: Offered | D46: =IF($C46="NA","",ROUND('Unsmoothed Prices'!D46*'Unsmoothed Prices'!G$141,3)) -> 12.853 | E46: =IF($C46="NA","",ROUND('Unsmoothed Prices'!E46*'Unsmoothed Prices'!H$141,3)) -> 12.693 | G46: 12.853 | H46: 13.01 | J46: =IFERROR(VLOOKUP($B46,Volumes!$B$4:$F$32,MATCH(J$9,Volumes!$B$4:$F$4,0),FALSE),0) -> 0 | K46: =IFERROR(VLOOKUP($B46,Volumes!$B$4:$F$32,MATCH(K$9,Volumes!$B$4:$F$4,0),FALSE),0) -> 0 | M46: 46.91345 | N46: 46.32945 | P46: 46.9135 | Q46: 47.4865 | S46: 0 | T46: 0 | V46: 0 | W46: 0
B47: =Inputs!$C106 -> 25W LED Decorative - Bottom Pole Entry | C47: Offered | D47: =IF($C47="NA","",ROUND('Unsmoothed Prices'!D47*'Unsmoothed Prices'!G$141,3)) -> 12.853 | E47: =IF($C47="NA","",ROUND('Unsmoothed Prices'!E47*'Unsmoothed Prices'!H$141,3)) -> 12.693 | G47: 12.853 | H47: 13.01 | J47: =IFERROR(VLOOKUP($B47,Volumes!$B$4:$F$32,MATCH(J$9,Volumes!$B$4:$F$4,0),FALSE),0) -> 0 | K47: =IFERROR(VLOOKUP($B47,Volumes!$B$4:$F$32,MATCH(K$9,Volumes!$B$4:$F$4,0),FALSE),0) -> 0 | M47: 46.91345 | N47: 46.32945 | P47: 46.9135 | Q47: 47.4865 | S47: 0 | T47: 0 | V47: 0 | W47: 0
B48: =Inputs!$C107 -> 25W LED Decorative - Side Entry | C48: Offered | D48: =IF($C48="NA","",ROUND('Unsmoothed Prices'!D48*'Unsmoothed Prices'!G$141,3)) -> 12.853 | E48: =IF($C48="NA","",ROUND('Unsmoothed Prices'!E48*'Unsmoothed Prices'!H$141,3)) -> 12.693 | G48: 12.853 | H48: 13.01 | J48: =IFERROR(VLOOKUP($B48,Volumes!$B$4:$F$32,MATCH(J$9,Volumes!$B$4:$F$4,0),FALSE),0) -> 0 | K48: =IFERROR(VLOOKUP($B48,Volumes!$B$4:$F$32,MATCH(K$9,Volumes!$B$4:$F$4,0),FALSE),0) -> 0 | M48: 46.91345 | N48: 46.32945 | P48: 46.9135 | Q48: 47.4865 | S48: 0 | T48: 0 | V48: 0 | W48: 0
B49: =Inputs!$C108 -> 25W LED Decorative - Top Entry | C49: Offered | D49: =IF($C49="NA","",ROUND('Unsmoothed Prices'!D49*'Unsmoothed Prices'!G$141,3)) -> 12.853 | E49: =IF($C49="NA","",ROUND('Unsmoothed Prices'!E49*'Unsmoothed Prices'!H$141,3)) -> 12.693 | G49: 12.853 | H49: 13.01 | J49: =IFERROR(VLOOKUP($B49,Volumes!$B$4:$F$32,MATCH(J$9,Volumes!$B$4:$F$4,0),FALSE),0) -> 0 | K49: =IFERROR(VLOOKUP($B49,Volumes!$B$4:$F$32,MATCH(K$9,Volumes!$B$4:$F$4,0),FALSE),0) -> 0 | M49: 46.91345 | N49: 46.32945 | P49: 46.9135 | Q49: 47.4865 | S49: 0 | T49: 0 | V49: 0 | W49: 0
B50: =Inputs!$C109 -> 30W LED | C50: Not Offered | D50: =IF($C50="NA","",ROUND('Unsmoothed Prices'!D50*'Unsmoothed Prices'!G$141,3)) -> 12.853 | E50: =IF($C50="NA","",ROUND('Unsmoothed Prices'!E50*'Unsmoothed Prices'!H$141,3)) -> 12.693 | G50: 12.853 | H50: 13.01 | J50: =IFERROR(VLOOKUP($B50,Volumes!$B$4:$F$32,MATCH(J$9,Volumes!$B$4:$F$4,0),FALSE),0) -> 32 | K50: =IFERROR(VLOOKUP($B50,Volumes!$B$4:$F$32,MATCH(K$9,Volumes!$B$4:$F$4,0),FALSE),0) -> 32 | M50: 46.91345 | N50: 46.32945 | P50: 46.9135 | Q50: 47.4865 | S50: 1501.232 | T50: 1519.568 | V50: 1501.2304 | W50: 1482.5424
B51: =Inputs!$C110 -> 88 LED Light | C51: Not Offered | D51: =IF($C51="NA","",ROUND('Unsmoothed Prices'!D51*'Unsmoothed Prices'!G$141,3)) -> 12.853 | E51: =IF($C51="NA","",ROUND('Unsmoothed Prices'!E51*'Unsmoothed Prices'!H$141,3)) -> 12.693 | G51: 12.853 | H51: 13.01 | J51: =IFERROR(VLOOKUP($B51,Volumes!$B$4:$F$32,MATCH(J$9,Volumes!$B$4:$F$4,0),FALSE),0) -> 0 | K51: =IFERROR(VLOOKUP($B51,Volumes!$B$4:$F$32,MATCH(K$9,Volumes!$B$4:$F$4,0),FALSE),0) -> 0 | M51: 46.91345 | N51: 46.32945 | P51: 46.9135 | Q51: 47.4865 | S51: 0 | T51: 0 | V51: 0 | W51: 0
B52: =Inputs!$C111 -> 100W Metal Halide | C52: Offered | D52: =IF($C52="NA","",ROUND('Unsmoothed Prices'!D52*'Unsmoothed Prices'!G$141,3)) -> 22.965 | E52: =IF($C52="NA","",ROUND('Unsmoothed Prices'!E52*'Unsmoothed Prices'!H$141,3)) -> 22.667 | G52: 22.965 | H52: 23.234 | J52: =IFERROR(VLOOKUP($B52,Volumes!$B$4:$F$32,MATCH(J$9,Volumes!$B$4:$F$4,0),FALSE),0) -> 5 | K52: =IFERROR(VLOOKUP($B52,Volumes!$B$4:$F$32,MATCH(K$9,Volumes!$B$4:$F$4,0),FALSE),0) -> 5 | M52: 83.82225 | N52: 82.73455 | P52: 83.8223 | Q52: 84.8041 | S52: 419.1115 | T52: 424.0205 | V52: 419.11125 | W52: 413.67275
B53: =Inputs!$C112 -> 150W Metal Halide | C53: Offered | D53: =IF($C53="NA","",ROUND('Unsmoothed Prices'!D53*'Unsmoothed Prices'!G$141,3)) -> 23.104 | E53: =IF($C53="NA","",ROUND('Unsmoothed Prices'!E53*'Unsmoothed Prices'!H$141,3)) -> 22.803 | G53: 23.104 | H53: 23.373 | J53: =IFERROR(VLOOKUP($B53,Volumes!$B$4:$F$32,MATCH(J$9,Volumes!$B$4:$F$4,0),FALSE),0) -> 27 | K53: =IFERROR(VLOOKUP($B53,Volumes!$B$4:$F$32,MATCH(K$9,Volumes!$B$4:$F$4,0),FALSE),0) -> 27 | M53: 84.3296 | N53: 83.23095 | P53: 84.3296 | Q53: 85.3115 | S53: 2276.8992 | T53: 2303.4105 | V53: 2276.8992 | W53: 2247.23565
B54: =Inputs!$C113 -> 250W Metal Halide | C54: Offered | D54: =IF($C54="NA","",ROUND('Unsmoothed Prices'!D54*'Unsmoothed Prices'!G$141,3)) -> 23.104 | E54: =IF($C54="NA","",ROUND('Unsmoothed Prices'!E54*'Unsmoothed Prices'!H$141,3)) -> 22.803 | G54: 23.104 | H54: 23.373 | J54: =IFERROR(VLOOKUP($B54,Volumes!$B$4:$F$32,MATCH(J$9,Volumes!$B$4:$F$4,0),FALSE),0) -> 40 | K54: =IFERROR(VLOOKUP($B54,Volumes!$B$4:$F$32,MATCH(K$9,Volumes!$B$4:$F$4,0),FALSE),0) -> 40 | M54: 84.3296 | N54: 83.23095 | P54: 84.3296 | Q54: 85.3115 | S54: 3373.184 | T54: 3412.46 | V54: 3373.184 | W54: 3329.238
B55: =Inputs!$C114 -> 400W Metal Halide | C55: Offered | D55: =IF($C55="NA","",ROUND('Unsmoothed Prices'!D55*'Unsmoothed Prices'!G$141,3)) -> 23.765 | E55: =IF($C55="NA","",ROUND('Unsmoothed Prices'!E55*'Unsmoothed Prices'!H$141,3)) -> 23.456 | G55: 23.765 | H55: 24.042 | J55: =IFERROR(VLOOKUP($B55,Volumes!$B$4:$F$32,MATCH(J$9,Volumes!$B$4:$F$4,0),FALSE),0) -> 9 | K55: =IFERROR(VLOOKUP($B55,Volumes!$B$4:$F$32,MATCH(K$9,Volumes!$B$4:$F$4,0),FALSE),0) -> 9 | M55: 86.74225 | N55: 85.6144 | P55: 86.7423 | Q55: 87.7533 | S55: 780.6807 | T55: 789.7797 | V55: 780.68025 | W55: 770.5296
B56: =Inputs!$C115 -> 70W Metal Halide | C56: Not Offered | D56: =IF($C56="NA","",ROUND('Unsmoothed Prices'!D56*'Unsmoothed Prices'!G$141,3)) -> 19.374 | E56: =IF($C56="NA","",ROUND('Unsmoothed Prices'!E56*'Unsmoothed Prices'!H$141,3)) -> 19.125 | G56: 19.374 | H56: 19.603 | J56: =IFERROR(VLOOKUP($B56,Volumes!$B$4:$F$32,MATCH(J$9,Volumes!$B$4:$F$4,0),FALSE),0) -> 0 | K56: =IFERROR(VLOOKUP($B56,Volumes!$B$4:$F$32,MATCH(K$9,Volumes!$B$4:$F$4,0),FALSE),0) -> 0 | M56: 70.7151 | N56: 69.80625 | P56: 70.7151 | Q56: 71.551 | S56: 0 | T56: 0 | V56: 0 | W56: 0
B57: =Inputs!$C116 -> 250W Metal Halide - Flood Light | C57: Offered | D57: =IF($C57="NA","",ROUND('Unsmoothed Prices'!D57*'Unsmoothed Prices'!G$141,3)) -> 23.104 | E57: =IF($C57="NA","",ROUND('Unsmoothed Prices'!E57*'Unsmoothed Prices'!H$141,3)) -> 22.803 | G57: 23.104 | H57: 23.373 | J57: =IFERROR(VLOOKUP($B57,Volumes!$B$4:$F$32,MATCH(J$9,Volumes!$B$4:$F$4,0),FALSE),0) -> 0 | K57: =IFERROR(VLOOKUP($B57,Volumes!$B$4:$F$32,MATCH(K$9,Volumes!$B$4:$F$4,0),FALSE),0) -> 0 | M57: 84.3296 | N57: 83.23095 | P57: 84.3296 | Q57: 85.3115 | S57: 0 | T57: 0 | V57: 0 | W57: 0
B58: =Inputs!$C117 -> 400W Metal Halide - Flood Light | C58: Offered | D58: =IF($C58="NA","",ROUND('Unsmoothed Prices'!D58*'Unsmoothed Prices'!G$141,3)) -> 23.765 | E58: =IF($C58="NA","",ROUND('Unsmoothed Prices'!E58*'Unsmoothed Prices'!H$141,3)) -> 23.456 | G58: 23.765 | H58: 24.042 | J58: =IFERROR(VLOOKUP($B58,Volumes!$B$4:$F$32,MATCH(J$9,Volumes!$B$4:$F$4,0),FALSE),0) -> 0 | K58: =IFERROR(VLOOKUP($B58,Volumes!$B$4:$F$32,MATCH(K$9,Volumes!$B$4:$F$4,0),FALSE),0) -> 0 | M58: 86.74225 | N58: 85.6144 | P58: 86.7423 | Q58: 87.7533 | S58: 0 | T58: 0 | V58: 0 | W58: 0
B59: =Inputs!$C118 -> 125W Mercury Vapour | C59: Obsolete, no new Connections | D59: =IF($C59="NA","",ROUND('Unsmoothed Prices'!D59*'Unsmoothed Prices'!G$141,3)) -> 22.111 | E59: =IF($C59="NA","",ROUND('Unsmoothed Prices'!E59*'Unsmoothed Prices'!H$141,3)) -> 21.824 | G59: 22.111 | H59: 22.37 | J59: =IFERROR(VLOOKUP($B59,Volumes!$B$4:$F$32,MATCH(J$9,Volumes!$B$4:$F$4,0),FALSE),0) -> 327 | K59: =IFERROR(VLOOKUP($B59,Volumes!$B$4:$F$32,MATCH(K$9,Volumes!$B$4:$F$4,0),FALSE),0) -> 320 | M59: 80.70515 | N59: 79.6576 | P59: 80.7052 | Q59: 81.6505 | S59: 26390.6004 | T59: 26128.16 | V59: 26390.58405 | W59: 25490.432
B60: =Inputs!$C119 -> 250W Mercury Vapour | C60: Obsolete, no new Connections | D60: =IF($C60="NA","",ROUND('Unsmoothed Prices'!D60*'Unsmoothed Prices'!G$141,3)) -> 22.111 | E60: =IF($C60="NA","",ROUND('Unsmoothed Prices'!E60*'Unsmoothed Prices'!H$141,3)) -> 21.824 | G60: 22.111 | H60: 22.37 | J60: =IFERROR(VLOOKUP($B60,Volumes!$B$4:$F$32,MATCH(J$9,Volumes!$B$4:$F$4,0),FALSE),0) -> 28 | K60: =IFERROR(VLOOKUP($B60,Volumes!$B$4:$F$32,MATCH(K$9,Volumes!$B$4:$F$4,0),FALSE),0) -> 28 | M60: 80.70515 | N60: 79.6576 | P60: 80.7052 | Q60: 81.6505 | S60: 2259.7456 | T60: 2286.214 | V60: 2259.7442 | W60: 2230.4128
B61: =Inputs!$C120 -> 0 | C61: NA | D61: =IF($C61="NA","",ROUND('Unsmoothed Prices'!D61*'Unsmoothed Prices'!G$141,3)) ->  | E61: =IF($C61="NA","",ROUND('Unsmoothed Prices'!E61*'Unsmoothed Prices'!H$141,3)) ->  | J61: =IFERROR(VLOOKUP($B61,Volumes!$B$4:$F$32,MATCH(J$9,Volumes!$B$4:$F$4,0),FALSE),0) -> 0 | K61: =IFERROR(VLOOKUP($B61,Volumes!$B$4:$F$32,MATCH(K$9,Volumes!$B$4:$F$4,0),FALSE),0) -> 0 | S61: 0 | T61: 0 | V61: 0 | W61: 0
B62: =Inputs!$C121 -> 400W Mercury Vapour | C62: Obsolete, no new Connections | D62: =IF($C62="NA","",ROUND('Unsmoothed Prices'!D62*'Unsmoothed Prices'!G$141,3)) -> 22.256 | E62: =IF($C62="NA","",ROUND('Unsmoothed Prices'!E62*'Unsmoothed Prices'!H$141,3)) -> 21.967 | G62: 22.256 | H62: 22.516 | J62: =IFERROR(VLOOKUP($B62,Volumes!$B$4:$F$32,MATCH(J$9,Volumes!$B$4:$F$4,0),FALSE),0) -> 22 | K62: =IFERROR(VLOOKUP($B62,Volumes!$B$4:$F$32,MATCH(K$9,Volumes!$B$4:$F$4,0),FALSE),0) -> 21 | M62: 81.2344 | N62: 80.17955 | P62: 81.2344 | Q62: 82.1834 | S62: 1787.1568 | T62: 1725.8514 | V62: 1787.1568 | W62: 1683.77055
B63: =Inputs!$C122 -> 50W Mercury Vapour | C63: Obsolete, no new Connections | D63: =IF($C63="NA","",ROUND('Unsmoothed Prices'!D63*'Unsmoothed Prices'!G$141,3)) -> 18.564 | E63: =IF($C63="NA","",ROUND('Unsmoothed Prices'!E63*'Unsmoothed Prices'!H$141,3)) -> 18.327 | G63: 18.564 | H63: 18.785 | J63: =IFERROR(VLOOKUP($B63,Volumes!$B$4:$F$32,MATCH(J$9,Volumes!$B$4:$F$4,0),FALSE),0) -> 188 | K63: =IFERROR(VLOOKUP($B63,Volumes!$B$4:$F$32,MATCH(K$9,Volumes!$B$4:$F$4,0),FALSE),0) -> 184 | M63: 67.7586 | N63: 66.89355 | P63: 67.7586 | Q63: 68.5653 | S63: 12738.6168 | T63: 12616.0152 | V63: 12738.6168 | W63: 12308.4132
B64: =Inputs!$C123 -> 80W Mercury Vapour Art decorative | C64: Obsolete, no new Connections | D64: =IF($C64="NA","",ROUND('Unsmoothed Prices'!D64*'Unsmoothed Prices'!G$141,3)) -> 18.535 | E64: =IF($C64="NA","",ROUND('Unsmoothed Prices'!E64*'Unsmoothed Prices'!H$141,3)) -> 18.297 | G64: 18.535 | H64: 18.754 | J64: =IFERROR(VLOOKUP($B64,Volumes!$B$4:$F$32,MATCH(J$9,Volumes!$B$4:$F$4,0),FALSE),0) -> 0 | K64: =IFERROR(VLOOKUP($B64,Volumes!$B$4:$F$32,MATCH(K$9,Volumes!$B$4:$F$4,0),FALSE),0) -> 0 | M64: 67.65275 | N64: 66.78405 | P64: 67.6528 | Q64: 68.4521 | S64: 0 | T64: 0 | V64: 0 | W64: 0
B65: =Inputs!$C124 -> 80W Mercury Vapour | C65: Obsolete, no new Connections | D65: =IF($C65="NA","",ROUND('Unsmoothed Prices'!D65*'Unsmoothed Prices'!G$141,3)) -> 18.535 | E65: =IF($C65="NA","",ROUND('Unsmoothed Prices'!E65*'Unsmoothed Prices'!H$141,3)) -> 18.297 | G65: 18.535 | H65: 18.754 | J65: =IFERROR(VLOOKUP($B65,Volumes!$B$4:$F$32,MATCH(J$9,Volumes!$B$4:$F$4,0),FALSE),0) -> 350 | K65: =IFERROR(VLOOKUP($B65,Volumes!$B$4:$F$32,MATCH(K$9,Volumes!$B$4:$F$4,0),FALSE),0) -> 343 | M65: 67.65275 | N65: 66.78405 | P65: 67.6528 | Q65: 68.4521 | S65: 23678.48 | T65: 23479.0703 | V65: 23678.4625 | W65: 22906.92915
S66: 0 | T66: 0 | V66: 0 | W66: 0
J67: =SUM(J10:J66) -> 6329 | K67: 6358
J68: =Volumes!E33=J67 -> TRUE | K68: =Volumes!F33=K67 -> TRUE
B69: Public Road Lights | C69: =C8 -> Price (cents) per Light per day Real 2017/18 Smoothed | G69: =G8 -> Price (cents) per Light per day Nominal Smoothed | J69: Volumes | M69: Smooth Real Cost Dollars Per Day | P69: Smooth Nominal Cost Dollars Per Day | S69: Revenue Nominal Dollars Per Year | V69: Revenue Real Dollars Per Year
C70: Offered / No Longer Offered / NA | D70: ='Master Data'!I$29 -> 2017-18 | E70: ='Master Data'!J$29 -> 2018-19 | G70: =G9 -> 2017-18 | H70: 2018-19 | J70: =J9 -> 2017-18 | K70: 2018-19 | M70: ='Master Data'!I$29 -> 2017-18 | N70: ='Master Data'!J$29 -> 2018-19 | P70: ='Master Data'!I$29 -> 2017-18 | Q70: ='Master Data'!J$29 -> 2018-19 | S70: ='Master Data'!I$29 -> 2017-18 | T70: ='Master Data'!J$29 -> 2018-19 | V70: ='Master Data'!I$29 -> 2017-18 | W70: ='Master Data'!J$29 -> 2018-19
B71: =Inputs!$C69 -> 32W Compact Fluorescent | C71: Not Offered | D71: =IF($C71="NA","",ROUND('Unsmoothed Prices'!D71*'Unsmoothed Prices'!G$141,3)) -> 35.661 | E71: =IF($C71="NA","",ROUND('Unsmoothed Prices'!E71*'Unsmoothed Prices'!H$141,3)) -> 35.409 | G71: =IF($C71="NA","",ROUND(D71*G$7,3)) -> 35.661 | H71: =IF($C71="NA","",ROUND(E71*H$7,3)) -> 36.294 | J71: =IFERROR(VLOOKUP($B71,Volumes!$B$38:$F$79,MATCH(J$9,Volumes!$B$4:$F$4,0),FALSE),0) -> 0 | K71: =IFERROR(VLOOKUP($B71,Volumes!$B$38:$F$79,MATCH(K$9,Volumes!$B$4:$F$4,0),FALSE),0) -> 0 | M71: =IF($C71="NA","",(D71*M$7)/100) -> 130.16265 | N71: =IF($C71="NA","",(E71*N$7)/100) -> 129.24285 | P71: =IF($C71="NA","",ROUND((G71*P$7),2)/100) -> 130.1627 | Q71: =IF($C71="NA","",ROUND((H71*Q$7),2)/100) -> 132.4731 | S71: =IFERROR(P71*J71,0) -> 0 | T71: =IFERROR(Q71*K71,0) -> 0 | V71: =IFERROR(M71*J71,0) -> 0 | W71: =IFERROR(N71*K71,0) -> 0
B72: =Inputs!$C70 -> 42W Compact Fluorescent | C72: Offered | D72: =IF($C72="NA","",ROUND('Unsmoothed Prices'!D72*'Unsmoothed Prices'!G$141,3)) -> 35.685 | E72: =IF($C72="NA","",ROUND('Unsmoothed Prices'!E72*'Unsmoothed Prices'!H$141,3)) -> 35.433 | G72: 35.685 | H72: 36.319 | J72: =IFERROR(VLOOKUP($B72,Volumes!$B$38:$F$79,MATCH(J$9,Volumes!$B$4:$F$4,0),FALSE),0) -> 5704 | K72: =IFERROR(VLOOKUP($B72,Volumes!$B$38:$F$79,MATCH(K$9,Volumes!$B$4:$F$4,0),FALSE),0) -> 5419 | M72: 130.25025 | N72: 129.33045 | P72: 130.2503 | Q72: 132.5644 | S72: 742947.7112 | T72: 718366.4836 | V72: 742947.426 | W72: 700841.7086
B73: =Inputs!$C71 -> 42W Compact Fluorescent - Bottom Pole Entry | C73: Offered | D73: =IF($C73="NA","",ROUND('Unsmoothed Prices'!D73*'Unsmoothed Prices'!G$141,3)) -> 35.685 | E73: =IF($C73="NA","",ROUND('Unsmoothed Prices'!E73*'Unsmoothed Prices'!H$141,3)) -> 35.433 | G73: 35.685 | H73: 36.319 | J73: =IFERROR(VLOOKUP($B73,Volumes!$B$38:$F$79,MATCH(J$9,Volumes!$B$4:$F$4,0),FALSE),0) -> 120 | K73: =IFERROR(VLOOKUP($B73,Volumes!$B$38:$F$79,MATCH(K$9,Volumes!$B$4:$F$4,0),FALSE),0) -> 170 | M73: 130.25025 | N73: 129.33045 | P73: 130.2503 | Q73: 132.5644 | S73: 15630.036 | T73: 22535.948 | V73: 15630.03 | W73: 21986.1765
B74: =Inputs!$C72 -> 2x24W Compact Fluorescent | C74: Not Offered | D74: =IF($C74="NA","",ROUND('Unsmoothed Prices'!D74*'Unsmoothed Prices'!G$141,3)) -> 35.989 | E74: =IF($C74="NA","",ROUND('Unsmoothed Prices'!E74*'Unsmoothed Prices'!H$141,3)) -> 35.732 | G74: 35.989 | H74: 36.625 | J74: =IFERROR(VLOOKUP($B74,Volumes!$B$38:$F$79,MATCH(J$9,Volumes!$B$4:$F$4,0),FALSE),0) -> 0 | K74: =IFERROR(VLOOKUP($B74,Volumes!$B$38:$F$79,MATCH(K$9,Volumes!$B$4:$F$4,0),FALSE),0) -> 0 | M74: 131.35985 | N74: 130.4218 | P74: 131.3599 | Q74: 133.6813 | S74: 0 | T74: 0 | V74: 0 | W74: 0
B75: =Inputs!$C73 -> 1x20W Fluorescent | C75: Obsolete, no new Connections | D75: =IF($C75="NA","",ROUND('Unsmoothed Prices'!D75*'Unsmoothed Prices'!G$141,3)) -> 37.65 | E75: =IF($C75="NA","",ROUND('Unsmoothed Prices'!E75*'Unsmoothed Prices'!H$141,3)) -> 37.37 | G75: 37.65 | H75: 38.304 | J75: =IFERROR(VLOOKUP($B75,Volumes!$B$38:$F$79,MATCH(J$9,Volumes!$B$4:$F$4,0),FALSE),0) -> 0 | K75: =IFERROR(VLOOKUP($B75,Volumes!$B$38:$F$79,MATCH(K$9,Volumes!$B$4:$F$4,0),FALSE),0) -> 0 | M75: 137.4225 | N75: 136.4005 | P75: 137.4225 | Q75: 139.8096 | S75: 0 | T75: 0 | V75: 0 | W75: 0
B76: =Inputs!$C74 -> 1x40W Fluorescent | C76: Abolished | D76: =IF($C76="NA","",ROUND('Unsmoothed Prices'!D76*'Unsmoothed Prices'!G$141,3)) -> 36.499 | E76: =IF($C76="NA","",ROUND('Unsmoothed Prices'!E76*'Unsmoothed Prices'!H$141,3)) -> 36.235 | G76: 36.499 | H76: 37.141 | J76: =IFERROR(VLOOKUP($B76,Volumes!$B$38:$F$79,MATCH(J$9,Volumes!$B$4:$F$4,0),FALSE),0) -> 0 | K76: =IFERROR(VLOOKUP($B76,Volumes!$B$38:$F$79,MATCH(K$9,Volumes!$B$4:$F$4,0),FALSE),0) -> 0 | M76: 133.22135 | N76: 132.25775 | P76: 133.2214 | Q76: 135.5647 | S76: 0 | T76: 0 | V76: 0 | W76: 0
B77: =Inputs!$C75 -> 2x20W Fluorescent | C77: Abolished | D77: =IF($C77="NA","",ROUND('Unsmoothed Prices'!D77*'Unsmoothed Prices'!G$141,3)) -> 37.942 | E77: =IF($C77="NA","",ROUND('Unsmoothed Prices'!E77*'Unsmoothed Prices'!H$141,3)) -> 37.659 | G77: 37.942 | H77: 38.6 | J77: =IFERROR(VLOOKUP($B77,Volumes!$B$38:$F$79,MATCH(J$9,Volumes!$B$4:$F$4,0),FALSE),0) -> 0 | K77: =IFERROR(VLOOKUP($B77,Volumes!$B$38:$F$79,MATCH(K$9,Volumes!$B$4:$F$4,0),FALSE),0) -> 0 | M77: 138.4883 | N77: 137.45535 | P77: 138.4883 | Q77: 140.89 | S77: 0 | T77: 0 | V77: 0 | W77: 0
B78: =Inputs!$C76 -> 2x24W Fluorescent | C78: Obsolete, no new Connections | D78: =IF($C78="NA","",ROUND('Unsmoothed Prices'!D78*'Unsmoothed Prices'!G$141,3)) -> 37.861 | E78: =IF($C78="NA","",ROUND('Unsmoothed Prices'!E78*'Unsmoothed Prices'!H$141,3)) -> 37.579 | G78: 37.861 | H78: 38.518 | J78: =IFERROR(VLOOKUP($B78,Volumes!$B$38:$F$79,MATCH(J$9,Volumes!$B$4:$F$4,0),FALSE),0) -> 0 | K78: =IFERROR(VLOOKUP($B78,Volumes!$B$38:$F$79,MATCH(K$9,Volumes!$B$4:$F$4,0),FALSE),0) -> 0 | M78: 138.19265 | N78: 137.16335 | P78: 138.1927 | Q78: 140.5907 | S78: 0 | T78: 0 | V78: 0 | W78: 0
B79: =Inputs!$C77 -> T5 Fluorescent 2 x 24W | C79: Not Offered | D79: =IF($C79="NA","",ROUND('Unsmoothed Prices'!D79*'Unsmoothed Prices'!G$141,3)) -> 37.942 | E79: =IF($C79="NA","",ROUND('Unsmoothed Prices'!E79*'Unsmoothed Prices'!H$141,3)) -> 37.659 | G79: 37.942 | H79: 38.6 | J79: =IFERROR(VLOOKUP($B79,Volumes!$B$38:$F$79,MATCH(J$9,Volumes!$B$4:$F$4,0),FALSE),0) -> 83 | K79: =IFERROR(VLOOKUP($B79,Volumes!$B$38:$F$79,MATCH(K$9,Volumes!$B$4:$F$4,0),FALSE),0) -> 83 | M79: 138.4883 | N79: 137.45535 | P79: 138.4883 | Q79: 140.89 | S79: 11494.5289 | T79: 11693.87 | V79: 11494.5289 | W79: 11408.79405
B80: =Inputs!$C78 -> 20 Fluorescent 1X20FL | C80: Not Offered | D80: =IF($C80="NA","",ROUND('Unsmoothed Prices'!D80*'Unsmoothed Prices'!G$141,3)) -> 37.65 | E80: =IF($C80="NA","",ROUND('Unsmoothed Prices'!E80*'Unsmoothed Prices'!H$141,3)) -> 37.37 | G80: 37.65 | H80: 38.304 | J80: =IFERROR(VLOOKUP($B80,Volumes!$B$38:$F$79,MATCH(J$9,Volumes!$B$4:$F$4,0),FALSE),0) -> 0 | K80: =IFERROR(VLOOKUP($B80,Volumes!$B$38:$F$79,MATCH(K$9,Volumes!$B$4:$F$4,0),FALSE),0) -> 0 | M80: 137.4225 | N80: 136.4005 | P80: 137.4225 | Q80: 139.8096 | S80: 0 | T80: 0 | V80: 0 | W80: 0
B81: =Inputs!$C79 -> 2x40W Fluorescent | C81: Abolished | D81: =IF($C81="NA","",ROUND('Unsmoothed Prices'!D81*'Unsmoothed Prices'!G$141,3)) -> 36.81 | E81: =IF($C81="NA","",ROUND('Unsmoothed Prices'!E81*'Unsmoothed Prices'!H$141,3)) -> 36.543 | G81: 36.81 | H81: 37.457 | J81: =IFERROR(VLOOKUP($B81,Volumes!$B$38:$F$79,MATCH(J$9,Volumes!$B$4:$F$4,0),FALSE),0) -> 0 | K81: =IFERROR(VLOOKUP($B81,Volumes!$B$38:$F$79,MATCH(K$9,Volumes!$B$4:$F$4,0),FALSE),0) -> 0 | M81: 134.3565 | N81: 133.38195 | P81: 134.3565 | Q81: 136.7181 | S81: 0 | T81: 0 | V81: 0 | W81: 0
B82: =Inputs!$C80 -> 3x40W Fluorescent | C82: Not Offered | D82: =IF($C82="NA","",ROUND('Unsmoothed Prices'!D82*'Unsmoothed Prices'!G$141,3)) -> 43.222 | E82: =IF($C82="NA","",ROUND('Unsmoothed Prices'!E82*'Unsmoothed Prices'!H$141,3)) -> 42.866 | G82: 43.222 | H82: 43.938 | J82: =IFERROR(VLOOKUP($B82,Volumes!$B$38:$F$79,MATCH(J$9,Volumes!$B$4:$F$4,0),FALSE),0) -> 0 | K82: =IFERROR(VLOOKUP($B82,Volumes!$B$38:$F$79,MATCH(K$9,Volumes!$B$4:$F$4,0),FALSE),0) -> 0 | M82: 157.7603 | N82: 156.4609 | P82: 157.7603 | Q82: 160.3737 | S82: 0 | T82: 0 | V82: 0 | W82: 0
B83: =Inputs!$C81 -> 4x20 Fluorescent | C83: Abolished | D83: =IF($C83="NA","",ROUND('Unsmoothed Prices'!D83*'Unsmoothed Prices'!G$141,3)) -> 38.527 | E83: =IF($C83="NA","",ROUND('Unsmoothed Prices'!E83*'Unsmoothed Prices'!H$141,3)) -> 38.236 | G83: 38.527 | H83: 39.192 | J83: =IFERROR(VLOOKUP($B83,Volumes!$B$38:$F$79,MATCH(J$9,Volumes!$B$4:$F$4,0),FALSE),0) -> 0 | K83: =IFERROR(VLOOKUP($B83,Volumes!$B$38:$F$79,MATCH(K$9,Volumes!$B$4:$F$4,0),FALSE),0) -> 0 | M83: 140.62355 | N83: 139.5614 | P83: 140.6236 | Q83: 143.0508 | S83: 0 | T83: 0 | V83: 0 | W83: 0
B84: =Inputs!$C82 -> 4x40W Fluorescent | C84: Abolished | D84: =IF($C84="NA","",ROUND('Unsmoothed Prices'!D84*'Unsmoothed Prices'!G$141,3)) -> 47.672 | E84: =IF($C84="NA","",ROUND('Unsmoothed Prices'!E84*'Unsmoothed Prices'!H$141,3)) -> 47.255 | G84: 47.672 | H84: 48.436 | J84: =IFERROR(VLOOKUP($B84,Volumes!$B$38:$F$79,MATCH(J$9,Volumes!$B$4:$F$4,0),FALSE),0) -> 0 | K84: =IFERROR(VLOOKUP($B84,Volumes!$B$38:$F$79,MATCH(K$9,Volumes!$B$4:$F$4,0),FALSE),0) -> 0 | M84: 174.0028 | N84: 172.48075 | P84: 174.0028 | Q84: 176.7914 | S84: 0 | T84: 0 | V84: 0 | W84: 0
B85: =Inputs!$C83 -> 100W Sodium Vapour | C85: Offered | D85: =IF($C85="NA","",ROUND('Unsmoothed Prices'!D85*'Unsmoothed Prices'!G$141,3)) -> 45.039 | E85: =IF($C85="NA","",ROUND('Unsmoothed Prices'!E85*'Unsmoothed Prices'!H$141,3)) -> 44.657 | G85: 45.039 | H85: 45.773 | J85: =IFERROR(VLOOKUP($B85,Volumes!$B$38:$F$79,MATCH(J$9,Volumes!$B$4:$F$4,0),FALSE),0) -> 403 | K85: =IFERROR(VLOOKUP($B85,Volumes!$B$38:$F$79,MATCH(K$9,Volumes!$B$4:$F$4,0),FALSE),0) -> 423 | M85: 164.39235 | N85: 162.99805 | P85: 164.3924 | Q85: 167.0715 | S85: 66250.1372 | T85: 70671.2445 | V85: 66250.11705 | W85: 68948.17515
B86: =Inputs!$C84 -> 0 | C86: NA | D86: =IF($C86="NA","",ROUND('Unsmoothed Prices'!D86*'Unsmoothed Prices'!G$141,3)) ->  | E86: =IF($C86="NA","",ROUND('Unsmoothed Prices'!E86*'Unsmoothed Prices'!H$141,3)) ->  | J86: =IFERROR(VLOOKUP($B86,Volumes!$B$38:$F$79,MATCH(J$9,Volumes!$B$4:$F$4,0),FALSE),0) -> 0 | K86: =IFERROR(VLOOKUP($B86,Volumes!$B$38:$F$79,MATCH(K$9,Volumes!$B$4:$F$4,0),FALSE),0) -> 0 | S86: 0 | T86: 0 | V86: 0 | W86: 0
B87: =Inputs!$C85 -> 150W Sodium Vapour | C87: Offered | D87: =IF($C87="NA","",ROUND('Unsmoothed Prices'!D87*'Unsmoothed Prices'!G$141,3)) -> 47.248 | E87: =IF($C87="NA","",ROUND('Unsmoothed Prices'!E87*'Unsmoothed Prices'!H$141,3)) -> 46.837 | G87: 47.248 | H87: 48.008 | J87: =IFERROR(VLOOKUP($B87,Volumes!$B$38:$F$79,MATCH(J$9,Volumes!$B$4:$F$4,0),FALSE),0) -> 4827 | K87: =IFERROR(VLOOKUP($B87,Volumes!$B$38:$F$79,MATCH(K$9,Volumes!$B$4:$F$4,0),FALSE),0) -> 5069 | M87: 172.4552 | N87: 170.95505 | P87: 172.4552 | Q87: 175.2292 | S87: 832441.2504 | T87: 888236.8148 | V87: 832441.2504 | W87: 866571.1484
B88: =Inputs!$C86 -> 0 | C88: NA | D88: =IF($C88="NA","",ROUND('Unsmoothed Prices'!D88*'Unsmoothed Prices'!G$141,3)) ->  | E88: =IF($C88="NA","",ROUND('Unsmoothed Prices'!E88*'Unsmoothed Prices'!H$141,3)) ->  | J88: =IFERROR(VLOOKUP($B88,Volumes!$B$38:$F$79,MATCH(J$9,Volumes!$B$4:$F$4,0),FALSE),0) -> 0 | K88: =IFERROR(VLOOKUP($B88,Volumes!$B$38:$F$79,MATCH(K$9,Volumes!$B$4:$F$4,0),FALSE),0) -> 0 | S88: 0 | T88: 0 | V88: 0 | W88: 0
B89: =Inputs!$C87 -> 0 | C89: NA | D89: =IF($C89="NA","",ROUND('Unsmoothed Prices'!D89*'Unsmoothed Prices'!G$141,3)) ->  | E89: =IF($C89="NA","",ROUND('Unsmoothed Prices'!E89*'Unsmoothed Prices'!H$141,3)) ->  | J89: =IFERROR(VLOOKUP($B89,Volumes!$B$38:$F$79,MATCH(J$9,Volumes!$B$4:$F$4,0),FALSE),0) -> 0 | K89: =IFERROR(VLOOKUP($B89,Volumes!$B$38:$F$79,MATCH(K$9,Volumes!$B$4:$F$4,0),FALSE),0) -> 0 | S89: 0 | T89: 0 | V89: 0 | W89: 0
B90: =Inputs!$C88 -> 0 | C90: NA | D90: =IF($C90="NA","",ROUND('Unsmoothed Prices'!D90*'Unsmoothed Prices'!G$141,3)) ->  | E90: =IF($C90="NA","",ROUND('Unsmoothed Prices'!E90*'Unsmoothed Prices'!H$141,3)) ->  | J90: =IFERROR(VLOOKUP($B90,Volumes!$B$38:$F$79,MATCH(J$9,Volumes!$B$4:$F$4,0),FALSE),0) -> 0 | K90: =IFERROR(VLOOKUP($B90,Volumes!$B$38:$F$79,MATCH(K$9,Volumes!$B$4:$F$4,0),FALSE),0) -> 0 | S90: 0 | T90: 0 | V90: 0 | W90: 0
B91: =Inputs!$C89 -> 250W Sodium Vapour | C91: Offered | D91: =IF($C91="NA","",ROUND('Unsmoothed Prices'!D91*'Unsmoothed Prices'!G$141,3)) -> 48.328 | E91: =IF($C91="NA","",ROUND('Unsmoothed Prices'!E91*'Unsmoothed Prices'!H$141,3)) -> 47.901 | G91: 48.328 | H91: 49.099 | J91: =IFERROR(VLOOKUP($B91,Volumes!$B$38:$F$79,MATCH(J$9,Volumes!$B$4:$F$4,0),FALSE),0) -> 6000 | K91: =IFERROR(VLOOKUP($B91,Volumes!$B$38:$F$79,MATCH(K$9,Volumes!$B$4:$F$4,0),FALSE),0) -> 6300 | M91: 176.3972 | N91: 174.83865 | P91: 176.3972 | Q91: 179.2114 | S91: 1058383.2 | T91: 1129031.82 | V91: 1058383.2 | W91: 1101483.495
B92: =Inputs!$C90 -> 0 | C92: NA | D92: =IF($C92="NA","",ROUND('Unsmoothed Prices'!D92*'Unsmoothed Prices'!G$141,3)) ->  | E92: =IF($C92="NA","",ROUND('Unsmoothed Prices'!E92*'Unsmoothed Prices'!H$141,3)) ->  | J92: =IFERROR(VLOOKUP($B92,Volumes!$B$38:$F$79,MATCH(J$9,Volumes!$B$4:$F$4,0),FALSE),0) -> 0 | K92: =IFERROR(VLOOKUP($B92,Volumes!$B$38:$F$79,MATCH(K$9,Volumes!$B$4:$F$4,0),FALSE),0) -> 0 | S92: 0 | T92: 0 | V92: 0 | W92: 0
B93: =Inputs!$C91 -> 0 | C93: NA | D93: =IF($C93="NA","",ROUND('Unsmoothed Prices'!D93*'Unsmoothed Prices'!G$141,3)) ->  | E93: =IF($C93="NA","",ROUND('Unsmoothed Prices'!E93*'Unsmoothed Prices'!H$141,3)) ->  | J93: =IFERROR(VLOOKUP($B93,Volumes!$B$38:$F$79,MATCH(J$9,Volumes!$B$4:$F$4,0),FALSE),0) -> 0 | K93: =IFERROR(VLOOKUP($B93,Volumes!$B$38:$F$79,MATCH(K$9,Volumes!$B$4:$F$4,0),FALSE),0) -> 0 | S93: 0 | T93: 0 | V93: 0 | W93: 0
B94: =Inputs!$C92 -> 0 | C94: NA | D94: =IF($C94="NA","",ROUND('Unsmoothed Prices'!D94*'Unsmoothed Prices'!G$141,3)) ->  | E94: =IF($C94="NA","",ROUND('Unsmoothed Prices'!E94*'Unsmoothed Prices'!H$141,3)) ->  | J94: =IFERROR(VLOOKUP($B94,Volumes!$B$38:$F$79,MATCH(J$9,Volumes!$B$4:$F$4,0),FALSE),0) -> 0 | K94: =IFERROR(VLOOKUP($B94,Volumes!$B$38:$F$79,MATCH(K$9,Volumes!$B$4:$F$4,0),FALSE),0) -> 0 | S94: 0 | T94: 0 | V94: 0 | W94: 0
B95: =Inputs!$C93 -> 250W Sodium Vapour - Flood Light | C95: Offered | D95: =IF($C95="NA","",ROUND('Unsmoothed Prices'!D95*'Unsmoothed Prices'!G$141,3)) -> 52.119 | E95: =IF($C95="NA","",ROUND('Unsmoothed Prices'!E95*'Unsmoothed Prices'!H$141,3)) -> 51.641 | G95: 52.119 | H95: 52.932 | J95: =IFERROR(VLOOKUP($B95,Volumes!$B$38:$F$79,MATCH(J$9,Volumes!$B$4:$F$4,0),FALSE),0) -> 33 | K95: =IFERROR(VLOOKUP($B95,Volumes!$B$38:$F$79,MATCH(K$9,Volumes!$B$4:$F$4,0),FALSE),0) -> 35 | M95: 190.23435 | N95: 188.48965 | P95: 190.2344 | Q95: 193.2018 | S95: 6277.7352 | T95: 6762.063 | V95: 6277.73355 | W95: 6597.13775
B96: =Inputs!$C94 -> 400W Sodium Vapour | C96: Offered | D96: =IF($C96="NA","",ROUND('Unsmoothed Prices'!D96*'Unsmoothed Prices'!G$141,3)) -> 49.098 | E96: =IF($C96="NA","",ROUND('Unsmoothed Prices'!E96*'Unsmoothed Prices'!H$141,3)) -> 48.661 | G96: 49.098 | H96: 49.878 | J96: =IFERROR(VLOOKUP($B96,Volumes!$B$38:$F$79,MATCH(J$9,Volumes!$B$4:$F$4,0),FALSE),0) -> 611 | K96: =IFERROR(VLOOKUP($B96,Volumes!$B$38:$F$79,MATCH(K$9,Volumes!$B$4:$F$4,0),FALSE),0) -> 642 | M96: 179.2077 | N96: 177.61265 | P96: 179.2077 | Q96: 182.0547 | S96: 109495.9047 | T96: 116879.1174 | V96: 109495.9047 | W96: 114027.3213
B97: =Inputs!$C95 -> 0 | C97: NA | D97: =IF($C97="NA","",ROUND('Unsmoothed Prices'!D97*'Unsmoothed Prices'!G$141,3)) ->  | E97: =IF($C97="NA","",ROUND('Unsmoothed Prices'!E97*'Unsmoothed Prices'!H$141,3)) ->  | J97: =IFERROR(VLOOKUP($B97,Volumes!$B$38:$F$79,MATCH(J$9,Volumes!$B$4:$F$4,0),FALSE),0) -> 0 | K97: =IFERROR(VLOOKUP($B97,Volumes!$B$38:$F$79,MATCH(K$9,Volumes!$B$4:$F$4,0),FALSE),0) -> 0 | S97: 0 | T97: 0 | V97: 0 | W97: 0
B98: =Inputs!$C96 -> 400W Sodium Vapour - Flood Light | C98: Offered | D98: =IF($C98="NA","",ROUND('Unsmoothed Prices'!D98*'Unsmoothed Prices'!G$141,3)) -> 51.598 | E98: =IF($C98="NA","",ROUND('Unsmoothed Prices'!E98*'Unsmoothed Prices'!H$141,3)) -> 51.127 | G98: 51.598 | H98: 52.405 | J98: =IFERROR(VLOOKUP($B98,Volumes!$B$38:$F$79,MATCH(J$9,Volumes!$B$4:$F$4,0),FALSE),0) -> 33 | K98: =IFERROR(VLOOKUP($B98,Volumes!$B$38:$F$79,MATCH(K$9,Volumes!$B$4:$F$4,0),FALSE),0) -> 35 | M98: 188.3327 | N98: 186.61355 | P98: 188.3327 | Q98: 191.2783 | S98: 6214.9791 | T98: 6694.7405 | V98: 6214.9791 | W98: 6531.47425
B99: =Inputs!$C97 -> 70W Sodium Vapour | C99: Offered | D99: =IF($C99="NA","",ROUND('Unsmoothed Prices'!D99*'Unsmoothed Prices'!G$141,3)) -> 35.546 | E99: =IF($C99="NA","",ROUND('Unsmoothed Prices'!E99*'Unsmoothed Prices'!H$141,3)) -> 35.295 | G99: 35.546 | H99: 36.177 | J99: =IFERROR(VLOOKUP($B99,Volumes!$B$38:$F$79,MATCH(J$9,Volumes!$B$4:$F$4,0),FALSE),0) -> 214 | K99: =IFERROR(VLOOKUP($B99,Volumes!$B$38:$F$79,MATCH(K$9,Volumes!$B$4:$F$4,0),FALSE),0) -> 225 | M99: 129.7429 | N99: 128.82675 | P99: 129.7429 | Q99: 132.0461 | S99: 27764.9806 | T99: 29710.3725 | V99: 27764.9806 | W99: 28986.01875
B100: =Inputs!$C98 -> 0 | C100: NA | D100: =IF($C100="NA","",ROUND('Unsmoothed Prices'!D100*'Unsmoothed Prices'!G$141,3)) ->  | E100: =IF($C100="NA","",ROUND('Unsmoothed Prices'!E100*'Unsmoothed Prices'!H$141,3)) ->  | J100: =IFERROR(VLOOKUP($B100,Volumes!$B$38:$F$79,MATCH(J$9,Volumes!$B$4:$F$4,0),FALSE),0) -> 0 | K100: =IFERROR(VLOOKUP($B100,Volumes!$B$38:$F$79,MATCH(K$9,Volumes!$B$4:$F$4,0),FALSE),0) -> 0 | S100: 0 | T100: 0 | V100: 0 | W100: 0
B101: =Inputs!$C99 -> 100W Incandescent | C101: Abolished | D101: =IF($C101="NA","",ROUND('Unsmoothed Prices'!D101*'Unsmoothed Prices'!G$141,3)) -> 41.83 | E101: =IF($C101="NA","",ROUND('Unsmoothed Prices'!E101*'Unsmoothed Prices'!H$141,3)) -> 41.493 | G101: 41.83 | H101: 42.53 | J101: =IFERROR(VLOOKUP($B101,Volumes!$B$38:$F$79,MATCH(J$9,Volumes!$B$4:$F$4,0),FALSE),0) -> 0 | K101: =IFERROR(VLOOKUP($B101,Volumes!$B$38:$F$79,MATCH(K$9,Volumes!$B$4:$F$4,0),FALSE),0) -> 0 | M101: 152.6795 | N101: 151.44945 | P101: 152.6795 | Q101: 155.2345 | S101: 0 | T101: 0 | V101: 0 | W101: 0
B102: =Inputs!$C100 -> 60W Incandescent | C102: Abolished | D102: =IF($C102="NA","",ROUND('Unsmoothed Prices'!D102*'Unsmoothed Prices'!G$141,3)) -> 32.76 | E102: =IF($C102="NA","",ROUND('Unsmoothed Prices'!E102*'Unsmoothed Prices'!H$141,3)) -> 32.548 | G102: 32.76 | H102: 33.362 | J102: =IFERROR(VLOOKUP($B102,Volumes!$B$38:$F$79,MATCH(J$9,Volumes!$B$4:$F$4,0),FALSE),0) -> 0 | K102: =IFERROR(VLOOKUP($B102,Volumes!$B$38:$F$79,MATCH(K$9,Volumes!$B$4:$F$4,0),FALSE),0) -> 0 | M102: 119.574 | N102: 118.8002 | P102: 119.574 | Q102: 121.7713 | S102: 0 | T102: 0 | V102: 0 | W102: 0
B103: =Inputs!$C101 -> 18W LED | C103: Offered | D103: =IF($C103="NA","",ROUND('Unsmoothed Prices'!D103*'Unsmoothed Prices'!G$141,3)) -> 33.693 | E103: =IF($C103="NA","",ROUND('Unsmoothed Prices'!E103*'Unsmoothed Prices'!H$141,3)) -> 33.468 | G103: =IF($C103="NA","",ROUND(D103*G$7,3)) -> 33.693 | H103: =IF($C103="NA","",ROUND(E103*H$7,3)) -> 34.305 | J103: =IFERROR(VLOOKUP($B103,Volumes!$B$38:$F$79,MATCH(J$9,Volumes!$B$4:$F$4,0),FALSE),0) -> 10110 | K103: =IFERROR(VLOOKUP($B103,Volumes!$B$38:$F$79,MATCH(K$9,Volumes!$B$4:$F$4,0),FALSE),0) -> 14210 | M103: =IF($C103="NA","",(D103*M$7)/100) -> 122.97945 | N103: =IF($C103="NA","",(E103*N$7)/100) -> 122.1582 | P103: =IF($C103="NA","",ROUND((G103*P$7),2)/100) -> 122.9795 | Q103: =IF($C103="NA","",ROUND((H103*Q$7),2)/100) -> 125.2133 | S103: =IFERROR(P103*J103,0) -> 1243322.745 | T103: =IFERROR(Q103*K103,0) -> 1779280.993 | V103: =IFERROR(M103*J103,0) -> 1243322.239 | W103: =IFERROR(N103*K103,0) -> 1735868.022
B104: =Inputs!$C102 -> 25W LED | C104: Offered | D104: =IF($C104="NA","",ROUND('Unsmoothed Prices'!D104*'Unsmoothed Prices'!G$141,3)) -> 33.693 | E104: =IF($C104="NA","",ROUND('Unsmoothed Prices'!E104*'Unsmoothed Prices'!H$141,3)) -> 33.468 | G104: 33.693 | H104: 34.305 | J104: =IFERROR(VLOOKUP($B104,Volumes!$B$38:$F$79,MATCH(J$9,Volumes!$B$4:$F$4,0),FALSE),0) -> 21 | K104: =IFERROR(VLOOKUP($B104,Volumes!$B$38:$F$79,MATCH(K$9,Volumes!$B$4:$F$4,0),FALSE),0) -> 21 | M104: 122.97945 | N104: 122.1582 | P104: 122.9795 | Q104: 125.2133 | S104: 2582.5695 | T104: 2629.4793 | V104: 2582.56845 | W104: 2565.3222
B105: =Inputs!$C103 -> 18W LED Decorative - Bottom Pole Entry | C105: Offered | D105: =IF($C105="NA","",ROUND('Unsmoothed Prices'!D105*'Unsmoothed Prices'!G$141,3)) -> 47.659 | E105: =IF($C105="NA","",ROUND('Unsmoothed Prices'!E105*'Unsmoothed Prices'!H$141,3)) -> 47.242 | G105: 47.659 | H105: 48.423 | J105: =IFERROR(VLOOKUP($B105,Volumes!$B$38:$F$79,MATCH(J$9,Volumes!$B$4:$F$4,0),FALSE),0) -> 33 | K105: =IFERROR(VLOOKUP($B105,Volumes!$B$38:$F$79,MATCH(K$9,Volumes!$B$4:$F$4,0),FALSE),0) -> 35 | M105: 173.95535 | N105: 172.4333 | P105: 173.9554 | Q105: 176.744 | S105: 5740.5282 | T105: 6186.04 | V105: 5740.52655 | W105: 6035.1655
B106: =Inputs!$C104 -> 18W LED Decorative - Side Entry | C106: Offered | D106: =IF($C106="NA","",ROUND('Unsmoothed Prices'!D106*'Unsmoothed Prices'!G$141,3)) -> 47.659 | E106: =IF($C106="NA","",ROUND('Unsmoothed Prices'!E106*'Unsmoothed Prices'!H$141,3)) -> 47.242 | G106: 47.659 | H106: 48.423 | J106: =IFERROR(VLOOKUP($B106,Volumes!$B$38:$F$79,MATCH(J$9,Volumes!$B$4:$F$4,0),FALSE),0) -> 33 | K106: =IFERROR(VLOOKUP($B106,Volumes!$B$38:$F$79,MATCH(K$9,Volumes!$B$4:$F$4,0),FALSE),0) -> 35 | M106: 173.95535 | N106: 172.4333 | P106: 173.9554 | Q106: 176.744 | S106: 5740.5282 | T106: 6186.04 | V106: 5740.52655 | W106: 6035.1655
B107: =Inputs!$C105 -> 18W LED Decorative - Top Entry | C107: Offered | D107: =IF($C107="NA","",ROUND('Unsmoothed Prices'!D107*'Unsmoothed Prices'!G$141,3)) -> 47.659 | E107: =IF($C107="NA","",ROUND('Unsmoothed Prices'!E107*'Unsmoothed Prices'!H$141,3)) -> 47.242 | G107: 47.659 | H107: 48.423 | J107: =IFERROR(VLOOKUP($B107,Volumes!$B$38:$F$79,MATCH(J$9,Volumes!$B$4:$F$4,0),FALSE),0) -> 33 | K107: =IFERROR(VLOOKUP($B107,Volumes!$B$38:$F$79,MATCH(K$9,Volumes!$B$4:$F$4,0),FALSE),0) -> 35 | M107: 173.95535 | N107: 172.4333 | P107: 173.9554 | Q107: 176.744 | S107: 5740.5282 | T107: 6186.04 | V107: 5740.52655 | W107: 6035.1655
B108: =Inputs!$C106 -> 25W LED Decorative - Bottom Pole Entry | C108: Offered | D108: =IF($C108="NA","",ROUND('Unsmoothed Prices'!D108*'Unsmoothed Prices'!G$141,3)) -> 47.659 | E108: =IF($C108="NA","",ROUND('Unsmoothed Prices'!E108*'Unsmoothed Prices'!H$141,3)) -> 47.242 | G108: 47.659 | H108: 48.423 | J108: =IFERROR(VLOOKUP($B108,Volumes!$B$38:$F$79,MATCH(J$9,Volumes!$B$4:$F$4,0),FALSE),0) -> 33 | K108: =IFERROR(VLOOKUP($B108,Volumes!$B$38:$F$79,MATCH(K$9,Volumes!$B$4:$F$4,0),FALSE),0) -> 35 | M108: 173.95535 | N108: 172.4333 | P108: 173.9554 | Q108: 176.744 | S108: 5740.5282 | T108: 6186.04 | V108: 5740.52655 | W108: 6035.1655
B109: =Inputs!$C107 -> 25W LED Decorative - Side Entry | C109: Offered | D109: =IF($C109="NA","",ROUND('Unsmoothed Prices'!D109*'Unsmoothed Prices'!G$141,3)) -> 47.659 | E109: =IF($C109="NA","",ROUND('Unsmoothed Prices'!E109*'Unsmoothed Prices'!H$141,3)) -> 47.242 | G109: 47.659 | H109: 48.423 | J109: =IFERROR(VLOOKUP($B109,Volumes!$B$38:$F$79,MATCH(J$9,Volumes!$B$4:$F$4,0),FALSE),0) -> 33 | K109: =IFERROR(VLOOKUP($B109,Volumes!$B$38:$F$79,MATCH(K$9,Volumes!$B$4:$F$4,0),FALSE),0) -> 35 | M109: 173.95535 | N109: 172.4333 | P109: 173.9554 | Q109: 176.744 | S109: 5740.5282 | T109: 6186.04 | V109: 5740.52655 | W109: 6035.1655
B110: =Inputs!$C108 -> 25W LED Decorative - Top Entry | C110: Offered | D110: =IF($C110="NA","",ROUND('Unsmoothed Prices'!D110*'Unsmoothed Prices'!G$141,3)) -> 47.659 | E110: =IF($C110="NA","",ROUND('Unsmoothed Prices'!E110*'Unsmoothed Prices'!H$141,3)) -> 47.242 | G110: 47.659 | H110: 48.423 | J110: =IFERROR(VLOOKUP($B110,Volumes!$B$38:$F$79,MATCH(J$9,Volumes!$B$4:$F$4,0),FALSE),0) -> 33 | K110: =IFERROR(VLOOKUP($B110,Volumes!$B$38:$F$79,MATCH(K$9,Volumes!$B$4:$F$4,0),FALSE),0) -> 35 | M110: 173.95535 | N110: 172.4333 | P110: 173.9554 | Q110: 176.744 | S110: 5740.5282 | T110: 6186.04 | V110: 5740.52655 | W110: 6035.1655
B111: =Inputs!$C109 -> 30W LED | C111: Not Offered | D111: =IF($C111="NA","",ROUND('Unsmoothed Prices'!D111*'Unsmoothed Prices'!G$141,3)) -> 33.693 | E111: =IF($C111="NA","",ROUND('Unsmoothed Prices'!E111*'Unsmoothed Prices'!H$141,3)) -> 33.468 | G111: 33.693 | H111: 34.305 | J111: =IFERROR(VLOOKUP($B111,Volumes!$B$38:$F$79,MATCH(J$9,Volumes!$B$4:$F$4,0),FALSE),0) -> 0 | K111: =IFERROR(VLOOKUP($B111,Volumes!$B$38:$F$79,MATCH(K$9,Volumes!$B$4:$F$4,0),FALSE),0) -> 0 | M111: 122.97945 | N111: 122.1582 | P111: 122.9795 | Q111: 125.2133 | S111: 0 | T111: 0 | V111: 0 | W111: 0
B112: =Inputs!$C110 -> 88 LED Light | C112: Abolished | D112: =IF($C112="NA","",ROUND('Unsmoothed Prices'!D112*'Unsmoothed Prices'!G$141,3)) -> 33.693 | E112: =IF($C112="NA","",ROUND('Unsmoothed Prices'!E112*'Unsmoothed Prices'!H$141,3)) -> 33.468 | G112: 33.693 | H112: 34.305 | J112: =IFERROR(VLOOKUP($B112,Volumes!$B$38:$F$79,MATCH(J$9,Volumes!$B$4:$F$4,0),FALSE),0) -> 0 | K112: =IFERROR(VLOOKUP($B112,Volumes!$B$38:$F$79,MATCH(K$9,Volumes!$B$4:$F$4,0),FALSE),0) -> 0 | M112: 122.97945 | N112: 122.1582 | P112: 122.9795 | Q112: 125.2133 | S112: 0 | T112: 0 | V112: 0 | W112: 0
B113: =Inputs!$C111 -> 100W Metal Halide | C113: Offered | D113: =IF($C113="NA","",ROUND('Unsmoothed Prices'!D113*'Unsmoothed Prices'!G$141,3)) -> 45.181 | E113: =IF($C113="NA","",ROUND('Unsmoothed Prices'!E113*'Unsmoothed Prices'!H$141,3)) -> 44.799 | G113: 45.181 | H113: 45.919 | J113: =IFERROR(VLOOKUP($B113,Volumes!$B$38:$F$79,MATCH(J$9,Volumes!$B$4:$F$4,0),FALSE),0) -> 17 | K113: =IFERROR(VLOOKUP($B113,Volumes!$B$38:$F$79,MATCH(K$9,Volumes!$B$4:$F$4,0),FALSE),0) -> 17 | M113: 164.91065 | N113: 163.51635 | P113: 164.9107 | Q113: 167.6044 | S113: 2803.4819 | T113: 2849.2748 | V113: 2803.48105 | W113: 2779.77795
B114: =Inputs!$C112 -> 150W Metal Halide | C114: Offered | D114: =IF($C114="NA","",ROUND('Unsmoothed Prices'!D114*'Unsmoothed Prices'!G$141,3)) -> 47.787 | E114: =IF($C114="NA","",ROUND('Unsmoothed Prices'!E114*'Unsmoothed Prices'!H$141,3)) -> 47.369 | G114: 47.787 | H114: 48.553 | J114: =IFERROR(VLOOKUP($B114,Volumes!$B$38:$F$79,MATCH(J$9,Volumes!$B$4:$F$4,0),FALSE),0) -> 14 | K114: =IFERROR(VLOOKUP($B114,Volumes!$B$38:$F$79,MATCH(K$9,Volumes!$B$4:$F$4,0),FALSE),0) -> 15 | M114: 174.42255 | N114: 172.89685 | P114: 174.4226 | Q114: 177.2185 | S114: 2441.9164 | T114: 2658.2775 | V114: 2441.9157 | W114: 2593.45275
B115: =Inputs!$C113 -> 250W Metal Halide | C115: Offered | D115: =IF($C115="NA","",ROUND('Unsmoothed Prices'!D115*'Unsmoothed Prices'!G$141,3)) -> 48.607 | E115: =IF($C115="NA","",ROUND('Unsmoothed Prices'!E115*'Unsmoothed Prices'!H$141,3)) -> 48.177 | G115: 48.607 | H115: 49.381 | J115: =IFERROR(VLOOKUP($B115,Volumes!$B$38:$F$79,MATCH(J$9,Volumes!$B$4:$F$4,0),FALSE),0) -> 88 | K115: =IFERROR(VLOOKUP($B115,Volumes!$B$38:$F$79,MATCH(K$9,Volumes!$B$4:$F$4,0),FALSE),0) -> 89 | M115: 177.41555 | N115: 175.84605 | P115: 177.4156 | Q115: 180.2407 | S115: 15612.5728 | T115: 16041.4223 | V115: 15612.5684 | W115: 15650.29845
B116: =Inputs!$C114 -> 400W Metal Halide | C116: Offered | D116: =IF($C116="NA","",ROUND('Unsmoothed Prices'!D116*'Unsmoothed Prices'!G$141,3)) -> 53.578 | E116: =IF($C116="NA","",ROUND('Unsmoothed Prices'!E116*'Unsmoothed Prices'!H$141,3)) -> 53.08 | G116: 53.578 | H116: 54.407 | J116: =IFERROR(VLOOKUP($B116,Volumes!$B$38:$F$79,MATCH(J$9,Volumes!$B$4:$F$4,0),FALSE),0) -> 17 | K116: =IFERROR(VLOOKUP($B116,Volumes!$B$38:$F$79,MATCH(K$9,Volumes!$B$4:$F$4,0),FALSE),0) -> 17 | M116: 195.5597 | N116: 193.742 | P116: 195.5597 | Q116: 198.5856 | S116: 3324.5149 | T116: 3375.9552 | V116: 3324.5149 | W116: 3293.614
B117: =Inputs!$C115 -> 70W Metal Halide | C117: Not Offered | D117: =IF($C117="NA","",ROUND('Unsmoothed Prices'!D117*'Unsmoothed Prices'!G$141,3)) -> 34.562 | E117: =IF($C117="NA","",ROUND('Unsmoothed Prices'!E117*'Unsmoothed Prices'!H$141,3)) -> 34.325 | G117: 34.562 | H117: 35.183 | J117: =IFERROR(VLOOKUP($B117,Volumes!$B$38:$F$79,MATCH(J$9,Volumes!$B$4:$F$4,0),FALSE),0) -> 0 | K117: =IFERROR(VLOOKUP($B117,Volumes!$B$38:$F$79,MATCH(K$9,Volumes!$B$4:$F$4,0),FALSE),0) -> 0 | M117: 126.1513 | N117: 125.28625 | P117: 126.1513 | Q117: 128.418 | S117: 0 | T117: 0 | V117: 0 | W117: 0
B118: =Inputs!$C116 -> 250W Metal Halide - Flood Light | C118: Offered | D118: =IF($C118="NA","",ROUND('Unsmoothed Prices'!D118*'Unsmoothed Prices'!G$141,3)) -> 53.734 | E118: =IF($C118="NA","",ROUND('Unsmoothed Prices'!E118*'Unsmoothed Prices'!H$141,3)) -> 53.233 | G118: 53.734 | H118: 54.564 | J118: =IFERROR(VLOOKUP($B118,Volumes!$B$38:$F$79,MATCH(J$9,Volumes!$B$4:$F$4,0),FALSE),0) -> 33 | K118: =IFERROR(VLOOKUP($B118,Volumes!$B$38:$F$79,MATCH(K$9,Volumes!$B$4:$F$4,0),FALSE),0) -> 35 | M118: 196.1291 | N118: 194.30045 | P118: 196.1291 | Q118: 199.1586 | S118: 6472.2603 | T118: 6970.551 | V118: 6472.2603 | W118: 6800.51575
B119: =Inputs!$C117 -> 400W Metal Halide - Flood Light | C119: Offered | D119: =IF($C119="NA","",ROUND('Unsmoothed Prices'!D119*'Unsmoothed Prices'!G$141,3)) -> 53.578 | E119: =IF($C119="NA","",ROUND('Unsmoothed Prices'!E119*'Unsmoothed Prices'!H$141,3)) -> 53.08 | G119: 53.578 | H119: 54.407 | J119: =IFERROR(VLOOKUP($B119,Volumes!$B$38:$F$79,MATCH(J$9,Volumes!$B$4:$F$4,0),FALSE),0) -> 33 | K119: =IFERROR(VLOOKUP($B119,Volumes!$B$38:$F$79,MATCH(K$9,Volumes!$B$4:$F$4,0),FALSE),0) -> 35 | M119: 195.5597 | N119: 193.742 | P119: 195.5597 | Q119: 198.5856 | S119: 6453.4701 | T119: 6950.496 | V119: 6453.4701 | W119: 6780.97
B120: =Inputs!$C118 -> 125W Mercury Vapour | C120: Obsolete, no new Connections | D120: =IF($C120="NA","",ROUND('Unsmoothed Prices'!D120*'Unsmoothed Prices'!G$141,3)) -> 45.143 | E120: =IF($C120="NA","",ROUND('Unsmoothed Prices'!E120*'Unsmoothed Prices'!H$141,3)) -> 44.761 | G120: 45.143 | H120: 45.88 | J120: =IFERROR(VLOOKUP($B120,Volumes!$B$38:$F$79,MATCH(J$9,Volumes!$B$4:$F$4,0),FALSE),0) -> 0 | K120: =IFERROR(VLOOKUP($B120,Volumes!$B$38:$F$79,MATCH(K$9,Volumes!$B$4:$F$4,0),FALSE),0) -> 0 | M120: 164.77195 | N120: 163.37765 | P120: 164.772 | Q120: 167.462 | S120: 0 | T120: 0 | V120: 0 | W120: 0
B121: =Inputs!$C119 -> 250W Mercury Vapour | C121: Obsolete, no new Connections | D121: =IF($C121="NA","",ROUND('Unsmoothed Prices'!D121*'Unsmoothed Prices'!G$141,3)) -> 45.615 | E121: =IF($C121="NA","",ROUND('Unsmoothed Prices'!E121*'Unsmoothed Prices'!H$141,3)) -> 45.227 | G121: 45.615 | H121: 46.358 | J121: =IFERROR(VLOOKUP($B121,Volumes!$B$38:$F$79,MATCH(J$9,Volumes!$B$4:$F$4,0),FALSE),0) -> 427 | K121: =IFERROR(VLOOKUP($B121,Volumes!$B$38:$F$79,MATCH(K$9,Volumes!$B$4:$F$4,0),FALSE),0) -> 406 | M121: 166.49475 | N121: 165.07855 | P121: 166.4948 | Q121: 169.2067 | S121: 71093.2796 | T121: 68697.9202 | V121: 71093.25825 | W121: 67021.8913
B122: =Inputs!$C120 -> 0 | C122: NA | D122: =IF($C122="NA","",ROUND('Unsmoothed Prices'!D122*'Unsmoothed Prices'!G$141,3)) ->  | E122: =IF($C122="NA","",ROUND('Unsmoothed Prices'!E122*'Unsmoothed Prices'!H$141,3)) ->  | J122: =IFERROR(VLOOKUP($B122,Volumes!$B$38:$F$79,MATCH(J$9,Volumes!$B$4:$F$4,0),FALSE),0) -> 0 | K122: =IFERROR(VLOOKUP($B122,Volumes!$B$38:$F$79,MATCH(K$9,Volumes!$B$4:$F$4,0),FALSE),0) -> 0 | S122: 0 | T122: 0 | V122: 0 | W122: 0
B123: =Inputs!$C121 -> 400W Mercury Vapour | C123: Obsolete, no new Connections | D123: =IF($C123="NA","",ROUND('Unsmoothed Prices'!D123*'Unsmoothed Prices'!G$141,3)) -> 47.74 | E123: =IF($C123="NA","",ROUND('Unsmoothed Prices'!E123*'Unsmoothed Prices'!H$141,3)) -> 47.321 | G123: 47.74 | H123: 48.504 | J123: =IFERROR(VLOOKUP($B123,Volumes!$B$38:$F$79,MATCH(J$9,Volumes!$B$4:$F$4,0),FALSE),0) -> 32 | K123: =IFERROR(VLOOKUP($B123,Volumes!$B$38:$F$79,MATCH(K$9,Volumes!$B$4:$F$4,0),FALSE),0) -> 31 | M123: 174.251 | N123: 172.72165 | P123: 174.251 | Q123: 177.0396 | S123: 5576.032 | T123: 5488.2276 | V123: 5576.032 | W123: 5354.37115
B124: =Inputs!$C122 -> 50W Mercury Vapour | C124: Obsolete, no new Connections | D124: =IF($C124="NA","",ROUND('Unsmoothed Prices'!D124*'Unsmoothed Prices'!G$141,3)) -> 33.471 | E124: =IF($C124="NA","",ROUND('Unsmoothed Prices'!E124*'Unsmoothed Prices'!H$141,3)) -> 33.248 | G124: 33.471 | H124: 34.079 | J124: =IFERROR(VLOOKUP($B124,Volumes!$B$38:$F$79,MATCH(J$9,Volumes!$B$4:$F$4,0),FALSE),0) -> 0 | K124: =IFERROR(VLOOKUP($B124,Volumes!$B$38:$F$79,MATCH(K$9,Volumes!$B$4:$F$4,0),FALSE),0) -> 0 | M124: 122.16915 | N124: 121.3552 | P124: 122.1692 | Q124: 124.3884 | S124: 0 | T124: 0 | V124: 0 | W124: 0
B125: =Inputs!$C123 -> 80W Mercury Vapour Art decorative | C125: Obsolete, no new Connections | D125: =IF($C125="NA","",ROUND('Unsmoothed Prices'!D125*'Unsmoothed Prices'!G$141,3)) -> 50.346 | E125: =IF($C125="NA","",ROUND('Unsmoothed Prices'!E125*'Unsmoothed Prices'!H$141,3)) -> 49.892 | G125: 50.346 | H125: 51.139 | J125: =IFERROR(VLOOKUP($B125,Volumes!$B$38:$F$79,MATCH(J$9,Volumes!$B$4:$F$4,0),FALSE),0) -> 40 | K125: =IFERROR(VLOOKUP($B125,Volumes!$B$38:$F$79,MATCH(K$9,Volumes!$B$4:$F$4,0),FALSE),0) -> 40 | M125: 183.7629 | N125: 182.1058 | P125: 183.7629 | Q125: 186.6574 | S125: 7350.516 | T125: 7466.296 | V125: 7350.516 | W125: 7284.232
B126: =Inputs!$C124 -> 80W Mercury Vapour | C126: Obsolete, no new Connections | D126: =IF($C126="NA","",ROUND('Unsmoothed Prices'!D126*'Unsmoothed Prices'!G$141,3)) -> 33.472 | E126: =IF($C126="NA","",ROUND('Unsmoothed Prices'!E126*'Unsmoothed Prices'!H$141,3)) -> 33.249 | G126: 33.472 | H126: 34.08 | J126: =IFERROR(VLOOKUP($B126,Volumes!$B$38:$F$79,MATCH(J$9,Volumes!$B$4:$F$4,0),FALSE),0) -> 14235 | K126: =IFERROR(VLOOKUP($B126,Volumes!$B$38:$F$79,MATCH(K$9,Volumes!$B$4:$F$4,0),FALSE),0) -> 10135 | M126: 122.1728 | N126: 121.35885 | P126: 122.1728 | Q126: 124.392 | S126: 1739129.808 | T126: 1260712.92 | V126: 1739129.808 | W126: 1229971.945
J128: =SUM(J71:J127) -> 43293 | K128: 43662
J129: =Volumes!E80=J128 -> TRUE | K129: =Volumes!F80=K128 -> TRUE | R129: Annuity Revenue | S129: =SUM(S10:S66,S71:S126)/1000000 -> 6.359277141 | T129: =SUM(T10:T66,T71:T126)/1000000 -> 6.54758322 | U129: =SUM(S129:T129) -> 12.90686036 | V129: =SUM(V10:V66,V71:V126)/1000000 -> 6.359275995 | W129: =SUM(W10:W66,W71:W126)/1000000 -> 6.3878673 | X129: =SUM(V129:W129) -> 12.74714329
B130: Total | J130: =SUM(J67,J128) -> 49622 | K130: 50020 | R130: RAB Approach Revenue | S130: ='Revenue Nominal RAB'!D13 -> 5.656010742 | T130: ='Revenue Nominal RAB'!E13 -> 6.469510035
J131: =Volumes!E84=J130 -> TRUE | K131: =Volumes!F84=K130 -> TRUE | R131: Difference | S131: =S129-S130 -> 0.7032663997 | T131: 0.07807318502
R133: Per Smoothed Revenue | S133: ='Unsmoothed Prices'!M130 -> 6.316402891 | T133: ='Unsmoothed Prices'!N130 -> 6.594150424 | U133: =SUM(S133:T133) -> 12.91055331 | V133: ='Unsmoothed Prices'!G130 -> 6.316402891 | W133: ='Unsmoothed Prices'!H130 -> 6.433317486 | X133: =SUM(V133:W133) -> 12.74972038
U134: =U129-U133 -> -0.00369295346 | X134: =X129-X133 -> -0.0025770825
S135: =T129/S129 -> 1.02961124 | V135: =W129/V129 -> 1.004496

Sheet Unsmoothed Prices
B4: Private Contract Lights
F6: Days | G6: ='Master Data'!I23 -> 365 | H6: ='Master Data'!J23 -> 365
D7: 8 | E7: =D7+1 -> 9 | M7: ='Master Data'!I32 -> 1 | N7: ='Master Data'!J32 -> 1.025
B8: Private Contract Lights | C8: Price (cents) per Light per day | G8: Revenue ($m) - Real | M8: Revenue ($m) - Nominal
C9: Offered / No Longer Offered / NA | D9: ='Master Data'!I$29 -> 2017-18 | E9: ='Master Data'!J$29 -> 2018-19 | G9: =D9 -> 2017-18 | H9: =E9 -> 2018-19 | J9: =G9 -> 2017-18 | K9: =H9 -> 2018-19 | M9: ='Master Data'!I$29 -> 2017-18 | N9: ='Master Data'!J$29 -> 2018-19
B10: =Inputs!$C69 -> 32W Compact Fluorescent | C10: Old light no volumes | D10: =IF($C10="NA","",OFFSET('Combined Annuity Prices CL'!$B$10,MATCH($B10,'Combined Annuity Prices CL'!$B$10:$B$3811,0)+12,D$7)) -> 18.564 | E10: =IF($C10="NA","",OFFSET('Combined Annuity Prices CL'!$B$10,MATCH($B10,'Combined Annuity Prices CL'!$B$10:$B$3811,0)+12,E$7)) -> 18.582 | G10: =IF($C10="NA","",D10*J10*G$6/100/10^6) -> 0 | H10: =IF($C10="NA","",E10*K10*H$6/100/10^6) -> 0 | J10: =IFERROR(VLOOKUP($B10,Volumes!$B$4:$F$32,MATCH(J$9,Volumes!$B$4:$F$4,0),FALSE),0) -> 0 | K10: =IFERROR(VLOOKUP($B10,Volumes!$B$4:$F$32,MATCH(K$9,Volumes!$B$4:$F$4,0),FALSE),0) -> 0 | M10: =IF($C10="NA","",D10*M$7*J10*G$6/100/10^6) -> 0 | N10: =IF($C10="NA","",E10*N$7*K10*H$6/100/10^6) -> 0
B11: =Inputs!$C70 -> 42W Compact Fluorescent | C11: Old light no volumes | D11: =IF($C11="NA","",OFFSET('Combined Annuity Prices CL'!$B$10,MATCH($B11,'Combined Annuity Prices CL'!$B$10:$B$3811,0)+12,D$7)) -> 18.564 | E11: =IF($C11="NA","",OFFSET('Combined Annuity Prices CL'!$B$10,MATCH($B11,'Combined Annuity Prices CL'!$B$10:$B$3811,0)+12,E$7)) -> 18.582 | G11: 0 | H11: 0 | J11: =IFERROR(VLOOKUP($B11,Volumes!$B$4:$F$32,MATCH(J$9,Volumes!$B$4:$F$4,0),FALSE),0) -> 0 | K11: =IFERROR(VLOOKUP($B11,Volumes!$B$4:$F$32,MATCH(K$9,Volumes!$B$4:$F$4,0),FALSE),0) -> 0 | M11: 0 | N11: 0
B12: =Inputs!$C71 -> 42W Compact Fluorescent - Bottom Pole Entry | C12: Old light no volumes | D12: =IF($C12="NA","",OFFSET('Combined Annuity Prices CL'!$B$10,MATCH($B12,'Combined Annuity Prices CL'!$B$10:$B$3811,0)+12,D$7)) -> 18.564 | E12: =IF($C12="NA","",OFFSET('Combined Annuity Prices CL'!$B$10,MATCH($B12,'Combined Annuity Prices CL'!$B$10:$B$3811,0)+12,E$7)) -> 18.582 | G12: 0 | H12: 0 | J12: =IFERROR(VLOOKUP($B12,Volumes!$B$4:$F$32,MATCH(J$9,Volumes!$B$4:$F$4,0),FALSE),0) -> 0 | K12: =IFERROR(VLOOKUP($B12,Volumes!$B$4:$F$32,MATCH(K$9,Volumes!$B$4:$F$4,0),FALSE),0) -> 0 | M12: 0 | N12: 0
B13: =Inputs!$C72 -> 2x24W Compact Fluorescent | C13: Old light no volumes | D13: =IF($C13="NA","",OFFSET('Combined Annuity Prices CL'!$B$10,MATCH($B13,'Combined Annuity Prices CL'!$B$10:$B$3811,0)+12,D$7)) -> 18.865 | E13: =IF($C13="NA","",OFFSET('Combined Annuity Prices CL'!$B$10,MATCH($B13,'Combined Annuity Prices CL'!$B$10:$B$3811,0)+12,E$7)) -> 18.883 | G13: 0 | H13: 0 | J13: =IFERROR(VLOOKUP($B13,Volumes!$B$4:$F$32,MATCH(J$9,Volumes!$B$4:$F$4,0),FALSE),0) -> 0 | K13: =IFERROR(VLOOKUP($B13,Volumes!$B$4:$F$32,MATCH(K$9,Volumes!$B$4:$F$4,0),FALSE),0) -> 0 | M13: 0 | N13: 0
B14: =Inputs!$C73 -> 1x20W Fluorescent | C14: Obsolete, no new Connections | D14: =IF($C14="NA","",OFFSET('Combined Annuity Prices CL'!$B$10,MATCH($B14,'Combined Annuity Prices CL'!$B$10:$B$3811,0)+12,D$7)) -> 18.554 | E14: =IF($C14="NA","",OFFSET('Combined Annuity Prices CL'!$B$10,MATCH($B14,'Combined Annuity Prices CL'!$B$10:$B$3811,0)+12,E$7)) -> 18.571 | G14: 0 | H14: 0 | J14: =IFERROR(VLOOKUP($B14,Volumes!$B$4:$F$32,MATCH(J$9,Volumes!$B$4:$F$4,0),FALSE),0) -> 0 | K14: =IFERROR(VLOOKUP($B14,Volumes!$B$4:$F$32,MATCH(K$9,Volumes!$B$4:$F$4,0),FALSE),0) -> 0 | M14: 0 | N14: 0
B15: =Inputs!$C74 -> 1x40W Fluorescent | C15: Obsolete, no new Connections | D15: =IF($C15="NA","",OFFSET('Combined Annuity Prices CL'!$B$10,MATCH($B15,'Combined Annuity Prices CL'!$B$10:$B$3811,0)+12,D$7)) -> 18.573 | E15: =IF($C15="NA","",OFFSET('Combined Annuity Prices CL'!$B$10,MATCH($B15,'Combined Annuity Prices CL'!$B$10:$B$3811,0)+12,E$7)) -> 18.59 | G15: 0 | H15: 0 | J15: =IFERROR(VLOOKUP($B15,Volumes!$B$4:$F$32,MATCH(J$9,Volumes!$B$4:$F$4,0),FALSE),0) -> 0 | K15: =IFERROR(VLOOKUP($B15,Volumes!$B$4:$F$32,MATCH(K$9,Volumes!$B$4:$F$4,0),FALSE),0) -> 0 | M15: 0 | N15: 0
B16: =Inputs!$C75 -> 2x20W Fluorescent | C16: Obsolete, no new Connections | D16: =IF($C16="NA","",OFFSET('Combined Annuity Prices CL'!$B$10,MATCH($B16,'Combined Annuity Prices CL'!$B$10:$B$3811,0)+12,D$7)) -> 18.844 | E16: =IF($C16="NA","",OFFSET('Combined Annuity Prices CL'!$B$10,MATCH($B16,'Combined Annuity Prices CL'!$B$10:$B$3811,0)+12,E$7)) -> 18.862 | G16: 0 | H16: 0 | J16: =IFERROR(VLOOKUP($B16,Volumes!$B$4:$F$32,MATCH(J$9,Volumes!$B$4:$F$4,0),FALSE),0) -> 0 | K16: =IFERROR(VLOOKUP($B16,Volumes!$B$4:$F$32,MATCH(K$9,Volumes!$B$4:$F$4,0),FALSE),0) -> 0 | M16: 0 | N16: 0
B17: =Inputs!$C76 -> 2x24W Fluorescent | C17: Old light no volumes | D17: =IF($C17="NA","",OFFSET('Combined Annuity Prices CL'!$B$10,MATCH($B17,'Combined Annuity Prices CL'!$B$10:$B$3811,0)+12,D$7)) -> 18.657 | E17: =IF($C17="NA","",OFFSET('Combined Annuity Prices CL'!$B$10,MATCH($B17,'Combined Annuity Prices CL'!$B$10:$B$3811,0)+12,E$7)) -> 18.674 | G17: 0 | H17: 0 | J17: =IFERROR(VLOOKUP($B17,Volumes!$B$4:$F$32,MATCH(J$9,Volumes!$B$4:$F$4,0),FALSE),0) -> 0 | K17: =IFERROR(VLOOKUP($B17,Volumes!$B$4:$F$32,MATCH(K$9,Volumes!$B$4:$F$4,0),FALSE),0) -> 0 | M17: 0 | N17: 0
B18: =Inputs!$C77 -> T5 Fluorescent 2 x 24W | C18: Old light no volumes | D18: =IF($C18="NA","",OFFSET('Combined Annuity Prices CL'!$B$10,MATCH($B18,'Combined Annuity Prices CL'!$B$10:$B$3811,0)+12,D$7)) -> 18.844 | E18: =IF($C18="NA","",OFFSET('Combined Annuity Prices CL'!$B$10,MATCH($B18,'Combined Annuity Prices CL'!$B$10:$B$3811,0)+12,E$7)) -> 18.862 | G18: 0 | H18: 0 | J18: =IFERROR(VLOOKUP($B18,Volumes!$B$4:$F$32,MATCH(J$9,Volumes!$B$4:$F$4,0),FALSE),0) -> 0 | K18: =IFERROR(VLOOKUP($B18,Volumes!$B$4:$F$32,MATCH(K$9,Volumes!$B$4:$F$4,0),FALSE),0) -> 0 | M18: 0 | N18: 0
B19: =Inputs!$C78 -> 20 Fluorescent 1X20FL | C19: Old light no volumes | D19: =IF($C19="NA","",OFFSET('Combined Annuity Prices CL'!$B$10,MATCH($B19,'Combined Annuity Prices CL'!$B$10:$B$3811,0)+12,D$7)) -> 18.554 | E19: =IF($C19="NA","",OFFSET('Combined Annuity Prices CL'!$B$10,MATCH($B19,'Combined Annuity Prices CL'!$B$10:$B$3811,0)+12,E$7)) -> 18.571 | G19: 0 | H19: 0 | J19: =IFERROR(VLOOKUP($B19,Volumes!$B$4:$F$32,MATCH(J$9,Volumes!$B$4:$F$4,0),FALSE),0) -> 0 | K19: =IFERROR(VLOOKUP($B19,Volumes!$B$4:$F$32,MATCH(K$9,Volumes!$B$4:$F$4,0),FALSE),0) -> 0 | M19: 0 | N19: 0
B20: =Inputs!$C79 -> 2x40W Fluorescent | C20: Obsolete, no new Connections | D20: =IF($C20="NA","",OFFSET('Combined Annuity Prices CL'!$B$10,MATCH($B20,'Combined Annuity Prices CL'!$B$10:$B$3811,0)+12,D$7)) -> 18.882 | E20: =IF($C20="NA","",OFFSET('Combined Annuity Prices CL'!$B$10,MATCH($B20,'Combined Annuity Prices CL'!$B$10:$B$3811,0)+12,E$7)) -> 18.899 | G20: 0 | H20: 0 | J20: =IFERROR(VLOOKUP($B20,Volumes!$B$4:$F$32,MATCH(J$9,Volumes!$B$4:$F$4,0),FALSE),0) -> 0 | K20: =IFERROR(VLOOKUP($B20,Volumes!$B$4:$F$32,MATCH(K$9,Volumes!$B$4:$F$4,0),FALSE),0) -> 0 | M20: 0 | N20: 0
B21: =Inputs!$C80 -> 3x40W Fluorescent | C21: Obsolete, no new Connections | D21: =IF($C21="NA","",OFFSET('Combined Annuity Prices CL'!$B$10,MATCH($B21,'Combined Annuity Prices CL'!$B$10:$B$3811,0)+12,D$7)) -> 22.741 | E21: =IF($C21="NA","",OFFSET('Combined Annuity Prices CL'!$B$10,MATCH($B21,'Combined Annuity Prices CL'!$B$10:$B$3811,0)+12,E$7)) -> 22.758 | G21: 0 | H21: 0 | J21: =IFERROR(VLOOKUP($B21,Volumes!$B$4:$F$32,MATCH(J$9,Volumes!$B$4:$F$4,0),FALSE),0) -> 0 | K21: =IFERROR(VLOOKUP($B21,Volumes!$B$4:$F$32,MATCH(K$9,Volumes!$B$4:$F$4,0),FALSE),0) -> 0 | M21: 0 | N21: 0
B22: =Inputs!$C81 -> 4x20 Fluorescent | C22: Old light no volumes | D22: =IF($C22="NA","",OFFSET('Combined Annuity Prices CL'!$B$10,MATCH($B22,'Combined Annuity Prices CL'!$B$10:$B$3811,0)+12,D$7)) -> 19.425 | E22: =IF($C22="NA","",OFFSET('Combined Annuity Prices CL'!$B$10,MATCH($B22,'Combined Annuity Prices CL'!$B$10:$B$3811,0)+12,E$7)) -> 19.443 | G22: 0 | H22: 0 | J22: =IFERROR(VLOOKUP($B22,Volumes!$B$4:$F$32,MATCH(J$9,Volumes!$B$4:$F$4,0),FALSE),0) -> 0 | K22: =IFERROR(VLOOKUP($B22,Volumes!$B$4:$F$32,MATCH(K$9,Volumes!$B$4:$F$4,0),FALSE),0) -> 0 | M22: 0 | N22: 0
B23: =Inputs!$C82 -> 4x40W Fluorescent | C23: Obsolete, no new Connections | D23: =IF($C23="NA","",OFFSET('Combined Annuity Prices CL'!$B$10,MATCH($B23,'Combined Annuity Prices CL'!$B$10:$B$3811,0)+12,D$7)) -> 23.05 | E23: =IF($C23="NA","",OFFSET('Combined Annuity Prices CL'!$B$10,MATCH($B23,'Combined Annuity Prices CL'!$B$10:$B$3811,0)+12,E$7)) -> 23.067 | G23: 0 | H23: 0 | J23: =IFERROR(VLOOKUP($B23,Volumes!$B$4:$F$32,MATCH(J$9,Volumes!$B$4:$F$4,0),FALSE),0) -> 0 | K23: =IFERROR(VLOOKUP($B23,Volumes!$B$4:$F$32,MATCH(K$9,Volumes!$B$4:$F$4,0),FALSE),0) -> 0 | M23: 0 | N23: 0
B24: =Inputs!$C83 -> 100W Sodium Vapour | C24: Old light no volumes | D24: =IF($C24="NA","",OFFSET('Combined Annuity Prices CL'!$B$10,MATCH($B24,'Combined Annuity Prices CL'!$B$10:$B$3811,0)+12,D$7)) -> 22.814 | E24: =IF($C24="NA","",OFFSET('Combined Annuity Prices CL'!$B$10,MATCH($B24,'Combined Annuity Prices CL'!$B$10:$B$3811,0)+12,E$7)) -> 22.831 | G24: 0.0004163555 | H24: 0.00041666575 | J24: =IFERROR(VLOOKUP($B24,Volumes!$B$4:$F$32,MATCH(J$9,Volumes!$B$4:$F$4,0),FALSE),0) -> 5 | K24: =IFERROR(VLOOKUP($B24,Volumes!$B$4:$F$32,MATCH(K$9,Volumes!$B$4:$F$4,0),FALSE),0) -> 5 | M24: 0.0004163555 | N24: 0.0004270823938
B25: =Inputs!$C84 -> 0 | C25: NA | D25: =IF($C25="NA","",OFFSET('Combined Annuity Prices CL'!$B$10,MATCH($B25,'Combined Annuity Prices CL'!$B$10:$B$3811,0)+12,D$7)) ->  | E25: =IF($C25="NA","",OFFSET('Combined Annuity Prices CL'!$B$10,MATCH($B25,'Combined Annuity Prices CL'!$B$10:$B$3811,0)+12,E$7)) ->  | J25: =IFERROR(VLOOKUP($B25,Volumes!$B$4:$F$32,MATCH(J$9,Volumes!$B$4:$F$4,0),FALSE),0) -> 0 | K25: =IFERROR(VLOOKUP($B25,Volumes!$B$4:$F$32,MATCH(K$9,Volumes!$B$4:$F$4,0),FALSE),0) -> 0
B26: =Inputs!$C85 -> 150W Sodium Vapour | C26: Offered | D26: =IF($C26="NA","",OFFSET('Combined Annuity Prices CL'!$B$10,MATCH($B26,'Combined Annuity Prices CL'!$B$10:$B$3811,0)+12,D$7)) -> 22.81 | E26: =IF($C26="NA","",OFFSET('Combined Annuity Prices CL'!$B$10,MATCH($B26,'Combined Annuity Prices CL'!$B$10:$B$3811,0)+12,E$7)) -> 22.827 | G26: 0.0135708095 | H26: 0.01358092365 | J26: =IFERROR(VLOOKUP($B26,Volumes!$B$4:$F$32,MATCH(J$9,Volumes!$B$4:$F$4,0),FALSE),0) -> 163 | K26: =IFERROR(VLOOKUP($B26,Volumes!$B$4:$F$32,MATCH(K$9,Volumes!$B$4:$F$4,0),FALSE),0) -> 163 | M26: 0.0135708095 | N26: 0.01392044674
B27: =Inputs!$C86 -> 0 | C27: NA | D27: =IF($C27="NA","",OFFSET('Combined Annuity Prices CL'!$B$10,MATCH($B27,'Combined Annuity Prices CL'!$B$10:$B$3811,0)+12,D$7)) ->  | E27: =IF($C27="NA","",OFFSET('Combined Annuity Prices CL'!$B$10,MATCH($B27,'Combined Annuity Prices CL'!$B$10:$B$3811,0)+12,E$7)) ->  | J27: =IFERROR(VLOOKUP($B27,Volumes!$B$4:$F$32,MATCH(J$9,Volumes!$B$4:$F$4,0),FALSE),0) -> 0 | K27: =IFERROR(VLOOKUP($B27,Volumes!$B$4:$F$32,MATCH(K$9,Volumes!$B$4:$F$4,0),FALSE),0) -> 0
B28: =Inputs!$C87 -> 0 | C28: NA | D28: =IF($C28="NA","",OFFSET('Combined Annuity Prices CL'!$B$10,MATCH($B28,'Combined Annuity Prices CL'!$B$10:$B$3811,0)+12,D$7)) ->  | E28: =IF($C28="NA","",OFFSET('Combined Annuity Prices CL'!$B$10,MATCH($B28,'Combined Annuity Prices CL'!$B$10:$B$3811,0)+12,E$7)) ->  | J28: =IFERROR(VLOOKUP($B28,Volumes!$B$4:$F$32,MATCH(J$9,Volumes!$B$4:$F$4,0),FALSE),0) -> 0 | K28: =IFERROR(VLOOKUP($B28,Volumes!$B$4:$F$32,MATCH(K$9,Volumes!$B$4:$F$4,0),FALSE),0) -> 0
B29: =Inputs!$C88 -> 0 | C29: NA | D29: =IF($C29="NA","",OFFSET('Combined Annuity Prices CL'!$B$10,MATCH($B29,'Combined Annuity Prices CL'!$B$10:$B$3811,0)+12,D$7)) ->  | E29: =IF($C29="NA","",OFFSET('Combined Annuity Prices CL'!$B$10,MATCH($B29,'Combined Annuity Prices CL'!$B$10:$B$3811,0)+12,E$7)) ->  | J29: =IFERROR(VLOOKUP($B29,Volumes!$B$4:$F$32,MATCH(J$9,Volumes!$B$4:$F$4,0),FALSE),0) -> 0 | K29: =IFERROR(VLOOKUP($B29,Volumes!$B$4:$F$32,MATCH(K$9,Volumes!$B$4:$F$4,0),FALSE),0) -> 0
B30: =Inputs!$C89 -> 250W Sodium Vapour | C30: Offered | D30: =IF($C30="NA","",OFFSET('Combined Annuity Prices CL'!$B$10,MATCH($B30,'Combined Annuity Prices CL'!$B$10:$B$3811,0)+12,D$7)) -> 22.934 | E30: =IF($C30="NA","",OFFSET('Combined Annuity Prices CL'!$B$10,MATCH($B30,'Combined Annuity Prices CL'!$B$10:$B$3811,0)+12,E$7)) -> 22.951 | G30: 0.0138120015 | H30: 0.01382223975 | J30: =IFERROR(VLOOKUP($B30,Volumes!$B$4:$F$32,MATCH(J$9,Volumes!$B$4:$F$4,0),FALSE),0) -> 165 | K30: =IFERROR(VLOOKUP($B30,Volumes!$B$4:$F$32,MATCH(K$9,Volumes!$B$4:$F$4,0),FALSE),0) -> 165 | M30: 0.0138120015 | N30: 0.01416779574
B31: =Inputs!$C90 -> 0 | C31: NA | D31: =IF($C31="NA","",OFFSET('Combined Annuity Prices CL'!$B$10,MATCH($B31,'Combined Annuity Prices CL'!$B$10:$B$3811,0)+12,D$7)) ->  | E31: =IF($C31="NA","",OFFSET('Combined Annuity Prices CL'!$B$10,MATCH($B31,'Combined Annuity Prices CL'!$B$10:$B$3811,0)+12,E$7)) ->  | J31: =IFERROR(VLOOKUP($B31,Volumes!$B$4:$F$32,MATCH(J$9,Volumes!$B$4:$F$4,0),FALSE),0) -> 0 | K31: =IFERROR(VLOOKUP($B31,Volumes!$B$4:$F$32,MATCH(K$9,Volumes!$B$4:$F$4,0),FALSE),0) -> 0
B32: =Inputs!$C91 -> 0 | C32: NA | D32: =IF($C32="NA","",OFFSET('Combined Annuity Prices CL'!$B$10,MATCH($B32,'Combined Annuity Prices CL'!$B$10:$B$3811,0)+12,D$7)) ->  | E32: =IF($C32="NA","",OFFSET('Combined Annuity Prices CL'!$B$10,MATCH($B32,'Combined Annuity Prices CL'!$B$10:$B$3811,0)+12,E$7)) ->  | J32: =IFERROR(VLOOKUP($B32,Volumes!$B$4:$F$32,MATCH(J$9,Volumes!$B$4:$F$4,0),FALSE),0) -> 0 | K32: =IFERROR(VLOOKUP($B32,Volumes!$B$4:$F$32,MATCH(K$9,Volumes!$B$4:$F$4,0),FALSE),0) -> 0
B33: =Inputs!$C92 -> 0 | C33: NA | D33: =IF($C33="NA","",OFFSET('Combined Annuity Prices CL'!$B$10,MATCH($B33,'Combined Annuity Prices CL'!$B$10:$B$3811,0)+12,D$7)) ->  | E33: =IF($C33="NA","",OFFSET('Combined Annuity Prices CL'!$B$10,MATCH($B33,'Combined Annuity Prices CL'!$B$10:$B$3811,0)+12,E$7)) ->  | J33: =IFERROR(VLOOKUP($B33,Volumes!$B$4:$F$32,MATCH(J$9,Volumes!$B$4:$F$4,0),FALSE),0) -> 0 | K33: =IFERROR(VLOOKUP($B33,Volumes!$B$4:$F$32,MATCH(K$9,Volumes!$B$4:$F$4,0),FALSE),0) -> 0
B34: =Inputs!$C93 -> 250W Sodium Vapour - Flood Light | C34: Old light no volumes | D34: =IF($C34="NA","",OFFSET('Combined Annuity Prices CL'!$B$10,MATCH($B34,'Combined Annuity Prices CL'!$B$10:$B$3811,0)+12,D$7)) -> 22.934 | E34: =IF($C34="NA","",OFFSET('Combined Annuity Prices CL'!$B$10,MATCH($B34,'Combined Annuity Prices CL'!$B$10:$B$3811,0)+12,E$7)) -> 22.951 | G34: 0 | H34: 0 | J34: =IFERROR(VLOOKUP($B34,Volumes!$B$4:$F$32,MATCH(J$9,Volumes!$B$4:$F$4,0),FALSE),0) -> 0 | K34: =IFERROR(VLOOKUP($B34,Volumes!$B$4:$F$32,MATCH(K$9,Volumes!$B$4:$F$4,0),FALSE),0) -> 0 | M34: 0 | N34: 0
B35: =Inputs!$C94 -> 400W Sodium Vapour | C35: Offered | D35: =IF($C35="NA","",OFFSET('Combined Annuity Prices CL'!$B$10,MATCH($B35,'Combined Annuity Prices CL'!$B$10:$B$3811,0)+12,D$7)) -> 22.976 | E35: =IF($C35="NA","",OFFSET('Combined Annuity Prices CL'!$B$10,MATCH($B35,'Combined Annuity Prices CL'!$B$10:$B$3811,0)+12,E$7)) -> 22.994 | G35: 0.0087216896 | H35: 0.0087285224 | J35: =IFERROR(VLOOKUP($B35,Volumes!$B$4:$F$32,MATCH(J$9,Volumes!$B$4:$F$4,0),FALSE),0) -> 104 | K35: =IFERROR(VLOOKUP($B35,Volumes!$B$4:$F$32,MATCH(K$9,Volumes!$B$4:$F$4,0),FALSE),0) -> 104 | M35: 0.0087216896 | N35: 0.00894673546
B36: =Inputs!$C95 -> 0 | C36: NA | D36: =IF($C36="NA","",OFFSET('Combined Annuity Prices CL'!$B$10,MATCH($B36,'Combined Annuity Prices CL'!$B$10:$B$3811,0)+12,D$7)) ->  | E36: =IF($C36="NA","",OFFSET('Combined Annuity Prices CL'!$B$10,MATCH($B36,'Combined Annuity Prices CL'!$B$10:$B$3811,0)+12,E$7)) ->  | J36: =IFERROR(VLOOKUP($B36,Volumes!$B$4:$F$32,MATCH(J$9,Volumes!$B$4:$F$4,0),FALSE),0) -> 0 | K36: =IFERROR(VLOOKUP($B36,Volumes!$B$4:$F$32,MATCH(K$9,Volumes!$B$4:$F$4,0),FALSE),0) -> 0
B37: =Inputs!$C96 -> 400W Sodium Vapour - Flood Light | C37: Old light no volumes | D37: =IF($C37="NA","",OFFSET('Combined Annuity Prices CL'!$B$10,MATCH($B37,'Combined Annuity Prices CL'!$B$10:$B$3811,0)+12,D$7)) -> 22.976 | E37: =IF($C37="NA","",OFFSET('Combined Annuity Prices CL'!$B$10,MATCH($B37,'Combined Annuity Prices CL'!$B$10:$B$3811,0)+12,E$7)) -> 22.994 | G37: 0 | H37: 0 | J37: =IFERROR(VLOOKUP($B37,Volumes!$B$4:$F$32,MATCH(J$9,Volumes!$B$4:$F$4,0),FALSE),0) -> 0 | K37: =IFERROR(VLOOKUP($B37,Volumes!$B$4:$F$32,MATCH(K$9,Volumes!$B$4:$F$4,0),FALSE),0) -> 0 | M37: 0 | N37: 0
B38: =Inputs!$C97 -> 70W Sodium Vapour | C38: Offered | D38: =IF($C38="NA","",OFFSET('Combined Annuity Prices CL'!$B$10,MATCH($B38,'Combined Annuity Prices CL'!$B$10:$B$3811,0)+12,D$7)) -> 18.762 | E38: =IF($C38="NA","",OFFSET('Combined Annuity Prices CL'!$B$10,MATCH($B38,'Combined Annuity Prices CL'!$B$10:$B$3811,0)+12,E$7)) -> 18.78 | G38: 0.0049991349 | H38: 0.005003931 | J38: =IFERROR(VLOOKUP($B38,Volumes!$B$4:$F$32,MATCH(J$9,Volumes!$B$4:$F$4,0),FALSE),0) -> 73 | K38: =IFERROR(VLOOKUP($B38,Volumes!$B$4:$F$32,MATCH(K$9,Volumes!$B$4:$F$4,0),FALSE),0) -> 73 | M38: 0.0049991349 | N38: 0.005129029275
B39: =Inputs!$C98 -> 0 | C39: NA | D39: =IF($C39="NA","",OFFSET('Combined Annuity Prices CL'!$B$10,MATCH($B39,'Combined Annuity Prices CL'!$B$10:$B$3811,0)+12,D$7)) ->  | E39: =IF($C39="NA","",OFFSET('Combined Annuity Prices CL'!$B$10,MATCH($B39,'Combined Annuity Prices CL'!$B$10:$B$3811,0)+12,E$7)) ->  | J39: =IFERROR(VLOOKUP($B39,Volumes!$B$4:$F$32,MATCH(J$9,Volumes!$B$4:$F$4,0),FALSE),0) -> 0 | K39: =IFERROR(VLOOKUP($B39,Volumes!$B$4:$F$32,MATCH(K$9,Volumes!$B$4:$F$4,0),FALSE),0) -> 0
B40: =Inputs!$C99 -> 100W Incandescent | C40: Obsolete, no new Connections | D40: =IF($C40="NA","",OFFSET('Combined Annuity Prices CL'!$B$10,MATCH($B40,'Combined Annuity Prices CL'!$B$10:$B$3811,0)+12,D$7)) -> 21.937 | E40: =IF($C40="NA","",OFFSET('Combined Annuity Prices CL'!$B$10,MATCH($B40,'Combined Annuity Prices CL'!$B$10:$B$3811,0)+12,E$7)) -> 21.954 | G40: 0 | H40: 0 | J40: =IFERROR(VLOOKUP($B40,Volumes!$B$4:$F$32,MATCH(J$9,Volumes!$B$4:$F$4,0),FALSE),0) -> 0 | K40: =IFERROR(VLOOKUP($B40,Volumes!$B$4:$F$32,MATCH(K$9,Volumes!$B$4:$F$4,0),FALSE),0) -> 0 | M40: 0 | N40: 0
B41: =Inputs!$C100 -> 60W Incandescent | C41: Obsolete, no new Connections | D41: =IF($C41="NA","",OFFSET('Combined Annuity Prices CL'!$B$10,MATCH($B41,'Combined Annuity Prices CL'!$B$10:$B$3811,0)+12,D$7)) -> 18.387 | E41: =IF($C41="NA","",OFFSET('Combined Annuity Prices CL'!$B$10,MATCH($B41,'Combined Annuity Prices CL'!$B$10:$B$3811,0)+12,E$7)) -> 18.405 | G41: 0 | H41: 0 | J41: =IFERROR(VLOOKUP($B41,Volumes!$B$4:$F$32,MATCH(J$9,Volumes!$B$4:$F$4,0),FALSE),0) -> 0 | K41: =IFERROR(VLOOKUP($B41,Volumes!$B$4:$F$32,MATCH(K$9,Volumes!$B$4:$F$4,0),FALSE),0) -> 0 | M41: 0 | N41: 0
B42: =Inputs!$C101 -> 18W LED | C42: Offered | D42: =IF($C42="NA","",OFFSET('Combined Annuity Prices CL'!$B$10,MATCH($B42,'Combined Annuity Prices CL'!$B$10:$B$3811,0)+12,D$7)) -> 12.766 | E42: =IF($C42="NA","",OFFSET('Combined Annuity Prices CL'!$B$10,MATCH($B42,'Combined Annuity Prices CL'!$B$10:$B$3811,0)+12,E$7)) -> 12.783 | G42: =IF($C42="NA","",D42*J42*G$6/100/10^6) -> 0.2218896758 | H42: =IF($C42="NA","",E42*K42*H$6/100/10^6) -> 0.2244247395 | J42: =IFERROR(VLOOKUP($B42,Volumes!$B$4:$F$32,MATCH(J$9,Volumes!$B$4:$F$4,0),FALSE),0) -> 4762 | K42: =IFERROR(VLOOKUP($B42,Volumes!$B$4:$F$32,MATCH(K$9,Volumes!$B$4:$F$4,0),FALSE),0) -> 4810 | M42: =IF($C42="NA","",D42*M$7*J42*G$6/100/10^6) -> 0.2218896758 | N42: =IF($C42="NA","",E42*N$7*K42*H$6/100/10^6) -> 0.230035358
B43: =Inputs!$C102 -> 25W LED | C43: Obsolete, no new Connections | D43: =IF($C43="NA","",OFFSET('Combined Annuity Prices CL'!$B$10,MATCH($B43,'Combined Annuity Prices CL'!$B$10:$B$3811,0)+12,D$7)) -> 12.766 | E43: =IF($C43="NA","",OFFSET('Combined Annuity Prices CL'!$B$10,MATCH($B43,'Combined Annuity Prices CL'!$B$10:$B$3811,0)+12,E$7)) -> 12.783 | G43: 0.0013512811 | H43: 0.00135308055 | J43: =IFERROR(VLOOKUP($B43,Volumes!$B$4:$F$32,MATCH(J$9,Volumes!$B$4:$F$4,0),FALSE),0) -> 29 | K43: =IFERROR(VLOOKUP($B43,Volumes!$B$4:$F$32,MATCH(K$9,Volumes!$B$4:$F$4,0),FALSE),0) -> 29 | M43: 0.0013512811 | N43: 0.001386907564
B44: =Inputs!$C103 -> 18W LED Decorative - Bottom Pole Entry | C44: Not Offered | D44: =IF($C44="NA","",OFFSET('Combined Annuity Prices CL'!$B$10,MATCH($B44,'Combined Annuity Prices CL'!$B$10:$B$3811,0)+12,D$7)) -> 12.766 | E44: =IF($C44="NA","",OFFSET('Combined Annuity Prices CL'!$B$10,MATCH($B44,'Combined Annuity Prices CL'!$B$10:$B$3811,0)+12,E$7)) -> 12.783 | G44: 0 | H44: 0 | J44: =IFERROR(VLOOKUP($B44,Volumes!$B$4:$F$32,MATCH(J$9,Volumes!$B$4:$F$4,0),FALSE),0) -> 0 | K44: =IFERROR(VLOOKUP($B44,Volumes!$B$4:$F$32,MATCH(K$9,Volumes!$B$4:$F$4,0),FALSE),0) -> 0 | M44: 0 | N44: 0
B45: =Inputs!$C104 -> 18W LED Decorative - Side Entry | C45: Not Offered | D45: =IF($C45="NA","",OFFSET('Combined Annuity Prices CL'!$B$10,MATCH($B45,'Combined Annuity Prices CL'!$B$10:$B$3811,0)+12,D$7)) -> 12.766 | E45: =IF($C45="NA","",OFFSET('Combined Annuity Prices CL'!$B$10,MATCH($B45,'Combined Annuity Prices CL'!$B$10:$B$3811,0)+12,E$7)) -> 12.783 | G45: 0 | H45: 0 | J45: =IFERROR(VLOOKUP($B45,Volumes!$B$4:$F$32,MATCH(J$9,Volumes!$B$4:$F$4,0),FALSE),0) -> 0 | K45: =IFERROR(VLOOKUP($B45,Volumes!$B$4:$F$32,MATCH(K$9,Volumes!$B$4:$F$4,0),FALSE),0) -> 0 | M45: 0 | N45: 0
B46: =Inputs!$C105 -> 18W LED Decorative - Top Entry | C46: Offered | D46: =IF($C46="NA","",OFFSET('Combined Annuity Prices CL'!$B$10,MATCH($B46,'Combined Annuity Prices CL'!$B$10:$B$3811,0)+12,D$7)) -> 12.766 | E46: =IF($C46="NA","",OFFSET('Combined Annuity Prices CL'!$B$10,MATCH($B46,'Combined Annuity Prices CL'!$B$10:$B$3811,0)+12,E$7)) -> 12.783 | G46: 0 | H46: 0 | J46: =IFERROR(VLOOKUP($B46,Volumes!$B$4:$F$32,MATCH(J$9,Volumes!$B$4:$F$4,0),FALSE),0) -> 0 | K46: =IFERROR(VLOOKUP($B46,Volumes!$B$4:$F$32,MATCH(K$9,Volumes!$B$4:$F$4,0),FALSE),0) -> 0 | M46: 0 | N46: 0
B47: =Inputs!$C106 -> 25W LED Decorative - Bottom Pole Entry | C47: Not Offered | D47: =IF($C47="NA","",OFFSET('Combined Annuity Prices CL'!$B$10,MATCH($B47,'Combined Annuity Prices CL'!$B$10:$B$3811,0)+12,D$7)) -> 12.766 | E47: =IF($C47="NA","",OFFSET('Combined Annuity Prices CL'!$B$10,MATCH($B47,'Combined Annuity Prices CL'!$B$10:$B$3811,0)+12,E$7)) -> 12.783 | G47: 0 | H47: 0 | J47: =IFERROR(VLOOKUP($B47,Volumes!$B$4:$F$32,MATCH(J$9,Volumes!$B$4:$F$4,0),FALSE),0) -> 0 | K47: =IFERROR(VLOOKUP($B47,Volumes!$B$4:$F$32,MATCH(K$9,Volumes!$B$4:$F$4,0),FALSE),0) -> 0 | M47: 0 | N47: 0
B48: =Inputs!$C107 -> 25W LED Decorative - Side Entry | C48: Not Offered | D48: =IF($C48="NA","",OFFSET('Combined Annuity Prices CL'!$B$10,MATCH($B48,'Combined Annuity Prices CL'!$B$10:$B$3811,0)+12,D$7)) -> 12.766 | E48: =IF($C48="NA","",OFFSET('Combined Annuity Prices CL'!$B$10,MATCH($B48,'Combined Annuity Prices CL'!$B$10:$B$3811,0)+12,E$7)) -> 12.783 | G48: 0 | H48: 0 | J48: =IFERROR(VLOOKUP($B48,Volumes!$B$4:$F$32,MATCH(J$9,Volumes!$B$4:$F$4,0),FALSE),0) -> 0 | K48: =IFERROR(VLOOKUP($B48,Volumes!$B$4:$F$32,MATCH(K$9,Volumes!$B$4:$F$4,0),FALSE),0) -> 0 | M48: 0 | N48: 0
B49: =Inputs!$C108 -> 25W LED Decorative - Top Entry | C49: Not Offered | D49: =IF($C49="NA","",OFFSET('Combined Annuity Prices CL'!$B$10,MATCH($B49,'Combined Annuity Prices CL'!$B$10:$B$3811,0)+12,D$7)) -> 12.766 | E49: =IF($C49="NA","",OFFSET('Combined Annuity Prices CL'!$B$10,MATCH($B49,'Combined Annuity Prices CL'!$B$10:$B$3811,0)+12,E$7)) -> 12.783 | G49: 0 | H49: 0 | J49: =IFERROR(VLOOKUP($B49,Volumes!$B$4:$F$32,MATCH(J$9,Volumes!$B$4:$F$4,0),FALSE),0) -> 0 | K49: =IFERROR(VLOOKUP($B49,Volumes!$B$4:$F$32,MATCH(K$9,Volumes!$B$4:$F$4,0),FALSE),0) -> 0 | M49: 0 | N49: 0
B50: =Inputs!$C109 -> 30W LED | C50: Offered | D50: =IF($C50="NA","",OFFSET('Combined Annuity Prices CL'!$B$10,MATCH($B50,'Combined Annuity Prices CL'!$B$10:$B$3811,0)+12,D$7)) -> 12.766 | E50: =IF($C50="NA","",OFFSET('Combined Annuity Prices CL'!$B$10,MATCH($B50,'Combined Annuity Prices CL'!$B$10:$B$3811,0)+12,E$7)) -> 12.783 | G50: 0.0014910688 | H50: 0.0014930544 | J50: =IFERROR(VLOOKUP($B50,Volumes!$B$4:$F$32,MATCH(J$9,Volumes!$B$4:$F$4,0),FALSE),0) -> 32 | K50: =IFERROR(VLOOKUP($B50,Volumes!$B$4:$F$32,MATCH(K$9,Volumes!$B$4:$F$4,0),FALSE),0) -> 32 | M50: 0.0014910688 | N50: 0.00153038076
B51: =Inputs!$C110 -> 88 LED Light | C51: Not Offered | D51: =IF($C51="NA","",OFFSET('Combined Annuity Prices CL'!$B$10,MATCH($B51,'Combined Annuity Prices CL'!$B$10:$B$3811,0)+12,D$7)) -> 12.766 | E51: =IF($C51="NA","",OFFSET('Combined Annuity Prices CL'!$B$10,MATCH($B51,'Combined Annuity Prices CL'!$B$10:$B$3811,0)+12,E$7)) -> 12.783 | G51: 0 | H51: 0 | J51: =IFERROR(VLOOKUP($B51,Volumes!$B$4:$F$32,MATCH(J$9,Volumes!$B$4:$F$4,0),FALSE),0) -> 0 | K51: =IFERROR(VLOOKUP($B51,Volumes!$B$4:$F$32,MATCH(K$9,Volumes!$B$4:$F$4,0),FALSE),0) -> 0 | M51: 0 | N51: 0
B52: =Inputs!$C111 -> 100W Metal Halide | C52: Offered | D52: =IF($C52="NA","",OFFSET('Combined Annuity Prices CL'!$B$10,MATCH($B52,'Combined Annuity Prices CL'!$B$10:$B$3811,0)+12,D$7)) -> 22.81 | E52: =IF($C52="NA","",OFFSET('Combined Annuity Prices CL'!$B$10,MATCH($B52,'Combined Annuity Prices CL'!$B$10:$B$3811,0)+12,E$7)) -> 22.828 | G52: 0.0004162825 | H52: 0.000416611 | J52: =IFERROR(VLOOKUP($B52,Volumes!$B$4:$F$32,MATCH(J$9,Volumes!$B$4:$F$4,0),FALSE),0) -> 5 | K52: =IFERROR(VLOOKUP($B52,Volumes!$B$4:$F$32,MATCH(K$9,Volumes!$B$4:$F$4,0),FALSE),0) -> 5 | M52: 0.0004162825 | N52: 0.000427026275
B53: =Inputs!$C112 -> 150W Metal Halide | C53: Offered | D53: =IF($C53="NA","",OFFSET('Combined Annuity Prices CL'!$B$10,MATCH($B53,'Combined Annuity Prices CL'!$B$10:$B$3811,0)+12,D$7)) -> 22.948 | E53: =IF($C53="NA","",OFFSET('Combined Annuity Prices CL'!$B$10,MATCH($B53,'Combined Annuity Prices CL'!$B$10:$B$3811,0)+12,E$7)) -> 22.965 | G53: 0.0022615254 | H53: 0.00226320075 | J53: =IFERROR(VLOOKUP($B53,Volumes!$B$4:$F$32,MATCH(J$9,Volumes!$B$4:$F$4,0),FALSE),0) -> 27 | K53: =IFERROR(VLOOKUP($B53,Volumes!$B$4:$F$32,MATCH(K$9,Volumes!$B$4:$F$4,0),FALSE),0) -> 27 | M53: 0.0022615254 | N53: 0.002319780769
B54: =Inputs!$C113 -> 250W Metal Halide | C54: Offered | D54: =IF($C54="NA","",OFFSET('Combined Annuity Prices CL'!$B$10,MATCH($B54,'Combined Annuity Prices CL'!$B$10:$B$3811,0)+12,D$7)) -> 22.948 | E54: =IF($C54="NA","",OFFSET('Combined Annuity Prices CL'!$B$10,MATCH($B54,'Combined Annuity Prices CL'!$B$10:$B$3811,0)+12,E$7)) -> 22.965 | G54: 0.003350408 | H54: 0.00335289 | J54: =IFERROR(VLOOKUP($B54,Volumes!$B$4:$F$32,MATCH(J$9,Volumes!$B$4:$F$4,0),FALSE),0) -> 40 | K54: =IFERROR(VLOOKUP($B54,Volumes!$B$4:$F$32,MATCH(K$9,Volumes!$B$4:$F$4,0),FALSE),0) -> 40 | M54: 0.003350408 | N54: 0.00343671225
B55: =Inputs!$C114 -> 400W Metal Halide | C55: Offered | D55: =IF($C55="NA","",OFFSET('Combined Annuity Prices CL'!$B$10,MATCH($B55,'Combined Annuity Prices CL'!$B$10:$B$3811,0)+12,D$7)) -> 23.605 | E55: =IF($C55="NA","",OFFSET('Combined Annuity Prices CL'!$B$10,MATCH($B55,'Combined Annuity Prices CL'!$B$10:$B$3811,0)+12,E$7)) -> 23.623 | G55: 0.00077542425 | H55: 0.00077601555 | J55: =IFERROR(VLOOKUP($B55,Volumes!$B$4:$F$32,MATCH(J$9,Volumes!$B$4:$F$4,0),FALSE),0) -> 9 | K55: =IFERROR(VLOOKUP($B55,Volumes!$B$4:$F$32,MATCH(K$9,Volumes!$B$4:$F$4,0),FALSE),0) -> 9 | M55: 0.00077542425 | N55: 0.0007954159387
B56: =Inputs!$C115 -> 70W Metal Halide | C56: Old light no volumes | D56: =IF($C56="NA","",OFFSET('Combined Annuity Prices CL'!$B$10,MATCH($B56,'Combined Annuity Prices CL'!$B$10:$B$3811,0)+12,D$7)) -> 19.243 | E56: =IF($C56="NA","",OFFSET('Combined Annuity Prices CL'!$B$10,MATCH($B56,'Combined Annuity Prices CL'!$B$10:$B$3811,0)+12,E$7)) -> 19.261 | G56: 0 | H56: 0 | J56: =IFERROR(VLOOKUP($B56,Volumes!$B$4:$F$32,MATCH(J$9,Volumes!$B$4:$F$4,0),FALSE),0) -> 0 | K56: =IFERROR(VLOOKUP($B56,Volumes!$B$4:$F$32,MATCH(K$9,Volumes!$B$4:$F$4,0),FALSE),0) -> 0 | M56: 0 | N56: 0
B57: =Inputs!$C116 -> 250W Metal Halide - Flood Light | C57: Old light no volumes | D57: =IF($C57="NA","",OFFSET('Combined Annuity Prices CL'!$B$10,MATCH($B57,'Combined Annuity Prices CL'!$B$10:$B$3811,0)+12,D$7)) -> 22.948 | E57: =IF($C57="NA","",OFFSET('Combined Annuity Prices CL'!$B$10,MATCH($B57,'Combined Annuity Prices CL'!$B$10:$B$3811,0)+12,E$7)) -> 22.965 | G57: 0 | H57: 0 | J57: =IFERROR(VLOOKUP($B57,Volumes!$B$4:$F$32,MATCH(J$9,Volumes!$B$4:$F$4,0),FALSE),0) -> 0 | K57: =IFERROR(VLOOKUP($B57,Volumes!$B$4:$F$32,MATCH(K$9,Volumes!$B$4:$F$4,0),FALSE),0) -> 0 | M57: 0 | N57: 0
B58: =Inputs!$C117 -> 400W Metal Halide - Flood Light | C58: Old light no volumes | D58: =IF($C58="NA","",OFFSET('Combined Annuity Prices CL'!$B$10,MATCH($B58,'Combined Annuity Prices CL'!$B$10:$B$3811,0)+12,D$7)) -> 23.605 | E58: =IF($C58="NA","",OFFSET('Combined Annuity Prices CL'!$B$10,MATCH($B58,'Combined Annuity Prices CL'!$B$10:$B$3811,0)+12,E$7)) -> 23.623 | G58: 0 | H58: 0 | J58: =IFERROR(VLOOKUP($B58,Volumes!$B$4:$F$32,MATCH(J$9,Volumes!$B$4:$F$4,0),FALSE),0) -> 0 | K58: =IFERROR(VLOOKUP($B58,Volumes!$B$4:$F$32,MATCH(K$9,Volumes!$B$4:$F$4,0),FALSE),0) -> 0 | M58: 0 | N58: 0
B59: =Inputs!$C118 -> 125W Mercury Vapour | C59: Obsolete, no new Connections | D59: =IF($C59="NA","",OFFSET('Combined Annuity Prices CL'!$B$10,MATCH($B59,'Combined Annuity Prices CL'!$B$10:$B$3811,0)+12,D$7)) -> 21.962 | E59: =IF($C59="NA","",OFFSET('Combined Annuity Prices CL'!$B$10,MATCH($B59,'Combined Annuity Prices CL'!$B$10:$B$3811,0)+12,E$7)) -> 21.979 | G59: 0.0262127451 | H59: 0.025671472 | J59: =IFERROR(VLOOKUP($B59,Volumes!$B$4:$F$32,MATCH(J$9,Volumes!$B$4:$F$4,0),FALSE),0) -> 327 | K59: =IFERROR(VLOOKUP($B59,Volumes!$B$4:$F$32,MATCH(K$9,Volumes!$B$4:$F$4,0),FALSE),0) -> 320 | M59: 0.0262127451 | N59: 0.0263132588
B60: =Inputs!$C119 -> 250W Mercury Vapour | C60: Obsolete, no new Connections | D60: =IF($C60="NA","",OFFSET('Combined Annuity Prices CL'!$B$10,MATCH($B60,'Combined Annuity Prices CL'!$B$10:$B$3811,0)+12,D$7)) -> 21.962 | E60: =IF($C60="NA","",OFFSET('Combined Annuity Prices CL'!$B$10,MATCH($B60,'Combined Annuity Prices CL'!$B$10:$B$3811,0)+12,E$7)) -> 21.979 | G60: 0.0022445164 | H60: 0.0022462538 | J60: =IFERROR(VLOOKUP($B60,Volumes!$B$4:$F$32,MATCH(J$9,Volumes!$B$4:$F$4,0),FALSE),0) -> 28 | K60: =IFERROR(VLOOKUP($B60,Volumes!$B$4:$F$32,MATCH(K$9,Volumes!$B$4:$F$4,0),FALSE),0) -> 28 | M60: 0.0022445164 | N60: 0.002302410145
B61: =Inputs!$C120 -> 0 | C61: NA | D61: =IF($C61="NA","",OFFSET('Combined Annuity Prices CL'!$B$10,MATCH($B61,'Combined Annuity Prices CL'!$B$10:$B$3811,0)+12,D$7)) ->  | E61: =IF($C61="NA","",OFFSET('Combined Annuity Prices CL'!$B$10,MATCH($B61,'Combined Annuity Prices CL'!$B$10:$B$3811,0)+12,E$7)) ->  | J61: =IFERROR(VLOOKUP($B61,Volumes!$B$4:$F$32,MATCH(J$9,Volumes!$B$4:$F$4,0),FALSE),0) -> 0 | K61: =IFERROR(VLOOKUP($B61,Volumes!$B$4:$F$32,MATCH(K$9,Volumes!$B$4:$F$4,0),FALSE),0) -> 0
B62: =Inputs!$C121 -> 400W Mercury Vapour | C62: Obsolete, no new Connections | D62: =IF($C62="NA","",OFFSET('Combined Annuity Prices CL'!$B$10,MATCH($B62,'Combined Annuity Prices CL'!$B$10:$B$3811,0)+12,D$7)) -> 22.106 | E62: =IF($C62="NA","",OFFSET('Combined Annuity Prices CL'!$B$10,MATCH($B62,'Combined Annuity Prices CL'!$B$10:$B$3811,0)+12,E$7)) -> 22.123 | G62: 0.0017751118 | H62: 0.00169572795 | J62: =IFERROR(VLOOKUP($B62,Volumes!$B$4:$F$32,MATCH(J$9,Volumes!$B$4:$F$4,0),FALSE),0) -> 22 | K62: =IFERROR(VLOOKUP($B62,Volumes!$B$4:$F$32,MATCH(K$9,Volumes!$B$4:$F$4,0),FALSE),0) -> 21 | M62: 0.0017751118 | N62: 0.001738121149
B63: =Inputs!$C122 -> 50W Mercury Vapour | C63: Obsolete, no new Connections | D63: =IF($C63="NA","",OFFSET('Combined Annuity Prices CL'!$B$10,MATCH($B63,'Combined Annuity Prices CL'!$B$10:$B$3811,0)+12,D$7)) -> 18.439 | E63: =IF($C63="NA","",OFFSET('Combined Annuity Prices CL'!$B$10,MATCH($B63,'Combined Annuity Prices CL'!$B$10:$B$3811,0)+12,E$7)) -> 18.457 | G63: 0.0126528418 | H63: 0.0123957212 | J63: =IFERROR(VLOOKUP($B63,Volumes!$B$4:$F$32,MATCH(J$9,Volumes!$B$4:$F$4,0),FALSE),0) -> 188 | K63: =IFERROR(VLOOKUP($B63,Volumes!$B$4:$F$32,MATCH(K$9,Volumes!$B$4:$F$4,0),FALSE),0) -> 184 | M63: 0.0126528418 | N63: 0.01270561423
B64: =Inputs!$C123 -> 80W Mercury Vapour Art decorative | C64: Old light no volumes | D64: =IF($C64="NA","",OFFSET('Combined Annuity Prices CL'!$B$10,MATCH($B64,'Combined Annuity Prices CL'!$B$10:$B$3811,0)+12,D$7)) -> 18.41 | E64: =IF($C64="NA","",OFFSET('Combined Annuity Prices CL'!$B$10,MATCH($B64,'Combined Annuity Prices CL'!$B$10:$B$3811,0)+12,E$7)) -> 18.427 | G64: 0 | H64: 0 | J64: =IFERROR(VLOOKUP($B64,Volumes!$B$4:$F$32,MATCH(J$9,Volumes!$B$4:$F$4,0),FALSE),0) -> 0 | K64: =IFERROR(VLOOKUP($B64,Volumes!$B$4:$F$32,MATCH(K$9,Volumes!$B$4:$F$4,0),FALSE),0) -> 0 | M64: 0 | N64: 0
B65: =Inputs!$C124 -> 80W Mercury Vapour | C65: Obsolete, no new Connections | D65: =IF($C65="NA","",OFFSET('Combined Annuity Prices CL'!$B$10,MATCH($B65,'Combined Annuity Prices CL'!$B$10:$B$3811,0)+12,D$7)) -> 18.41 | E65: =IF($C65="NA","",OFFSET('Combined Annuity Prices CL'!$B$10,MATCH($B65,'Combined Annuity Prices CL'!$B$10:$B$3811,0)+12,E$7)) -> 18.427 | G65: 0.023518775 | H65: 0.02306968265 | J65: =IFERROR(VLOOKUP($B65,Volumes!$B$4:$F$32,MATCH(J$9,Volumes!$B$4:$F$4,0),FALSE),0) -> 350 | K65: =IFERROR(VLOOKUP($B65,Volumes!$B$4:$F$32,MATCH(K$9,Volumes!$B$4:$F$4,0),FALSE),0) -> 343 | M65: 0.023518775 | N65: 0.02364642472
M66: 0 | N66: 0
G67: =SUM(G10:G66) -> 0.3394596469 | H67: 0.3407107319 | J67: =SUM(J10:J66) -> 6329 | K67: 6358 | M67: =SUM(M10:M66) -> 0.3394596469 | N67: 0.3492285002
J68: =Volumes!E33=J67 -> TRUE | K68: =Volumes!F33=K67 -> TRUE
B69: Public Road Lights | C69: =C8 -> Price (cents) per Light per day | G69: =G8 -> Revenue ($m) - Real | M69: Revenue ($m) - Nominal
C70: Offered / No Longer Offered / NA | D70: ='Master Data'!I$29 -> 2017-18 | E70: ='Master Data'!J$29 -> 2018-19 | G70: =G9 -> 2017-18 | H70: 2018-19 | J70: =J9 -> 2017-18 | K70: 2018-19 | M70: ='Master Data'!I$29 -> 2017-18 | N70: ='Master Data'!J$29 -> 2018-19
B71: =Inputs!$C69 -> 32W Compact Fluorescent | C71: No Longer Offered | D71: =IF($C71="NA","",IF($B71=0,"",OFFSET('Combined Annuity Prices PL'!$B$10,MATCH($B71,'Combined Annuity Prices PL'!$B$10:$B$3811,0)+12,D$7))) -> 35.421 | E71: =IF($C71="NA","",IF($B71=0,"",OFFSET('Combined Annuity Prices PL'!$B$10,MATCH($B71,'Combined Annuity Prices PL'!$B$10:$B$3811,0)+12,E$7))) -> 35.661 | G71: =IF($C71="NA","",D71*J71*G$6/100/10^6) -> 0 | H71: =IF($C71="NA","",E71*K71*H$6/100/10^6) -> 0 | J71: =IFERROR(VLOOKUP($B71,Volumes!$B$38:$F$79,MATCH(J$9,Volumes!$B$4:$F$4,0),FALSE),0) -> 0 | K71: =IFERROR(VLOOKUP($B71,Volumes!$B$38:$F$79,MATCH(K$9,Volumes!$B$4:$F$4,0),FALSE),0) -> 0 | M71: =IF($C71="NA","",D71*M$7*J71*G$6/100/10^6) -> 0 | N71: =IF($C71="NA","",E71*N$7*K71*H$6/100/10^6) -> 0
B72: =Inputs!$C70 -> 42W Compact Fluorescent | C72: Offered | D72: =IF($C72="NA","",IF($B72=0,"",OFFSET('Combined Annuity Prices PL'!$B$10,MATCH($B72,'Combined Annuity Prices PL'!$B$10:$B$3811,0)+12,D$7))) -> 35.445 | E72: =IF($C72="NA","",IF($B72=0,"",OFFSET('Combined Annuity Prices PL'!$B$10,MATCH($B72,'Combined Annuity Prices PL'!$B$10:$B$3811,0)+12,E$7))) -> 35.685 | G72: 0.737950722 | H72: 0.7058261048 | J72: =IFERROR(VLOOKUP($B72,Volumes!$B$38:$F$79,MATCH(J$9,Volumes!$B$4:$F$4,0),FALSE),0) -> 5704 | K72: =IFERROR(VLOOKUP($B72,Volumes!$B$38:$F$79,MATCH(K$9,Volumes!$B$4:$F$4,0),FALSE),0) -> 5419 | M72: 0.737950722 | N72: 0.7234717574
B73: =Inputs!$C71 -> 42W Compact Fluorescent - Bottom Pole Entry | C73: No Longer Offered | D73: =IF($C73="NA","",IF($B73=0,"",OFFSET('Combined Annuity Prices PL'!$B$10,MATCH($B73,'Combined Annuity Prices PL'!$B$10:$B$3811,0)+12,D$7))) -> 35.445 | E73: =IF($C73="NA","",IF($B73=0,"",OFFSET('Combined Annuity Prices PL'!$B$10,MATCH($B73,'Combined Annuity Prices PL'!$B$10:$B$3811,0)+12,E$7))) -> 35.685 | G73: 0.01552491 | H73: 0.0221425425 | J73: =IFERROR(VLOOKUP($B73,Volumes!$B$38:$F$79,MATCH(J$9,Volumes!$B$4:$F$4,0),FALSE),0) -> 120 | K73: =IFERROR(VLOOKUP($B73,Volumes!$B$38:$F$79,MATCH(K$9,Volumes!$B$4:$F$4,0),FALSE),0) -> 170 | M73: 0.01552491 | N73: 0.02269610606
B74: =Inputs!$C72 -> 2x24W Compact Fluorescent | C74: Old light no volumes | D74: =IF($C74="NA","",IF($B74=0,"",OFFSET('Combined Annuity Prices PL'!$B$10,MATCH($B74,'Combined Annuity Prices PL'!$B$10:$B$3811,0)+12,D$7))) -> 35.746 | E74: =IF($C74="NA","",IF($B74=0,"",OFFSET('Combined Annuity Prices PL'!$B$10,MATCH($B74,'Combined Annuity Prices PL'!$B$10:$B$3811,0)+12,E$7))) -> 35.986 | G74: 0 | H74: 0 | J74: =IFERROR(VLOOKUP($B74,Volumes!$B$38:$F$79,MATCH(J$9,Volumes!$B$4:$F$4,0),FALSE),0) -> 0 | K74: =IFERROR(VLOOKUP($B74,Volumes!$B$38:$F$79,MATCH(K$9,Volumes!$B$4:$F$4,0),FALSE),0) -> 0 | M74: 0 | N74: 0
B75: =Inputs!$C73 -> 1x20W Fluorescent | C75: Old light no volumes | D75: =IF($C75="NA","",IF($B75=0,"",OFFSET('Combined Annuity Prices PL'!$B$10,MATCH($B75,'Combined Annuity Prices PL'!$B$10:$B$3811,0)+12,D$7))) -> 37.396 | E75: =IF($C75="NA","",IF($B75=0,"",OFFSET('Combined Annuity Prices PL'!$B$10,MATCH($B75,'Combined Annuity Prices PL'!$B$10:$B$3811,0)+12,E$7))) -> 37.636 | G75: 0 | H75: 0 | J75: =IFERROR(VLOOKUP($B75,Volumes!$B$38:$F$79,MATCH(J$9,Volumes!$B$4:$F$4,0),FALSE),0) -> 0 | K75: =IFERROR(VLOOKUP($B75,Volumes!$B$38:$F$79,MATCH(K$9,Volumes!$B$4:$F$4,0),FALSE),0) -> 0 | M75: 0 | N75: 0
B76: =Inputs!$C74 -> 1x40W Fluorescent | C76: Old light no volumes | D76: =IF($C76="NA","",IF($B76=0,"",OFFSET('Combined Annuity Prices PL'!$B$10,MATCH($B76,'Combined Annuity Prices PL'!$B$10:$B$3811,0)+12,D$7))) -> 36.253 | E76: =IF($C76="NA","",IF($B76=0,"",OFFSET('Combined Annuity Prices PL'!$B$10,MATCH($B76,'Combined Annuity Prices PL'!$B$10:$B$3811,0)+12,E$7))) -> 36.493 | G76: 0 | H76: 0 | J76: =IFERROR(VLOOKUP($B76,Volumes!$B$38:$F$79,MATCH(J$9,Volumes!$B$4:$F$4,0),FALSE),0) -> 0 | K76: =IFERROR(VLOOKUP($B76,Volumes!$B$38:$F$79,MATCH(K$9,Volumes!$B$4:$F$4,0),FALSE),0) -> 0 | M76: 0 | N76: 0
B77: =Inputs!$C75 -> 2x20W Fluorescent | C77: Old light no volumes | D77: =IF($C77="NA","",IF($B77=0,"",OFFSET('Combined Annuity Prices PL'!$B$10,MATCH($B77,'Combined Annuity Prices PL'!$B$10:$B$3811,0)+12,D$7))) -> 37.686 | E77: =IF($C77="NA","",IF($B77=0,"",OFFSET('Combined Annuity Prices PL'!$B$10,MATCH($B77,'Combined Annuity Prices PL'!$B$10:$B$3811,0)+12,E$7))) -> 37.927 | G77: 0 | H77: 0 | J77: =IFERROR(VLOOKUP($B77,Volumes!$B$38:$F$79,MATCH(J$9,Volumes!$B$4:$F$4,0),FALSE),0) -> 0 | K77: =IFERROR(VLOOKUP($B77,Volumes!$B$38:$F$79,MATCH(K$9,Volumes!$B$4:$F$4,0),FALSE),0) -> 0 | M77: 0 | N77: 0
B78: =Inputs!$C76 -> 2x24W Fluorescent | C78: Old light no volumes | D78: =IF($C78="NA","",IF($B78=0,"",OFFSET('Combined Annuity Prices PL'!$B$10,MATCH($B78,'Combined Annuity Prices PL'!$B$10:$B$3811,0)+12,D$7))) -> 37.606 | E78: =IF($C78="NA","",IF($B78=0,"",OFFSET('Combined Annuity Prices PL'!$B$10,MATCH($B78,'Combined Annuity Prices PL'!$B$10:$B$3811,0)+12,E$7))) -> 37.846 | G78: 0 | H78: 0 | J78: =IFERROR(VLOOKUP($B78,Volumes!$B$38:$F$79,MATCH(J$9,Volumes!$B$4:$F$4,0),FALSE),0) -> 0 | K78: =IFERROR(VLOOKUP($B78,Volumes!$B$38:$F$79,MATCH(K$9,Volumes!$B$4:$F$4,0),FALSE),0) -> 0 | M78: 0 | N78: 0
B79: =Inputs!$C77 -> T5 Fluorescent 2 x 24W | C79: Obsolete, no new Connections | D79: =IF($C79="NA","",IF($B79=0,"",OFFSET('Combined Annuity Prices PL'!$B$10,MATCH($B79,'Combined Annuity Prices PL'!$B$10:$B$3811,0)+12,D$7))) -> 37.686 | E79: =IF($C79="NA","",IF($B79=0,"",OFFSET('Combined Annuity Prices PL'!$B$10,MATCH($B79,'Combined Annuity Prices PL'!$B$10:$B$3811,0)+12,E$7))) -> 37.927 | G79: 0.0114169737 | H79: 0.01148998465 | J79: =IFERROR(VLOOKUP($B79,Volumes!$B$38:$F$79,MATCH(J$9,Volumes!$B$4:$F$4,0),FALSE),0) -> 83 | K79: =IFERROR(VLOOKUP($B79,Volumes!$B$38:$F$79,MATCH(K$9,Volumes!$B$4:$F$4,0),FALSE),0) -> 83 | M79: 0.0114169737 | N79: 0.01177723427
B80: =Inputs!$C78 -> 20 Fluorescent 1X20FL | C80: Old light no volumes | D80: =IF($C80="NA","",IF($B80=0,"",OFFSET('Combined Annuity Prices PL'!$B$10,MATCH($B80,'Combined Annuity Prices PL'!$B$10:$B$3811,0)+12,D$7))) -> 37.396 | E80: =IF($C80="NA","",IF($B80=0,"",OFFSET('Combined Annuity Prices PL'!$B$10,MATCH($B80,'Combined Annuity Prices PL'!$B$10:$B$3811,0)+12,E$7))) -> 37.636 | G80: 0 | H80: 0 | J80: =IFERROR(VLOOKUP($B80,Volumes!$B$38:$F$79,MATCH(J$9,Volumes!$B$4:$F$4,0),FALSE),0) -> 0 | K80: =IFERROR(VLOOKUP($B80,Volumes!$B$38:$F$79,MATCH(K$9,Volumes!$B$4:$F$4,0),FALSE),0) -> 0 | M80: 0 | N80: 0
B81: =Inputs!$C79 -> 2x40W Fluorescent | C81: Old light no volumes | D81: =IF($C81="NA","",IF($B81=0,"",OFFSET('Combined Annuity Prices PL'!$B$10,MATCH($B81,'Combined Annuity Prices PL'!$B$10:$B$3811,0)+12,D$7))) -> 36.562 | E81: =IF($C81="NA","",IF($B81=0,"",OFFSET('Combined Annuity Prices PL'!$B$10,MATCH($B81,'Combined Annuity Prices PL'!$B$10:$B$3811,0)+12,E$7))) -> 36.803 | G81: 0 | H81: 0 | J81: =IFERROR(VLOOKUP($B81,Volumes!$B$38:$F$79,MATCH(J$9,Volumes!$B$4:$F$4,0),FALSE),0) -> 0 | K81: =IFERROR(VLOOKUP($B81,Volumes!$B$38:$F$79,MATCH(K$9,Volumes!$B$4:$F$4,0),FALSE),0) -> 0 | M81: 0 | N81: 0
B82: =Inputs!$C80 -> 3x40W Fluorescent | C82: Old light no volumes | D82: =IF($C82="NA","",IF($B82=0,"",OFFSET('Combined Annuity Prices PL'!$B$10,MATCH($B82,'Combined Annuity Prices PL'!$B$10:$B$3811,0)+12,D$7))) -> 42.931 | E82: =IF($C82="NA","",IF($B82=0,"",OFFSET('Combined Annuity Prices PL'!$B$10,MATCH($B82,'Combined Annuity Prices PL'!$B$10:$B$3811,0)+12,E$7))) -> 43.171 | G82: 0 | H82: 0 | J82: =IFERROR(VLOOKUP($B82,Volumes!$B$38:$F$79,MATCH(J$9,Volumes!$B$4:$F$4,0),FALSE),0) -> 0 | K82: =IFERROR(VLOOKUP($B82,Volumes!$B$38:$F$79,MATCH(K$9,Volumes!$B$4:$F$4,0),FALSE),0) -> 0 | M82: 0 | N82: 0
B83: =Inputs!$C81 -> 4x20 Fluorescent | C83: Old light no volumes | D83: =IF($C83="NA","",IF($B83=0,"",OFFSET('Combined Annuity Prices PL'!$B$10,MATCH($B83,'Combined Annuity Prices PL'!$B$10:$B$3811,0)+12,D$7))) -> 38.267 | E83: =IF($C83="NA","",IF($B83=0,"",OFFSET('Combined Annuity Prices PL'!$B$10,MATCH($B83,'Combined Annuity Prices PL'!$B$10:$B$3811,0)+12,E$7))) -> 38.508 | G83: 0 | H83: 0 | J83: =IFERROR(VLOOKUP($B83,Volumes!$B$38:$F$79,MATCH(J$9,Volumes!$B$4:$F$4,0),FALSE),0) -> 0 | K83: =IFERROR(VLOOKUP($B83,Volumes!$B$38:$F$79,MATCH(K$9,Volumes!$B$4:$F$4,0),FALSE),0) -> 0 | M83: 0 | N83: 0
B84: =Inputs!$C82 -> 4x40W Fluorescent | C84: Old light no volumes | D84: =IF($C84="NA","",IF($B84=0,"",OFFSET('Combined Annuity Prices PL'!$B$10,MATCH($B84,'Combined Annuity Prices PL'!$B$10:$B$3811,0)+12,D$7))) -> 47.351 | E84: =IF($C84="NA","",IF($B84=0,"",OFFSET('Combined Annuity Prices PL'!$B$10,MATCH($B84,'Combined Annuity Prices PL'!$B$10:$B$3811,0)+12,E$7))) -> 47.591 | G84: 0 | H84: 0 | J84: =IFERROR(VLOOKUP($B84,Volumes!$B$38:$F$79,MATCH(J$9,Volumes!$B$4:$F$4,0),FALSE),0) -> 0 | K84: =IFERROR(VLOOKUP($B84,Volumes!$B$38:$F$79,MATCH(K$9,Volumes!$B$4:$F$4,0),FALSE),0) -> 0 | M84: 0 | N84: 0
B85: =Inputs!$C83 -> 100W Sodium Vapour | C85: Offered | D85: =IF($C85="NA","",IF($B85=0,"",OFFSET('Combined Annuity Prices PL'!$B$10,MATCH($B85,'Combined Annuity Prices PL'!$B$10:$B$3811,0)+12,D$7))) -> 44.735 | E85: =IF($C85="NA","",IF($B85=0,"",OFFSET('Combined Annuity Prices PL'!$B$10,MATCH($B85,'Combined Annuity Prices PL'!$B$10:$B$3811,0)+12,E$7))) -> 44.975 | G85: 0.06580294825 | H85: 0.06943915125 | J85: =IFERROR(VLOOKUP($B85,Volumes!$B$38:$F$79,MATCH(J$9,Volumes!$B$4:$F$4,0),FALSE),0) -> 403 | K85: =IFERROR(VLOOKUP($B85,Volumes!$B$38:$F$79,MATCH(K$9,Volumes!$B$4:$F$4,0),FALSE),0) -> 423 | M85: 0.06580294825 | N85: 0.07117513003
B86: =Inputs!$C84 -> 0 | C86: NA | D86: =IF($C86="NA","",IF($B86=0,"",OFFSET('Combined Annuity Prices PL'!$B$10,MATCH($B86,'Combined Annuity Prices PL'!$B$10:$B$3811,0)+12,D$7))) ->  | E86: =IF($C86="NA","",IF($B86=0,"",OFFSET('Combined Annuity Prices PL'!$B$10,MATCH($B86,'Combined Annuity Prices PL'!$B$10:$B$3811,0)+12,E$7))) ->  | J86: =IFERROR(VLOOKUP($B86,Volumes!$B$38:$F$79,MATCH(J$9,Volumes!$B$4:$F$4,0),FALSE),0) -> 0 | K86: =IFERROR(VLOOKUP($B86,Volumes!$B$38:$F$79,MATCH(K$9,Volumes!$B$4:$F$4,0),FALSE),0) -> 0
B87: =Inputs!$C85 -> 150W Sodium Vapour | C87: Offered | D87: =IF($C87="NA","",IF($B87=0,"",OFFSET('Combined Annuity Prices PL'!$B$10,MATCH($B87,'Combined Annuity Prices PL'!$B$10:$B$3811,0)+12,D$7))) -> 46.93 | E87: =IF($C87="NA","",IF($B87=0,"",OFFSET('Combined Annuity Prices PL'!$B$10,MATCH($B87,'Combined Annuity Prices PL'!$B$10:$B$3811,0)+12,E$7))) -> 47.17 | G87: 0.8268385515 | H87: 0.8727322645 | J87: =IFERROR(VLOOKUP($B87,Volumes!$B$38:$F$79,MATCH(J$9,Volumes!$B$4:$F$4,0),FALSE),0) -> 4827 | K87: =IFERROR(VLOOKUP($B87,Volumes!$B$38:$F$79,MATCH(K$9,Volumes!$B$4:$F$4,0),FALSE),0) -> 5069 | M87: 0.8268385515 | N87: 0.8945505711
B88: =Inputs!$C86 -> 0 | C88: NA | D88: =IF($C88="NA","",IF($B88=0,"",OFFSET('Combined Annuity Prices PL'!$B$10,MATCH($B88,'Combined Annuity Prices PL'!$B$10:$B$3811,0)+12,D$7))) ->  | E88: =IF($C88="NA","",IF($B88=0,"",OFFSET('Combined Annuity Prices PL'!$B$10,MATCH($B88,'Combined Annuity Prices PL'!$B$10:$B$3811,0)+12,E$7))) ->  | J88: =IFERROR(VLOOKUP($B88,Volumes!$B$38:$F$79,MATCH(J$9,Volumes!$B$4:$F$4,0),FALSE),0) -> 0 | K88: =IFERROR(VLOOKUP($B88,Volumes!$B$38:$F$79,MATCH(K$9,Volumes!$B$4:$F$4,0),FALSE),0) -> 0
B89: =Inputs!$C87 -> 0 | C89: NA | D89: =IF($C89="NA","",IF($B89=0,"",OFFSET('Combined Annuity Prices PL'!$B$10,MATCH($B89,'Combined Annuity Prices PL'!$B$10:$B$3811,0)+12,D$7))) ->  | E89: =IF($C89="NA","",IF($B89=0,"",OFFSET('Combined Annuity Prices PL'!$B$10,MATCH($B89,'Combined Annuity Prices PL'!$B$10:$B$3811,0)+12,E$7))) ->  | J89: =IFERROR(VLOOKUP($B89,Volumes!$B$38:$F$79,MATCH(J$9,Volumes!$B$4:$F$4,0),FALSE),0) -> 0 | K89: =IFERROR(VLOOKUP($B89,Volumes!$B$38:$F$79,MATCH(K$9,Volumes!$B$4:$F$4,0),FALSE),0) -> 0
B90: =Inputs!$C88 -> 0 | C90: NA | D90: =IF($C90="NA","",IF($B90=0,"",OFFSET('Combined Annuity Prices PL'!$B$10,MATCH($B90,'Combined Annuity Prices PL'!$B$10:$B$3811,0)+12,D$7))) ->  | E90: =IF($C90="NA","",IF($B90=0,"",OFFSET('Combined Annuity Prices PL'!$B$10,MATCH($B90,'Combined Annuity Prices PL'!$B$10:$B$3811,0)+12,E$7))) ->  | J90: =IFERROR(VLOOKUP($B90,Volumes!$B$38:$F$79,MATCH(J$9,Volumes!$B$4:$F$4,0),FALSE),0) -> 0 | K90: =IFERROR(VLOOKUP($B90,Volumes!$B$38:$F$79,MATCH(K$9,Volumes!$B$4:$F$4,0),FALSE),0) -> 0
B91: =Inputs!$C89 -> 250W Sodium Vapour | C91: Offered | D91: =IF($C91="NA","",IF($B91=0,"",OFFSET('Combined Annuity Prices PL'!$B$10,MATCH($B91,'Combined Annuity Prices PL'!$B$10:$B$3811,0)+12,D$7))) -> 48.002 | E91: =IF($C91="NA","",IF($B91=0,"",OFFSET('Combined Annuity Prices PL'!$B$10,MATCH($B91,'Combined Annuity Prices PL'!$B$10:$B$3811,0)+12,E$7))) -> 48.242 | G91: 1.0512438 | H91: 1.10932479 | J91: =IFERROR(VLOOKUP($B91,Volumes!$B$38:$F$79,MATCH(J$9,Volumes!$B$4:$F$4,0),FALSE),0) -> 6000 | K91: =IFERROR(VLOOKUP($B91,Volumes!$B$38:$F$79,MATCH(K$9,Volumes!$B$4:$F$4,0),FALSE),0) -> 6300 | M91: 1.0512438 | N91: 1.13705791
B92: =Inputs!$C90 -> 0 | C92: NA | D92: =IF($C92="NA","",IF($B92=0,"",OFFSET('Combined Annuity Prices PL'!$B$10,MATCH($B92,'Combined Annuity Prices PL'!$B$10:$B$3811,0)+12,D$7))) ->  | E92: =IF($C92="NA","",IF($B92=0,"",OFFSET('Combined Annuity Prices PL'!$B$10,MATCH($B92,'Combined Annuity Prices PL'!$B$10:$B$3811,0)+12,E$7))) ->  | J92: =IFERROR(VLOOKUP($B92,Volumes!$B$38:$F$79,MATCH(J$9,Volumes!$B$4:$F$4,0),FALSE),0) -> 0 | K92: =IFERROR(VLOOKUP($B92,Volumes!$B$38:$F$79,MATCH(K$9,Volumes!$B$4:$F$4,0),FALSE),0) -> 0
B93: =Inputs!$C91 -> 0 | C93: NA | D93: =IF($C93="NA","",IF($B93=0,"",OFFSET('Combined Annuity Prices PL'!$B$10,MATCH($B93,'Combined Annuity Prices PL'!$B$10:$B$3811,0)+12,D$7))) ->  | E93: =IF($C93="NA","",IF($B93=0,"",OFFSET('Combined Annuity Prices PL'!$B$10,MATCH($B93,'Combined Annuity Prices PL'!$B$10:$B$3811,0)+12,E$7))) ->  | J93: =IFERROR(VLOOKUP($B93,Volumes!$B$38:$F$79,MATCH(J$9,Volumes!$B$4:$F$4,0),FALSE),0) -> 0 | K93: =IFERROR(VLOOKUP($B93,Volumes!$B$38:$F$79,MATCH(K$9,Volumes!$B$4:$F$4,0),FALSE),0) -> 0
B94: =Inputs!$C92 -> 0 | C94: NA | D94: =IF($C94="NA","",IF($B94=0,"",OFFSET('Combined Annuity Prices PL'!$B$10,MATCH($B94,'Combined Annuity Prices PL'!$B$10:$B$3811,0)+12,D$7))) ->  | E94: =IF($C94="NA","",IF($B94=0,"",OFFSET('Combined Annuity Prices PL'!$B$10,MATCH($B94,'Combined Annuity Prices PL'!$B$10:$B$3811,0)+12,E$7))) ->  | J94: =IFERROR(VLOOKUP($B94,Volumes!$B$38:$F$79,MATCH(J$9,Volumes!$B$4:$F$4,0),FALSE),0) -> 0 | K94: =IFERROR(VLOOKUP($B94,Volumes!$B$38:$F$79,MATCH(K$9,Volumes!$B$4:$F$4,0),FALSE),0) -> 0
B95: =Inputs!$C93 -> 250W Sodium Vapour - Flood Light | C95: Offered | D95: =IF($C95="NA","",IF($B95=0,"",OFFSET('Combined Annuity Prices PL'!$B$10,MATCH($B95,'Combined Annuity Prices PL'!$B$10:$B$3811,0)+12,D$7))) -> 51.768 | E95: =IF($C95="NA","",IF($B95=0,"",OFFSET('Combined Annuity Prices PL'!$B$10,MATCH($B95,'Combined Annuity Prices PL'!$B$10:$B$3811,0)+12,E$7))) -> 52.008 | G95: 0.0062354556 | H95: 0.006644022 | J95: =IFERROR(VLOOKUP($B95,Volumes!$B$38:$F$79,MATCH(J$9,Volumes!$B$4:$F$4,0),FALSE),0) -> 33 | K95: =IFERROR(VLOOKUP($B95,Volumes!$B$38:$F$79,MATCH(K$9,Volumes!$B$4:$F$4,0),FALSE),0) -> 35 | M95: 0.0062354556 | N95: 0.00681012255
B96: =Inputs!$C94 -> 400W Sodium Vapour | C96: Offered | D96: =IF($C96="NA","",IF($B96=0,"",OFFSET('Combined Annuity Prices PL'!$B$10,MATCH($B96,'Combined Annuity Prices PL'!$B$10:$B$3811,0)+12,D$7))) -> 48.767 | E96: =IF($C96="NA","",IF($B96=0,"",OFFSET('Combined Annuity Prices PL'!$B$10,MATCH($B96,'Combined Annuity Prices PL'!$B$10:$B$3811,0)+12,E$7))) -> 49.007 | G96: 0.1087577251 | H96: 0.1148381031 | J96: =IFERROR(VLOOKUP($B96,Volumes!$B$38:$F$79,MATCH(J$9,Volumes!$B$4:$F$4,0),FALSE),0) -> 611 | K96: =IFERROR(VLOOKUP($B96,Volumes!$B$38:$F$79,MATCH(K$9,Volumes!$B$4:$F$4,0),FALSE),0) -> 642 | M96: 0.1087577251 | N96: 0.1177090557
B97: =Inputs!$C95 -> 0 | C97: NA | D97: =IF($C97="NA","",IF($B97=0,"",OFFSET('Combined Annuity Prices PL'!$B$10,MATCH($B97,'Combined Annuity Prices PL'!$B$10:$B$3811,0)+12,D$7))) ->  | E97: =IF($C97="NA","",IF($B97=0,"",OFFSET('Combined Annuity Prices PL'!$B$10,MATCH($B97,'Combined Annuity Prices PL'!$B$10:$B$3811,0)+12,E$7))) ->  | J97: =IFERROR(VLOOKUP($B97,Volumes!$B$38:$F$79,MATCH(J$9,Volumes!$B$4:$F$4,0),FALSE),0) -> 0 | K97: =IFERROR(VLOOKUP($B97,Volumes!$B$38:$F$79,MATCH(K$9,Volumes!$B$4:$F$4,0),FALSE),0) -> 0
B98: =Inputs!$C96 -> 400W Sodium Vapour - Flood Light | C98: Offered | D98: =IF($C98="NA","",IF($B98=0,"",OFFSET('Combined Annuity Prices PL'!$B$10,MATCH($B98,'Combined Annuity Prices PL'!$B$10:$B$3811,0)+12,D$7))) -> 51.25 | E98: =IF($C98="NA","",IF($B98=0,"",OFFSET('Combined Annuity Prices PL'!$B$10,MATCH($B98,'Combined Annuity Prices PL'!$B$10:$B$3811,0)+12,E$7))) -> 51.491 | G98: 0.0061730625 | H98: 0.00657797525 | J98: =IFERROR(VLOOKUP($B98,Volumes!$B$38:$F$79,MATCH(J$9,Volumes!$B$4:$F$4,0),FALSE),0) -> 33 | K98: =IFERROR(VLOOKUP($B98,Volumes!$B$38:$F$79,MATCH(K$9,Volumes!$B$4:$F$4,0),FALSE),0) -> 35 | M98: 0.0061730625 | N98: 0.006742424631
B99: =Inputs!$C97 -> 70W Sodium Vapour | C99: Offered | D99: =IF($C99="NA","",IF($B99=0,"",OFFSET('Combined Annuity Prices PL'!$B$10,MATCH($B99,'Combined Annuity Prices PL'!$B$10:$B$3811,0)+12,D$7))) -> 35.306 | E99: =IF($C99="NA","",IF($B99=0,"",OFFSET('Combined Annuity Prices PL'!$B$10,MATCH($B99,'Combined Annuity Prices PL'!$B$10:$B$3811,0)+12,E$7))) -> 35.546 | G99: 0.0275775166 | H99: 0.0291921525 | J99: =IFERROR(VLOOKUP($B99,Volumes!$B$38:$F$79,MATCH(J$9,Volumes!$B$4:$F$4,0),FALSE),0) -> 214 | K99: =IFERROR(VLOOKUP($B99,Volumes!$B$38:$F$79,MATCH(K$9,Volumes!$B$4:$F$4,0),FALSE),0) -> 225 | M99: 0.0275775166 | N99: 0.02992195631
B100: =Inputs!$C98 -> 0 | C100: NA | D100: =IF($C100="NA","",IF($B100=0,"",OFFSET('Combined Annuity Prices PL'!$B$10,MATCH($B100,'Combined Annuity Prices PL'!$B$10:$B$3811,0)+12,D$7))) ->  | E100: =IF($C100="NA","",IF($B100=0,"",OFFSET('Combined Annuity Prices PL'!$B$10,MATCH($B100,'Combined Annuity Prices PL'!$B$10:$B$3811,0)+12,E$7))) ->  | J100: =IFERROR(VLOOKUP($B100,Volumes!$B$38:$F$79,MATCH(J$9,Volumes!$B$4:$F$4,0),FALSE),0) -> 0 | K100: =IFERROR(VLOOKUP($B100,Volumes!$B$38:$F$79,MATCH(K$9,Volumes!$B$4:$F$4,0),FALSE),0) -> 0
B101: =Inputs!$C99 -> 100W Incandescent | C101: Old light no volumes | D101: =IF($C101="NA","",IF($B101=0,"",OFFSET('Combined Annuity Prices PL'!$B$10,MATCH($B101,'Combined Annuity Prices PL'!$B$10:$B$3811,0)+12,D$7))) -> 41.548 | E101: =IF($C101="NA","",IF($B101=0,"",OFFSET('Combined Annuity Prices PL'!$B$10,MATCH($B101,'Combined Annuity Prices PL'!$B$10:$B$3811,0)+12,E$7))) -> 41.788 | G101: 0 | H101: 0 | J101: =IFERROR(VLOOKUP($B101,Volumes!$B$38:$F$79,MATCH(J$9,Volumes!$B$4:$F$4,0),FALSE),0) -> 0 | K101: =IFERROR(VLOOKUP($B101,Volumes!$B$38:$F$79,MATCH(K$9,Volumes!$B$4:$F$4,0),FALSE),0) -> 0 | M101: 0 | N101: 0
B102: =Inputs!$C100 -> 60W Incandescent | C102: Old light no volumes | D102: =IF($C102="NA","",IF($B102=0,"",OFFSET('Combined Annuity Prices PL'!$B$10,MATCH($B102,'Combined Annuity Prices PL'!$B$10:$B$3811,0)+12,D$7))) -> 32.539 | E102: =IF($C102="NA","",IF($B102=0,"",OFFSET('Combined Annuity Prices PL'!$B$10,MATCH($B102,'Combined Annuity Prices PL'!$B$10:$B$3811,0)+12,E$7))) -> 32.78 | G102: 0 | H102: 0 | J102: =IFERROR(VLOOKUP($B102,Volumes!$B$38:$F$79,MATCH(J$9,Volumes!$B$4:$F$4,0),FALSE),0) -> 0 | K102: =IFERROR(VLOOKUP($B102,Volumes!$B$38:$F$79,MATCH(K$9,Volumes!$B$4:$F$4,0),FALSE),0) -> 0 | M102: 0 | N102: 0
B103: =Inputs!$C101 -> 18W LED | C103: Offered | D103: =IF($C103="NA","",IF($B103=0,"",OFFSET('Combined Annuity Prices PL'!$B$10,MATCH($B103,'Combined Annuity Prices PL'!$B$10:$B$3811,0)+12,D$7))) -> 33.466 | E103: =IF($C103="NA","",IF($B103=0,"",OFFSET('Combined Annuity Prices PL'!$B$10,MATCH($B103,'Combined Annuity Prices PL'!$B$10:$B$3811,0)+12,E$7))) -> 33.706 | G103: =IF($C103="NA","",D103*J103*G$6/100/10^6) -> 1.234945599 | H103: =IF($C103="NA","",E103*K103*H$6/100/10^6) -> 1.748212249 | J103: =IFERROR(VLOOKUP($B103,Volumes!$B$38:$F$79,MATCH(J$9,Volumes!$B$4:$F$4,0),FALSE),0) -> 10110 | K103: =IFERROR(VLOOKUP($B103,Volumes!$B$38:$F$79,MATCH(K$9,Volumes!$B$4:$F$4,0),FALSE),0) -> 14210 | M103: =IF($C103="NA","",D103*M$7*J103*G$6/100/10^6) -> 1.234945599 | N103: =IF($C103="NA","",E103*N$7*K103*H$6/100/10^6) -> 1.791917555
B104: =Inputs!$C102 -> 25W LED | C104: Obsolete, no new Connections | D104: =IF($C104="NA","",IF($B104=0,"",OFFSET('Combined Annuity Prices PL'!$B$10,MATCH($B104,'Combined Annuity Prices PL'!$B$10:$B$3811,0)+12,D$7))) -> 33.466 | E104: =IF($C104="NA","",IF($B104=0,"",OFFSET('Combined Annuity Prices PL'!$B$10,MATCH($B104,'Combined Annuity Prices PL'!$B$10:$B$3811,0)+12,E$7))) -> 33.706 | G104: 0.0025651689 | H104: 0.0025835649 | J104: =IFERROR(VLOOKUP($B104,Volumes!$B$38:$F$79,MATCH(J$9,Volumes!$B$4:$F$4,0),FALSE),0) -> 21 | K104: =IFERROR(VLOOKUP($B104,Volumes!$B$38:$F$79,MATCH(K$9,Volumes!$B$4:$F$4,0),FALSE),0) -> 21 | M104: 0.0025651689 | N104: 0.002648154022
B105: =Inputs!$C103 -> 18W LED Decorative - Bottom Pole Entry | C105: Offered | D105: =IF($C105="NA","",IF($B105=0,"",OFFSET('Combined Annuity Prices PL'!$B$10,MATCH($B105,'Combined Annuity Prices PL'!$B$10:$B$3811,0)+12,D$7))) -> 47.338 | E105: =IF($C105="NA","",IF($B105=0,"",OFFSET('Combined Annuity Prices PL'!$B$10,MATCH($B105,'Combined Annuity Prices PL'!$B$10:$B$3811,0)+12,E$7))) -> 47.578 | G105: 0.0057018621 | H105: 0.0060780895 | J105: =IFERROR(VLOOKUP($B105,Volumes!$B$38:$F$79,MATCH(J$9,Volumes!$B$4:$F$4,0),FALSE),0) -> 33 | K105: =IFERROR(VLOOKUP($B105,Volumes!$B$38:$F$79,MATCH(K$9,Volumes!$B$4:$F$4,0),FALSE),0) -> 35 | M105: 0.0057018621 | N105: 0.006230041737
B106: =Inputs!$C104 -> 18W LED Decorative - Side Entry | C106: Offered | D106: =IF($C106="NA","",IF($B106=0,"",OFFSET('Combined Annuity Prices PL'!$B$10,MATCH($B106,'Combined Annuity Prices PL'!$B$10:$B$3811,0)+12,D$7))) -> 47.338 | E106: =IF($C106="NA","",IF($B106=0,"",OFFSET('Combined Annuity Prices PL'!$B$10,MATCH($B106,'Combined Annuity Prices PL'!$B$10:$B$3811,0)+12,E$7))) -> 47.578 | G106: 0.0057018621 | H106: 0.0060780895 | J106: =IFERROR(VLOOKUP($B106,Volumes!$B$38:$F$79,MATCH(J$9,Volumes!$B$4:$F$4,0),FALSE),0) -> 33 | K106: =IFERROR(VLOOKUP($B106,Volumes!$B$38:$F$79,MATCH(K$9,Volumes!$B$4:$F$4,0),FALSE),0) -> 35 | M106: 0.0057018621 | N106: 0.006230041737
B107: =Inputs!$C105 -> 18W LED Decorative - Top Entry | C107: Offered | D107: =IF($C107="NA","",IF($B107=0,"",OFFSET('Combined Annuity Prices PL'!$B$10,MATCH($B107,'Combined Annuity Prices PL'!$B$10:$B$3811,0)+12,D$7))) -> 47.338 | E107: =IF($C107="NA","",IF($B107=0,"",OFFSET('Combined Annuity Prices PL'!$B$10,MATCH($B107,'Combined Annuity Prices PL'!$B$10:$B$3811,0)+12,E$7))) -> 47.578 | G107: 0.0057018621 | H107: 0.0060780895 | J107: =IFERROR(VLOOKUP($B107,Volumes!$B$38:$F$79,MATCH(J$9,Volumes!$B$4:$F$4,0),FALSE),0) -> 33 | K107: =IFERROR(VLOOKUP($B107,Volumes!$B$38:$F$79,MATCH(K$9,Volumes!$B$4:$F$4,0),FALSE),0) -> 35 | M107: 0.0057018621 | N107: 0.006230041737
B108: =Inputs!$C106 -> 25W LED Decorative - Bottom Pole Entry | C108: Offered | D108: =IF($C108="NA","",IF($B108=0,"",OFFSET('Combined Annuity Prices PL'!$B$10,MATCH($B108,'Combined Annuity Prices PL'!$B$10:$B$3811,0)+12,D$7))) -> 47.338 | E108: =IF($C108="NA","",IF($B108=0,"",OFFSET('Combined Annuity Prices PL'!$B$10,MATCH($B108,'Combined Annuity Prices PL'!$B$10:$B$3811,0)+12,E$7))) -> 47.578 | G108: 0.0057018621 | H108: 0.0060780895 | J108: =IFERROR(VLOOKUP($B108,Volumes!$B$38:$F$79,MATCH(J$9,Volumes!$B$4:$F$4,0),FALSE),0) -> 33 | K108: =IFERROR(VLOOKUP($B108,Volumes!$B$38:$F$79,MATCH(K$9,Volumes!$B$4:$F$4,0),FALSE),0) -> 35 | M108: 0.0057018621 | N108: 0.006230041737
B109: =Inputs!$C107 -> 25W LED Decorative - Side Entry | C109: Offered | D109: =IF($C109="NA","",IF($B109=0,"",OFFSET('Combined Annuity Prices PL'!$B$10,MATCH($B109,'Combined Annuity Prices PL'!$B$10:$B$3811,0)+12,D$7))) -> 47.338 | E109: =IF($C109="NA","",IF($B109=0,"",OFFSET('Combined Annuity Prices PL'!$B$10,MATCH($B109,'Combined Annuity Prices PL'!$B$10:$B$3811,0)+12,E$7))) -> 47.578 | G109: 0.0057018621 | H109: 0.0060780895 | J109: =IFERROR(VLOOKUP($B109,Volumes!$B$38:$F$79,MATCH(J$9,Volumes!$B$4:$F$4,0),FALSE),0) -> 33 | K109: =IFERROR(VLOOKUP($B109,Volumes!$B$38:$F$79,MATCH(K$9,Volumes!$B$4:$F$4,0),FALSE),0) -> 35 | M109: 0.0057018621 | N109: 0.006230041737
B110: =Inputs!$C108 -> 25W LED Decorative - Top Entry | C110: Offered | D110: =IF($C110="NA","",IF($B110=0,"",OFFSET('Combined Annuity Prices PL'!$B$10,MATCH($B110,'Combined Annuity Prices PL'!$B$10:$B$3811,0)+12,D$7))) -> 47.338 | E110: =IF($C110="NA","",IF($B110=0,"",OFFSET('Combined Annuity Prices PL'!$B$10,MATCH($B110,'Combined Annuity Prices PL'!$B$10:$B$3811,0)+12,E$7))) -> 47.578 | G110: 0.0057018621 | H110: 0.0060780895 | J110: =IFERROR(VLOOKUP($B110,Volumes!$B$38:$F$79,MATCH(J$9,Volumes!$B$4:$F$4,0),FALSE),0) -> 33 | K110: =IFERROR(VLOOKUP($B110,Volumes!$B$38:$F$79,MATCH(K$9,Volumes!$B$4:$F$4,0),FALSE),0) -> 35 | M110: 0.0057018621 | N110: 0.006230041737
B111: =Inputs!$C109 -> 30W LED | C111: Not Offered | D111: =IF($C111="NA","",IF($B111=0,"",OFFSET('Combined Annuity Prices PL'!$B$10,MATCH($B111,'Combined Annuity Prices PL'!$B$10:$B$3811,0)+12,D$7))) -> 33.466 | E111: =IF($C111="NA","",IF($B111=0,"",OFFSET('Combined Annuity Prices PL'!$B$10,MATCH($B111,'Combined Annuity Prices PL'!$B$10:$B$3811,0)+12,E$7))) -> 33.706 | G111: 0 | H111: 0 | J111: =IFERROR(VLOOKUP($B111,Volumes!$B$38:$F$79,MATCH(J$9,Volumes!$B$4:$F$4,0),FALSE),0) -> 0 | K111: =IFERROR(VLOOKUP($B111,Volumes!$B$38:$F$79,MATCH(K$9,Volumes!$B$4:$F$4,0),FALSE),0) -> 0 | M111: 0 | N111: 0
B112: =Inputs!$C110 -> 88 LED Light | C112: Not Offered | D112: =IF($C112="NA","",IF($B112=0,"",OFFSET('Combined Annuity Prices PL'!$B$10,MATCH($B112,'Combined Annuity Prices PL'!$B$10:$B$3811,0)+12,D$7))) -> 33.466 | E112: =IF($C112="NA","",IF($B112=0,"",OFFSET('Combined Annuity Prices PL'!$B$10,MATCH($B112,'Combined Annuity Prices PL'!$B$10:$B$3811,0)+12,E$7))) -> 33.706 | G112: 0 | H112: 0 | J112: =IFERROR(VLOOKUP($B112,Volumes!$B$38:$F$79,MATCH(J$9,Volumes!$B$4:$F$4,0),FALSE),0) -> 0 | K112: =IFERROR(VLOOKUP($B112,Volumes!$B$38:$F$79,MATCH(K$9,Volumes!$B$4:$F$4,0),FALSE),0) -> 0 | M112: 0 | N112: 0
B113: =Inputs!$C111 -> 100W Metal Halide | C113: Offered | D113: =IF($C113="NA","",IF($B113=0,"",OFFSET('Combined Annuity Prices PL'!$B$10,MATCH($B113,'Combined Annuity Prices PL'!$B$10:$B$3811,0)+12,D$7))) -> 44.877 | E113: =IF($C113="NA","",IF($B113=0,"",OFFSET('Combined Annuity Prices PL'!$B$10,MATCH($B113,'Combined Annuity Prices PL'!$B$10:$B$3811,0)+12,E$7))) -> 45.118 | G113: 0.00278461785 | H113: 0.0027995719 | J113: =IFERROR(VLOOKUP($B113,Volumes!$B$38:$F$79,MATCH(J$9,Volumes!$B$4:$F$4,0),FALSE),0) -> 17 | K113: =IFERROR(VLOOKUP($B113,Volumes!$B$38:$F$79,MATCH(K$9,Volumes!$B$4:$F$4,0),FALSE),0) -> 17 | M113: 0.00278461785 | N113: 0.002869561198
B114: =Inputs!$C112 -> 150W Metal Halide | C114: Offered | D114: =IF($C114="NA","",IF($B114=0,"",OFFSET('Combined Annuity Prices PL'!$B$10,MATCH($B114,'Combined Annuity Prices PL'!$B$10:$B$3811,0)+12,D$7))) -> 47.465 | E114: =IF($C114="NA","",IF($B114=0,"",OFFSET('Combined Annuity Prices PL'!$B$10,MATCH($B114,'Combined Annuity Prices PL'!$B$10:$B$3811,0)+12,E$7))) -> 47.706 | G114: 0.0024254615 | H114: 0.0026119035 | J114: =IFERROR(VLOOKUP($B114,Volumes!$B$38:$F$79,MATCH(J$9,Volumes!$B$4:$F$4,0),FALSE),0) -> 14 | K114: =IFERROR(VLOOKUP($B114,Volumes!$B$38:$F$79,MATCH(K$9,Volumes!$B$4:$F$4,0),FALSE),0) -> 15 | M114: 0.0024254615 | N114: 0.002677201088
B115: =Inputs!$C113 -> 250W Metal Halide | C115: Offered | D115: =IF($C115="NA","",IF($B115=0,"",OFFSET('Combined Annuity Prices PL'!$B$10,MATCH($B115,'Combined Annuity Prices PL'!$B$10:$B$3811,0)+12,D$7))) -> 48.279 | E115: =IF($C115="NA","",IF($B115=0,"",OFFSET('Combined Annuity Prices PL'!$B$10,MATCH($B115,'Combined Annuity Prices PL'!$B$10:$B$3811,0)+12,E$7))) -> 48.52 | G115: 0.0155072148 | H115: 0.015761722 | J115: =IFERROR(VLOOKUP($B115,Volumes!$B$38:$F$79,MATCH(J$9,Volumes!$B$4:$F$4,0),FALSE),0) -> 88 | K115: =IFERROR(VLOOKUP($B115,Volumes!$B$38:$F$79,MATCH(K$9,Volumes!$B$4:$F$4,0),FALSE),0) -> 89 | M115: 0.0155072148 | N115: 0.01615576505
B116: =Inputs!$C114 -> 400W Metal Halide | C116: Not Offered | D116: =IF($C116="NA","",IF($B116=0,"",OFFSET('Combined Annuity Prices PL'!$B$10,MATCH($B116,'Combined Annuity Prices PL'!$B$10:$B$3811,0)+12,D$7))) -> 53.217 | E116: =IF($C116="NA","",IF($B116=0,"",OFFSET('Combined Annuity Prices PL'!$B$10,MATCH($B116,'Combined Annuity Prices PL'!$B$10:$B$3811,0)+12,E$7))) -> 53.458 | G116: 0.00330211485 | H116: 0.0033170689 | J116: =IFERROR(VLOOKUP($B116,Volumes!$B$38:$F$79,MATCH(J$9,Volumes!$B$4:$F$4,0),FALSE),0) -> 17 | K116: =IFERROR(VLOOKUP($B116,Volumes!$B$38:$F$79,MATCH(K$9,Volumes!$B$4:$F$4,0),FALSE),0) -> 17 | M116: 0.00330211485 | N116: 0.003399995622
B117: =Inputs!$C115 -> 70W Metal Halide | C117: Old light no volumes | D117: =IF($C117="NA","",IF($B117=0,"",OFFSET('Combined Annuity Prices PL'!$B$10,MATCH($B117,'Combined Annuity Prices PL'!$B$10:$B$3811,0)+12,D$7))) -> 34.329 | E117: =IF($C117="NA","",IF($B117=0,"",OFFSET('Combined Annuity Prices PL'!$B$10,MATCH($B117,'Combined Annuity Prices PL'!$B$10:$B$3811,0)+12,E$7))) -> 34.569 | G117: 0 | H117: 0 | J117: =IFERROR(VLOOKUP($B117,Volumes!$B$38:$F$79,MATCH(J$9,Volumes!$B$4:$F$4,0),FALSE),0) -> 0 | K117: =IFERROR(VLOOKUP($B117,Volumes!$B$38:$F$79,MATCH(K$9,Volumes!$B$4:$F$4,0),FALSE),0) -> 0 | M117: 0 | N117: 0
B118: =Inputs!$C116 -> 250W Metal Halide - Flood Light | C118: Obsolete, no new Connections | D118: =IF($C118="NA","",IF($B118=0,"",OFFSET('Combined Annuity Prices PL'!$B$10,MATCH($B118,'Combined Annuity Prices PL'!$B$10:$B$3811,0)+12,D$7))) -> 53.372 | E118: =IF($C118="NA","",IF($B118=0,"",OFFSET('Combined Annuity Prices PL'!$B$10,MATCH($B118,'Combined Annuity Prices PL'!$B$10:$B$3811,0)+12,E$7))) -> 53.612 | G118: 0.0064286574 | H118: 0.006848933 | J118: =IFERROR(VLOOKUP($B118,Volumes!$B$38:$F$79,MATCH(J$9,Volumes!$B$4:$F$4,0),FALSE),0) -> 33 | K118: =IFERROR(VLOOKUP($B118,Volumes!$B$38:$F$79,MATCH(K$9,Volumes!$B$4:$F$4,0),FALSE),0) -> 35 | M118: 0.0064286574 | N118: 0.007020156325
B119: =Inputs!$C117 -> 400W Metal Halide - Flood Light | C119: Obsolete, no new Connections | D119: =IF($C119="NA","",IF($B119=0,"",OFFSET('Combined Annuity Prices PL'!$B$10,MATCH($B119,'Combined Annuity Prices PL'!$B$10:$B$3811,0)+12,D$7))) -> 53.217 | E119: =IF($C119="NA","",IF($B119=0,"",OFFSET('Combined Annuity Prices PL'!$B$10,MATCH($B119,'Combined Annuity Prices PL'!$B$10:$B$3811,0)+12,E$7))) -> 53.458 | G119: 0.00640998765 | H119: 0.0068292595 | J119: =IFERROR(VLOOKUP($B119,Volumes!$B$38:$F$79,MATCH(J$9,Volumes!$B$4:$F$4,0),FALSE),0) -> 33 | K119: =IFERROR(VLOOKUP($B119,Volumes!$B$38:$F$79,MATCH(K$9,Volumes!$B$4:$F$4,0),FALSE),0) -> 35 | M119: 0.00640998765 | N119: 0.006999990987
B120: =Inputs!$C118 -> 125W Mercury Vapour | C120: Obsolete, no new Connections | D120: =IF($C120="NA","",IF($B120=0,"",OFFSET('Combined Annuity Prices PL'!$B$10,MATCH($B120,'Combined Annuity Prices PL'!$B$10:$B$3811,0)+12,D$7))) -> 44.839 | E120: =IF($C120="NA","",IF($B120=0,"",OFFSET('Combined Annuity Prices PL'!$B$10,MATCH($B120,'Combined Annuity Prices PL'!$B$10:$B$3811,0)+12,E$7))) -> 45.079 | G120: 0 | H120: 0 | J120: =IFERROR(VLOOKUP($B120,Volumes!$B$38:$F$79,MATCH(J$9,Volumes!$B$4:$F$4,0),FALSE),0) -> 0 | K120: =IFERROR(VLOOKUP($B120,Volumes!$B$38:$F$79,MATCH(K$9,Volumes!$B$4:$F$4,0),FALSE),0) -> 0 | M120: 0 | N120: 0
B121: =Inputs!$C119 -> 250W Mercury Vapour | C121: Obsolete, no new Connections | D121: =IF($C121="NA","",IF($B121=0,"",OFFSET('Combined Annuity Prices PL'!$B$10,MATCH($B121,'Combined Annuity Prices PL'!$B$10:$B$3811,0)+12,D$7))) -> 45.308 | E121: =IF($C121="NA","",IF($B121=0,"",OFFSET('Combined Annuity Prices PL'!$B$10,MATCH($B121,'Combined Annuity Prices PL'!$B$10:$B$3811,0)+12,E$7))) -> 45.549 | G121: 0.0706147834 | H121: 0.0674990631 | J121: =IFERROR(VLOOKUP($B121,Volumes!$B$38:$F$79,MATCH(J$9,Volumes!$B$4:$F$4,0),FALSE),0) -> 427 | K121: =IFERROR(VLOOKUP($B121,Volumes!$B$38:$F$79,MATCH(K$9,Volumes!$B$4:$F$4,0),FALSE),0) -> 406 | M121: 0.0706147834 | N121: 0.06918653968
B122: =Inputs!$C120 -> 0 | C122: NA | D122: =IF($C122="NA","",IF($B122=0,"",OFFSET('Combined Annuity Prices PL'!$B$10,MATCH($B122,'Combined Annuity Prices PL'!$B$10:$B$3811,0)+12,D$7))) ->  | E122: =IF($C122="NA","",IF($B122=0,"",OFFSET('Combined Annuity Prices PL'!$B$10,MATCH($B122,'Combined Annuity Prices PL'!$B$10:$B$3811,0)+12,E$7))) ->  | J122: =IFERROR(VLOOKUP($B122,Volumes!$B$38:$F$79,MATCH(J$9,Volumes!$B$4:$F$4,0),FALSE),0) -> 0 | K122: =IFERROR(VLOOKUP($B122,Volumes!$B$38:$F$79,MATCH(K$9,Volumes!$B$4:$F$4,0),FALSE),0) -> 0
B123: =Inputs!$C121 -> 400W Mercury Vapour | C123: Obsolete, no new Connections | D123: =IF($C123="NA","",IF($B123=0,"",OFFSET('Combined Annuity Prices PL'!$B$10,MATCH($B123,'Combined Annuity Prices PL'!$B$10:$B$3811,0)+12,D$7))) -> 47.418 | E123: =IF($C123="NA","",IF($B123=0,"",OFFSET('Combined Annuity Prices PL'!$B$10,MATCH($B123,'Combined Annuity Prices PL'!$B$10:$B$3811,0)+12,E$7))) -> 47.658 | G123: 0.0055384224 | H123: 0.0053925027 | J123: =IFERROR(VLOOKUP($B123,Volumes!$B$38:$F$79,MATCH(J$9,Volumes!$B$4:$F$4,0),FALSE),0) -> 32 | K123: =IFERROR(VLOOKUP($B123,Volumes!$B$38:$F$79,MATCH(K$9,Volumes!$B$4:$F$4,0),FALSE),0) -> 31 | M123: 0.0055384224 | N123: 0.005527315267
B124: =Inputs!$C122 -> 50W Mercury Vapour | C124: Obsolete, no new Connections | D124: =IF($C124="NA","",IF($B124=0,"",OFFSET('Combined Annuity Prices PL'!$B$10,MATCH($B124,'Combined Annuity Prices PL'!$B$10:$B$3811,0)+12,D$7))) -> 33.245 | E124: =IF($C124="NA","",IF($B124=0,"",OFFSET('Combined Annuity Prices PL'!$B$10,MATCH($B124,'Combined Annuity Prices PL'!$B$10:$B$3811,0)+12,E$7))) -> 33.485 | G124: 0 | H124: 0 | J124: =IFERROR(VLOOKUP($B124,Volumes!$B$38:$F$79,MATCH(J$9,Volumes!$B$4:$F$4,0),FALSE),0) -> 0 | K124: =IFERROR(VLOOKUP($B124,Volumes!$B$38:$F$79,MATCH(K$9,Volumes!$B$4:$F$4,0),FALSE),0) -> 0 | M124: 0 | N124: 0
B125: =Inputs!$C123 -> 80W Mercury Vapour Art decorative | C125: Obsolete, no new Connections | D125: =IF($C125="NA","",IF($B125=0,"",OFFSET('Combined Annuity Prices PL'!$B$10,MATCH($B125,'Combined Annuity Prices PL'!$B$10:$B$3811,0)+12,D$7))) -> 50.007 | E125: =IF($C125="NA","",IF($B125=0,"",OFFSET('Combined Annuity Prices PL'!$B$10,MATCH($B125,'Combined Annuity Prices PL'!$B$10:$B$3811,0)+12,E$7))) -> 50.247 | G125: 0.007301022 | H125: 0.007336062 | J125: =IFERROR(VLOOKUP($B125,Volumes!$B$38:$F$79,MATCH(J$9,Volumes!$B$4:$F$4,0),FALSE),0) -> 40 | K125: =IFERROR(VLOOKUP($B125,Volumes!$B$38:$F$79,MATCH(K$9,Volumes!$B$4:$F$4,0),FALSE),0) -> 40 | M125: =IF($C125="NA","",D125*M$7*J125*G$6/100/10^6) -> 0.007301022 | N125: 0.00751946355
B126: =Inputs!$C124 -> 80W Mercury Vapour | C126: Obsolete, no new Connections | D126: =IF($C126="NA","",IF($B126=0,"",OFFSET('Combined Annuity Prices PL'!$B$10,MATCH($B126,'Combined Annuity Prices PL'!$B$10:$B$3811,0)+12,D$7))) -> 33.246 | E126: =IF($C126="NA","",IF($B126=0,"",OFFSET('Combined Annuity Prices PL'!$B$10,MATCH($B126,'Combined Annuity Prices PL'!$B$10:$B$3811,0)+12,E$7))) -> 33.486 | G126: 1.727387356 | H126: 1.238739226 | J126: =IFERROR(VLOOKUP($B126,Volumes!$B$38:$F$79,MATCH(J$9,Volumes!$B$4:$F$4,0),FALSE),0) -> 14235 | K126: =IFERROR(VLOOKUP($B126,Volumes!$B$38:$F$79,MATCH(K$9,Volumes!$B$4:$F$4,0),FALSE),0) -> 10135 | M126: 1.727387356 | N126: 1.269707707
M127: 0 | N127: 0
G128: =SUM(G71:G127) -> 5.976943244 | H128: =SUM(H71:H127) -> 6.092606754 | J128: =SUM(J71:J127) -> 43293 | K128: 43662 | M128: =SUM(M71:M127) -> 5.976943244 | N128: =SUM(N71:N127) -> 6.244921923
J129: =Volumes!E80=J128 -> TRUE | K129: =Volumes!F80=K128 -> TRUE
B130: Total | F130: =G8 -> Revenue ($m) - Real | G130: =SUM(G67,G128) -> 6.316402891 | H130: =SUM(H67,H128) -> 6.433317486 | J130: =SUM(J67,J128) -> 49622 | K130: 50020 | M130: =SUM(M67,M128) -> 6.316402891 | N130: =SUM(N67,N128) -> 6.594150424
J131: =Volumes!E84=J130 -> TRUE | K131: =Volumes!F84=K130 -> TRUE
F132: Compare Annuity and PTRM
F133: Nominal ($m Nominal) | G133: =G130*'Master Data'!I32 -> 6.316402891 | H133: =H130*'Master Data'!J32 -> 6.594150424
G136: ='Master Data'!$B$40 -> 0.0604 | H136: ='Master Data'!$B$40 -> 0.0604 | M136: ='Master Data'!$B$40 -> 0.0604 | N136: ='Master Data'!$B$40 -> 0.0604 | O136: Nominal Vanilla WACC
F137: 1 | G137: =F137*(1+G136) -> 1.0604 | H137: =G137*(1+H136) -> 1.12444816 | L137: 1 | M137: =L137*(1+M136) -> 1.0604 | N137: =M137*(1+N136) -> 1.12444816 | O137: Cumulative Discount Rate
F139: unsmoothed Revenue ($m) | G139: =G130 -> 6.316402891 | H139: =H130 -> 6.433317486 | I139: =SUM(G139:H139) -> 12.74972038 | J139: =G139/G137+H139/H137 -> 11.67793374 | K139: NPV (unsmoothed) | M139: =M130 -> 6.316402891 | N139: =N130 -> 6.594150424 | O139: =SUM(M139:N139) -> 12.91055331 | P139: =M139/M137+N139/N137 -> 11.82096652 | Q139: NPV (unsmoothed)
F140: Smoothed Revenue using PTRM ($m) | G140: 6.359257645 | H140: 6.387874305 | I140: =SUM(G140:H140) -> 12.74713195 | J140: =G140/G137+H140/H137 -> 11.67793374 | K140: NPV (smoothed) | M140: 6.437146617 | N140: 6.466113777 | O140: =SUM(M140:N140) -> 12.90326039 | P140: =M140/M137+N140/N137 -> 11.82096652 | Q140: NPV (smoothed)
F141: Revenue adjustment | G141: =G140/G139 -> 1.006784677 | H141: =H140/H139 -> 0.9929362756 | J141: =J139-J140 -> 0 | K141: NPV difference | M141: =M140/M139 -> 1.0191159 | N141: =N140/N139 -> 0.980583299 | P141: =P139-P140 -> 0 | Q141: NPV difference
F142: CPI | H142: ='Master Data'!J30 -> 0.025 | N142: ='Master Data'!J30 -> 0.025
F143: X Factors | H143: 0.02 | N143: 0.02
G144: P_0 | H144: X_02 | M144: P_0 | N144: X_02
G145: -0.0414327984 | H145: 0.02 | M145: 0.07278270091 | N145: 0.02
M146: Note increase in volumes therefore revenue does not reflect price per light
M148: =N139/M139 -> 1.043972422
M149: =N140/M140 -> 1.0045
M150: =M139/M140 -> 0.9812426634 | N150: =N139/N140 -> 1.019801174

Sheet Combined Annuity Prices CL
I1: ='Master Data'!H$22 -> 2017-06-30 | J1: ='Master Data'!I$22 -> 2018-06-30 | K1: ='Master Data'!J$22 -> 2019-06-30
J2: =HLOOKUP(J1,'Master Data'!$B$22:$P$23,2,FALSE) -> 365 | K2: =HLOOKUP(K1,'Master Data'!$B$22:$P$23,2,FALSE) -> 365
E3: ='Master Data'!I29 -> 2017-18 | F3: ='Master Data'!J29 -> 2018-19 | J3: ='Master Data'!I29 -> 2017-18 | K3: ='Master Data'!J29 -> 2018-19
E4: Cost $ Per year | J4: Cost Cents per Day
D5: Check errors | E5: =SUBTOTAL(9,$E$10:$E$758) -> 6382.181358 | F5: =SUBTOTAL(9,$E$10:$E$758) -> 6382.181358
B6: Lookup/Offset | D6: Offset | E6: 13 | F6: =E6+1 -> 14
B7: =Inputs!$C$68 -> Light Description | D7: Useful Life
B8: Private Contract Lighting
A10: 1 | B10: =IFERROR(VLOOKUP($A10,Inputs!$B$68:$AK$129,MATCH($B$7,Inputs!$B$68:$AK$68,0),FALSE),"Blank") -> 32W Compact Fluorescent | I10: =IFERROR(VLOOKUP($A10,Inputs!$B$68:$AK$129,MATCH($B$7,Inputs!$B$68:$AK$68,0),FALSE),"Blank") -> 32W Compact Fluorescent
B11: =Inputs!$R$68 -> Lamp UNIT price Annualised Cost | C11: =Inputs!$P$68 -> Lamp Maintenance cycle | E11: =IF($B10="Blank",0,VLOOKUP($B10,Inputs!$C$68:$AK$129,MATCH($B11,Inputs!$C$68:$AK$68,0),FALSE)) -> 1.098463962 | F11: =IF($B10="Blank",0,VLOOKUP($B10,Inputs!$C$68:$AK$129,MATCH($B11,Inputs!$C$68:$AK$68,0),FALSE)) -> 1.098463962 | I11: =B11 -> Lamp UNIT price Annualised Cost | J11: =IF(E11="NA","",E11/J$2*100) -> 0.3009490308 | K11: =IF(F11="NA","",F11/K$2*100) -> 0.3009490308
B12: =Inputs!$K$68 -> PE Cell UNIT price Annualised Cost | C12: =Inputs!$I$68 -> PE Cell Maintenance Cycle | E12: =IF($B10="Blank",0,VLOOKUP($B10,Inputs!$C$68:$AK$129,MATCH($B12,Inputs!$C$68:$AK$68,0),FALSE)) -> 0.6107414998 | F12: =IF($B10="Blank",0,VLOOKUP($B10,Inputs!$C$68:$AK$129,MATCH($B12,Inputs!$C$68:$AK$68,0),FALSE)) -> 0.6107414998 | I12: PE Cell UNIT price Annualised Cost | J12: 0.1673264383 | K12: 0.1673264383
B13: Corp capex annuity per light | E13: =IF($B10="Blank",0,'Corp Capex Annuity calcs'!F$109) -> 14.82687032 | F13: =IF($B10="Blank",0,'Corp Capex Annuity calcs'!G$109) -> 14.70889562 | I13: Corp capex annuity per light | J13: 4.062156251 | K13: 4.029834416
B14: =Inputs!$T$68 -> Lamp Service costs Annualised | E14: =IF($B10="Blank",0,VLOOKUP($B10,Inputs!$C$68:$AK$129,MATCH($B14,Inputs!$C$68:$AK$68,0),FALSE)) -> 26.34737177 | F14: =IF($B10="Blank",0,VLOOKUP($B10,Inputs!$C$68:$AK$129,MATCH($B14,Inputs!$C$68:$AK$68,0),FALSE)) -> 26.34737177 | I14: Lamp Service costs Annualised | J14: 7.218458019 | K14: 7.218458019
B15: =Inputs!$M$68 -> PE Cell Service costs Annualised | E15: =IF($B10="Blank",0,VLOOKUP($B10,Inputs!$C$68:$AK$129,MATCH($B15,Inputs!$C$68:$AK$68,0),FALSE)) -> 0 | F15: =IF($B10="Blank",0,VLOOKUP($B10,Inputs!$C$68:$AK$129,MATCH($B15,Inputs!$C$68:$AK$68,0),FALSE)) -> 0 | I15: PE Cell Service costs Annualised | J15: 0 | K15: 0
B16: Indirect Opex | E16: =IF($B10="Blank",0,IF($B$8="Private Contract Lighting",'Opex Weighting'!D$113,'Opex Weighting'!D$111)) -> 13.65430558 | F16: =IF($B10="Blank",0,IF($B$8="Private Contract Lighting",'Opex Weighting'!E$113,'Opex Weighting'!E$111)) -> 13.54566076 | I16: Indirect Opex | J16: 3.740905637 | K16: 3.711139934
B17: Indirect Capex | E17: =IF($B11="Blank",0,IF($B$8="Private Contract Lighting",'Capex Weighting'!D$115,'Capex Weighting'!D$117)) -> 0 | F17: =IF($B11="Blank",0,IF($B$8="Private Contract Lighting",'Capex Weighting'!E$115,'Capex Weighting'!E$117)) -> 0 | I17: Indirect Capex | J17: 0 | K17: 0
B18: Overhead Costs per light | E18: =IF($B10="Blank",0,IF($B$8="Private Contract Lighting",'Building Block'!C$49,'Building Block'!C$48)) -> 11.22235317 | F18: =IF($B10="Blank",0,IF($B$8="Private Contract Lighting",'Building Block'!D$49,'Building Block'!D$48)) -> 11.51212426 | I18: Overhead Costs per light | J18: 3.074617306 | K18: 3.154006646
B19: =Inputs!$AH$68 -> Bracket UNIT price | C19: 0 | E19: NA | F19: NA | I19: Bracket UNIT price
B20: =Inputs!$Y$68 -> CAPEX Installation costs | C20: =C19+1 -> 1 | E20: NA | F20: NA | I20: CAPEX Installation costs
B21: =Inputs!$X$68 -> Luminaire UNIT price | C21: =C20+1 -> 2 | E21: NA | F21: NA | I21: Luminaire UNIT price
B22: =Inputs!$Y$68 -> CAPEX Installation costs | C22: =C21+1 -> 3 | E22: NA | F22: NA | I22: CAPEX Installation costs
E23: =SUM(E11:E22) -> 67.76010629 | F23: =SUM(F11:F22) -> 67.82325787 | J23: =ROUND(E23/J$2*100,3) -> 18.564 | K23: =ROUND(F23/K$2*100,3) -> 18.582
A25: =A10+1 -> 2 | B25: =IFERROR(VLOOKUP($A25,Inputs!$B$68:$AK$129,MATCH($B$7,Inputs!$B$68:$AK$68,0),FALSE),"Blank") -> 42W Compact Fluorescent | I25: =IFERROR(VLOOKUP($A25,Inputs!$B$68:$AK$129,MATCH($B$7,Inputs!$B$68:$AK$68,0),FALSE),"Blank") -> 42W Compact Fluorescent
B26: =Inputs!$R$68 -> Lamp UNIT price Annualised Cost | C26: =Inputs!$P$68 -> Lamp Maintenance cycle | E26: =IF($B25="Blank",0,VLOOKUP($B25,Inputs!$C$68:$AK$129,MATCH($B26,Inputs!$C$68:$AK$68,0),FALSE)) -> 1.098463962 | F26: =IF($B25="Blank",0,VLOOKUP($B25,Inputs!$C$68:$AK$129,MATCH($B26,Inputs!$C$68:$AK$68,0),FALSE)) -> 1.098463962 | I26: =B26 -> Lamp UNIT price Annualised Cost | J26: =IF(E26="NA","",E26/J$2*100) -> 0.3009490308 | K26: =IF(F26="NA","",F26/K$2*100) -> 0.3009490308
B27: =Inputs!$K$68 -> PE Cell UNIT price Annualised Cost | C27: =Inputs!$I$68 -> PE Cell Maintenance Cycle | E27: =IF($B25="Blank",0,VLOOKUP($B25,Inputs!$C$68:$AK$129,MATCH($B27,Inputs!$C$68:$AK$68,0),FALSE)) -> 0.6107414998 | F27: =IF($B25="Blank",0,VLOOKUP($B25,Inputs!$C$68:$AK$129,MATCH($B27,Inputs!$C$68:$AK$68,0),FALSE)) -> 0.6107414998 | I27: PE Cell UNIT price Annualised Cost | J27: 0.1673264383 | K27: 0.1673264383
B28: Corp capex annuity per light | E28: =IF($B25="Blank",0,'Corp Capex Annuity calcs'!F$109) -> 14.82687032 | F28: =IF($B25="Blank",0,'Corp Capex Annuity calcs'!G$109) -> 14.70889562 | I28: Corp capex annuity per light | J28: 4.062156251 | K28: 4.029834416
B29: =Inputs!$T$68 -> Lamp Service costs Annualised | E29: =IF($B25="Blank",0,VLOOKUP($B25,Inputs!$C$68:$AK$129,MATCH($B29,Inputs!$C$68:$AK$68,0),FALSE)) -> 26.34737177 | F29: =IF($B25="Blank",0,VLOOKUP($B25,Inputs!$C$68:$AK$129,MATCH($B29,Inputs!$C$68:$AK$68,0),FALSE)) -> 26.34737177 | I29: Lamp Service costs Annualised | J29: 7.218458019 | K29: 7.218458019
B30: =Inputs!$M$68 -> PE Cell Service costs Annualised | E30: =IF($B25="Blank",0,VLOOKUP($B25,Inputs!$C$68:$AK$129,MATCH($B30,Inputs!$C$68:$AK$68,0),FALSE)) -> 0 | F30: =IF($B25="Blank",0,VLOOKUP($B25,Inputs!$C$68:$AK$129,MATCH($B30,Inputs!$C$68:$AK$68,0),FALSE)) -> 0 | I30: PE Cell Service costs Annualised | J30: 0 | K30: 0
B31: Indirect Opex | E31: =IF($B25="Blank",0,IF($B$8="Private Contract Lighting",'Opex Weighting'!D$113,'Opex Weighting'!D$111)) -> 13.65430558 | F31: =IF($B25="Blank",0,IF($B$8="Private Contract Lighting",'Opex Weighting'!E$113,'Opex Weighting'!E$111)) -> 13.54566076 | I31: Indirect Opex | J31: 3.740905637 | K31: 3.711139934
B32: Indirect Capex | E32: =IF($B26="Blank",0,IF($B$8="Private Contract Lighting",'Capex Weighting'!D$115,'Capex Weighting'!D$117)) -> 0 | F32: =IF($B26="Blank",0,IF($B$8="Private Contract Lighting",'Capex Weighting'!E$115,'Capex Weighting'!E$117)) -> 0 | I32: Indirect Capex | J32: 0 | K32: 0
B33: Overhead Costs per light | E33: =IF($B25="Blank",0,IF($B$8="Private Contract Lighting",'Building Block'!C$49,'Building Block'!C$48)) -> 11.22235317 | F33: =IF($B25="Blank",0,IF($B$8="Private Contract Lighting",'Building Block'!D$49,'Building Block'!D$48)) -> 11.51212426 | I33: Overhead Costs per light | J33: 3.074617306 | K33: 3.154006646
B34: =Inputs!$AH$68 -> Bracket UNIT price | C34: 0 | E34: NA | F34: NA | I34: Bracket UNIT price
B35: =Inputs!$Y$68 -> CAPEX Installation costs | C35: =C34+1 -> 1 | E35: NA | F35: NA | I35: CAPEX Installation costs
B36: =Inputs!$X$68 -> Luminaire UNIT price | C36: =C35+1 -> 2 | E36: NA | F36: NA | I36: Luminaire UNIT price
B37: =Inputs!$Y$68 -> CAPEX Installation costs | C37: 3 | E37: NA | F37: NA | I37: CAPEX Installation costs
E38: =SUM(E26:E37) -> 67.76010629 | F38: =SUM(F26:F37) -> 67.82325787 | J38: =ROUND(E38/J$2*100,3) -> 18.564 | K38: =ROUND(F38/K$2*100,3) -> 18.582
A40: =A25+1 -> 3 | B40: =IFERROR(VLOOKUP($A40,Inputs!$B$68:$AK$129,MATCH($B$7,Inputs!$B$68:$AK$68,0),FALSE),"Blank") -> 42W Compact Fluorescent - Bottom Pole Entry | I40: =IFERROR(VLOOKUP($A40,Inputs!$B$68:$AK$129,MATCH($B$7,Inputs!$B$68:$AK$68,0),FALSE),"Blank") -> 42W Compact Fluorescent - Bottom Pole Entry
B41: =Inputs!$R$68 -> Lamp UNIT price Annualised Cost | C41: =Inputs!$P$68 -> Lamp Maintenance cycle | E41: =IF($B40="Blank",0,VLOOKUP($B40,Inputs!$C$68:$AK$129,MATCH($B41,Inputs!$C$68:$AK$68,0),FALSE)) -> 1.098463962 | F41: =IF($B40="Blank",0,VLOOKUP($B40,Inputs!$C$68:$AK$129,MATCH($B41,Inputs!$C$68:$AK$68,0),FALSE)) -> 1.098463962 | I41: =B41 -> Lamp UNIT price Annualised Cost | J41: =IF(E41="NA","",E41/J$2*100) -> 0.3009490308 | K41: =IF(F41="NA","",F41/K$2*100) -> 0.3009490308
B42: =Inputs!$K$68 -> PE Cell UNIT price Annualised Cost | C42: =Inputs!$I$68 -> PE Cell Maintenance Cycle | E42: =IF($B40="Blank",0,VLOOKUP($B40,Inputs!$C$68:$AK$129,MATCH($B42,Inputs!$C$68:$AK$68,0),FALSE)) -> 0.6107414998 | F42: =IF($B40="Blank",0,VLOOKUP($B40,Inputs!$C$68:$AK$129,MATCH($B42,Inputs!$C$68:$AK$68,0),FALSE)) -> 0.6107414998 | I42: PE Cell UNIT price Annualised Cost | J42: 0.1673264383 | K42: 0.1673264383
B43: Corp capex annuity per light | E43: =IF($B40="Blank",0,'Corp Capex Annuity calcs'!F$109) -> 14.82687032 | F43: =IF($B40="Blank",0,'Corp Capex Annuity calcs'!G$109) -> 14.70889562 | I43: Corp capex annuity per light | J43: 4.062156251 | K43: 4.029834416
B44: =Inputs!$T$68 -> Lamp Service costs Annualised | E44: =IF($B40="Blank",0,VLOOKUP($B40,Inputs!$C$68:$AK$129,MATCH($B44,Inputs!$C$68:$AK$68,0),FALSE)) -> 26.34737177 | F44: =IF($B40="Blank",0,VLOOKUP($B40,Inputs!$C$68:$AK$129,MATCH($B44,Inputs!$C$68:$AK$68,0),FALSE)) -> 26.34737177 | I44: Lamp Service costs Annualised | J44: 7.218458019 | K44: 7.218458019
B45: =Inputs!$M$68 -> PE Cell Service costs Annualised | E45: =IF($B40="Blank",0,VLOOKUP($B40,Inputs!$C$68:$AK$129,MATCH($B45,Inputs!$C$68:$AK$68,0),FALSE)) -> 0 | F45: =IF($B40="Blank",0,VLOOKUP($B40,Inputs!$C$68:$AK$129,MATCH($B45,Inputs!$C$68:$AK$68,0),FALSE)) -> 0 | I45: PE Cell Service costs Annualised | J45: 0 | K45: 0
B46: Indirect Opex | E46: =IF($B40="Blank",0,IF($B$8="Private Contract Lighting",'Opex Weighting'!D$113,'Opex Weighting'!D$111)) -> 13.65430558 | F46: =IF($B40="Blank",0,IF($B$8="Private Contract Lighting",'Opex Weighting'!E$113,'Opex Weighting'!E$111)) -> 13.54566076 | I46: Indirect Opex | J46: 3.740905637 | K46: 3.711139934
B47: Indirect Capex | E47: =IF($B41="Blank",0,IF($B$8="Private Contract Lighting",'Capex Weighting'!D$115,'Capex Weighting'!D$117)) -> 0 | F47: =IF($B41="Blank",0,IF($B$8="Private Contract Lighting",'Capex Weighting'!E$115,'Capex Weighting'!E$117)) -> 0 | I47: Indirect Capex | J47: 0 | K47: 0
B48: Overhead Costs per light | E48: =IF($B40="Blank",0,IF($B$8="Private Contract Lighting",'Building Block'!C$49,'Building Block'!C$48)) -> 11.22235317 | F48: =IF($B40="Blank",0,IF($B$8="Private Contract Lighting",'Building Block'!D$49,'Building Block'!D$48)) -> 11.51212426 | I48: Overhead Costs per light | J48: 3.074617306 | K48: 3.154006646
B49: =Inputs!$AH$68 -> Bracket UNIT price | C49: 0 | E49: NA | F49: NA | I49: Bracket UNIT price
B50: =Inputs!$Y$68 -> CAPEX Installation costs | C50: =C49+1 -> 1 | E50: NA | F50: NA | I50: CAPEX Installation costs
B51: =Inputs!$X$68 -> Luminaire UNIT price | C51: =C50+1 -> 2 | E51: NA | F51: NA | I51: Luminaire UNIT price
B52: =Inputs!$Y$68 -> CAPEX Installation costs | C52: 3 | E52: NA | F52: NA | I52: CAPEX Installation costs
E53: =SUM(E41:E52) -> 67.76010629 | F53: =SUM(F41:F52) -> 67.82325787 | J53: =ROUND(E53/J$2*100,3) -> 18.564 | K53: =ROUND(F53/K$2*100,3) -> 18.582
A55: =A40+1 -> 4 | B55: =IFERROR(VLOOKUP($A55,Inputs!$B$68:$AK$129,MATCH($B$7,Inputs!$B$68:$AK$68,0),FALSE),"Blank") -> 2x24W Compact Fluorescent | I55: =IFERROR(VLOOKUP($A55,Inputs!$B$68:$AK$129,MATCH($B$7,Inputs!$B$68:$AK$68,0),FALSE),"Blank") -> 2x24W Compact Fluorescent
B56: =Inputs!$R$68 -> Lamp UNIT price Annualised Cost | C56: =Inputs!$P$68 -> Lamp Maintenance cycle | E56: =IF($B55="Blank",0,VLOOKUP($B55,Inputs!$C$68:$AK$129,MATCH($B56,Inputs!$C$68:$AK$68,0),FALSE)) -> 2.196927925 | F56: =IF($B55="Blank",0,VLOOKUP($B55,Inputs!$C$68:$AK$129,MATCH($B56,Inputs!$C$68:$AK$68,0),FALSE)) -> 2.196927925 | I56: =B56 -> Lamp UNIT price Annualised Cost | J56: =IF(E56="NA","",E56/J$2*100) -> 0.6018980616 | K56: =IF(F56="NA","",F56/K$2*100) -> 0.6018980616
B57: =Inputs!$K$68 -> PE Cell UNIT price Annualised Cost | C57: =Inputs!$I$68 -> PE Cell Maintenance Cycle | E57: =IF($B55="Blank",0,VLOOKUP($B55,Inputs!$C$68:$AK$129,MATCH($B57,Inputs!$C$68:$AK$68,0),FALSE)) -> 0.6107414998 | F57: =IF($B55="Blank",0,VLOOKUP($B55,Inputs!$C$68:$AK$129,MATCH($B57,Inputs!$C$68:$AK$68,0),FALSE)) -> 0.6107414998 | I57: PE Cell UNIT price Annualised Cost | J57: 0.1673264383 | K57: 0.1673264383
B58: Corp capex annuity per light | E58: =IF($B55="Blank",0,'Corp Capex Annuity calcs'!F$109) -> 14.82687032 | F58: =IF($B55="Blank",0,'Corp Capex Annuity calcs'!G$109) -> 14.70889562 | I58: Corp capex annuity per light | J58: 4.062156251 | K58: 4.029834416
B59: =Inputs!$T$68 -> Lamp Service costs Annualised | E59: =IF($B55="Blank",0,VLOOKUP($B55,Inputs!$C$68:$AK$129,MATCH($B59,Inputs!$C$68:$AK$68,0),FALSE)) -> 26.34737177 | F59: =IF($B55="Blank",0,VLOOKUP($B55,Inputs!$C$68:$AK$129,MATCH($B59,Inputs!$C$68:$AK$68,0),FALSE)) -> 26.34737177 | I59: Lamp Service costs Annualised | J59: 7.218458019 | K59: 7.218458019
B60: =Inputs!$M$68 -> PE Cell Service costs Annualised | E60: =IF($B55="Blank",0,VLOOKUP($B55,Inputs!$C$68:$AK$129,MATCH($B60,Inputs!$C$68:$AK$68,0),FALSE)) -> 0 | F60: =IF($B55="Blank",0,VLOOKUP($B55,Inputs!$C$68:$AK$129,MATCH($B60,Inputs!$C$68:$AK$68,0),FALSE)) -> 0 | I60: PE Cell Service costs Annualised | J60: 0 | K60: 0
B61: Indirect Opex | E61: =IF($B55="Blank",0,IF($B$8="Private Contract Lighting",'Opex Weighting'!D$113,'Opex Weighting'!D$111)) -> 13.65430558 | F61: =IF($B55="Blank",0,IF($B$8="Private Contract Lighting",'Opex Weighting'!E$113,'Opex Weighting'!E$111)) -> 13.54566076 | I61: Indirect Opex | J61: 3.740905637 | K61: 3.711139934
B62: Indirect Capex | E62: =IF($B56="Blank",0,IF($B$8="Private Contract Lighting",'Capex Weighting'!D$115,'Capex Weighting'!D$117)) -> 0 | F62: =IF($B56="Blank",0,IF($B$8="Private Contract Lighting",'Capex Weighting'!E$115,'Capex Weighting'!E$117)) -> 0 | I62: Indirect Capex | J62: 0 | K62: 0
B63: Overhead Costs per light | E63: =IF($B55="Blank",0,IF($B$8="Private Contract Lighting",'Building Block'!C$49,'Building Block'!C$48)) -> 11.22235317 | F63: =IF($B55="Blank",0,IF($B$8="Private Contract Lighting",'Building Block'!D$49,'Building Block'!D$48)) -> 11.51212426 | I63: Overhead Costs per light | J63: 3.074617306 | K63: 3.154006646
B64: =Inputs!$AH$68 -> Bracket UNIT price | C64: 0 | E64: NA | F64: NA | I64: Bracket UNIT price
B65: =Inputs!$Y$68 -> CAPEX Installation costs | C65: =C64+1 -> 1 | E65: NA | F65: NA | I65: CAPEX Installation costs
B66: =Inputs!$X$68 -> Luminaire UNIT price | C66: =C65+1 -> 2 | E66: NA | F66: NA | I66: Luminaire UNIT price
B67: =Inputs!$Y$68 -> CAPEX Installation costs | C67: 3 | E67: NA | F67: NA | I67: CAPEX Installation costs
E68: =SUM(E56:E67) -> 68.85857025 | F68: =SUM(F56:F67) -> 68.92172183 | J68: =ROUND(E68/J$2*100,3) -> 18.865 | K68: =ROUND(F68/K$2*100,3) -> 18.883
A70: =A55+1 -> 5 | B70: =IFERROR(VLOOKUP($A70,Inputs!$B$68:$AK$129,MATCH($B$7,Inputs!$B$68:$AK$68,0),FALSE),"Blank") -> 1x20W Fluorescent | I70: =IFERROR(VLOOKUP($A70,Inputs!$B$68:$AK$129,MATCH($B$7,Inputs!$B$68:$AK$68,0),FALSE),"Blank") -> 1x20W Fluorescent
B71: =Inputs!$R$68 -> Lamp UNIT price Annualised Cost | C71: =Inputs!$P$68 -> Lamp Maintenance cycle | E71: =IF($B70="Blank",0,VLOOKUP($B70,Inputs!$C$68:$AK$129,MATCH($B71,Inputs!$C$68:$AK$68,0),FALSE)) -> 1.060108179 | F71: =IF($B70="Blank",0,VLOOKUP($B70,Inputs!$C$68:$AK$129,MATCH($B71,Inputs!$C$68:$AK$68,0),FALSE)) -> 1.060108179 | I71: =B71 -> Lamp UNIT price Annualised Cost | J71: =IF(E71="NA","",E71/J$2*100) -> 0.2904405969 | K71: =IF(F71="NA","",F71/K$2*100) -> 0.2904405969
B72: =Inputs!$K$68 -> PE Cell UNIT price Annualised Cost | C72: =Inputs!$I$68 -> PE Cell Maintenance Cycle | E72: =IF($B70="Blank",0,VLOOKUP($B70,Inputs!$C$68:$AK$129,MATCH($B72,Inputs!$C$68:$AK$68,0),FALSE)) -> 0.6107414998 | F72: =IF($B70="Blank",0,VLOOKUP($B70,Inputs!$C$68:$AK$129,MATCH($B72,Inputs!$C$68:$AK$68,0),FALSE)) -> 0.6107414998 | I72: PE Cell UNIT price Annualised Cost | J72: 0.1673264383 | K72: 0.1673264383
B73: Corp capex annuity per light | E73: =IF($B70="Blank",0,'Corp Capex Annuity calcs'!F$109) -> 14.82687032 | F73: =IF($B70="Blank",0,'Corp Capex Annuity calcs'!G$109) -> 14.70889562 | I73: Corp capex annuity per light | J73: 4.062156251 | K73: 4.029834416
B74: =Inputs!$T$68 -> Lamp Service costs Annualised | E74: =IF($B70="Blank",0,VLOOKUP($B70,Inputs!$C$68:$AK$129,MATCH($B74,Inputs!$C$68:$AK$68,0),FALSE)) -> 26.34737177 | F74: =IF($B70="Blank",0,VLOOKUP($B70,Inputs!$C$68:$AK$129,MATCH($B74,Inputs!$C$68:$AK$68,0),FALSE)) -> 26.34737177 | I74: Lamp Service costs Annualised | J74: 7.218458019 | K74: 7.218458019
B75: =Inputs!$M$68 -> PE Cell Service costs Annualised | E75: =IF($B70="Blank",0,VLOOKUP($B70,Inputs!$C$68:$AK$129,MATCH($B75,Inputs!$C$68:$AK$68,0),FALSE)) -> 0 | F75: =IF($B70="Blank",0,VLOOKUP($B70,Inputs!$C$68:$AK$129,MATCH($B75,Inputs!$C$68:$AK$68,0),FALSE)) -> 0 | I75: PE Cell Service costs Annualised | J75: 0 | K75: 0
B76: Indirect Opex | E76: =IF($B70="Blank",0,IF($B$8="Private Contract Lighting",'Opex Weighting'!D$113,'Opex Weighting'!D$111)) -> 13.65430558 | F76: =IF($B70="Blank",0,IF($B$8="Private Contract Lighting",'Opex Weighting'!E$113,'Opex Weighting'!E$111)) -> 13.54566076 | I76: Indirect Opex | J76: 3.740905637 | K76: 3.711139934
B77: Indirect Capex | E77: =IF($B71="Blank",0,IF($B$8="Private Contract Lighting",'Capex Weighting'!D$115,'Capex Weighting'!D$117)) -> 0 | F77: =IF($B71="Blank",0,IF($B$8="Private Contract Lighting",'Capex Weighting'!E$115,'Capex Weighting'!E$117)) -> 0 | I77: Indirect Capex | J77: 0 | K77: 0
B78: Overhead Costs per light | E78: =IF($B70="Blank",0,IF($B$8="Private Contract Lighting",'Building Block'!C$49,'Building Block'!C$48)) -> 11.22235317 | F78: =IF($B70="Blank",0,IF($B$8="Private Contract Lighting",'Building Block'!D$49,'Building Block'!D$48)) -> 11.51212426 | I78: Overhead Costs per light | J78: 3.074617306 | K78: 3.154006646
B79: =Inputs!$AH$68 -> Bracket UNIT price | C79: 0 | E79: NA | F79: NA | I79: Bracket UNIT price
B80: =Inputs!$Y$68 -> CAPEX Installation costs | C80: =C79+1 -> 1 | E80: NA | F80: NA | I80: CAPEX Installation costs
B81: =Inputs!$X$68 -> Luminaire UNIT price | C81: =C80+1 -> 2 | E81: NA | F81: NA | I81: Luminaire UNIT price
B82: =Inputs!$Y$68 -> CAPEX Installation costs | C82: 3 | E82: NA | F82: NA | I82: CAPEX Installation costs
E83: =SUM(E71:E82) -> 67.72175051 | F83: =SUM(F71:F82) -> 67.78490208 | J83: =ROUND(E83/J$2*100,3) -> 18.554 | K83: =ROUND(F83/K$2*100,3) -> 18.571
A85: =A70+1 -> 6 | B85: =IFERROR(VLOOKUP($A85,Inputs!$B$68:$AK$129,MATCH($B$7,Inputs!$B$68:$AK$68,0),FALSE),"Blank") -> 1x40W Fluorescent | I85: =IFERROR(VLOOKUP($A85,Inputs!$B$68:$AK$129,MATCH($B$7,Inputs!$B$68:$AK$68,0),FALSE),"Blank") -> 1x40W Fluorescent
B86: =Inputs!$R$68 -> Lamp UNIT price Annualised Cost | C86: =Inputs!$P$68 -> Lamp Maintenance cycle | E86: =IF($B85="Blank",0,VLOOKUP($B85,Inputs!$C$68:$AK$129,MATCH($B86,Inputs!$C$68:$AK$68,0),FALSE)) -> 1.128978316 | F86: =IF($B85="Blank",0,VLOOKUP($B85,Inputs!$C$68:$AK$129,MATCH($B86,Inputs!$C$68:$AK$68,0),FALSE)) -> 1.128978316 | I86: =B86 -> Lamp UNIT price Annualised Cost | J86: =IF(E86="NA","",E86/J$2*100) -> 0.3093091276 | K86: =IF(F86="NA","",F86/K$2*100) -> 0.3093091276
B87: =Inputs!$K$68 -> PE Cell UNIT price Annualised Cost | C87: =Inputs!$I$68 -> PE Cell Maintenance Cycle | E87: =IF($B85="Blank",0,VLOOKUP($B85,Inputs!$C$68:$AK$129,MATCH($B87,Inputs!$C$68:$AK$68,0),FALSE)) -> 0.6107414998 | F87: =IF($B85="Blank",0,VLOOKUP($B85,Inputs!$C$68:$AK$129,MATCH($B87,Inputs!$C$68:$AK$68,0),FALSE)) -> 0.6107414998 | I87: PE Cell UNIT price Annualised Cost | J87: 0.1673264383 | K87: 0.1673264383
B88: Corp capex annuity per light | E88: =IF($B85="Blank",0,'Corp Capex Annuity calcs'!F$109) -> 14.82687032 | F88: =IF($B85="Blank",0,'Corp Capex Annuity calcs'!G$109) -> 14.70889562 | I88: Corp capex annuity per light | J88: 4.062156251 | K88: 4.029834416
B89: =Inputs!$T$68 -> Lamp Service costs Annualised | E89: =IF($B85="Blank",0,VLOOKUP($B85,Inputs!$C$68:$AK$129,MATCH($B89,Inputs!$C$68:$AK$68,0),FALSE)) -> 26.34737177 | F89: =IF($B85="Blank",0,VLOOKUP($B85,Inputs!$C$68:$AK$129,MATCH($B89,Inputs!$C$68:$AK$68,0),FALSE)) -> 26.34737177 | I89: Lamp Service costs Annualised | J89: 7.218458019 | K89: 7.218458019
B90: =Inputs!$M$68 -> PE Cell Service costs Annualised | E90: =IF($B85="Blank",0,VLOOKUP($B85,Inputs!$C$68:$AK$129,MATCH($B90,Inputs!$C$68:$AK$68,0),FALSE)) -> 0 | F90: =IF($B85="Blank",0,VLOOKUP($B85,Inputs!$C$68:$AK$129,MATCH($B90,Inputs!$C$68:$AK$68,0),FALSE)) -> 0 | I90: PE Cell Service costs Annualised | J90: 0 | K90: 0
B91: Indirect Opex | E91: =IF($B85="Blank",0,IF($B$8="Private Contract Lighting",'Opex Weighting'!D$113,'Opex Weighting'!D$111)) -> 13.65430558 | F91: =IF($B85="Blank",0,IF($B$8="Private Contract Lighting",'Opex Weighting'!E$113,'Opex Weighting'!E$111)) -> 13.54566076 | I91: Indirect Opex | J91: 3.740905637 | K91: 3.711139934
B92: Indirect Capex | E92: =IF($B86="Blank",0,IF($B$8="Private Contract Lighting",'Capex Weighting'!D$115,'Capex Weighting'!D$117)) -> 0 | F92: =IF($B86="Blank",0,IF($B$8="Private Contract Lighting",'Capex Weighting'!E$115,'Capex Weighting'!E$117)) -> 0 | I92: Indirect Capex | J92: 0 | K92: 0
B93: Overhead Costs per light | E93: =IF($B85="Blank",0,IF($B$8="Private Contract Lighting",'Building Block'!C$49,'Building Block'!C$48)) -> 11.22235317 | F93: =IF($B85="Blank",0,IF($B$8="Private Contract Lighting",'Building Block'!D$49,'Building Block'!D$48)) -> 11.51212426 | I93: Overhead Costs per light | J93: 3.074617306 | K93: 3.154006646
B94: =Inputs!$AH$68 -> Bracket UNIT price | C94: 0 | E94: NA | F94: NA | I94: Bracket UNIT price
B95: =Inputs!$Y$68 -> CAPEX Installation costs | C95: =C94+1 -> 1 | E95: NA | F95: NA | I95: CAPEX Installation costs
B96: =Inputs!$X$68 -> Luminaire UNIT price | C96: =C95+1 -> 2 | E96: NA | F96: NA | I96: Luminaire UNIT price
B97: =Inputs!$Y$68 -> CAPEX Installation costs | C97: 3 | E97: NA | F97: NA | I97: CAPEX Installation costs
E98: =SUM(E86:E97) -> 67.79062064 | F98: =SUM(F86:F97) -> 67.85377222 | J98: =ROUND(E98/J$2*100,3) -> 18.573 | K98: =ROUND(F98/K$2*100,3) -> 18.59
A100: =A85+1 -> 7 | B100: =IFERROR(VLOOKUP($A100,Inputs!$B$68:$AK$129,MATCH($B$7,Inputs!$B$68:$AK$68,0),FALSE),"Blank") -> 2x20W Fluorescent | I100: =IFERROR(VLOOKUP($A100,Inputs!$B$68:$AK$129,MATCH($B$7,Inputs!$B$68:$AK$68,0),FALSE),"Blank") -> 2x20W Fluorescent
B101: =Inputs!$R$68 -> Lamp UNIT price Annualised Cost | C101: =Inputs!$P$68 -> Lamp Maintenance cycle | E101: =IF($B100="Blank",0,VLOOKUP($B100,Inputs!$C$68:$AK$129,MATCH($B101,Inputs!$C$68:$AK$68,0),FALSE)) -> 2.120216358 | F101: =IF($B100="Blank",0,VLOOKUP($B100,Inputs!$C$68:$AK$129,MATCH($B101,Inputs!$C$68:$AK$68,0),FALSE)) -> 2.120216358 | I101: =B101 -> Lamp UNIT price Annualised Cost | J101: =IF(E101="NA","",E101/J$2*100) -> 0.5808811938 | K101: =IF(F101="NA","",F101/K$2*100) -> 0.5808811938
B102: =Inputs!$K$68 -> PE Cell UNIT price Annualised Cost | C102: =Inputs!$I$68 -> PE Cell Maintenance Cycle | E102: =IF($B100="Blank",0,VLOOKUP($B100,Inputs!$C$68:$AK$129,MATCH($B102,Inputs!$C$68:$AK$68,0),FALSE)) -> 0.6107414998 | F102: =IF($B100="Blank",0,VLOOKUP($B100,Inputs!$C$68:$AK$129,MATCH($B102,Inputs!$C$68:$AK$68,0),FALSE)) -> 0.6107414998 | I102: PE Cell UNIT price Annualised Cost | J102: 0.1673264383 | K102: 0.1673264383
B103: Corp capex annuity per light | E103: =IF($B100="Blank",0,'Corp Capex Annuity calcs'!F$109) -> 14.82687032 | F103: =IF($B100="Blank",0,'Corp Capex Annuity calcs'!G$109) -> 14.70889562 | I103: Corp capex annuity per light | J103: 4.062156251 | K103: 4.029834416
B104: =Inputs!$T$68 -> Lamp Service costs Annualised | E104: =IF($B100="Blank",0,VLOOKUP($B100,Inputs!$C$68:$AK$129,MATCH($B104,Inputs!$C$68:$AK$68,0),FALSE)) -> 26.34737177 | F104: =IF($B100="Blank",0,VLOOKUP($B100,Inputs!$C$68:$AK$129,MATCH($B104,Inputs!$C$68:$AK$68,0),FALSE)) -> 26.34737177 | I104: Lamp Service costs Annualised | J104: 7.218458019 | K104: 7.218458019
B105: =Inputs!$M$68 -> PE Cell Service costs Annualised | E105: =IF($B100="Blank",0,VLOOKUP($B100,Inputs!$C$68:$AK$129,MATCH($B105,Inputs!$C$68:$AK$68,0),FALSE)) -> 0 | F105: =IF($B100="Blank",0,VLOOKUP($B100,Inputs!$C$68:$AK$129,MATCH($B105,Inputs!$C$68:$AK$68,0),FALSE)) -> 0 | I105: PE Cell Service costs Annualised | J105: 0 | K105: 0
B106: Indirect Opex | E106: =IF($B100="Blank",0,IF($B$8="Private Contract Lighting",'Opex Weighting'!D$113,'Opex Weighting'!D$111)) -> 13.65430558 | F106: =IF($B100="Blank",0,IF($B$8="Private Contract Lighting",'Opex Weighting'!E$113,'Opex Weighting'!E$111)) -> 13.54566076 | I106: Indirect Opex | J106: 3.740905637 | K106: 3.711139934
B107: Indirect Capex | E107: =IF($B101="Blank",0,IF($B$8="Private Contract Lighting",'Capex Weighting'!D$115,'Capex Weighting'!D$117)) -> 0 | F107: =IF($B101="Blank",0,IF($B$8="Private Contract Lighting",'Capex Weighting'!E$115,'Capex Weighting'!E$117)) -> 0 | I107: Indirect Capex | J107: 0 | K107: 0
B108: Overhead Costs per light | E108: =IF($B100="Blank",0,IF($B$8="Private Contract Lighting",'Building Block'!C$49,'Building Block'!C$48)) -> 11.22235317 | F108: =IF($B100="Blank",0,IF($B$8="Private Contract Lighting",'Building Block'!D$49,'Building Block'!D$48)) -> 11.51212426 | I108: Overhead Costs per light | J108: 3.074617306 | K108: 3.154006646
B109: =Inputs!$AH$68 -> Bracket UNIT price | C109: 0 | E109: NA | F109: NA | I109: Bracket UNIT price
B110: =Inputs!$Y$68 -> CAPEX Installation costs | C110: =C109+1 -> 1 | E110: NA | F110: NA | I110: CAPEX Installation costs
B111: =Inputs!$X$68 -> Luminaire UNIT price | C111: =C110+1 -> 2 | E111: NA | F111: NA | I111: Luminaire UNIT price
B112: =Inputs!$Y$68 -> CAPEX Installation costs | C112: 3 | E112: NA | F112: NA | I112: CAPEX Installation costs
E113: =SUM(E101:E112) -> 68.78185868 | F113: =SUM(F101:F112) -> 68.84501026 | J113: =ROUND(E113/J$2*100,3) -> 18.844 | K113: =ROUND(F113/K$2*100,3) -> 18.862
A115: =A100+1 -> 8 | B115: =IFERROR(VLOOKUP($A115,Inputs!$B$68:$AK$129,MATCH($B$7,Inputs!$B$68:$AK$68,0),FALSE),"Blank") -> 2x24W Fluorescent | I115: =IFERROR(VLOOKUP($A115,Inputs!$B$68:$AK$129,MATCH($B$7,Inputs!$B$68:$AK$68,0),FALSE),"Blank") -> 2x24W Fluorescent
B116: =Inputs!$R$68 -> Lamp UNIT price Annualised Cost | C116: =Inputs!$P$68 -> Lamp Maintenance cycle | E116: =IF($B115="Blank",0,VLOOKUP($B115,Inputs!$C$68:$AK$129,MATCH($B116,Inputs!$C$68:$AK$68,0),FALSE)) -> 1.437004628 | F116: =IF($B115="Blank",0,VLOOKUP($B115,Inputs!$C$68:$AK$129,MATCH($B116,Inputs!$C$68:$AK$68,0),FALSE)) -> 1.437004628 | I116: =B116 -> Lamp UNIT price Annualised Cost | J116: =IF(E116="NA","",E116/J$2*100) -> 0.3936998982 | K116: =IF(F116="NA","",F116/K$2*100) -> 0.3936998982
B117: =Inputs!$K$68 -> PE Cell UNIT price Annualised Cost | C117: =Inputs!$I$68 -> PE Cell Maintenance Cycle | E117: =IF($B115="Blank",0,VLOOKUP($B115,Inputs!$C$68:$AK$129,MATCH($B117,Inputs!$C$68:$AK$68,0),FALSE)) -> 0.6107414998 | F117: =IF($B115="Blank",0,VLOOKUP($B115,Inputs!$C$68:$AK$129,MATCH($B117,Inputs!$C$68:$AK$68,0),FALSE)) -> 0.6107414998 | I117: PE Cell UNIT price Annualised Cost | J117: 0.1673264383 | K117: 0.1673264383
B118: Corp capex annuity per light | E118: =IF($B115="Blank",0,'Corp Capex Annuity calcs'!F$109) -> 14.82687032 | F118: =IF($B115="Blank",0,'Corp Capex Annuity calcs'!G$109) -> 14.70889562 | I118: Corp capex annuity per light | J118: 4.062156251 | K118: 4.029834416
B119: =Inputs!$T$68 -> Lamp Service costs Annualised | E119: =IF($B115="Blank",0,VLOOKUP($B115,Inputs!$C$68:$AK$129,MATCH($B119,Inputs!$C$68:$AK$68,0),FALSE)) -> 26.34737177 | F119: =IF($B115="Blank",0,VLOOKUP($B115,Inputs!$C$68:$AK$129,MATCH($B119,Inputs!$C$68:$AK$68,0),FALSE)) -> 26.34737177 | I119: Lamp Service costs Annualised | J119: 7.218458019 | K119: 7.218458019
B120: =Inputs!$M$68 -> PE Cell Service costs Annualised | E120: =IF($B115="Blank",0,VLOOKUP($B115,Inputs!$C$68:$AK$129,MATCH($B120,Inputs!$C$68:$AK$68,0),FALSE)) -> 0 | F120: =IF($B115="Blank",0,VLOOKUP($B115,Inputs!$C$68:$AK$129,MATCH($B120,Inputs!$C$68:$AK$68,0),FALSE)) -> 0 | I120: PE Cell Service costs Annualised | J120: 0 | K120: 0
B121: Indirect Opex | E121: =IF($B115="Blank",0,IF($B$8="Private Contract Lighting",'Opex Weighting'!D$113,'Opex Weighting'!D$111)) -> 13.65430558 | F121: =IF($B115="Blank",0,IF($B$8="Private Contract Lighting",'Opex Weighting'!E$113,'Opex Weighting'!E$111)) -> 13.54566076 | I121: Indirect Opex | J121: 3.740905637 | K121: 3.711139934
B122: Indirect Capex | E122: =IF($B116="Blank",0,IF($B$8="Private Contract Lighting",'Capex Weighting'!D$115,'Capex Weighting'!D$117)) -> 0 | F122: =IF($B116="Blank",0,IF($B$8="Private Contract Lighting",'Capex Weighting'!E$115,'Capex Weighting'!E$117)) -> 0 | I122: Indirect Capex | J122: 0 | K122: 0
B123: Overhead Costs per light | E123: =IF($B115="Blank",0,IF($B$8="Private Contract Lighting",'Building Block'!C$49,'Building Block'!C$48)) -> 11.22235317 | F123: =IF($B115="Blank",0,IF($B$8="Private Contract Lighting",'Building Block'!D$49,'Building Block'!D$48)) -> 11.51212426 | I123: Overhead Costs per light | J123: 3.074617306 | K123: 3.154006646
B124: =Inputs!$AH$68 -> Bracket UNIT price | C124: 0 | E124: NA | F124: NA | I124: Bracket UNIT price
B125: =Inputs!$Y$68 -> CAPEX Installation costs | C125: =C124+1 -> 1 | E125: NA | F125: NA | I125: CAPEX Installation costs
B126: =Inputs!$X$68 -> Luminaire UNIT price | C126: =C125+1 -> 2 | E126: NA | F126: NA | I126: Luminaire UNIT price
B127: =Inputs!$Y$68 -> CAPEX Installation costs | C127: 3 | E127: NA | F127: NA | I127: CAPEX Installation costs
E128: =SUM(E116:E127) -> 68.09864695 | F128: =SUM(F116:F127) -> 68.16179853 | J128: =ROUND(E128/J$2*100,3) -> 18.657 | K128: =ROUND(F128/K$2*100,3) -> 18.674
A130: =A115+1 -> 9 | B130: =IFERROR(VLOOKUP($A130,Inputs!$B$68:$AK$129,MATCH($B$7,Inputs!$B$68:$AK$68,0),FALSE),"Blank") -> T5 Fluorescent 2 x 24W | I130: =IFERROR(VLOOKUP($A130,Inputs!$B$68:$AK$129,MATCH($B$7,Inputs!$B$68:$AK$68,0),FALSE),"Blank") -> T5 Fluorescent 2 x 24W
B131: =Inputs!$R$68 -> Lamp UNIT price Annualised Cost | C131: =Inputs!$P$68 -> Lamp Maintenance cycle | E131: =IF($B130="Blank",0,VLOOKUP($B130,Inputs!$C$68:$AK$129,MATCH($B131,Inputs!$C$68:$AK$68,0),FALSE)) -> 2.120216358 | F131: =IF($B130="Blank",0,VLOOKUP($B130,Inputs!$C$68:$AK$129,MATCH($B131,Inputs!$C$68:$AK$68,0),FALSE)) -> 2.120216358 | I131: =B131 -> Lamp UNIT price Annualised Cost | J131: =IF(E131="NA","",E131/J$2*100) -> 0.5808811938 | K131: =IF(F131="NA","",F131/K$2*100) -> 0.5808811938
B132: =Inputs!$K$68 -> PE Cell UNIT price Annualised Cost | C132: =Inputs!$I$68 -> PE Cell Maintenance Cycle | E132: =IF($B130="Blank",0,VLOOKUP($B130,Inputs!$C$68:$AK$129,MATCH($B132,Inputs!$C$68:$AK$68,0),FALSE)) -> 0.6107414998 | F132: =IF($B130="Blank",0,VLOOKUP($B130,Inputs!$C$68:$AK$129,MATCH($B132,Inputs!$C$68:$AK$68,0),FALSE)) -> 0.6107414998 | I132: PE Cell UNIT price Annualised Cost | J132: 0.1673264383 | K132: 0.1673264383
B133: Corp capex annuity per light | E133: =IF($B130="Blank",0,'Corp Capex Annuity calcs'!F$109) -> 14.82687032 | F133: =IF($B130="Blank",0,'Corp Capex Annuity calcs'!G$109) -> 14.70889562 | I133: Corp capex annuity per light | J133: 4.062156251 | K133: 4.029834416
B134: =Inputs!$T$68 -> Lamp Service costs Annualised | E134: =IF($B130="Blank",0,VLOOKUP($B130,Inputs!$C$68:$AK$129,MATCH($B134,Inputs!$C$68:$AK$68,0),FALSE)) -> 26.34737177 | F134: =IF($B130="Blank",0,VLOOKUP($B130,Inputs!$C$68:$AK$129,MATCH($B134,Inputs!$C$68:$AK$68,0),FALSE)) -> 26.34737177 | I134: Lamp Service costs Annualised | J134: 7.218458019 | K134: 7.218458019
B135: =Inputs!$M$68 -> PE Cell Service costs Annualised | E135: =IF($B130="Blank",0,VLOOKUP($B130,Inputs!$C$68:$AK$129,MATCH($B135,Inputs!$C$68:$AK$68,0),FALSE)) -> 0 | F135: =IF($B130="Blank",0,VLOOKUP($B130,Inputs!$C$68:$AK$129,MATCH($B135,Inputs!$C$68:$AK$68,0),FALSE)) -> 0 | I135: PE Cell Service costs Annualised | J135: 0 | K135: 0
B136: Indirect Opex | E136: =IF($B130="Blank",0,IF($B$8="Private Contract Lighting",'Opex Weighting'!D$113,'Opex Weighting'!D$111)) -> 13.65430558 | F136: =IF($B130="Blank",0,IF($B$8="Private Contract Lighting",'Opex Weighting'!E$113,'Opex Weighting'!E$111)) -> 13.54566076 | I136: Indirect Opex | J136: 3.740905637 | K136: 3.711139934
B137: Indirect Capex | E137: =IF($B131="Blank",0,IF($B$8="Private Contract Lighting",'Capex Weighting'!D$115,'Capex Weighting'!D$117)) -> 0 | F137: =IF($B131="Blank",0,IF($B$8="Private Contract Lighting",'Capex Weighting'!E$115,'Capex Weighting'!E$117)) -> 0 | I137: Indirect Capex | J137: 0 | K137: 0
B138: Overhead Costs per light | E138: =IF($B130="Blank",0,IF($B$8="Private Contract Lighting",'Building Block'!C$49,'Building Block'!C$48)) -> 11.22235317 | F138: =IF($B130="Blank",0,IF($B$8="Private Contract Lighting",'Building Block'!D$49,'Building Block'!D$48)) -> 11.51212426 | I138: Overhead Costs per light | J138: 3.074617306 | K138: 3.154006646
B139: =Inputs!$AH$68 -> Bracket UNIT price | C139: 0 | E139: NA | F139: NA | I139: Bracket UNIT price
B140: =Inputs!$Y$68 -> CAPEX Installation costs | C140: =C139+1 -> 1 | E140: NA | F140: NA | I140: CAPEX Installation costs
B141: =Inputs!$X$68 -> Luminaire UNIT price | C141: =C140+1 -> 2 | E141: NA | F141: NA | I141: Luminaire UNIT price
B142: =Inputs!$Y$68 -> CAPEX Installation costs | C142: 3 | E142: NA | F142: NA | I142: CAPEX Installation costs
E143: =SUM(E131:E142) -> 68.78185868 | F143: =SUM(F131:F142) -> 68.84501026 | J143: =ROUND(E143/J$2*100,3) -> 18.844 | K143: =ROUND(F143/K$2*100,3) -> 18.862
A145: =A130+1 -> 10 | B145: =IFERROR(VLOOKUP($A145,Inputs!$B$68:$AK$129,MATCH($B$7,Inputs!$B$68:$AK$68,0),FALSE),"Blank") -> 20 Fluorescent 1X20FL | I145: =IFERROR(VLOOKUP($A145,Inputs!$B$68:$AK$129,MATCH($B$7,Inputs!$B$68:$AK$68,0),FALSE),"Blank") -> 20 Fluorescent 1X20FL
B146: =Inputs!$R$68 -> Lamp UNIT price Annualised Cost | C146: =Inputs!$P$68 -> Lamp Maintenance cycle | E146: =IF($B145="Blank",0,VLOOKUP($B145,Inputs!$C$68:$AK$129,MATCH($B146,Inputs!$C$68:$AK$68,0),FALSE)) -> 1.060108179 | F146: =IF($B145="Blank",0,VLOOKUP($B145,Inputs!$C$68:$AK$129,MATCH($B146,Inputs!$C$68:$AK$68,0),FALSE)) -> 1.060108179 | I146: =B146 -> Lamp UNIT price Annualised Cost | J146: =IF(E146="NA","",E146/J$2*100) -> 0.2904405969 | K146: =IF(F146="NA","",F146/K$2*100) -> 0.2904405969
B147: =Inputs!$K$68 -> PE Cell UNIT price Annualised Cost | C147: =Inputs!$I$68 -> PE Cell Maintenance Cycle | E147: =IF($B145="Blank",0,VLOOKUP($B145,Inputs!$C$68:$AK$129,MATCH($B147,Inputs!$C$68:$AK$68,0),FALSE)) -> 0.6107414998 | F147: =IF($B145="Blank",0,VLOOKUP($B145,Inputs!$C$68:$AK$129,MATCH($B147,Inputs!$C$68:$AK$68,0),FALSE)) -> 0.6107414998 | I147: PE Cell UNIT price Annualised Cost | J147: 0.1673264383 | K147: 0.1673264383
B148: Corp capex annuity per light | E148: =IF($B145="Blank",0,'Corp Capex Annuity calcs'!F$109) -> 14.82687032 | F148: =IF($B145="Blank",0,'Corp Capex Annuity calcs'!G$109) -> 14.70889562 | I148: Corp capex annuity per light | J148: 4.062156251 | K148: 4.029834416
B149: =Inputs!$T$68 -> Lamp Service costs Annualised | E149: =IF($B145="Blank",0,VLOOKUP($B145,Inputs!$C$68:$AK$129,MATCH($B149,Inputs!$C$68:$AK$68,0),FALSE)) -> 26.34737177 | F149: =IF($B145="Blank",0,VLOOKUP($B145,Inputs!$C$68:$AK$129,MATCH($B149,Inputs!$C$68:$AK$68,0),FALSE)) -> 26.34737177 | I149: Lamp Service costs Annualised | J149: 7.218458019 | K149: 7.218458019
B150: =Inputs!$M$68 -> PE Cell Service costs Annualised | E150: =IF($B145="Blank",0,VLOOKUP($B145,Inputs!$C$68:$AK$129,MATCH($B150,Inputs!$C$68:$AK$68,0),FALSE)) -> 0 | F150: =IF($B145="Blank",0,VLOOKUP($B145,Inputs!$C$68:$AK$129,MATCH($B150,Inputs!$C$68:$AK$68,0),FALSE)) -> 0 | I150: PE Cell Service costs Annualised | J150: 0 | K150: 0
B151: Indirect Opex | E151: =IF($B145="Blank",0,IF($B$8="Private Contract Lighting",'Opex Weighting'!D$113,'Opex Weighting'!D$111)) -> 13.65430558 | F151: =IF($B145="Blank",0,IF($B$8="Private Contract Lighting",'Opex Weighting'!E$113,'Opex Weighting'!E$111)) -> 13.54566076 | I151: Indirect Opex | J151: 3.740905637 | K151: 3.711139934
B152: Indirect Capex | E152: =IF($B146="Blank",0,IF($B$8="Private Contract Lighting",'Capex Weighting'!D$115,'Capex Weighting'!D$117)) -> 0 | F152: =IF($B146="Blank",0,IF($B$8="Private Contract Lighting",'Capex Weighting'!E$115,'Capex Weighting'!E$117)) -> 0 | I152: Indirect Capex | J152: 0 | K152: 0
B153: Overhead Costs per light | E153: =IF($B145="Blank",0,IF($B$8="Private Contract Lighting",'Building Block'!C$49,'Building Block'!C$48)) -> 11.22235317 | F153: =IF($B145="Blank",0,IF($B$8="Private Contract Lighting",'Building Block'!D$49,'Building Block'!D$48)) -> 11.51212426 | I153: Overhead Costs per light | J153: 3.074617306 | K153: 3.154006646
B154: =Inputs!$AH$68 -> Bracket UNIT price | C154: 0 | E154: NA | F154: NA | I154: Bracket UNIT price
B155: =Inputs!$Y$68 -> CAPEX Installation costs | C155: =C154+1 -> 1 | E155: NA | F155: NA | I155: CAPEX Installation costs
B156: =Inputs!$X$68 -> Luminaire UNIT price | C156: =C155+1 -> 2 | E156: NA | F156: NA | I156: Luminaire UNIT price
B157: =Inputs!$Y$68 -> CAPEX Installation costs | C157: 3 | E157: NA | F157: NA | I157: CAPEX Installation costs
E158: =SUM(E146:E157) -> 67.72175051 | F158: =SUM(F146:F157) -> 67.78490208 | J158: =ROUND(E158/J$2*100,3) -> 18.554 | K158: =ROUND(F158/K$2*100,3) -> 18.571
A160: =A145+1 -> 11 | B160: =IFERROR(VLOOKUP($A160,Inputs!$B$68:$AK$129,MATCH($B$7,Inputs!$B$68:$AK$68,0),FALSE),"Blank") -> 2x40W Fluorescent | I160: =IFERROR(VLOOKUP($A160,Inputs!$B$68:$AK$129,MATCH($B$7,Inputs!$B$68:$AK$68,0),FALSE),"Blank") -> 2x40W Fluorescent
B161: =Inputs!$R$68 -> Lamp UNIT price Annualised Cost | C161: =Inputs!$P$68 -> Lamp Maintenance cycle | E161: =IF($B160="Blank",0,VLOOKUP($B160,Inputs!$C$68:$AK$129,MATCH($B161,Inputs!$C$68:$AK$68,0),FALSE)) -> 2.257956631 | F161: =IF($B160="Blank",0,VLOOKUP($B160,Inputs!$C$68:$AK$129,MATCH($B161,Inputs!$C$68:$AK$68,0),FALSE)) -> 2.257956631 | I161: =B161 -> Lamp UNIT price Annualised Cost | J161: =IF(E161="NA","",E161/J$2*100) -> 0.6186182552 | K161: =IF(F161="NA","",F161/K$2*100) -> 0.6186182552
B162: =Inputs!$K$68 -> PE Cell UNIT price Annualised Cost | C162: =Inputs!$I$68 -> PE Cell Maintenance Cycle | E162: =IF($B160="Blank",0,VLOOKUP($B160,Inputs!$C$68:$AK$129,MATCH($B162,Inputs!$C$68:$AK$68,0),FALSE)) -> 0.6107414998 | F162: =IF($B160="Blank",0,VLOOKUP($B160,Inputs!$C$68:$AK$129,MATCH($B162,Inputs!$C$68:$AK$68,0),FALSE)) -> 0.6107414998 | I162: PE Cell UNIT price Annualised Cost | J162: 0.1673264383 | K162: 0.1673264383
B163: Corp capex annuity per light | E163: =IF($B160="Blank",0,'Corp Capex Annuity calcs'!F$109) -> 14.82687032 | F163: =IF($B160="Blank",0,'Corp Capex Annuity calcs'!G$109) -> 14.70889562 | I163: Corp capex annuity per light | J163: 4.062156251 | K163: 4.029834416
B164: =Inputs!$T$68 -> Lamp Service costs Annualised | E164: =IF($B160="Blank",0,VLOOKUP($B160,Inputs!$C$68:$AK$129,MATCH($B164,Inputs!$C$68:$AK$68,0),FALSE)) -> 26.34737177 | F164: =IF($B160="Blank",0,VLOOKUP($B160,Inputs!$C$68:$AK$129,MATCH($B164,Inputs!$C$68:$AK$68,0),FALSE)) -> 26.34737177 | I164: Lamp Service costs Annualised | J164: 7.218458019 | K164: 7.218458019
B165: =Inputs!$M$68 -> PE Cell Service costs Annualised | E165: =IF($B160="Blank",0,VLOOKUP($B160,Inputs!$C$68:$AK$129,MATCH($B165,Inputs!$C$68:$AK$68,0),FALSE)) -> 0 | F165: =IF($B160="Blank",0,VLOOKUP($B160,Inputs!$C$68:$AK$129,MATCH($B165,Inputs!$C$68:$AK$68,0),FALSE)) -> 0 | I165: PE Cell Service costs Annualised | J165: 0 | K165: 0
B166: Indirect Opex | E166: =IF($B160="Blank",0,IF($B$8="Private Contract Lighting",'Opex Weighting'!D$113,'Opex Weighting'!D$111)) -> 13.65430558 | F166: =IF($B160="Blank",0,IF($B$8="Private Contract Lighting",'Opex Weighting'!E$113,'Opex Weighting'!E$111)) -> 13.54566076 | I166: Indirect Opex | J166: 3.740905637 | K166: 3.711139934
B167: Indirect Capex | E167: =IF($B161="Blank",0,IF($B$8="Private Contract Lighting",'Capex Weighting'!D$115,'Capex Weighting'!D$117)) -> 0 | F167: =IF($B161="Blank",0,IF($B$8="Private Contract Lighting",'Capex Weighting'!E$115,'Capex Weighting'!E$117)) -> 0 | I167: Indirect Capex | J167: 0 | K167: 0
B168: Overhead Costs per light | E168: =IF($B160="Blank",0,IF($B$8="Private Contract Lighting",'Building Block'!C$49,'Building Block'!C$48)) -> 11.22235317 | F168: =IF($B160="Blank",0,IF($B$8="Private Contract Lighting",'Building Block'!D$49,'Building Block'!D$48)) -> 11.51212426 | I168: Overhead Costs per light | J168: 3.074617306 | K168: 3.154006646
B169: =Inputs!$AH$68 -> Bracket UNIT price | C169: 0 | E169: NA | F169: NA | I169: Bracket UNIT price
B170: =Inputs!$Y$68 -> CAPEX Installation costs | C170: =C169+1 -> 1 | E170: NA | F170: NA | I170: CAPEX Installation costs
B171: =Inputs!$X$68 -> Luminaire UNIT price | C171: =C170+1 -> 2 | E171: NA | F171: NA | I171: Luminaire UNIT price
B172: =Inputs!$Y$68 -> CAPEX Installation costs | C172: 3 | E172: NA | F172: NA | I172: CAPEX Installation costs
E173: =SUM(E161:E172) -> 68.91959896 | F173: =SUM(F161:F172) -> 68.98275054 | J173: =ROUND(E173/J$2*100,3) -> 18.882 | K173: =ROUND(F173/K$2*100,3) -> 18.899
A175: =A160+1 -> 12 | B175: =IFERROR(VLOOKUP($A175,Inputs!$B$68:$AK$129,MATCH($B$7,Inputs!$B$68:$AK$68,0),FALSE),"Blank") -> 3x40W Fluorescent | I175: =IFERROR(VLOOKUP($A175,Inputs!$B$68:$AK$129,MATCH($B$7,Inputs!$B$68:$AK$68,0),FALSE),"Blank") -> 3x40W Fluorescent
B176: =Inputs!$R$68 -> Lamp UNIT price Annualised Cost | C176: =Inputs!$P$68 -> Lamp Maintenance cycle | E176: =IF($B175="Blank",0,VLOOKUP($B175,Inputs!$C$68:$AK$129,MATCH($B176,Inputs!$C$68:$AK$68,0),FALSE)) -> 3.386934947 | F176: =IF($B175="Blank",0,VLOOKUP($B175,Inputs!$C$68:$AK$129,MATCH($B176,Inputs!$C$68:$AK$68,0),FALSE)) -> 3.386934947 | I176: =B176 -> Lamp UNIT price Annualised Cost | J176: =IF(E176="NA","",E176/J$2*100) -> 0.9279273827 | K176: =IF(F176="NA","",F176/K$2*100) -> 0.9279273827
B177: =Inputs!$K$68 -> PE Cell UNIT price Annualised Cost | C177: =Inputs!$I$68 -> PE Cell Maintenance Cycle | E177: =IF($B175="Blank",0,VLOOKUP($B175,Inputs!$C$68:$AK$129,MATCH($B177,Inputs!$C$68:$AK$68,0),FALSE)) -> 1.778810497 | F177: =IF($B175="Blank",0,VLOOKUP($B175,Inputs!$C$68:$AK$129,MATCH($B177,Inputs!$C$68:$AK$68,0),FALSE)) -> 1.778810497 | I177: PE Cell UNIT price Annualised Cost | J177: 0.4873453417 | K177: 0.4873453417
B178: Corp capex annuity per light | E178: =IF($B175="Blank",0,'Corp Capex Annuity calcs'!F$109) -> 14.82687032 | F178: =IF($B175="Blank",0,'Corp Capex Annuity calcs'!G$109) -> 14.70889562 | I178: Corp capex annuity per light | J178: 4.062156251 | K178: 4.029834416
B179: =Inputs!$T$68 -> Lamp Service costs Annualised | E179: =IF($B175="Blank",0,VLOOKUP($B175,Inputs!$C$68:$AK$129,MATCH($B179,Inputs!$C$68:$AK$68,0),FALSE)) -> 38.13435387 | F179: =IF($B175="Blank",0,VLOOKUP($B175,Inputs!$C$68:$AK$129,MATCH($B179,Inputs!$C$68:$AK$68,0),FALSE)) -> 38.13435387 | I179: Lamp Service costs Annualised | J179: 10.44776818 | K179: 10.44776818
B180: =Inputs!$M$68 -> PE Cell Service costs Annualised | E180: =IF($B175="Blank",0,VLOOKUP($B175,Inputs!$C$68:$AK$129,MATCH($B180,Inputs!$C$68:$AK$68,0),FALSE)) -> 0 | F180: =IF($B175="Blank",0,VLOOKUP($B175,Inputs!$C$68:$AK$129,MATCH($B180,Inputs!$C$68:$AK$68,0),FALSE)) -> 0 | I180: PE Cell Service costs Annualised | J180: 0 | K180: 0
B181: Indirect Opex | E181: =IF($B175="Blank",0,IF($B$8="Private Contract Lighting",'Opex Weighting'!D$113,'Opex Weighting'!D$111)) -> 13.65430558 | F181: =IF($B175="Blank",0,IF($B$8="Private Contract Lighting",'Opex Weighting'!E$113,'Opex Weighting'!E$111)) -> 13.54566076 | I181: Indirect Opex | J181: 3.740905637 | K181: 3.711139934
B182: Indirect Capex | E182: =IF($B176="Blank",0,IF($B$8="Private Contract Lighting",'Capex Weighting'!D$115,'Capex Weighting'!D$117)) -> 0 | F182: =IF($B176="Blank",0,IF($B$8="Private Contract Lighting",'Capex Weighting'!E$115,'Capex Weighting'!E$117)) -> 0 | I182: Indirect Capex | J182: 0 | K182: 0
B183: Overhead Costs per light | E183: =IF($B175="Blank",0,IF($B$8="Private Contract Lighting",'Building Block'!C$49,'Building Block'!C$48)) -> 11.22235317 | F183: =IF($B175="Blank",0,IF($B$8="Private Contract Lighting",'Building Block'!D$49,'Building Block'!D$48)) -> 11.51212426 | I183: Overhead Costs per light | J183: 3.074617306 | K183: 3.154006646
B184: =Inputs!$AH$68 -> Bracket UNIT price | C184: 0 | E184: NA | F184: NA | I184: Bracket UNIT price
B185: =Inputs!$Y$68 -> CAPEX Installation costs | C185: =C184+1 -> 1 | E185: NA | F185: NA | I185: CAPEX Installation costs
B186: =Inputs!$X$68 -> Luminaire UNIT price | C186: =C185+1 -> 2 | E186: NA | F186: NA | I186: Luminaire UNIT price
B187: =Inputs!$Y$68 -> CAPEX Installation costs | C187: 3 | E187: NA | F187: NA | I187: CAPEX Installation costs
E188: =SUM(E176:E187) -> 83.00362838 | F188: =SUM(F176:F187) -> 83.06677996 | J188: =ROUND(E188/J$2*100,3) -> 22.741 | K188: =ROUND(F188/K$2*100,3) -> 22.758
A190: =A175+1 -> 13 | B190: =IFERROR(VLOOKUP($A190,Inputs!$B$68:$AK$129,MATCH($B$7,Inputs!$B$68:$AK$68,0),FALSE),"Blank") -> 4x20 Fluorescent | I190: =IFERROR(VLOOKUP($A190,Inputs!$B$68:$AK$129,MATCH($B$7,Inputs!$B$68:$AK$68,0),FALSE),"Blank") -> 4x20 Fluorescent
B191: =Inputs!$R$68 -> Lamp UNIT price Annualised Cost | C191: =Inputs!$P$68 -> Lamp Maintenance cycle | E191: =IF($B190="Blank",0,VLOOKUP($B190,Inputs!$C$68:$AK$129,MATCH($B191,Inputs!$C$68:$AK$68,0),FALSE)) -> 4.240432715 | F191: =IF($B190="Blank",0,VLOOKUP($B190,Inputs!$C$68:$AK$129,MATCH($B191,Inputs!$C$68:$AK$68,0),FALSE)) -> 4.240432715 | I191: =B191 -> Lamp UNIT price Annualised Cost | J191: =IF(E191="NA","",E191/J$2*100) -> 1.161762388 | K191: =IF(F191="NA","",F191/K$2*100) -> 1.161762388
B192: =Inputs!$K$68 -> PE Cell UNIT price Annualised Cost | C192: =Inputs!$I$68 -> PE Cell Maintenance Cycle | E192: =IF($B190="Blank",0,VLOOKUP($B190,Inputs!$C$68:$AK$129,MATCH($B192,Inputs!$C$68:$AK$68,0),FALSE)) -> 0.6107414998 | F192: =IF($B190="Blank",0,VLOOKUP($B190,Inputs!$C$68:$AK$129,MATCH($B192,Inputs!$C$68:$AK$68,0),FALSE)) -> 0.6107414998 | I192: PE Cell UNIT price Annualised Cost | J192: 0.1673264383 | K192: 0.1673264383
B193: Corp capex annuity per light | E193: =IF($B190="Blank",0,'Corp Capex Annuity calcs'!F$109) -> 14.82687032 | F193: =IF($B190="Blank",0,'Corp Capex Annuity calcs'!G$109) -> 14.70889562 | I193: Corp capex annuity per light | J193: 4.062156251 | K193: 4.029834416
B194: =Inputs!$T$68 -> Lamp Service costs Annualised | E194: =IF($B190="Blank",0,VLOOKUP($B190,Inputs!$C$68:$AK$129,MATCH($B194,Inputs!$C$68:$AK$68,0),FALSE)) -> 26.34737177 | F194: =IF($B190="Blank",0,VLOOKUP($B190,Inputs!$C$68:$AK$129,MATCH($B194,Inputs!$C$68:$AK$68,0),FALSE)) -> 26.34737177 | I194: Lamp Service costs Annualised | J194: 7.218458019 | K194: 7.218458019
B195: =Inputs!$M$68 -> PE Cell Service costs Annualised | E195: =IF($B190="Blank",0,VLOOKUP($B190,Inputs!$C$68:$AK$129,MATCH($B195,Inputs!$C$68:$AK$68,0),FALSE)) -> 0 | F195: =IF($B190="Blank",0,VLOOKUP($B190,Inputs!$C$68:$AK$129,MATCH($B195,Inputs!$C$68:$AK$68,0),FALSE)) -> 0 | I195: PE Cell Service costs Annualised | J195: 0 | K195: 0
B196: Indirect Opex | E196: =IF($B190="Blank",0,IF($B$8="Private Contract Lighting",'Opex Weighting'!D$113,'Opex Weighting'!D$111)) -> 13.65430558 | F196: =IF($B190="Blank",0,IF($B$8="Private Contract Lighting",'Opex Weighting'!E$113,'Opex Weighting'!E$111)) -> 13.54566076 | I196: Indirect Opex | J196: 3.740905637 | K196: 3.711139934
B197: Indirect Capex | E197: =IF($B191="Blank",0,IF($B$8="Private Contract Lighting",'Capex Weighting'!D$115,'Capex Weighting'!D$117)) -> 0 | F197: =IF($B191="Blank",0,IF($B$8="Private Contract Lighting",'Capex Weighting'!E$115,'Capex Weighting'!E$117)) -> 0 | I197: Indirect Capex | J197: 0 | K197: 0
B198: Overhead Costs per light | E198: =IF($B190="Blank",0,IF($B$8="Private Contract Lighting",'Building Block'!C$49,'Building Block'!C$48)) -> 11.22235317 | F198: =IF($B190="Blank",0,IF($B$8="Private Contract Lighting",'Building Block'!D$49,'Building Block'!D$48)) -> 11.51212426 | I198: Overhead Costs per light | J198: 3.074617306 | K198: 3.154006646
B199: =Inputs!$AH$68 -> Bracket UNIT price | C199: 0 | E199: NA | F199: NA | I199: Bracket UNIT price
B200: =Inputs!$Y$68 -> CAPEX Installation costs | C200: =C199+1 -> 1 | E200: NA | F200: NA | I200: CAPEX Installation costs
B201: =Inputs!$X$68 -> Luminaire UNIT price | C201: =C200+1 -> 2 | E201: NA | F201: NA | I201: Luminaire UNIT price
B202: =Inputs!$Y$68 -> CAPEX Installation costs | C202: 3 | E202: NA | F202: NA | I202: CAPEX Installation costs
E203: =SUM(E191:E202) -> 70.90207504 | F203: =SUM(F191:F202) -> 70.96522662 | J203: =ROUND(E203/J$2*100,3) -> 19.425 | K203: =ROUND(F203/K$2*100,3) -> 19.443
A205: =A190+1 -> 14 | B205: =IFERROR(VLOOKUP($A205,Inputs!$B$68:$AK$129,MATCH($B$7,Inputs!$B$68:$AK$68,0),FALSE),"Blank") -> 4x40W Fluorescent | I205: =IFERROR(VLOOKUP($A205,Inputs!$B$68:$AK$129,MATCH($B$7,Inputs!$B$68:$AK$68,0),FALSE),"Blank") -> 4x40W Fluorescent
B206: =Inputs!$R$68 -> Lamp UNIT price Annualised Cost | C206: =Inputs!$P$68 -> Lamp Maintenance cycle | E206: =IF($B205="Blank",0,VLOOKUP($B205,Inputs!$C$68:$AK$129,MATCH($B206,Inputs!$C$68:$AK$68,0),FALSE)) -> 4.515913263 | F206: =IF($B205="Blank",0,VLOOKUP($B205,Inputs!$C$68:$AK$129,MATCH($B206,Inputs!$C$68:$AK$68,0),FALSE)) -> 4.515913263 | I206: =B206 -> Lamp UNIT price Annualised Cost | J206: =IF(E206="NA","",E206/J$2*100) -> 1.23723651 | K206: =IF(F206="NA","",F206/K$2*100) -> 1.23723651
B207: =Inputs!$K$68 -> PE Cell UNIT price Annualised Cost | C207: =Inputs!$I$68 -> PE Cell Maintenance Cycle | E207: =IF($B205="Blank",0,VLOOKUP($B205,Inputs!$C$68:$AK$129,MATCH($B207,Inputs!$C$68:$AK$68,0),FALSE)) -> 1.778810497 | F207: =IF($B205="Blank",0,VLOOKUP($B205,Inputs!$C$68:$AK$129,MATCH($B207,Inputs!$C$68:$AK$68,0),FALSE)) -> 1.778810497 | I207: PE Cell UNIT price Annualised Cost | J207: 0.4873453417 | K207: 0.4873453417
B208: Corp capex annuity per light | E208: =IF($B205="Blank",0,'Corp Capex Annuity calcs'!F$109) -> 14.82687032 | F208: =IF($B205="Blank",0,'Corp Capex Annuity calcs'!G$109) -> 14.70889562 | I208: Corp capex annuity per light | J208: 4.062156251 | K208: 4.029834416
B209: =Inputs!$T$68 -> Lamp Service costs Annualised | E209: =IF($B205="Blank",0,VLOOKUP($B205,Inputs!$C$68:$AK$129,MATCH($B209,Inputs!$C$68:$AK$68,0),FALSE)) -> 38.13435387 | F209: =IF($B205="Blank",0,VLOOKUP($B205,Inputs!$C$68:$AK$129,MATCH($B209,Inputs!$C$68:$AK$68,0),FALSE)) -> 38.13435387 | I209: Lamp Service costs Annualised | J209: 10.44776818 | K209: 10.44776818
B210: =Inputs!$M$68 -> PE Cell Service costs Annualised | E210: =IF($B205="Blank",0,VLOOKUP($B205,Inputs!$C$68:$AK$129,MATCH($B210,Inputs!$C$68:$AK$68,0),FALSE)) -> 0 | F210: =IF($B205="Blank",0,VLOOKUP($B205,Inputs!$C$68:$AK$129,MATCH($B210,Inputs!$C$68:$AK$68,0),FALSE)) -> 0 | I210: PE Cell Service costs Annualised | J210: 0 | K210: 0
B211: Indirect Opex | E211: =IF($B205="Blank",0,IF($B$8="Private Contract Lighting",'Opex Weighting'!D$113,'Opex Weighting'!D$111)) -> 13.65430558 | F211: =IF($B205="Blank",0,IF($B$8="Private Contract Lighting",'Opex Weighting'!E$113,'Opex Weighting'!E$111)) -> 13.54566076 | I211: Indirect Opex | J211: 3.740905637 | K211: 3.711139934
B212: Indirect Capex | E212: =IF($B206="Blank",0,IF($B$8="Private Contract Lighting",'Capex Weighting'!D$115,'Capex Weighting'!D$117)) -> 0 | F212: =IF($B206="Blank",0,IF($B$8="Private Contract Lighting",'Capex Weighting'!E$115,'Capex Weighting'!E$117)) -> 0 | I212: Indirect Capex | J212: 0 | K212: 0
B213: Overhead Costs per light | E213: =IF($B205="Blank",0,IF($B$8="Private Contract Lighting",'Building Block'!C$49,'Building Block'!C$48)) -> 11.22235317 | F213: =IF($B205="Blank",0,IF($B$8="Private Contract Lighting",'Building Block'!D$49,'Building Block'!D$48)) -> 11.51212426 | I213: Overhead Costs per light | J213: 3.074617306 | K213: 3.154006646
B214: =Inputs!$AH$68 -> Bracket UNIT price | C214: 0 | E214: NA | F214: NA | I214: Bracket UNIT price
... 508 more rows

Sheet Combined Annuity Prices PL
I1: ='Master Data'!H$22 -> 2017-06-30 | J1: ='Master Data'!I$22 -> 2018-06-30 | K1: ='Master Data'!J$22 -> 2019-06-30
J2: =HLOOKUP(J1,'Master Data'!$B$22:$P$23,2,FALSE) -> 365 | K2: =HLOOKUP(K1,'Master Data'!$B$22:$P$23,2,FALSE) -> 365
E3: ='Master Data'!I29 -> 2017-18 | F3: ='Master Data'!J29 -> 2018-19 | J3: ='Master Data'!I29 -> 2017-18 | K3: ='Master Data'!J29 -> 2018-19
E4: Cost $ Per year | J4: Cost Cents per Day
B6: Lookup/Offset | D6: Offset | E6: 13 | F6: =E6+1 -> 14
B7: =Inputs!$C$68 -> Light Description | D7: Useful Life
B8: Public Lighting
A10: 1 | B10: =IFERROR(VLOOKUP($A10,Inputs!$B$68:$AK$129,MATCH($B$7,Inputs!$B$68:$AK$68,0),FALSE),"Blank") -> 32W Compact Fluorescent | I10: =IFERROR(VLOOKUP($A10,Inputs!$B$68:$AK$129,MATCH($B$7,Inputs!$B$68:$AK$68,0),FALSE),"Blank") -> 32W Compact Fluorescent
B11: =Inputs!$R$68 -> Lamp UNIT price Annualised Cost | C11: =Inputs!$P$68 -> Lamp Maintenance cycle | E11: =IF($B10="Blank",0,VLOOKUP($B10,Inputs!$C$68:$AK$129,MATCH($B11,Inputs!$C$68:$AK$68,0),FALSE)) -> 1.098463962 | F11: =IF($B10="Blank",0,VLOOKUP($B10,Inputs!$C$68:$AK$129,MATCH($B11,Inputs!$C$68:$AK$68,0),FALSE)) -> 1.098463962 | I11: =B11 -> Lamp UNIT price Annualised Cost | J11: =IF(E11="NA","",E11/J$2*100) -> 0.3009490308 | K11: =IF(F11="NA","",F11/K$2*100) -> 0.3009490308
B12: =Inputs!$K$68 -> PE Cell UNIT price Annualised Cost | C12: =Inputs!$I$68 -> PE Cell Maintenance Cycle | E12: =IF($B10="Blank",0,VLOOKUP($B10,Inputs!$C$68:$AK$129,MATCH($B12,Inputs!$C$68:$AK$68,0),FALSE)) -> 0.6107414998 | F12: =IF($B10="Blank",0,VLOOKUP($B10,Inputs!$C$68:$AK$129,MATCH($B12,Inputs!$C$68:$AK$68,0),FALSE)) -> 0.6107414998 | I12: PE Cell UNIT price Annualised Cost | J12: 0.1673264383 | K12: 0.1673264383
B13: Corp capex annuity per light | E13: =IF($B10="Blank",0,'Corp Capex Annuity calcs'!F$109) -> 14.82687032 | F13: =IF($B10="Blank",0,'Corp Capex Annuity calcs'!G$109) -> 14.70889562 | I13: Corp capex annuity per light | J13: 4.062156251 | K13: 4.029834416
B14: =Inputs!$T$68 -> Lamp Service costs Annualised | E14: =IF($B10="Blank",0,VLOOKUP($B10,Inputs!$C$68:$AK$129,MATCH($B14,Inputs!$C$68:$AK$68,0),FALSE)) -> 26.34737177 | F14: =IF($B10="Blank",0,VLOOKUP($B10,Inputs!$C$68:$AK$129,MATCH($B14,Inputs!$C$68:$AK$68,0),FALSE)) -> 26.34737177 | I14: Lamp Service costs Annualised | J14: 7.218458019 | K14: 7.218458019
B15: =Inputs!$M$68 -> PE Cell Service costs Annualised | E15: =IF($B10="Blank",0,VLOOKUP($B10,Inputs!$C$68:$AK$129,MATCH($B15,Inputs!$C$68:$AK$68,0),FALSE)) -> 0 | F15: =IF($B10="Blank",0,VLOOKUP($B10,Inputs!$C$68:$AK$129,MATCH($B15,Inputs!$C$68:$AK$68,0),FALSE)) -> 0 | I15: PE Cell Service costs Annualised | J15: 0 | K15: 0
B16: Indirect Opex | E16: =IF($B10="Blank",0,IF($B$8="Private Contract Lighting",'Opex Weighting'!D$113,'Opex Weighting'!D$111)) -> 24.08183479 | F16: =IF($B10="Blank",0,IF($B$8="Private Contract Lighting",'Opex Weighting'!E$113,'Opex Weighting'!E$111)) -> 25.13462605 | I16: Indirect Opex | J16: 6.597762955 | K16: 6.886198919
B17: Indirect Capex | E17: ='Capex Weighting'!D$115 -> 0 | F17: ='Capex Weighting'!E$114 -> 0 | I17: Indirect Capex | J17: 0 | K17: 0
B18: Overhead Costs per light | E18: =IF($B10="Blank",0,IF($B$8="Private Contract Lighting",'Building Block'!C$49,'Building Block'!C$48)) -> 27.50826509 | F18: =IF($B10="Blank",0,IF($B$8="Private Contract Lighting",'Building Block'!D$49,'Building Block'!D$48)) -> 27.45044256 | I18: Overhead Costs per light | J18: 7.536510983 | K18: 7.520669195
B19: =Inputs!$AH$68 -> Bracket UNIT price | C19: 0 | E19: =IF($B10="Blank",0,OFFSET('CAPEX Annuity calcs'!$B$9,MATCH($B10,'CAPEX Annuity calcs'!$B$9:$B$500,0)+$C19,E$6)) -> 3.754148145 | F19: =IF($B10="Blank",0,OFFSET('CAPEX Annuity calcs'!$B$9,MATCH($B10,'CAPEX Annuity calcs'!$B$9:$B$500,0)+$C19,F$6)) -> 3.754148145 | I19: Bracket UNIT price | J19: 1.028533738 | K19: 1.028533738
B20: =Inputs!$Y$68 -> CAPEX Installation costs | C20: =C19+1 -> 1 | E20: =IF($B10="Blank",0,OFFSET('CAPEX Annuity calcs'!$B$9,MATCH($B10,'CAPEX Annuity calcs'!$B$9:$B$500,0)+$C20,E$6)) -> 0 | F20: =IF($B10="Blank",0,OFFSET('CAPEX Annuity calcs'!$B$9,MATCH($B10,'CAPEX Annuity calcs'!$B$9:$B$500,0)+$C20,F$6)) -> 0 | I20: CAPEX Installation costs | J20: 0 | K20: 0
B21: =Inputs!$X$68 -> Luminaire UNIT price | C21: =C20+1 -> 2 | E21: =IF($B10="Blank",0,OFFSET('CAPEX Annuity calcs'!$B$9,MATCH($B10,'CAPEX Annuity calcs'!$B$9:$B$500,0)+$C21,E$6)) -> 13.89365053 | F21: =IF($B10="Blank",0,OFFSET('CAPEX Annuity calcs'!$B$9,MATCH($B10,'CAPEX Annuity calcs'!$B$9:$B$500,0)+$C21,F$6)) -> 13.89365053 | I21: Luminaire UNIT price | J21: 3.806479596 | K21: 3.806479596
B22: =Inputs!$Y$68 -> CAPEX Installation costs | C22: 3 | E22: =IF($B10="Blank",0,OFFSET('CAPEX Annuity calcs'!$B$9,MATCH($B10,'CAPEX Annuity calcs'!$B$9:$B$500,0)+$C22,E$6)) -> 17.1652502 | F22: =IF($B10="Blank",0,OFFSET('CAPEX Annuity calcs'!$B$9,MATCH($B10,'CAPEX Annuity calcs'!$B$9:$B$500,0)+$C22,F$6)) -> 17.1652502 | I22: CAPEX Installation costs | J22: 4.702808274 | K22: 4.702808274
E23: =SUM(E11:E22) -> 129.2865963 | F23: =SUM(F11:F22) -> 130.1635903 | J23: =ROUND(E23/J$2*100,3) -> 35.421 | K23: =ROUND(F23/K$2*100,3) -> 35.661
A25: =A10+1 -> 2 | B25: =IFERROR(VLOOKUP($A25,Inputs!$B$68:$AK$129,MATCH($B$7,Inputs!$B$68:$AK$68,0),FALSE),"Blank") -> 42W Compact Fluorescent | I25: =IFERROR(VLOOKUP($A25,Inputs!$B$68:$AK$129,MATCH($B$7,Inputs!$B$68:$AK$68,0),FALSE),"Blank") -> 42W Compact Fluorescent
B26: =Inputs!$R$68 -> Lamp UNIT price Annualised Cost | C26: =Inputs!$P$68 -> Lamp Maintenance cycle | E26: =IF($B25="Blank",0,VLOOKUP($B25,Inputs!$C$68:$AK$129,MATCH($B26,Inputs!$C$68:$AK$68,0),FALSE)) -> 1.098463962 | F26: =IF($B25="Blank",0,VLOOKUP($B25,Inputs!$C$68:$AK$129,MATCH($B26,Inputs!$C$68:$AK$68,0),FALSE)) -> 1.098463962 | I26: =B26 -> Lamp UNIT price Annualised Cost | J26: =IF(E26="NA","",E26/J$2*100) -> 0.3009490308 | K26: =IF(F26="NA","",F26/K$2*100) -> 0.3009490308
B27: =Inputs!$K$68 -> PE Cell UNIT price Annualised Cost | C27: =Inputs!$I$68 -> PE Cell Maintenance Cycle | E27: =IF($B25="Blank",0,VLOOKUP($B25,Inputs!$C$68:$AK$129,MATCH($B27,Inputs!$C$68:$AK$68,0),FALSE)) -> 0.6107414998 | F27: =IF($B25="Blank",0,VLOOKUP($B25,Inputs!$C$68:$AK$129,MATCH($B27,Inputs!$C$68:$AK$68,0),FALSE)) -> 0.6107414998 | I27: PE Cell UNIT price Annualised Cost | J27: 0.1673264383 | K27: 0.1673264383
B28: Corp capex annuity per light | E28: =IF($B25="Blank",0,'Corp Capex Annuity calcs'!F$109) -> 14.82687032 | F28: =IF($B25="Blank",0,'Corp Capex Annuity calcs'!G$109) -> 14.70889562 | I28: Corp capex annuity per light | J28: 4.062156251 | K28: 4.029834416
B29: =Inputs!$T$68 -> Lamp Service costs Annualised | E29: =IF($B25="Blank",0,VLOOKUP($B25,Inputs!$C$68:$AK$129,MATCH($B29,Inputs!$C$68:$AK$68,0),FALSE)) -> 26.34737177 | F29: =IF($B25="Blank",0,VLOOKUP($B25,Inputs!$C$68:$AK$129,MATCH($B29,Inputs!$C$68:$AK$68,0),FALSE)) -> 26.34737177 | I29: Lamp Service costs Annualised | J29: 7.218458019 | K29: 7.218458019
B30: =Inputs!$M$68 -> PE Cell Service costs Annualised | E30: =IF($B25="Blank",0,VLOOKUP($B25,Inputs!$C$68:$AK$129,MATCH($B30,Inputs!$C$68:$AK$68,0),FALSE)) -> 0 | F30: =IF($B25="Blank",0,VLOOKUP($B25,Inputs!$C$68:$AK$129,MATCH($B30,Inputs!$C$68:$AK$68,0),FALSE)) -> 0 | I30: PE Cell Service costs Annualised | J30: 0 | K30: 0
B31: Indirect Opex | E31: =IF($B25="Blank",0,IF($B$8="Private Contract Lighting",'Opex Weighting'!D$113,'Opex Weighting'!D$111)) -> 24.08183479 | F31: =IF($B25="Blank",0,IF($B$8="Private Contract Lighting",'Opex Weighting'!E$113,'Opex Weighting'!E$111)) -> 25.13462605 | I31: Indirect Opex | J31: 6.597762955 | K31: 6.886198919
B32: Indirect Capex | E32: ='Capex Weighting'!D$115 -> 0 | F32: ='Capex Weighting'!E$114 -> 0 | I32: Indirect Capex | J32: 0 | K32: 0
B33: Overhead Costs per light | E33: =IF($B25="Blank",0,IF($B$8="Private Contract Lighting",'Building Block'!C$49,'Building Block'!C$48)) -> 27.50826509 | F33: =IF($B25="Blank",0,IF($B$8="Private Contract Lighting",'Building Block'!D$49,'Building Block'!D$48)) -> 27.45044256 | I33: Overhead Costs per light | J33: 7.536510983 | K33: 7.520669195
B34: =Inputs!$AH$68 -> Bracket UNIT price | C34: 0 | E34: =IF($B25="Blank",0,OFFSET('CAPEX Annuity calcs'!$B$9,MATCH($B25,'CAPEX Annuity calcs'!$B$9:$B$500,0)+$C34,E$6)) -> 3.842432954 | F34: =IF($B25="Blank",0,OFFSET('CAPEX Annuity calcs'!$B$9,MATCH($B25,'CAPEX Annuity calcs'!$B$9:$B$500,0)+$C34,F$6)) -> 3.842432954 | I34: Bracket UNIT price | J34: 1.052721357 | K34: 1.052721357
B35: =Inputs!$Y$68 -> CAPEX Installation costs | C35: =C34+1 -> 1 | E35: =IF($B25="Blank",0,OFFSET('CAPEX Annuity calcs'!$B$9,MATCH($B25,'CAPEX Annuity calcs'!$B$9:$B$500,0)+$C35,E$6)) -> 0 | F35: =IF($B25="Blank",0,OFFSET('CAPEX Annuity calcs'!$B$9,MATCH($B25,'CAPEX Annuity calcs'!$B$9:$B$500,0)+$C35,F$6)) -> 0 | I35: CAPEX Installation costs | J35: 0 | K35: 0
B36: =Inputs!$X$68 -> Luminaire UNIT price | C36: =C35+1 -> 2 | E36: =IF($B25="Blank",0,OFFSET('CAPEX Annuity calcs'!$B$9,MATCH($B25,'CAPEX Annuity calcs'!$B$9:$B$500,0)+$C36,E$6)) -> 13.89365053 | F36: =IF($B25="Blank",0,OFFSET('CAPEX Annuity calcs'!$B$9,MATCH($B25,'CAPEX Annuity calcs'!$B$9:$B$500,0)+$C36,F$6)) -> 13.89365053 | I36: Luminaire UNIT price | J36: 3.806479596 | K36: 3.806479596
B37: =Inputs!$Y$68 -> CAPEX Installation costs | C37: 3 | E37: =IF($B25="Blank",0,OFFSET('CAPEX Annuity calcs'!$B$9,MATCH($B25,'CAPEX Annuity calcs'!$B$9:$B$500,0)+$C37,E$6)) -> 17.1652502 | F37: =IF($B25="Blank",0,OFFSET('CAPEX Annuity calcs'!$B$9,MATCH($B25,'CAPEX Annuity calcs'!$B$9:$B$500,0)+$C37,F$6)) -> 17.1652502 | I37: CAPEX Installation costs | J37: 4.702808274 | K37: 4.702808274
E38: =SUM(E26:E37) -> 129.3748811 | F38: =SUM(F26:F37) -> 130.2518751 | J38: =ROUND(E38/J$2*100,3) -> 35.445 | K38: =ROUND(F38/K$2*100,3) -> 35.685
A40: =A25+1 -> 3 | B40: =IFERROR(VLOOKUP($A40,Inputs!$B$68:$AK$129,MATCH($B$7,Inputs!$B$68:$AK$68,0),FALSE),"Blank") -> 42W Compact Fluorescent - Bottom Pole Entry | I40: =IFERROR(VLOOKUP($A40,Inputs!$B$68:$AK$129,MATCH($B$7,Inputs!$B$68:$AK$68,0),FALSE),"Blank") -> 42W Compact Fluorescent - Bottom Pole Entry
B41: =Inputs!$R$68 -> Lamp UNIT price Annualised Cost | C41: =Inputs!$P$68 -> Lamp Maintenance cycle | E41: =IF($B40="Blank",0,VLOOKUP($B40,Inputs!$C$68:$AK$129,MATCH($B41,Inputs!$C$68:$AK$68,0),FALSE)) -> 1.098463962 | F41: =IF($B40="Blank",0,VLOOKUP($B40,Inputs!$C$68:$AK$129,MATCH($B41,Inputs!$C$68:$AK$68,0),FALSE)) -> 1.098463962 | I41: =B41 -> Lamp UNIT price Annualised Cost | J41: =IF(E41="NA","",E41/J$2*100) -> 0.3009490308 | K41: =IF(F41="NA","",F41/K$2*100) -> 0.3009490308
B42: =Inputs!$K$68 -> PE Cell UNIT price Annualised Cost | C42: =Inputs!$I$68 -> PE Cell Maintenance Cycle | E42: =IF($B40="Blank",0,VLOOKUP($B40,Inputs!$C$68:$AK$129,MATCH($B42,Inputs!$C$68:$AK$68,0),FALSE)) -> 0.6107414998 | F42: =IF($B40="Blank",0,VLOOKUP($B40,Inputs!$C$68:$AK$129,MATCH($B42,Inputs!$C$68:$AK$68,0),FALSE)) -> 0.6107414998 | I42: PE Cell UNIT price Annualised Cost | J42: 0.1673264383 | K42: 0.1673264383
B43: Corp capex annuity per light | E43: =IF($B40="Blank",0,'Corp Capex Annuity calcs'!F$109) -> 14.82687032 | F43: =IF($B40="Blank",0,'Corp Capex Annuity calcs'!G$109) -> 14.70889562 | I43: Corp capex annuity per light | J43: 4.062156251 | K43: 4.029834416
B44: =Inputs!$T$68 -> Lamp Service costs Annualised | E44: =IF($B40="Blank",0,VLOOKUP($B40,Inputs!$C$68:$AK$129,MATCH($B44,Inputs!$C$68:$AK$68,0),FALSE)) -> 26.34737177 | F44: =IF($B40="Blank",0,VLOOKUP($B40,Inputs!$C$68:$AK$129,MATCH($B44,Inputs!$C$68:$AK$68,0),FALSE)) -> 26.34737177 | I44: Lamp Service costs Annualised | J44: 7.218458019 | K44: 7.218458019
B45: =Inputs!$M$68 -> PE Cell Service costs Annualised | E45: =IF($B40="Blank",0,VLOOKUP($B40,Inputs!$C$68:$AK$129,MATCH($B45,Inputs!$C$68:$AK$68,0),FALSE)) -> 0 | F45: =IF($B40="Blank",0,VLOOKUP($B40,Inputs!$C$68:$AK$129,MATCH($B45,Inputs!$C$68:$AK$68,0),FALSE)) -> 0 | I45: PE Cell Service costs Annualised | J45: 0 | K45: 0
B46: Indirect Opex | E46: =IF($B40="Blank",0,IF($B$8="Private Contract Lighting",'Opex Weighting'!D$113,'Opex Weighting'!D$111)) -> 24.08183479 | F46: =IF($B40="Blank",0,IF($B$8="Private Contract Lighting",'Opex Weighting'!E$113,'Opex Weighting'!E$111)) -> 25.13462605 | I46: Indirect Opex | J46: 6.597762955 | K46: 6.886198919
B47: Indirect Capex | E47: ='Capex Weighting'!D$115 -> 0 | F47: ='Capex Weighting'!E$114 -> 0 | I47: Indirect Capex | J47: 0 | K47: 0
B48: Overhead Costs per light | E48: =IF($B40="Blank",0,IF($B$8="Private Contract Lighting",'Building Block'!C$49,'Building Block'!C$48)) -> 27.50826509 | F48: =IF($B40="Blank",0,IF($B$8="Private Contract Lighting",'Building Block'!D$49,'Building Block'!D$48)) -> 27.45044256 | I48: Overhead Costs per light | J48: 7.536510983 | K48: 7.520669195
B49: =Inputs!$AH$68 -> Bracket UNIT price | C49: 0 | E49: =IF($B40="Blank",0,OFFSET('CAPEX Annuity calcs'!$B$9,MATCH($B40,'CAPEX Annuity calcs'!$B$9:$B$500,0)+$C49,E$6)) -> 3.842432954 | F49: =IF($B40="Blank",0,OFFSET('CAPEX Annuity calcs'!$B$9,MATCH($B40,'CAPEX Annuity calcs'!$B$9:$B$500,0)+$C49,F$6)) -> 3.842432954 | I49: Bracket UNIT price | J49: 1.052721357 | K49: 1.052721357
B50: =Inputs!$Y$68 -> CAPEX Installation costs | C50: =C49+1 -> 1 | E50: =IF($B40="Blank",0,OFFSET('CAPEX Annuity calcs'!$B$9,MATCH($B40,'CAPEX Annuity calcs'!$B$9:$B$500,0)+$C50,E$6)) -> 0 | F50: =IF($B40="Blank",0,OFFSET('CAPEX Annuity calcs'!$B$9,MATCH($B40,'CAPEX Annuity calcs'!$B$9:$B$500,0)+$C50,F$6)) -> 0 | I50: CAPEX Installation costs | J50: 0 | K50: 0
B51: =Inputs!$X$68 -> Luminaire UNIT price | C51: =C50+1 -> 2 | E51: =IF($B40="Blank",0,OFFSET('CAPEX Annuity calcs'!$B$9,MATCH($B40,'CAPEX Annuity calcs'!$B$9:$B$500,0)+$C51,E$6)) -> 13.89365053 | F51: =IF($B40="Blank",0,OFFSET('CAPEX Annuity calcs'!$B$9,MATCH($B40,'CAPEX Annuity calcs'!$B$9:$B$500,0)+$C51,F$6)) -> 13.89365053 | I51: Luminaire UNIT price | J51: 3.806479596 | K51: 3.806479596
B52: =Inputs!$Y$68 -> CAPEX Installation costs | C52: 3 | E52: =IF($B40="Blank",0,OFFSET('CAPEX Annuity calcs'!$B$9,MATCH($B40,'CAPEX Annuity calcs'!$B$9:$B$500,0)+$C52,E$6)) -> 17.1652502 | F52: =IF($B40="Blank",0,OFFSET('CAPEX Annuity calcs'!$B$9,MATCH($B40,'CAPEX Annuity calcs'!$B$9:$B$500,0)+$C52,F$6)) -> 17.1652502 | I52: CAPEX Installation costs | J52: 4.702808274 | K52: 4.702808274
E53: =SUM(E41:E52) -> 129.3748811 | F53: =SUM(F41:F52) -> 130.2518751 | J53: =ROUND(E53/J$2*100,3) -> 35.445 | K53: =ROUND(F53/K$2*100,3) -> 35.685
A55: =A40+1 -> 4 | B55: =IFERROR(VLOOKUP($A55,Inputs!$B$68:$AK$129,MATCH($B$7,Inputs!$B$68:$AK$68,0),FALSE),"Blank") -> 2x24W Compact Fluorescent | I55: =IFERROR(VLOOKUP($A55,Inputs!$B$68:$AK$129,MATCH($B$7,Inputs!$B$68:$AK$68,0),FALSE),"Blank") -> 2x24W Compact Fluorescent
B56: =Inputs!$R$68 -> Lamp UNIT price Annualised Cost | C56: =Inputs!$P$68 -> Lamp Maintenance cycle | E56: =IF($B55="Blank",0,VLOOKUP($B55,Inputs!$C$68:$AK$129,MATCH($B56,Inputs!$C$68:$AK$68,0),FALSE)) -> 2.196927925 | F56: =IF($B55="Blank",0,VLOOKUP($B55,Inputs!$C$68:$AK$129,MATCH($B56,Inputs!$C$68:$AK$68,0),FALSE)) -> 2.196927925 | I56: =B56 -> Lamp UNIT price Annualised Cost | J56: =IF(E56="NA","",E56/J$2*100) -> 0.6018980616 | K56: =IF(F56="NA","",F56/K$2*100) -> 0.6018980616
B57: =Inputs!$K$68 -> PE Cell UNIT price Annualised Cost | C57: =Inputs!$I$68 -> PE Cell Maintenance Cycle | E57: =IF($B55="Blank",0,VLOOKUP($B55,Inputs!$C$68:$AK$129,MATCH($B57,Inputs!$C$68:$AK$68,0),FALSE)) -> 0.6107414998 | F57: =IF($B55="Blank",0,VLOOKUP($B55,Inputs!$C$68:$AK$129,MATCH($B57,Inputs!$C$68:$AK$68,0),FALSE)) -> 0.6107414998 | I57: PE Cell UNIT price Annualised Cost | J57: 0.1673264383 | K57: 0.1673264383
B58: Corp capex annuity per light | E58: =IF($B55="Blank",0,'Corp Capex Annuity calcs'!F$109) -> 14.82687032 | F58: =IF($B55="Blank",0,'Corp Capex Annuity calcs'!G$109) -> 14.70889562 | I58: Corp capex annuity per light | J58: 4.062156251 | K58: 4.029834416
B59: =Inputs!$T$68 -> Lamp Service costs Annualised | E59: =IF($B55="Blank",0,VLOOKUP($B55,Inputs!$C$68:$AK$129,MATCH($B59,Inputs!$C$68:$AK$68,0),FALSE)) -> 26.34737177 | F59: =IF($B55="Blank",0,VLOOKUP($B55,Inputs!$C$68:$AK$129,MATCH($B59,Inputs!$C$68:$AK$68,0),FALSE)) -> 26.34737177 | I59: Lamp Service costs Annualised | J59: 7.218458019 | K59: 7.218458019
B60: =Inputs!$M$68 -> PE Cell Service costs Annualised | E60: =IF($B55="Blank",0,VLOOKUP($B55,Inputs!$C$68:$AK$129,MATCH($B60,Inputs!$C$68:$AK$68,0),FALSE)) -> 0 | F60: =IF($B55="Blank",0,VLOOKUP($B55,Inputs!$C$68:$AK$129,MATCH($B60,Inputs!$C$68:$AK$68,0),FALSE)) -> 0 | I60: PE Cell Service costs Annualised | J60: 0 | K60: 0
B61: Indirect Opex | E61: =IF($B55="Blank",0,IF($B$8="Private Contract Lighting",'Opex Weighting'!D$113,'Opex Weighting'!D$111)) -> 24.08183479 | F61: =IF($B55="Blank",0,IF($B$8="Private Contract Lighting",'Opex Weighting'!E$113,'Opex Weighting'!E$111)) -> 25.13462605 | I61: Indirect Opex | J61: 6.597762955 | K61: 6.886198919
B62: Indirect Capex | E62: ='Capex Weighting'!D$115 -> 0 | F62: ='Capex Weighting'!E$114 -> 0 | I62: Indirect Capex | J62: 0 | K62: 0
B63: Overhead Costs per light | E63: =IF($B55="Blank",0,IF($B$8="Private Contract Lighting",'Building Block'!C$49,'Building Block'!C$48)) -> 27.50826509 | F63: =IF($B55="Blank",0,IF($B$8="Private Contract Lighting",'Building Block'!D$49,'Building Block'!D$48)) -> 27.45044256 | I63: Overhead Costs per light | J63: 7.536510983 | K63: 7.520669195
B64: =Inputs!$AH$68 -> Bracket UNIT price | C64: 0 | E64: =IF($B55="Blank",0,OFFSET('CAPEX Annuity calcs'!$B$9,MATCH($B55,'CAPEX Annuity calcs'!$B$9:$B$500,0)+$C64,E$6)) -> 3.842094374 | F64: =IF($B55="Blank",0,OFFSET('CAPEX Annuity calcs'!$B$9,MATCH($B55,'CAPEX Annuity calcs'!$B$9:$B$500,0)+$C64,F$6)) -> 3.842094374 | I64: Bracket UNIT price | J64: 1.052628596 | K64: 1.052628596
B65: =Inputs!$Y$68 -> CAPEX Installation costs | C65: =C64+1 -> 1 | E65: =IF($B55="Blank",0,OFFSET('CAPEX Annuity calcs'!$B$9,MATCH($B55,'CAPEX Annuity calcs'!$B$9:$B$500,0)+$C65,E$6)) -> 0 | F65: =IF($B55="Blank",0,OFFSET('CAPEX Annuity calcs'!$B$9,MATCH($B55,'CAPEX Annuity calcs'!$B$9:$B$500,0)+$C65,F$6)) -> 0 | I65: CAPEX Installation costs | J65: 0 | K65: 0
B66: =Inputs!$X$68 -> Luminaire UNIT price | C66: =C65+1 -> 2 | E66: =IF($B55="Blank",0,OFFSET('CAPEX Annuity calcs'!$B$9,MATCH($B55,'CAPEX Annuity calcs'!$B$9:$B$500,0)+$C66,E$6)) -> 13.89365053 | F66: =IF($B55="Blank",0,OFFSET('CAPEX Annuity calcs'!$B$9,MATCH($B55,'CAPEX Annuity calcs'!$B$9:$B$500,0)+$C66,F$6)) -> 13.89365053 | I66: Luminaire UNIT price | J66: 3.806479596 | K66: 3.806479596
B67: =Inputs!$Y$68 -> CAPEX Installation costs | C67: 3 | E67: =IF($B55="Blank",0,OFFSET('CAPEX Annuity calcs'!$B$9,MATCH($B55,'CAPEX Annuity calcs'!$B$9:$B$500,0)+$C67,E$6)) -> 17.1652502 | F67: =IF($B55="Blank",0,OFFSET('CAPEX Annuity calcs'!$B$9,MATCH($B55,'CAPEX Annuity calcs'!$B$9:$B$500,0)+$C67,F$6)) -> 17.1652502 | I67: CAPEX Installation costs | J67: 4.702808274 | K67: 4.702808274
E68: =SUM(E56:E67) -> 130.4730065 | F68: =SUM(F56:F67) -> 131.3500005 | J68: =ROUND(E68/J$2*100,3) -> 35.746 | K68: =ROUND(F68/K$2*100,3) -> 35.986
A70: =A55+1 -> 5 | B70: =IFERROR(VLOOKUP($A70,Inputs!$B$68:$AK$129,MATCH($B$7,Inputs!$B$68:$AK$68,0),FALSE),"Blank") -> 1x20W Fluorescent | I70: =IFERROR(VLOOKUP($A70,Inputs!$B$68:$AK$129,MATCH($B$7,Inputs!$B$68:$AK$68,0),FALSE),"Blank") -> 1x20W Fluorescent
B71: =Inputs!$R$68 -> Lamp UNIT price Annualised Cost | C71: =Inputs!$P$68 -> Lamp Maintenance cycle | E71: =IF($B70="Blank",0,VLOOKUP($B70,Inputs!$C$68:$AK$129,MATCH($B71,Inputs!$C$68:$AK$68,0),FALSE)) -> 1.060108179 | F71: =IF($B70="Blank",0,VLOOKUP($B70,Inputs!$C$68:$AK$129,MATCH($B71,Inputs!$C$68:$AK$68,0),FALSE)) -> 1.060108179 | I71: =B71 -> Lamp UNIT price Annualised Cost | J71: =IF(E71="NA","",E71/J$2*100) -> 0.2904405969 | K71: =IF(F71="NA","",F71/K$2*100) -> 0.2904405969
B72: =Inputs!$K$68 -> PE Cell UNIT price Annualised Cost | C72: =Inputs!$I$68 -> PE Cell Maintenance Cycle | E72: =IF($B70="Blank",0,VLOOKUP($B70,Inputs!$C$68:$AK$129,MATCH($B72,Inputs!$C$68:$AK$68,0),FALSE)) -> 0.6107414998 | F72: =IF($B70="Blank",0,VLOOKUP($B70,Inputs!$C$68:$AK$129,MATCH($B72,Inputs!$C$68:$AK$68,0),FALSE)) -> 0.6107414998 | I72: PE Cell UNIT price Annualised Cost | J72: 0.1673264383 | K72: 0.1673264383
B73: Corp capex annuity per light | E73: =IF($B70="Blank",0,'Corp Capex Annuity calcs'!F$109) -> 14.82687032 | F73: =IF($B70="Blank",0,'Corp Capex Annuity calcs'!G$109) -> 14.70889562 | I73: Corp capex annuity per light | J73: 4.062156251 | K73: 4.029834416
B74: =Inputs!$T$68 -> Lamp Service costs Annualised | E74: =IF($B70="Blank",0,VLOOKUP($B70,Inputs!$C$68:$AK$129,MATCH($B74,Inputs!$C$68:$AK$68,0),FALSE)) -> 26.34737177 | F74: =IF($B70="Blank",0,VLOOKUP($B70,Inputs!$C$68:$AK$129,MATCH($B74,Inputs!$C$68:$AK$68,0),FALSE)) -> 26.34737177 | I74: Lamp Service costs Annualised | J74: 7.218458019 | K74: 7.218458019
B75: =Inputs!$M$68 -> PE Cell Service costs Annualised | E75: =IF($B70="Blank",0,VLOOKUP($B70,Inputs!$C$68:$AK$129,MATCH($B75,Inputs!$C$68:$AK$68,0),FALSE)) -> 0 | F75: =IF($B70="Blank",0,VLOOKUP($B70,Inputs!$C$68:$AK$129,MATCH($B75,Inputs!$C$68:$AK$68,0),FALSE)) -> 0 | I75: PE Cell Service costs Annualised | J75: 0 | K75: 0
B76: Indirect Opex | E76: =IF($B70="Blank",0,IF($B$8="Private Contract Lighting",'Opex Weighting'!D$113,'Opex Weighting'!D$111)) -> 24.08183479 | F76: =IF($B70="Blank",0,IF($B$8="Private Contract Lighting",'Opex Weighting'!E$113,'Opex Weighting'!E$111)) -> 25.13462605 | I76: Indirect Opex | J76: 6.597762955 | K76: 6.886198919
B77: Indirect Capex | E77: ='Capex Weighting'!D$115 -> 0 | F77: ='Capex Weighting'!E$114 -> 0 | I77: Indirect Capex | J77: 0 | K77: 0
B78: Overhead Costs per light | E78: =IF($B70="Blank",0,IF($B$8="Private Contract Lighting",'Building Block'!C$49,'Building Block'!C$48)) -> 27.50826509 | F78: =IF($B70="Blank",0,IF($B$8="Private Contract Lighting",'Building Block'!D$49,'Building Block'!D$48)) -> 27.45044256 | I78: Overhead Costs per light | J78: 7.536510983 | K78: 7.520669195
B79: =Inputs!$AH$68 -> Bracket UNIT price | C79: 0 | E79: =IF($B70="Blank",0,OFFSET('CAPEX Annuity calcs'!$B$9,MATCH($B70,'CAPEX Annuity calcs'!$B$9:$B$500,0)+$C79,E$6)) -> 5.305341301 | F79: =IF($B70="Blank",0,OFFSET('CAPEX Annuity calcs'!$B$9,MATCH($B70,'CAPEX Annuity calcs'!$B$9:$B$500,0)+$C79,F$6)) -> 5.305341301 | I79: Bracket UNIT price | J79: 1.453518165 | K79: 1.453518165
B80: =Inputs!$Y$68 -> CAPEX Installation costs | C80: =C79+1 -> 1 | E80: =IF($B70="Blank",0,OFFSET('CAPEX Annuity calcs'!$B$9,MATCH($B70,'CAPEX Annuity calcs'!$B$9:$B$500,0)+$C80,E$6)) -> 0 | F80: =IF($B70="Blank",0,OFFSET('CAPEX Annuity calcs'!$B$9,MATCH($B70,'CAPEX Annuity calcs'!$B$9:$B$500,0)+$C80,F$6)) -> 0 | I80: CAPEX Installation costs | J80: 0 | K80: 0
B81: =Inputs!$X$68 -> Luminaire UNIT price | C81: =C80+1 -> 2 | E81: =IF($B70="Blank",0,OFFSET('CAPEX Annuity calcs'!$B$9,MATCH($B70,'CAPEX Annuity calcs'!$B$9:$B$500,0)+$C81,E$6)) -> 19.58976361 | F81: =IF($B70="Blank",0,OFFSET('CAPEX Annuity calcs'!$B$9,MATCH($B70,'CAPEX Annuity calcs'!$B$9:$B$500,0)+$C81,F$6)) -> 19.58976361 | I81: Luminaire UNIT price | J81: 5.367058523 | K81: 5.367058523
B82: =Inputs!$Y$68 -> CAPEX Installation costs | C82: 3 | E82: =IF($B70="Blank",0,OFFSET('CAPEX Annuity calcs'!$B$9,MATCH($B70,'CAPEX Annuity calcs'!$B$9:$B$500,0)+$C82,E$6)) -> 17.1652502 | F82: =IF($B70="Blank",0,OFFSET('CAPEX Annuity calcs'!$B$9,MATCH($B70,'CAPEX Annuity calcs'!$B$9:$B$500,0)+$C82,F$6)) -> 17.1652502 | I82: CAPEX Installation costs | J82: 4.702808274 | K82: 4.702808274
E83: =SUM(E71:E82) -> 136.4955468 | F83: =SUM(F71:F82) -> 137.3725408 | J83: =ROUND(E83/J$2*100,3) -> 37.396 | K83: =ROUND(F83/K$2*100,3) -> 37.636
A85: =A70+1 -> 6 | B85: =IFERROR(VLOOKUP($A85,Inputs!$B$68:$AK$129,MATCH($B$7,Inputs!$B$68:$AK$68,0),FALSE),"Blank") -> 1x40W Fluorescent | I85: =IFERROR(VLOOKUP($A85,Inputs!$B$68:$AK$129,MATCH($B$7,Inputs!$B$68:$AK$68,0),FALSE),"Blank") -> 1x40W Fluorescent
B86: =Inputs!$R$68 -> Lamp UNIT price Annualised Cost | C86: =Inputs!$P$68 -> Lamp Maintenance cycle | E86: =IF($B85="Blank",0,VLOOKUP($B85,Inputs!$C$68:$AK$129,MATCH($B86,Inputs!$C$68:$AK$68,0),FALSE)) -> 1.128978316 | F86: =IF($B85="Blank",0,VLOOKUP($B85,Inputs!$C$68:$AK$129,MATCH($B86,Inputs!$C$68:$AK$68,0),FALSE)) -> 1.128978316 | I86: =B86 -> Lamp UNIT price Annualised Cost | J86: =IF(E86="NA","",E86/J$2*100) -> 0.3093091276 | K86: =IF(F86="NA","",F86/K$2*100) -> 0.3093091276
B87: =Inputs!$K$68 -> PE Cell UNIT price Annualised Cost | C87: =Inputs!$I$68 -> PE Cell Maintenance Cycle | E87: =IF($B85="Blank",0,VLOOKUP($B85,Inputs!$C$68:$AK$129,MATCH($B87,Inputs!$C$68:$AK$68,0),FALSE)) -> 0.6107414998 | F87: =IF($B85="Blank",0,VLOOKUP($B85,Inputs!$C$68:$AK$129,MATCH($B87,Inputs!$C$68:$AK$68,0),FALSE)) -> 0.6107414998 | I87: PE Cell UNIT price Annualised Cost | J87: 0.1673264383 | K87: 0.1673264383
B88: Corp capex annuity per light | E88: =IF($B85="Blank",0,'Corp Capex Annuity calcs'!F$109) -> 14.82687032 | F88: =IF($B85="Blank",0,'Corp Capex Annuity calcs'!G$109) -> 14.70889562 | I88: Corp capex annuity per light | J88: 4.062156251 | K88: 4.029834416
B89: =Inputs!$T$68 -> Lamp Service costs Annualised | E89: =IF($B85="Blank",0,VLOOKUP($B85,Inputs!$C$68:$AK$129,MATCH($B89,Inputs!$C$68:$AK$68,0),FALSE)) -> 26.34737177 | F89: =IF($B85="Blank",0,VLOOKUP($B85,Inputs!$C$68:$AK$129,MATCH($B89,Inputs!$C$68:$AK$68,0),FALSE)) -> 26.34737177 | I89: Lamp Service costs Annualised | J89: 7.218458019 | K89: 7.218458019
B90: =Inputs!$M$68 -> PE Cell Service costs Annualised | E90: =IF($B85="Blank",0,VLOOKUP($B85,Inputs!$C$68:$AK$129,MATCH($B90,Inputs!$C$68:$AK$68,0),FALSE)) -> 0 | F90: =IF($B85="Blank",0,VLOOKUP($B85,Inputs!$C$68:$AK$129,MATCH($B90,Inputs!$C$68:$AK$68,0),FALSE)) -> 0 | I90: PE Cell Service costs Annualised | J90: 0 | K90: 0
B91: Indirect Opex | E91: =IF($B85="Blank",0,IF($B$8="Private Contract Lighting",'Opex Weighting'!D$113,'Opex Weighting'!D$111)) -> 24.08183479 | F91: =IF($B85="Blank",0,IF($B$8="Private Contract Lighting",'Opex Weighting'!E$113,'Opex Weighting'!E$111)) -> 25.13462605 | I91: Indirect Opex | J91: 6.597762955 | K91: 6.886198919
B92: Indirect Capex | E92: ='Capex Weighting'!D$115 -> 0 | F92: ='Capex Weighting'!E$114 -> 0 | I92: Indirect Capex | J92: 0 | K92: 0
B93: Overhead Costs per light | E93: =IF($B85="Blank",0,IF($B$8="Private Contract Lighting",'Building Block'!C$49,'Building Block'!C$48)) -> 27.50826509 | F93: =IF($B85="Blank",0,IF($B$8="Private Contract Lighting",'Building Block'!D$49,'Building Block'!D$48)) -> 27.45044256 | I93: Overhead Costs per light | J93: 7.536510983 | K93: 7.520669195
B94: =Inputs!$AH$68 -> Bracket UNIT price | C94: 0 | E94: =IF($B85="Blank",0,OFFSET('CAPEX Annuity calcs'!$B$9,MATCH($B85,'CAPEX Annuity calcs'!$B$9:$B$500,0)+$C94,E$6)) -> 5.305341301 | F94: =IF($B85="Blank",0,OFFSET('CAPEX Annuity calcs'!$B$9,MATCH($B85,'CAPEX Annuity calcs'!$B$9:$B$500,0)+$C94,F$6)) -> 5.305341301 | I94: Bracket UNIT price | J94: 1.453518165 | K94: 1.453518165
B95: =Inputs!$Y$68 -> CAPEX Installation costs | C95: =C94+1 -> 1 | E95: =IF($B85="Blank",0,OFFSET('CAPEX Annuity calcs'!$B$9,MATCH($B85,'CAPEX Annuity calcs'!$B$9:$B$500,0)+$C95,E$6)) -> 0 | F95: =IF($B85="Blank",0,OFFSET('CAPEX Annuity calcs'!$B$9,MATCH($B85,'CAPEX Annuity calcs'!$B$9:$B$500,0)+$C95,F$6)) -> 0 | I95: CAPEX Installation costs | J95: 0 | K95: 0
B96: =Inputs!$X$68 -> Luminaire UNIT price | C96: =C95+1 -> 2 | E96: =IF($B85="Blank",0,OFFSET('CAPEX Annuity calcs'!$B$9,MATCH($B85,'CAPEX Annuity calcs'!$B$9:$B$500,0)+$C96,E$6)) -> 15.3494454 | F96: =IF($B85="Blank",0,OFFSET('CAPEX Annuity calcs'!$B$9,MATCH($B85,'CAPEX Annuity calcs'!$B$9:$B$500,0)+$C96,F$6)) -> 15.3494454 | I96: Luminaire UNIT price | J96: 4.205327507 | K96: 4.205327507
B97: =Inputs!$Y$68 -> CAPEX Installation costs | C97: 3 | E97: =IF($B85="Blank",0,OFFSET('CAPEX Annuity calcs'!$B$9,MATCH($B85,'CAPEX Annuity calcs'!$B$9:$B$500,0)+$C97,E$6)) -> 17.1652502 | F97: =IF($B85="Blank",0,OFFSET('CAPEX Annuity calcs'!$B$9,MATCH($B85,'CAPEX Annuity calcs'!$B$9:$B$500,0)+$C97,F$6)) -> 17.1652502 | I97: CAPEX Installation costs | J97: 4.702808274 | K97: 4.702808274
E98: =SUM(E86:E97) -> 132.3240987 | F98: =SUM(F86:F97) -> 133.2010927 | J98: =ROUND(E98/J$2*100,3) -> 36.253 | K98: =ROUND(F98/K$2*100,3) -> 36.493
A100: =A85+1 -> 7 | B100: =IFERROR(VLOOKUP($A100,Inputs!$B$68:$AK$129,MATCH($B$7,Inputs!$B$68:$AK$68,0),FALSE),"Blank") -> 2x20W Fluorescent | I100: =IFERROR(VLOOKUP($A100,Inputs!$B$68:$AK$129,MATCH($B$7,Inputs!$B$68:$AK$68,0),FALSE),"Blank") -> 2x20W Fluorescent
B101: =Inputs!$R$68 -> Lamp UNIT price Annualised Cost | C101: =Inputs!$P$68 -> Lamp Maintenance cycle | E101: =IF($B100="Blank",0,VLOOKUP($B100,Inputs!$C$68:$AK$129,MATCH($B101,Inputs!$C$68:$AK$68,0),FALSE)) -> 2.120216358 | F101: =IF($B100="Blank",0,VLOOKUP($B100,Inputs!$C$68:$AK$129,MATCH($B101,Inputs!$C$68:$AK$68,0),FALSE)) -> 2.120216358 | I101: =B101 -> Lamp UNIT price Annualised Cost | J101: =IF(E101="NA","",E101/J$2*100) -> 0.5808811938 | K101: =IF(F101="NA","",F101/K$2*100) -> 0.5808811938
B102: =Inputs!$K$68 -> PE Cell UNIT price Annualised Cost | C102: =Inputs!$I$68 -> PE Cell Maintenance Cycle | E102: =IF($B100="Blank",0,VLOOKUP($B100,Inputs!$C$68:$AK$129,MATCH($B102,Inputs!$C$68:$AK$68,0),FALSE)) -> 0.6107414998 | F102: =IF($B100="Blank",0,VLOOKUP($B100,Inputs!$C$68:$AK$129,MATCH($B102,Inputs!$C$68:$AK$68,0),FALSE)) -> 0.6107414998 | I102: PE Cell UNIT price Annualised Cost | J102: 0.1673264383 | K102: 0.1673264383
B103: Corp capex annuity per light | E103: =IF($B100="Blank",0,'Corp Capex Annuity calcs'!F$109) -> 14.82687032 | F103: =IF($B100="Blank",0,'Corp Capex Annuity calcs'!G$109) -> 14.70889562 | I103: Corp capex annuity per light | J103: 4.062156251 | K103: 4.029834416
B104: =Inputs!$T$68 -> Lamp Service costs Annualised | E104: =IF($B100="Blank",0,VLOOKUP($B100,Inputs!$C$68:$AK$129,MATCH($B104,Inputs!$C$68:$AK$68,0),FALSE)) -> 26.34737177 | F104: =IF($B100="Blank",0,VLOOKUP($B100,Inputs!$C$68:$AK$129,MATCH($B104,Inputs!$C$68:$AK$68,0),FALSE)) -> 26.34737177 | I104: Lamp Service costs Annualised | J104: 7.218458019 | K104: 7.218458019
B105: =Inputs!$M$68 -> PE Cell Service costs Annualised | E105: =IF($B100="Blank",0,VLOOKUP($B100,Inputs!$C$68:$AK$129,MATCH($B105,Inputs!$C$68:$AK$68,0),FALSE)) -> 0 | F105: =IF($B100="Blank",0,VLOOKUP($B100,Inputs!$C$68:$AK$129,MATCH($B105,Inputs!$C$68:$AK$68,0),FALSE)) -> 0 | I105: PE Cell Service costs Annualised | J105: 0 | K105: 0
B106: Indirect Opex | E106: =IF($B100="Blank",0,IF($B$8="Private Contract Lighting",'Opex Weighting'!D$113,'Opex Weighting'!D$111)) -> 24.08183479 | F106: =IF($B100="Blank",0,IF($B$8="Private Contract Lighting",'Opex Weighting'!E$113,'Opex Weighting'!E$111)) -> 25.13462605 | I106: Indirect Opex | J106: 6.597762955 | K106: 6.886198919
B107: Indirect Capex | E107: ='Capex Weighting'!D$115 -> 0 | F107: ='Capex Weighting'!E$114 -> 0 | I107: Indirect Capex | J107: 0 | K107: 0
B108: Overhead Costs per light | E108: =IF($B100="Blank",0,IF($B$8="Private Contract Lighting",'Building Block'!C$49,'Building Block'!C$48)) -> 27.50826509 | F108: =IF($B100="Blank",0,IF($B$8="Private Contract Lighting",'Building Block'!D$49,'Building Block'!D$48)) -> 27.45044256 | I108: Overhead Costs per light | J108: 7.536510983 | K108: 7.520669195
B109: =Inputs!$AH$68 -> Bracket UNIT price | C109: 0 | E109: =IF($B100="Blank",0,OFFSET('CAPEX Annuity calcs'!$B$9,MATCH($B100,'CAPEX Annuity calcs'!$B$9:$B$500,0)+$C109,E$6)) -> 5.305341301 | F109: =IF($B100="Blank",0,OFFSET('CAPEX Annuity calcs'!$B$9,MATCH($B100,'CAPEX Annuity calcs'!$B$9:$B$500,0)+$C109,F$6)) -> 5.305341301 | I109: Bracket UNIT price | J109: 1.453518165 | K109: 1.453518165
B110: =Inputs!$Y$68 -> CAPEX Installation costs | C110: =C109+1 -> 1 | E110: =IF($B100="Blank",0,OFFSET('CAPEX Annuity calcs'!$B$9,MATCH($B100,'CAPEX Annuity calcs'!$B$9:$B$500,0)+$C110,E$6)) -> 0 | F110: =IF($B100="Blank",0,OFFSET('CAPEX Annuity calcs'!$B$9,MATCH($B100,'CAPEX Annuity calcs'!$B$9:$B$500,0)+$C110,F$6)) -> 0 | I110: CAPEX Installation costs | J110: 0 | K110: 0
B111: =Inputs!$X$68 -> Luminaire UNIT price | C111: =C110+1 -> 2 | E111: =IF($B100="Blank",0,OFFSET('CAPEX Annuity calcs'!$B$9,MATCH($B100,'CAPEX Annuity calcs'!$B$9:$B$500,0)+$C111,E$6)) -> 19.58976361 | F111: =IF($B100="Blank",0,OFFSET('CAPEX Annuity calcs'!$B$9,MATCH($B100,'CAPEX Annuity calcs'!$B$9:$B$500,0)+$C111,F$6)) -> 19.58976361 | I111: Luminaire UNIT price | J111: 5.367058523 | K111: 5.367058523
B112: =Inputs!$Y$68 -> CAPEX Installation costs | C112: 3 | E112: =IF($B100="Blank",0,OFFSET('CAPEX Annuity calcs'!$B$9,MATCH($B100,'CAPEX Annuity calcs'!$B$9:$B$500,0)+$C112,E$6)) -> 17.1652502 | F112: =IF($B100="Blank",0,OFFSET('CAPEX Annuity calcs'!$B$9,MATCH($B100,'CAPEX Annuity calcs'!$B$9:$B$500,0)+$C112,F$6)) -> 17.1652502 | I112: CAPEX Installation costs | J112: 4.702808274 | K112: 4.702808274
E113: =SUM(E101:E112) -> 137.5556549 | F113: =SUM(F101:F112) -> 138.432649 | J113: =ROUND(E113/J$2*100,3) -> 37.686 | K113: =ROUND(F113/K$2*100,3) -> 37.927
A115: =A100+1 -> 8 | B115: =IFERROR(VLOOKUP($A115,Inputs!$B$68:$AK$129,MATCH($B$7,Inputs!$B$68:$AK$68,0),FALSE),"Blank") -> 2x24W Fluorescent | I115: =IFERROR(VLOOKUP($A115,Inputs!$B$68:$AK$129,MATCH($B$7,Inputs!$B$68:$AK$68,0),FALSE),"Blank") -> 2x24W Fluorescent
B116: =Inputs!$R$68 -> Lamp UNIT price Annualised Cost | C116: =Inputs!$P$68 -> Lamp Maintenance cycle | E116: =IF($B115="Blank",0,VLOOKUP($B115,Inputs!$C$68:$AK$129,MATCH($B116,Inputs!$C$68:$AK$68,0),FALSE)) -> 1.437004628 | F116: =IF($B115="Blank",0,VLOOKUP($B115,Inputs!$C$68:$AK$129,MATCH($B116,Inputs!$C$68:$AK$68,0),FALSE)) -> 1.437004628 | I116: =B116 -> Lamp UNIT price Annualised Cost | J116: =IF(E116="NA","",E116/J$2*100) -> 0.3936998982 | K116: =IF(F116="NA","",F116/K$2*100) -> 0.3936998982
B117: =Inputs!$K$68 -> PE Cell UNIT price Annualised Cost | C117: =Inputs!$I$68 -> PE Cell Maintenance Cycle | E117: =IF($B115="Blank",0,VLOOKUP($B115,Inputs!$C$68:$AK$129,MATCH($B117,Inputs!$C$68:$AK$68,0),FALSE)) -> 0.6107414998 | F117: =IF($B115="Blank",0,VLOOKUP($B115,Inputs!$C$68:$AK$129,MATCH($B117,Inputs!$C$68:$AK$68,0),FALSE)) -> 0.6107414998 | I117: PE Cell UNIT price Annualised Cost | J117: 0.1673264383 | K117: 0.1673264383
B118: Corp capex annuity per light | E118: =IF($B115="Blank",0,'Corp Capex Annuity calcs'!F$109) -> 14.82687032 | F118: =IF($B115="Blank",0,'Corp Capex Annuity calcs'!G$109) -> 14.70889562 | I118: Corp capex annuity per light | J118: 4.062156251 | K118: 4.029834416
B119: =Inputs!$T$68 -> Lamp Service costs Annualised | E119: =IF($B115="Blank",0,VLOOKUP($B115,Inputs!$C$68:$AK$129,MATCH($B119,Inputs!$C$68:$AK$68,0),FALSE)) -> 26.34737177 | F119: =IF($B115="Blank",0,VLOOKUP($B115,Inputs!$C$68:$AK$129,MATCH($B119,Inputs!$C$68:$AK$68,0),FALSE)) -> 26.34737177 | I119: Lamp Service costs Annualised | J119: 7.218458019 | K119: 7.218458019
B120: =Inputs!$M$68 -> PE Cell Service costs Annualised | E120: =IF($B115="Blank",0,VLOOKUP($B115,Inputs!$C$68:$AK$129,MATCH($B120,Inputs!$C$68:$AK$68,0),FALSE)) -> 0 | F120: =IF($B115="Blank",0,VLOOKUP($B115,Inputs!$C$68:$AK$129,MATCH($B120,Inputs!$C$68:$AK$68,0),FALSE)) -> 0 | I120: PE Cell Service costs Annualised | J120: 0 | K120: 0
B121: Indirect Opex | E121: =IF($B115="Blank",0,IF($B$8="Private Contract Lighting",'Opex Weighting'!D$113,'Opex Weighting'!D$111)) -> 24.08183479 | F121: =IF($B115="Blank",0,IF($B$8="Private Contract Lighting",'Opex Weighting'!E$113,'Opex Weighting'!E$111)) -> 25.13462605 | I121: Indirect Opex | J121: 6.597762955 | K121: 6.886198919
B122: Indirect Capex | E122: ='Capex Weighting'!D$115 -> 0 | F122: ='Capex Weighting'!E$114 -> 0 | I122: Indirect Capex | J122: 0 | K122: 0
B123: Overhead Costs per light | E123: =IF($B115="Blank",0,IF($B$8="Private Contract Lighting",'Building Block'!C$49,'Building Block'!C$48)) -> 27.50826509 | F123: =IF($B115="Blank",0,IF($B$8="Private Contract Lighting",'Building Block'!D$49,'Building Block'!D$48)) -> 27.45044256 | I123: Overhead Costs per light | J123: 7.536510983 | K123: 7.520669195
B124: =Inputs!$AH$68 -> Bracket UNIT price | C124: 0 | E124: =IF($B115="Blank",0,OFFSET('CAPEX Annuity calcs'!$B$9,MATCH($B115,'CAPEX Annuity calcs'!$B$9:$B$500,0)+$C124,E$6)) -> 5.305341301 | F124: =IF($B115="Blank",0,OFFSET('CAPEX Annuity calcs'!$B$9,MATCH($B115,'CAPEX Annuity calcs'!$B$9:$B$500,0)+$C124,F$6)) -> 5.305341301 | I124: Bracket UNIT price | J124: 1.453518165 | K124: 1.453518165
B125: =Inputs!$Y$68 -> CAPEX Installation costs | C125: =C124+1 -> 1 | E125: =IF($B115="Blank",0,OFFSET('CAPEX Annuity calcs'!$B$9,MATCH($B115,'CAPEX Annuity calcs'!$B$9:$B$500,0)+$C125,E$6)) -> 0 | F125: =IF($B115="Blank",0,OFFSET('CAPEX Annuity calcs'!$B$9,MATCH($B115,'CAPEX Annuity calcs'!$B$9:$B$500,0)+$C125,F$6)) -> 0 | I125: CAPEX Installation costs | J125: 0 | K125: 0
B126: =Inputs!$X$68 -> Luminaire UNIT price | C126: =C125+1 -> 2 | E126: =IF($B115="Blank",0,OFFSET('CAPEX Annuity calcs'!$B$9,MATCH($B115,'CAPEX Annuity calcs'!$B$9:$B$500,0)+$C126,E$6)) -> 19.97960515 | F126: =IF($B115="Blank",0,OFFSET('CAPEX Annuity calcs'!$B$9,MATCH($B115,'CAPEX Annuity calcs'!$B$9:$B$500,0)+$C126,F$6)) -> 19.97960515 | I126: Luminaire UNIT price | J126: 5.473864425 | K126: 5.473864425
B127: =Inputs!$Y$68 -> CAPEX Installation costs | C127: 3 | E127: =IF($B115="Blank",0,OFFSET('CAPEX Annuity calcs'!$B$9,MATCH($B115,'CAPEX Annuity calcs'!$B$9:$B$500,0)+$C127,E$6)) -> 17.1652502 | F127: =IF($B115="Blank",0,OFFSET('CAPEX Annuity calcs'!$B$9,MATCH($B115,'CAPEX Annuity calcs'!$B$9:$B$500,0)+$C127,F$6)) -> 17.1652502 | I127: CAPEX Installation costs | J127: 4.702808274 | K127: 4.702808274
E128: =SUM(E116:E127) -> 137.2622847 | F128: =SUM(F116:F127) -> 138.1392788 | J128: =ROUND(E128/J$2*100,3) -> 37.606 | K128: =ROUND(F128/K$2*100,3) -> 37.846
A130: =A115+1 -> 9 | B130: =IFERROR(VLOOKUP($A130,Inputs!$B$68:$AK$129,MATCH($B$7,Inputs!$B$68:$AK$68,0),FALSE),"Blank") -> T5 Fluorescent 2 x 24W | I130: =IFERROR(VLOOKUP($A130,Inputs!$B$68:$AK$129,MATCH($B$7,Inputs!$B$68:$AK$68,0),FALSE),"Blank") -> T5 Fluorescent 2 x 24W
B131: =Inputs!$R$68 -> Lamp UNIT price Annualised Cost | C131: =Inputs!$P$68 -> Lamp Maintenance cycle | E131: =IF($B130="Blank",0,VLOOKUP($B130,Inputs!$C$68:$AK$129,MATCH($B131,Inputs!$C$68:$AK$68,0),FALSE)) -> 2.120216358 | F131: =IF($B130="Blank",0,VLOOKUP($B130,Inputs!$C$68:$AK$129,MATCH($B131,Inputs!$C$68:$AK$68,0),FALSE)) -> 2.120216358 | I131: =B131 -> Lamp UNIT price Annualised Cost | J131: =IF(E131="NA","",E131/J$2*100) -> 0.5808811938 | K131: =IF(F131="NA","",F131/K$2*100) -> 0.5808811938
B132: =Inputs!$K$68 -> PE Cell UNIT price Annualised Cost | C132: =Inputs!$I$68 -> PE Cell Maintenance Cycle | E132: =IF($B130="Blank",0,VLOOKUP($B130,Inputs!$C$68:$AK$129,MATCH($B132,Inputs!$C$68:$AK$68,0),FALSE)) -> 0.6107414998 | F132: =IF($B130="Blank",0,VLOOKUP($B130,Inputs!$C$68:$AK$129,MATCH($B132,Inputs!$C$68:$AK$68,0),FALSE)) -> 0.6107414998 | I132: PE Cell UNIT price Annualised Cost | J132: 0.1673264383 | K132: 0.1673264383
B133: Corp capex annuity per light | E133: =IF($B130="Blank",0,'Corp Capex Annuity calcs'!F$109) -> 14.82687032 | F133: =IF($B130="Blank",0,'Corp Capex Annuity calcs'!G$109) -> 14.70889562 | I133: Corp capex annuity per light | J133: 4.062156251 | K133: 4.029834416
B134: =Inputs!$T$68 -> Lamp Service costs Annualised | E134: =IF($B130="Blank",0,VLOOKUP($B130,Inputs!$C$68:$AK$129,MATCH($B134,Inputs!$C$68:$AK$68,0),FALSE)) -> 26.34737177 | F134: =IF($B130="Blank",0,VLOOKUP($B130,Inputs!$C$68:$AK$129,MATCH($B134,Inputs!$C$68:$AK$68,0),FALSE)) -> 26.34737177 | I134: Lamp Service costs Annualised | J134: 7.218458019 | K134: 7.218458019
B135: =Inputs!$M$68 -> PE Cell Service costs Annualised | E135: =IF($B130="Blank",0,VLOOKUP($B130,Inputs!$C$68:$AK$129,MATCH($B135,Inputs!$C$68:$AK$68,0),FALSE)) -> 0 | F135: =IF($B130="Blank",0,VLOOKUP($B130,Inputs!$C$68:$AK$129,MATCH($B135,Inputs!$C$68:$AK$68,0),FALSE)) -> 0 | I135: PE Cell Service costs Annualised | J135: 0 | K135: 0
B136: Indirect Opex | E136: =IF($B130="Blank",0,IF($B$8="Private Contract Lighting",'Opex Weighting'!D$113,'Opex Weighting'!D$111)) -> 24.08183479 | F136: =IF($B130="Blank",0,IF($B$8="Private Contract Lighting",'Opex Weighting'!E$113,'Opex Weighting'!E$111)) -> 25.13462605 | I136: Indirect Opex | J136: 6.597762955 | K136: 6.886198919
B137: Indirect Capex | E137: ='Capex Weighting'!D$115 -> 0 | F137: ='Capex Weighting'!E$114 -> 0 | I137: Indirect Capex | J137: 0 | K137: 0
B138: Overhead Costs per light | E138: =IF($B130="Blank",0,IF($B$8="Private Contract Lighting",'Building Block'!C$49,'Building Block'!C$48)) -> 27.50826509 | F138: =IF($B130="Blank",0,IF($B$8="Private Contract Lighting",'Building Block'!D$49,'Building Block'!D$48)) -> 27.45044256 | I138: Overhead Costs per light | J138: 7.536510983 | K138: 7.520669195
B139: =Inputs!$AH$68 -> Bracket UNIT price | C139: 0 | E139: =IF($B130="Blank",0,OFFSET('CAPEX Annuity calcs'!$B$9,MATCH($B130,'CAPEX Annuity calcs'!$B$9:$B$500,0)+$C139,E$6)) -> 5.305341301 | F139: =IF($B130="Blank",0,OFFSET('CAPEX Annuity calcs'!$B$9,MATCH($B130,'CAPEX Annuity calcs'!$B$9:$B$500,0)+$C139,F$6)) -> 5.305341301 | I139: Bracket UNIT price | J139: 1.453518165 | K139: 1.453518165
B140: =Inputs!$Y$68 -> CAPEX Installation costs | C140: =C139+1 -> 1 | E140: =IF($B130="Blank",0,OFFSET('CAPEX Annuity calcs'!$B$9,MATCH($B130,'CAPEX Annuity calcs'!$B$9:$B$500,0)+$C140,E$6)) -> 0 | F140: =IF($B130="Blank",0,OFFSET('CAPEX Annuity calcs'!$B$9,MATCH($B130,'CAPEX Annuity calcs'!$B$9:$B$500,0)+$C140,F$6)) -> 0 | I140: CAPEX Installation costs | J140: 0 | K140: 0
B141: =Inputs!$X$68 -> Luminaire UNIT price | C141: =C140+1 -> 2 | E141: =IF($B130="Blank",0,OFFSET('CAPEX Annuity calcs'!$B$9,MATCH($B130,'CAPEX Annuity calcs'!$B$9:$B$500,0)+$C141,E$6)) -> 19.58976361 | F141: =IF($B130="Blank",0,OFFSET('CAPEX Annuity calcs'!$B$9,MATCH($B130,'CAPEX Annuity calcs'!$B$9:$B$500,0)+$C141,F$6)) -> 19.58976361 | I141: Luminaire UNIT price | J141: 5.367058523 | K141: 5.367058523
B142: =Inputs!$Y$68 -> CAPEX Installation costs | C142: 3 | E142: =IF($B130="Blank",0,OFFSET('CAPEX Annuity calcs'!$B$9,MATCH($B130,'CAPEX Annuity calcs'!$B$9:$B$500,0)+$C142,E$6)) -> 17.1652502 | F142: =IF($B130="Blank",0,OFFSET('CAPEX Annuity calcs'!$B$9,MATCH($B130,'CAPEX Annuity calcs'!$B$9:$B$500,0)+$C142,F$6)) -> 17.1652502 | I142: CAPEX Installation costs | J142: 4.702808274 | K142: 4.702808274
E143: =SUM(E131:E142) -> 137.5556549 | F143: =SUM(F131:F142) -> 138.432649 | J143: =ROUND(E143/J$2*100,3) -> 37.686 | K143: =ROUND(F143/K$2*100,3) -> 37.927
A145: =A130+1 -> 10 | B145: =IFERROR(VLOOKUP($A145,Inputs!$B$68:$AK$129,MATCH($B$7,Inputs!$B$68:$AK$68,0),FALSE),"Blank") -> 20 Fluorescent 1X20FL | I145: =IFERROR(VLOOKUP($A145,Inputs!$B$68:$AK$129,MATCH($B$7,Inputs!$B$68:$AK$68,0),FALSE),"Blank") -> 20 Fluorescent 1X20FL
B146: =Inputs!$R$68 -> Lamp UNIT price Annualised Cost | C146: =Inputs!$P$68 -> Lamp Maintenance cycle | E146: =IF($B145="Blank",0,VLOOKUP($B145,Inputs!$C$68:$AK$129,MATCH($B146,Inputs!$C$68:$AK$68,0),FALSE)) -> 1.060108179 | F146: =IF($B145="Blank",0,VLOOKUP($B145,Inputs!$C$68:$AK$129,MATCH($B146,Inputs!$C$68:$AK$68,0),FALSE)) -> 1.060108179 | I146: =B146 -> Lamp UNIT price Annualised Cost | J146: =IF(E146="NA","",E146/J$2*100) -> 0.2904405969 | K146: =IF(F146="NA","",F146/K$2*100) -> 0.2904405969
B147: =Inputs!$K$68 -> PE Cell UNIT price Annualised Cost | C147: =Inputs!$I$68 -> PE Cell Maintenance Cycle | E147: =IF($B145="Blank",0,VLOOKUP($B145,Inputs!$C$68:$AK$129,MATCH($B147,Inputs!$C$68:$AK$68,0),FALSE)) -> 0.6107414998 | F147: =IF($B145="Blank",0,VLOOKUP($B145,Inputs!$C$68:$AK$129,MATCH($B147,Inputs!$C$68:$AK$68,0),FALSE)) -> 0.6107414998 | I147: PE Cell UNIT price Annualised Cost | J147: 0.1673264383 | K147: 0.1673264383
B148: Corp capex annuity per light | E148: =IF($B145="Blank",0,'Corp Capex Annuity calcs'!F$109) -> 14.82687032 | F148: =IF($B145="Blank",0,'Corp Capex Annuity calcs'!G$109) -> 14.70889562 | I148: Corp capex annuity per light | J148: 4.062156251 | K148: 4.029834416
B149: =Inputs!$T$68 -> Lamp Service costs Annualised | E149: =IF($B145="Blank",0,VLOOKUP($B145,Inputs!$C$68:$AK$129,MATCH($B149,Inputs!$C$68:$AK$68,0),FALSE)) -> 26.34737177 | F149: =IF($B145="Blank",0,VLOOKUP($B145,Inputs!$C$68:$AK$129,MATCH($B149,Inputs!$C$68:$AK$68,0),FALSE)) -> 26.34737177 | I149: Lamp Service costs Annualised | J149: 7.218458019 | K149: 7.218458019
B150: =Inputs!$M$68 -> PE Cell Service costs Annualised | E150: =IF($B145="Blank",0,VLOOKUP($B145,Inputs!$C$68:$AK$129,MATCH($B150,Inputs!$C$68:$AK$68,0),FALSE)) -> 0 | F150: =IF($B145="Blank",0,VLOOKUP($B145,Inputs!$C$68:$AK$129,MATCH($B150,Inputs!$C$68:$AK$68,0),FALSE)) -> 0 | I150: PE Cell Service costs Annualised | J150: 0 | K150: 0
B151: Indirect Opex | E151: =IF($B145="Blank",0,IF($B$8="Private Contract Lighting",'Opex Weighting'!D$113,'Opex Weighting'!D$111)) -> 24.08183479 | F151: =IF($B145="Blank",0,IF($B$8="Private Contract Lighting",'Opex Weighting'!E$113,'Opex Weighting'!E$111)) -> 25.13462605 | I151: Indirect Opex | J151: 6.597762955 | K151: 6.886198919
B152: Indirect Capex | E152: ='Capex Weighting'!D$115 -> 0 | F152: ='Capex Weighting'!E$114 -> 0 | I152: Indirect Capex | J152: 0 | K152: 0
B153: Overhead Costs per light | E153: =IF($B145="Blank",0,IF($B$8="Private Contract Lighting",'Building Block'!C$49,'Building Block'!C$48)) -> 27.50826509 | F153: =IF($B145="Blank",0,IF($B$8="Private Contract Lighting",'Building Block'!D$49,'Building Block'!D$48)) -> 27.45044256 | I153: Overhead Costs per light | J153: 7.536510983 | K153: 7.520669195
B154: =Inputs!$AH$68 -> Bracket UNIT price | C154: 0 | E154: =IF($B145="Blank",0,OFFSET('CAPEX Annuity calcs'!$B$9,MATCH($B145,'CAPEX Annuity calcs'!$B$9:$B$500,0)+$C154,E$6)) -> 5.305341301 | F154: =IF($B145="Blank",0,OFFSET('CAPEX Annuity calcs'!$B$9,MATCH($B145,'CAPEX Annuity calcs'!$B$9:$B$500,0)+$C154,F$6)) -> 5.305341301 | I154: Bracket UNIT price | J154: 1.453518165 | K154: 1.453518165
B155: =Inputs!$Y$68 -> CAPEX Installation costs | C155: =C154+1 -> 1 | E155: =IF($B145="Blank",0,OFFSET('CAPEX Annuity calcs'!$B$9,MATCH($B145,'CAPEX Annuity calcs'!$B$9:$B$500,0)+$C155,E$6)) -> 0 | F155: =IF($B145="Blank",0,OFFSET('CAPEX Annuity calcs'!$B$9,MATCH($B145,'CAPEX Annuity calcs'!$B$9:$B$500,0)+$C155,F$6)) -> 0 | I155: CAPEX Installation costs | J155: 0 | K155: 0
B156: =Inputs!$X$68 -> Luminaire UNIT price | C156: =C155+1 -> 2 | E156: =IF($B145="Blank",0,OFFSET('CAPEX Annuity calcs'!$B$9,MATCH($B145,'CAPEX Annuity calcs'!$B$9:$B$500,0)+$C156,E$6)) -> 19.58976361 | F156: =IF($B145="Blank",0,OFFSET('CAPEX Annuity calcs'!$B$9,MATCH($B145,'CAPEX Annuity calcs'!$B$9:$B$500,0)+$C156,F$6)) -> 19.58976361 | I156: Luminaire UNIT price | J156: 5.367058523 | K156: 5.367058523
B157: =Inputs!$Y$68 -> CAPEX Installation costs | C157: 3 | E157: =IF($B145="Blank",0,OFFSET('CAPEX Annuity calcs'!$B$9,MATCH($B145,'CAPEX Annuity calcs'!$B$9:$B$500,0)+$C157,E$6)) -> 17.1652502 | F157: =IF($B145="Blank",0,OFFSET('CAPEX Annuity calcs'!$B$9,MATCH($B145,'CAPEX Annuity calcs'!$B$9:$B$500,0)+$C157,F$6)) -> 17.1652502 | I157: CAPEX Installation costs | J157: 4.702808274 | K157: 4.702808274
E158: =SUM(E146:E157) -> 136.4955468 | F158: =SUM(F146:F157) -> 137.3725408 | J158: =ROUND(E158/J$2*100,3) -> 37.396 | K158: =ROUND(F158/K$2*100,3) -> 37.636
A160: =A145+1 -> 11 | B160: =IFERROR(VLOOKUP($A160,Inputs!$B$68:$AK$129,MATCH($B$7,Inputs!$B$68:$AK$68,0),FALSE),"Blank") -> 2x40W Fluorescent | I160: =IFERROR(VLOOKUP($A160,Inputs!$B$68:$AK$129,MATCH($B$7,Inputs!$B$68:$AK$68,0),FALSE),"Blank") -> 2x40W Fluorescent
B161: =Inputs!$R$68 -> Lamp UNIT price Annualised Cost | C161: =Inputs!$P$68 -> Lamp Maintenance cycle | E161: =IF($B160="Blank",0,VLOOKUP($B160,Inputs!$C$68:$AK$129,MATCH($B161,Inputs!$C$68:$AK$68,0),FALSE)) -> 2.257956631 | F161: =IF($B160="Blank",0,VLOOKUP($B160,Inputs!$C$68:$AK$129,MATCH($B161,Inputs!$C$68:$AK$68,0),FALSE)) -> 2.257956631 | I161: =B161 -> Lamp UNIT price Annualised Cost | J161: =IF(E161="NA","",E161/J$2*100) -> 0.6186182552 | K161: =IF(F161="NA","",F161/K$2*100) -> 0.6186182552
B162: =Inputs!$K$68 -> PE Cell UNIT price Annualised Cost | C162: =Inputs!$I$68 -> PE Cell Maintenance Cycle | E162: =IF($B160="Blank",0,VLOOKUP($B160,Inputs!$C$68:$AK$129,MATCH($B162,Inputs!$C$68:$AK$68,0),FALSE)) -> 0.6107414998 | F162: =IF($B160="Blank",0,VLOOKUP($B160,Inputs!$C$68:$AK$129,MATCH($B162,Inputs!$C$68:$AK$68,0),FALSE)) -> 0.6107414998 | I162: PE Cell UNIT price Annualised Cost | J162: 0.1673264383 | K162: 0.1673264383
B163: Corp capex annuity per light | E163: =IF($B160="Blank",0,'Corp Capex Annuity calcs'!F$109) -> 14.82687032 | F163: =IF($B160="Blank",0,'Corp Capex Annuity calcs'!G$109) -> 14.70889562 | I163: Corp capex annuity per light | J163: 4.062156251 | K163: 4.029834416
B164: =Inputs!$T$68 -> Lamp Service costs Annualised | E164: =IF($B160="Blank",0,VLOOKUP($B160,Inputs!$C$68:$AK$129,MATCH($B164,Inputs!$C$68:$AK$68,0),FALSE)) -> 26.34737177 | F164: =IF($B160="Blank",0,VLOOKUP($B160,Inputs!$C$68:$AK$129,MATCH($B164,Inputs!$C$68:$AK$68,0),FALSE)) -> 26.34737177 | I164: Lamp Service costs Annualised | J164: 7.218458019 | K164: 7.218458019
B165: =Inputs!$M$68 -> PE Cell Service costs Annualised | E165: =IF($B160="Blank",0,VLOOKUP($B160,Inputs!$C$68:$AK$129,MATCH($B165,Inputs!$C$68:$AK$68,0),FALSE)) -> 0 | F165: =IF($B160="Blank",0,VLOOKUP($B160,Inputs!$C$68:$AK$129,MATCH($B165,Inputs!$C$68:$AK$68,0),FALSE)) -> 0 | I165: PE Cell Service costs Annualised | J165: 0 | K165: 0
B166: Indirect Opex | E166: =IF($B160="Blank",0,IF($B$8="Private Contract Lighting",'Opex Weighting'!D$113,'Opex Weighting'!D$111)) -> 24.08183479 | F166: =IF($B160="Blank",0,IF($B$8="Private Contract Lighting",'Opex Weighting'!E$113,'Opex Weighting'!E$111)) -> 25.13462605 | I166: Indirect Opex | J166: 6.597762955 | K166: 6.886198919
B167: Indirect Capex | E167: ='Capex Weighting'!D$115 -> 0 | F167: ='Capex Weighting'!E$114 -> 0 | I167: Indirect Capex | J167: 0 | K167: 0
B168: Overhead Costs per light | E168: =IF($B160="Blank",0,IF($B$8="Private Contract Lighting",'Building Block'!C$49,'Building Block'!C$48)) -> 27.50826509 | F168: =IF($B160="Blank",0,IF($B$8="Private Contract Lighting",'Building Block'!D$49,'Building Block'!D$48)) -> 27.45044256 | I168: Overhead Costs per light | J168: 7.536510983 | K168: 7.520669195
B169: =Inputs!$AH$68 -> Bracket UNIT price | C169: 0 | E169: =IF($B160="Blank",0,OFFSET('CAPEX Annuity calcs'!$B$9,MATCH($B160,'CAPEX Annuity calcs'!$B$9:$B$500,0)+$C169,E$6)) -> 5.305341301 | F169: =IF($B160="Blank",0,OFFSET('CAPEX Annuity calcs'!$B$9,MATCH($B160,'CAPEX Annuity calcs'!$B$9:$B$500,0)+$C169,F$6)) -> 5.305341301 | I169: Bracket UNIT price | J169: 1.453518165 | K169: 1.453518165
B170: =Inputs!$Y$68 -> CAPEX Installation costs | C170: =C169+1 -> 1 | E170: =IF($B160="Blank",0,OFFSET('CAPEX Annuity calcs'!$B$9,MATCH($B160,'CAPEX Annuity calcs'!$B$9:$B$500,0)+$C170,E$6)) -> 0 | F170: =IF($B160="Blank",0,OFFSET('CAPEX Annuity calcs'!$B$9,MATCH($B160,'CAPEX Annuity calcs'!$B$9:$B$500,0)+$C170,F$6)) -> 0 | I170: CAPEX Installation costs | J170: 0 | K170: 0
B171: =Inputs!$X$68 -> Luminaire UNIT price | C171: =C170+1 -> 2 | E171: =IF($B160="Blank",0,OFFSET('CAPEX Annuity calcs'!$B$9,MATCH($B160,'CAPEX Annuity calcs'!$B$9:$B$500,0)+$C171,E$6)) -> 15.3494454 | F171: =IF($B160="Blank",0,OFFSET('CAPEX Annuity calcs'!$B$9,MATCH($B160,'CAPEX Annuity calcs'!$B$9:$B$500,0)+$C171,F$6)) -> 15.3494454 | I171: Luminaire UNIT price | J171: 4.205327507 | K171: 4.205327507
B172: =Inputs!$Y$68 -> CAPEX Installation costs | C172: 3 | E172: =IF($B160="Blank",0,OFFSET('CAPEX Annuity calcs'!$B$9,MATCH($B160,'CAPEX Annuity calcs'!$B$9:$B$500,0)+$C172,E$6)) -> 17.1652502 | F172: =IF($B160="Blank",0,OFFSET('CAPEX Annuity calcs'!$B$9,MATCH($B160,'CAPEX Annuity calcs'!$B$9:$B$500,0)+$C172,F$6)) -> 17.1652502 | I172: CAPEX Installation costs | J172: 4.702808274 | K172: 4.702808274
E173: =SUM(E161:E172) -> 133.453077 | F173: =SUM(F161:F172) -> 134.330071 | J173: =ROUND(E173/J$2*100,3) -> 36.562 | K173: =ROUND(F173/K$2*100,3) -> 36.803
A175: =A160+1 -> 12 | B175: =IFERROR(VLOOKUP($A175,Inputs!$B$68:$AK$129,MATCH($B$7,Inputs!$B$68:$AK$68,0),FALSE),"Blank") -> 3x40W Fluorescent | I175: =IFERROR(VLOOKUP($A175,Inputs!$B$68:$AK$129,MATCH($B$7,Inputs!$B$68:$AK$68,0),FALSE),"Blank") -> 3x40W Fluorescent
B176: =Inputs!$R$68 -> Lamp UNIT price Annualised Cost | C176: =Inputs!$P$68 -> Lamp Maintenance cycle | E176: =IF($B175="Blank",0,VLOOKUP($B175,Inputs!$C$68:$AK$129,MATCH($B176,Inputs!$C$68:$AK$68,0),FALSE)) -> 3.386934947 | F176: =IF($B175="Blank",0,VLOOKUP($B175,Inputs!$C$68:$AK$129,MATCH($B176,Inputs!$C$68:$AK$68,0),FALSE)) -> 3.386934947 | I176: =B176 -> Lamp UNIT price Annualised Cost | J176: =IF(E176="NA","",E176/J$2*100) -> 0.9279273827 | K176: =IF(F176="NA","",F176/K$2*100) -> 0.9279273827
B177: =Inputs!$K$68 -> PE Cell UNIT price Annualised Cost | C177: =Inputs!$I$68 -> PE Cell Maintenance Cycle | E177: =IF($B175="Blank",0,VLOOKUP($B175,Inputs!$C$68:$AK$129,MATCH($B177,Inputs!$C$68:$AK$68,0),FALSE)) -> 1.778810497 | F177: =IF($B175="Blank",0,VLOOKUP($B175,Inputs!$C$68:$AK$129,MATCH($B177,Inputs!$C$68:$AK$68,0),FALSE)) -> 1.778810497 | I177: PE Cell UNIT price Annualised Cost | J177: 0.4873453417 | K177: 0.4873453417
B178: Corp capex annuity per light | E178: =IF($B175="Blank",0,'Corp Capex Annuity calcs'!F$109) -> 14.82687032 | F178: =IF($B175="Blank",0,'Corp Capex Annuity calcs'!G$109) -> 14.70889562 | I178: Corp capex annuity per light | J178: 4.062156251 | K178: 4.029834416
B179: =Inputs!$T$68 -> Lamp Service costs Annualised | E179: =IF($B175="Blank",0,VLOOKUP($B175,Inputs!$C$68:$AK$129,MATCH($B179,Inputs!$C$68:$AK$68,0),FALSE)) -> 38.13435387 | F179: =IF($B175="Blank",0,VLOOKUP($B175,Inputs!$C$68:$AK$129,MATCH($B179,Inputs!$C$68:$AK$68,0),FALSE)) -> 38.13435387 | I179: Lamp Service costs Annualised | J179: 10.44776818 | K179: 10.44776818
B180: =Inputs!$M$68 -> PE Cell Service costs Annualised | E180: =IF($B175="Blank",0,VLOOKUP($B175,Inputs!$C$68:$AK$129,MATCH($B180,Inputs!$C$68:$AK$68,0),FALSE)) -> 0 | F180: =IF($B175="Blank",0,VLOOKUP($B175,Inputs!$C$68:$AK$129,MATCH($B180,Inputs!$C$68:$AK$68,0),FALSE)) -> 0 | I180: PE Cell Service costs Annualised | J180: 0 | K180: 0
B181: Indirect Opex | E181: =IF($B175="Blank",0,IF($B$8="Private Contract Lighting",'Opex Weighting'!D$113,'Opex Weighting'!D$111)) -> 24.08183479 | F181: =IF($B175="Blank",0,IF($B$8="Private Contract Lighting",'Opex Weighting'!E$113,'Opex Weighting'!E$111)) -> 25.13462605 | I181: Indirect Opex | J181: 6.597762955 | K181: 6.886198919
B182: Indirect Capex | E182: ='Capex Weighting'!D$115 -> 0 | F182: ='Capex Weighting'!E$114 -> 0 | I182: Indirect Capex | J182: 0 | K182: 0
B183: Overhead Costs per light | E183: =IF($B175="Blank",0,IF($B$8="Private Contract Lighting",'Building Block'!C$49,'Building Block'!C$48)) -> 27.50826509 | F183: =IF($B175="Blank",0,IF($B$8="Private Contract Lighting",'Building Block'!D$49,'Building Block'!D$48)) -> 27.45044256 | I183: Overhead Costs per light | J183: 7.536510983 | K183: 7.520669195
B184: =Inputs!$AH$68 -> Bracket UNIT price | C184: 0 | E184: =IF($B175="Blank",0,OFFSET('CAPEX Annuity calcs'!$B$9,MATCH($B175,'CAPEX Annuity calcs'!$B$9:$B$500,0)+$C184,E$6)) -> 4.846461255 | F184: =IF($B175="Blank",0,OFFSET('CAPEX Annuity calcs'!$B$9,MATCH($B175,'CAPEX Annuity calcs'!$B$9:$B$500,0)+$C184,F$6)) -> 4.846461255 | I184: Bracket UNIT price | J184: 1.327797604 | K184: 1.327797604
B185: =Inputs!$Y$68 -> CAPEX Installation costs | C185: =C184+1 -> 1 | E185: =IF($B175="Blank",0,OFFSET('CAPEX Annuity calcs'!$B$9,MATCH($B175,'CAPEX Annuity calcs'!$B$9:$B$500,0)+$C185,E$6)) -> 11.49507629 | F185: =IF($B175="Blank",0,OFFSET('CAPEX Annuity calcs'!$B$9,MATCH($B175,'CAPEX Annuity calcs'!$B$9:$B$500,0)+$C185,F$6)) -> 11.49507629 | I185: CAPEX Installation costs | J185: 3.149335971 | K185: 3.149335971
B186: =Inputs!$X$68 -> Luminaire UNIT price | C186: =C185+1 -> 2 | E186: =IF($B175="Blank",0,OFFSET('CAPEX Annuity calcs'!$B$9,MATCH($B175,'CAPEX Annuity calcs'!$B$9:$B$500,0)+$C186,E$6)) -> 13.89365053 | F186: =IF($B175="Blank",0,OFFSET('CAPEX Annuity calcs'!$B$9,MATCH($B175,'CAPEX Annuity calcs'!$B$9:$B$500,0)+$C186,F$6)) -> 13.89365053 | I186: Luminaire UNIT price | J186: 3.806479596 | K186: 3.806479596
B187: =Inputs!$Y$68 -> CAPEX Installation costs | C187: 3 | E187: =IF($B175="Blank",0,OFFSET('CAPEX Annuity calcs'!$B$9,MATCH($B175,'CAPEX Annuity calcs'!$B$9:$B$500,0)+$C187,E$6)) -> 16.74658556 | F187: =IF($B175="Blank",0,OFFSET('CAPEX Annuity calcs'!$B$9,MATCH($B175,'CAPEX Annuity calcs'!$B$9:$B$500,0)+$C187,F$6)) -> 16.74658556 | I187: CAPEX Installation costs | J187: 4.588105633 | K187: 4.588105633
E188: =SUM(E176:E187) -> 156.6988431 | F188: =SUM(F176:F187) -> 157.5758372 | J188: =ROUND(E188/J$2*100,3) -> 42.931 | K188: =ROUND(F188/K$2*100,3) -> 43.171
A190: =A175+1 -> 13 | B190: =IFERROR(VLOOKUP($A190,Inputs!$B$68:$AK$129,MATCH($B$7,Inputs!$B$68:$AK$68,0),FALSE),"Blank") -> 4x20 Fluorescent | I190: =IFERROR(VLOOKUP($A190,Inputs!$B$68:$AK$129,MATCH($B$7,Inputs!$B$68:$AK$68,0),FALSE),"Blank") -> 4x20 Fluorescent
B191: =Inputs!$R$68 -> Lamp UNIT price Annualised Cost | C191: =Inputs!$P$68 -> Lamp Maintenance cycle | E191: =IF($B190="Blank",0,VLOOKUP($B190,Inputs!$C$68:$AK$129,MATCH($B191,Inputs!$C$68:$AK$68,0),FALSE)) -> 4.240432715 | F191: =IF($B190="Blank",0,VLOOKUP($B190,Inputs!$C$68:$AK$129,MATCH($B191,Inputs!$C$68:$AK$68,0),FALSE)) -> 4.240432715 | I191: =B191 -> Lamp UNIT price Annualised Cost | J191: =IF(E191="NA","",E191/J$2*100) -> 1.161762388 | K191: =IF(F191="NA","",F191/K$2*100) -> 1.161762388
B192: =Inputs!$K$68 -> PE Cell UNIT price Annualised Cost | C192: =Inputs!$I$68 -> PE Cell Maintenance Cycle | E192: =IF($B190="Blank",0,VLOOKUP($B190,Inputs!$C$68:$AK$129,MATCH($B192,Inputs!$C$68:$AK$68,0),FALSE)) -> 0.6107414998 | F192: =IF($B190="Blank",0,VLOOKUP($B190,Inputs!$C$68:$AK$129,MATCH($B192,Inputs!$C$68:$AK$68,0),FALSE)) -> 0.6107414998 | I192: PE Cell UNIT price Annualised Cost | J192: 0.1673264383 | K192: 0.1673264383
B193: Corp capex annuity per light | E193: =IF($B190="Blank",0,'Corp Capex Annuity calcs'!F$109) -> 14.82687032 | F193: =IF($B190="Blank",0,'Corp Capex Annuity calcs'!G$109) -> 14.70889562 | I193: Corp capex annuity per light | J193: 4.062156251 | K193: 4.029834416
B194: =Inputs!$T$68 -> Lamp Service costs Annualised | E194: =IF($B190="Blank",0,VLOOKUP($B190,Inputs!$C$68:$AK$129,MATCH($B194,Inputs!$C$68:$AK$68,0),FALSE)) -> 26.34737177 | F194: =IF($B190="Blank",0,VLOOKUP($B190,Inputs!$C$68:$AK$129,MATCH($B194,Inputs!$C$68:$AK$68,0),FALSE)) -> 26.34737177 | I194: Lamp Service costs Annualised | J194: 7.218458019 | K194: 7.218458019
B195: =Inputs!$M$68 -> PE Cell Service costs Annualised | E195: =IF($B190="Blank",0,VLOOKUP($B190,Inputs!$C$68:$AK$129,MATCH($B195,Inputs!$C$68:$AK$68,0),FALSE)) -> 0 | F195: =IF($B190="Blank",0,VLOOKUP($B190,Inputs!$C$68:$AK$129,MATCH($B195,Inputs!$C$68:$AK$68,0),FALSE)) -> 0 | I195: PE Cell Service costs Annualised | J195: 0 | K195: 0
B196: Indirect Opex | E196: =IF($B190="Blank",0,IF($B$8="Private Contract Lighting",'Opex Weighting'!D$113,'Opex Weighting'!D$111)) -> 24.08183479 | F196: =IF($B190="Blank",0,IF($B$8="Private Contract Lighting",'Opex Weighting'!E$113,'Opex Weighting'!E$111)) -> 25.13462605 | I196: Indirect Opex | J196: 6.597762955 | K196: 6.886198919
B197: Indirect Capex | E197: ='Capex Weighting'!D$115 -> 0 | F197: ='Capex Weighting'!E$114 -> 0 | I197: Indirect Capex | J197: 0 | K197: 0
B198: Overhead Costs per light | E198: =IF($B190="Blank",0,IF($B$8="Private Contract Lighting",'Building Block'!C$49,'Building Block'!C$48)) -> 27.50826509 | F198: =IF($B190="Blank",0,IF($B$8="Private Contract Lighting",'Building Block'!D$49,'Building Block'!D$48)) -> 27.45044256 | I198: Overhead Costs per light | J198: 7.536510983 | K198: 7.520669195
B199: =Inputs!$AH$68 -> Bracket UNIT price | C199: 0 | E199: =IF($B190="Blank",0,OFFSET('CAPEX Annuity calcs'!$B$9,MATCH($B190,'CAPEX Annuity calcs'!$B$9:$B$500,0)+$C199,E$6)) -> 5.305341301 | F199: =IF($B190="Blank",0,OFFSET('CAPEX Annuity calcs'!$B$9,MATCH($B190,'CAPEX Annuity calcs'!$B$9:$B$500,0)+$C199,F$6)) -> 5.305341301 | I199: Bracket UNIT price | J199: 1.453518165 | K199: 1.453518165
B200: =Inputs!$Y$68 -> CAPEX Installation costs | C200: =C199+1 -> 1 | E200: =IF($B190="Blank",0,OFFSET('CAPEX Annuity calcs'!$B$9,MATCH($B190,'CAPEX Annuity calcs'!$B$9:$B$500,0)+$C200,E$6)) -> 0 | F200: =IF($B190="Blank",0,OFFSET('CAPEX Annuity calcs'!$B$9,MATCH($B190,'CAPEX Annuity calcs'!$B$9:$B$500,0)+$C200,F$6)) -> 0 | I200: CAPEX Installation costs | J200: 0 | K200: 0
B201: =Inputs!$X$68 -> Luminaire UNIT price | C201: =C200+1 -> 2 | E201: =IF($B190="Blank",0,OFFSET('CAPEX Annuity calcs'!$B$9,MATCH($B190,'CAPEX Annuity calcs'!$B$9:$B$500,0)+$C201,E$6)) -> 19.58976361 | F201: =IF($B190="Blank",0,OFFSET('CAPEX Annuity calcs'!$B$9,MATCH($B190,'CAPEX Annuity calcs'!$B$9:$B$500,0)+$C201,F$6)) -> 19.58976361 | I201: Luminaire UNIT price | J201: 5.367058523 | K201: 5.367058523
B202: =Inputs!$Y$68 -> CAPEX Installation costs | C202: 3 | E202: =IF($B190="Blank",0,OFFSET('CAPEX Annuity calcs'!$B$9,MATCH($B190,'CAPEX Annuity calcs'!$B$9:$B$500,0)+$C202,E$6)) -> 17.1652502 | F202: =IF($B190="Blank",0,OFFSET('CAPEX Annuity calcs'!$B$9,MATCH($B190,'CAPEX Annuity calcs'!$B$9:$B$500,0)+$C202,F$6)) -> 17.1652502 | I202: CAPEX Installation costs | J202: 4.702808274 | K202: 4.702808274
E203: =SUM(E191:E202) -> 139.6758713 | F203: =SUM(F191:F202) -> 140.5528653 | J203: =ROUND(E203/J$2*100,3) -> 38.267 | K203: =ROUND(F203/K$2*100,3) -> 38.508
A205: =A190+1 -> 14 | B205: =IFERROR(VLOOKUP($A205,Inputs!$B$68:$AK$129,MATCH($B$7,Inputs!$B$68:$AK$68,0),FALSE),"Blank") -> 4x40W Fluorescent | I205: =IFERROR(VLOOKUP($A205,Inputs!$B$68:$AK$129,MATCH($B$7,Inputs!$B$68:$AK$68,0),FALSE),"Blank") -> 4x40W Fluorescent
B206: =Inputs!$R$68 -> Lamp UNIT price Annualised Cost | C206: =Inputs!$P$68 -> Lamp Maintenance cycle | E206: =IF($B205="Blank",0,VLOOKUP($B205,Inputs!$C$68:$AK$129,MATCH($B206,Inputs!$C$68:$AK$68,0),FALSE)) -> 4.515913263 | F206: =IF($B205="Blank",0,VLOOKUP($B205,Inputs!$C$68:$AK$129,MATCH($B206,Inputs!$C$68:$AK$68,0),FALSE)) -> 4.515913263 | I206: =B206 -> Lamp UNIT price Annualised Cost | J206: =IF(E206="NA","",E206/J$2*100) -> 1.23723651 | K206: =IF(F206="NA","",F206/K$2*100) -> 1.23723651
B207: =Inputs!$K$68 -> PE Cell UNIT price Annualised Cost | C207: =Inputs!$I$68 -> PE Cell Maintenance Cycle | E207: =IF($B205="Blank",0,VLOOKUP($B205,Inputs!$C$68:$AK$129,MATCH($B207,Inputs!$C$68:$AK$68,0),FALSE)) -> 1.778810497 | F207: =IF($B205="Blank",0,VLOOKUP($B205,Inputs!$C$68:$AK$129,MATCH($B207,Inputs!$C$68:$AK$68,0),FALSE)) -> 1.778810497 | I207: PE Cell UNIT price Annualised Cost | J207: 0.4873453417 | K207: 0.4873453417
B208: Corp capex annuity per light | E208: =IF($B205="Blank",0,'Corp Capex Annuity calcs'!F$109) -> 14.82687032 | F208: =IF($B205="Blank",0,'Corp Capex Annuity calcs'!G$109) -> 14.70889562 | I208: Corp capex annuity per light | J208: 4.062156251 | K208: 4.029834416
B209: =Inputs!$T$68 -> Lamp Service costs Annualised | E209: =IF($B205="Blank",0,VLOOKUP($B205,Inputs!$C$68:$AK$129,MATCH($B209,Inputs!$C$68:$AK$68,0),FALSE)) -> 38.13435387 | F209: =IF($B205="Blank",0,VLOOKUP($B205,Inputs!$C$68:$AK$129,MATCH($B209,Inputs!$C$68:$AK$68,0),FALSE)) -> 38.13435387 | I209: Lamp Service costs Annualised | J209: 10.44776818 | K209: 10.44776818
B210: =Inputs!$M$68 -> PE Cell Service costs Annualised | E210: =IF($B205="Blank",0,VLOOKUP($B205,Inputs!$C$68:$AK$129,MATCH($B210,Inputs!$C$68:$AK$68,0),FALSE)) -> 0 | F210: =IF($B205="Blank",0,VLOOKUP($B205,Inputs!$C$68:$AK$129,MATCH($B210,Inputs!$C$68:$AK$68,0),FALSE)) -> 0 | I210: PE Cell Service costs Annualised | J210: 0 | K210: 0
B211: Indirect Opex | E211: =IF($B205="Blank",0,IF($B$8="Private Contract Lighting",'Opex Weighting'!D$113,'Opex Weighting'!D$111)) -> 24.08183479 | F211: =IF($B205="Blank",0,IF($B$8="Private Contract Lighting",'Opex Weighting'!E$113,'Opex Weighting'!E$111)) -> 25.13462605 | I211: Indirect Opex | J211: 6.597762955 | K211: 6.886198919
B212: Indirect Capex | E212: ='Capex Weighting'!D$115 -> 0 | F212: ='Capex Weighting'!E$114 -> 0 | I212: Indirect Capex | J212: 0 | K212: 0
B213: Overhead Costs per light | E213: =IF($B205="Blank",0,IF($B$8="Private Contract Lighting",'Building Block'!C$49,'Building Block'!C$48)) -> 27.50826509 | F213: =IF($B205="Blank",0,IF($B$8="Private Contract Lighting",'Building Block'!D$49,'Building Block'!D$48)) -> 27.45044256 | I213: Overhead Costs per light | J213: 7.536510983 | K213: 7.520669195
B214: =Inputs!$AH$68 -> Bracket UNIT price | C214: 0 | E214: =IF($B205="Blank",0,OFFSET('CAPEX Annuity calcs'!$B$9,MATCH($B205,'CAPEX Annuity calcs'!$B$9:$B$500,0)+$C214,E$6)) -> 5.305341301 | F214: =IF($B205="Blank",0,OFFSET('CAPEX Annuity calcs'!$B$9,MATCH($B205,'CAPEX Annuity calcs'!$B$9:$B$500,0)+$C214,F$6)) -> 5.305341301 | I214: Bracket UNIT price | J214: 1.453518165 | K214: 1.453518165
B215: =Inputs!$Y$68 -> CAPEX Installation costs | C215: =C214+1 -> 1 | E215: =IF($B205="Blank",0,OFFSET('CAPEX Annuity calcs'!$B$9,MATCH($B205,'CAPEX Annuity calcs'!$B$9:$B$500,0)+$C215,E$6)) -> 0 | F215: =IF($B205="Blank",0,OFFSET('CAPEX Annuity calcs'!$B$9,MATCH($B205,'CAPEX Annuity calcs'!$B$9:$B$500,0)+$C215,F$6)) -> 0 | I215: CAPEX Installation costs | J215: 0 | K215: 0
... 507 more rows

Sheet CAPEX Annuity calcs
B5: Public Lighting Capital Cost | E5: Base Costs $2017/18 | N5: Public Lighting Capital Cost | O5: Annuity calculation
B7: Light Description | C7: Major/Minor size | D7: Useful Life | E7: 2017-18 | F7: 2018-19 | G7: 2019-20 | H7: 2020-21 | I7: 2021-22 | J7: 2022-23 | K7: 2023-24 | N7: Light Description | O7: 2017-18 | P7: 2018-19 | Q7: 2019-20 | R7: 2020-21 | S7: 2021-22 | T7: 2022-23 | U7: 2023-24
A9: 1 | B9: 32W Compact Fluorescent | C9: RLMIN | N9: 32W Compact Fluorescent
B10: Bracket UNIT price | D10: 40 | E10: 74.36316992 | F10: =E10 -> 74.36316992 | G10: 74.36316992 | H10: 74.36316992 | I10: 74.36316992 | J10: 74.36316992 | K10: 74.36316992 | N10: =B10 -> Bracket UNIT price | O10: 3.754148145 | P10: 3.754148145 | Q10: 3.754148145 | R10: 3.754148145 | S10: 3.754148145 | T10: 3.754148145 | U10: 3.754148145
B11: CAPEX Installation costs | C11: Bracket (40yrs) | D11: 40 | F11: 0 | G11: 0 | H11: 0 | I11: 0 | J11: 0 | K11: 0 | N11: =B11 -> CAPEX Installation costs | O11: 0 | P11: 0 | Q11: 0 | R11: 0 | S11: 0 | T11: 0 | U11: 0
B12: Luminaire UNIT price | D12: 20 | E12: 188.9071709 | F12: 188.9071709 | G12: 188.9071709 | H12: 188.9071709 | I12: 188.9071709 | J12: 188.9071709 | K12: 188.9071709 | N12: =B12 -> Luminaire UNIT price | O12: 13.89365053 | P12: 13.89365053 | Q12: 13.89365053 | R12: 13.89365053 | S12: 13.89365053 | T12: 13.89365053 | U12: 13.89365053
B13: CAPEX Installation costs | C13: Luminaire (20yrs) | D13: 20 | E13: 233.3899824 | F13: 233.3899824 | G13: 233.3899824 | H13: 233.3899824 | I13: 233.3899824 | J13: 233.3899824 | K13: 233.3899824 | N13: =B13 -> CAPEX Installation costs | O13: 17.1652502 | P13: 17.1652502 | Q13: 17.1652502 | R13: 17.1652502 | S13: 17.1652502 | T13: 17.1652502 | U13: 17.1652502
A16: =A9+1 -> 2 | B16: 42W Compact Fluorescent | C16: RLMIN | N16: 42W Compact Fluorescent
B17: Bracket UNIT price | D17: 40 | E17: 76.11193903 | F17: =E17 -> 76.11193903 | G17: 76.11193903 | H17: 76.11193903 | I17: 76.11193903 | J17: 76.11193903 | K17: 76.11193903 | N17: =B17 -> Bracket UNIT price | O17: 3.842432954 | P17: 3.842432954 | Q17: 3.842432954 | R17: 3.842432954 | S17: 3.842432954 | T17: 3.842432954 | U17: 3.842432954
B18: CAPEX Installation costs | C18: Bracket (40yrs) | D18: 40 | F18: 0 | G18: 0 | H18: 0 | I18: 0 | J18: 0 | K18: 0 | N18: =B18 -> CAPEX Installation costs | O18: 0 | P18: 0 | Q18: 0 | R18: 0 | S18: 0 | T18: 0 | U18: 0
B19: Luminaire UNIT price | D19: 20 | E19: 188.9071709 | F19: 188.9071709 | G19: 188.9071709 | H19: 188.9071709 | I19: 188.9071709 | J19: 188.9071709 | K19: 188.9071709 | N19: =B19 -> Luminaire UNIT price | O19: 13.89365053 | P19: 13.89365053 | Q19: 13.89365053 | R19: 13.89365053 | S19: 13.89365053 | T19: 13.89365053 | U19: 13.89365053
B20: CAPEX Installation costs | C20: Luminaire (20yrs) | D20: 20 | E20: 233.3899824 | F20: 233.3899824 | G20: 233.3899824 | H20: 233.3899824 | I20: 233.3899824 | J20: 233.3899824 | K20: 233.3899824 | N20: =B20 -> CAPEX Installation costs | O20: 17.1652502 | P20: 17.1652502 | Q20: 17.1652502 | R20: 17.1652502 | S20: 17.1652502 | T20: 17.1652502 | U20: 17.1652502
A23: =A16+1 -> 3 | B23: 42W Compact Fluorescent - Bottom Pole Entry | C23: RLMIN | N23: 42W Compact Fluorescent - Bottom Pole Entry
B24: Bracket UNIT price | D24: 40 | E24: 76.11193903 | F24: =E24 -> 76.11193903 | G24: 76.11193903 | H24: 76.11193903 | I24: 76.11193903 | J24: 76.11193903 | K24: 76.11193903 | N24: =B24 -> Bracket UNIT price | O24: 3.842432954 | P24: 3.842432954 | Q24: 3.842432954 | R24: 3.842432954 | S24: 3.842432954 | T24: 3.842432954 | U24: 3.842432954
B25: CAPEX Installation costs | C25: Bracket (40yrs) | D25: 40 | F25: 0 | G25: 0 | H25: 0 | I25: 0 | J25: 0 | K25: 0 | N25: =B25 -> CAPEX Installation costs | O25: 0 | P25: 0 | Q25: 0 | R25: 0 | S25: 0 | T25: 0 | U25: 0
B26: Luminaire UNIT price | D26: 20 | E26: 188.9071709 | F26: 188.9071709 | G26: 188.9071709 | H26: 188.9071709 | I26: 188.9071709 | J26: 188.9071709 | K26: 188.9071709 | N26: =B26 -> Luminaire UNIT price | O26: 13.89365053 | P26: 13.89365053 | Q26: 13.89365053 | R26: 13.89365053 | S26: 13.89365053 | T26: 13.89365053 | U26: 13.89365053
B27: CAPEX Installation costs | C27: Luminaire (20yrs) | D27: 20 | E27: 233.3899824 | F27: 233.3899824 | G27: 233.3899824 | H27: 233.3899824 | I27: 233.3899824 | J27: 233.3899824 | K27: 233.3899824 | N27: =B27 -> CAPEX Installation costs | O27: 17.1652502 | P27: 17.1652502 | Q27: 17.1652502 | R27: 17.1652502 | S27: 17.1652502 | T27: 17.1652502 | U27: 17.1652502
A30: =A23+1 -> 4 | B30: 2x24W Compact Fluorescent | C30: RLMIN | N30: 2x24W Compact Fluorescent
B31: Bracket UNIT price | D31: 40 | E31: 76.10523234 | F31: =E31 -> 76.10523234 | G31: 76.10523234 | H31: 76.10523234 | I31: 76.10523234 | J31: 76.10523234 | K31: 76.10523234 | N31: =B31 -> Bracket UNIT price | O31: 3.842094374 | P31: 3.842094374 | Q31: 3.842094374 | R31: 3.842094374 | S31: 3.842094374 | T31: 3.842094374 | U31: 3.842094374
B32: CAPEX Installation costs | C32: Bracket (40yrs) | D32: 40 | F32: 0 | G32: 0 | H32: 0 | I32: 0 | J32: 0 | K32: 0 | N32: =B32 -> CAPEX Installation costs | O32: 0 | P32: 0 | Q32: 0 | R32: 0 | S32: 0 | T32: 0 | U32: 0
B33: Luminaire UNIT price | D33: 20 | E33: 188.9071709 | F33: 188.9071709 | G33: 188.9071709 | H33: 188.9071709 | I33: 188.9071709 | J33: 188.9071709 | K33: 188.9071709 | N33: =B33 -> Luminaire UNIT price | O33: 13.89365053 | P33: 13.89365053 | Q33: 13.89365053 | R33: 13.89365053 | S33: 13.89365053 | T33: 13.89365053 | U33: 13.89365053
B34: CAPEX Installation costs | C34: Luminaire (20yrs) | D34: 20 | E34: 233.3899824 | F34: 233.3899824 | G34: 233.3899824 | H34: 233.3899824 | I34: 233.3899824 | J34: 233.3899824 | K34: 233.3899824 | N34: =B34 -> CAPEX Installation costs | O34: 17.1652502 | P34: 17.1652502 | Q34: 17.1652502 | R34: 17.1652502 | S34: 17.1652502 | T34: 17.1652502 | U34: 17.1652502
A37: =A30+1 -> 5 | B37: 1x20W Fluorescent | C37: RLMIN | N37: 1x20W Fluorescent
B38: Bracket UNIT price | D38: 40 | E38: 105.0896186 | F38: =E38 -> 105.0896186 | G38: 105.0896186 | H38: 105.0896186 | I38: 105.0896186 | J38: 105.0896186 | K38: 105.0896186 | N38: =B38 -> Bracket UNIT price | O38: 5.305341301 | P38: 5.305341301 | Q38: 5.305341301 | R38: 5.305341301 | S38: 5.305341301 | T38: 5.305341301 | U38: 5.305341301
B39: CAPEX Installation costs | C39: Bracket (40yrs) | D39: 40 | F39: 0 | G39: 0 | H39: 0 | I39: 0 | J39: 0 | K39: 0 | N39: =B39 -> CAPEX Installation costs | O39: 0 | P39: 0 | Q39: 0 | R39: 0 | S39: 0 | T39: 0 | U39: 0
B40: Luminaire UNIT price | D40: 20 | E40: 266.3552545 | F40: 266.3552545 | G40: 266.3552545 | H40: 266.3552545 | I40: 266.3552545 | J40: 266.3552545 | K40: 266.3552545 | N40: =B40 -> Luminaire UNIT price | O40: 19.58976361 | P40: 19.58976361 | Q40: 19.58976361 | R40: 19.58976361 | S40: 19.58976361 | T40: 19.58976361 | U40: 19.58976361
B41: CAPEX Installation costs | C41: Luminaire (20yrs) | D41: 20 | E41: 233.3899824 | F41: 233.3899824 | G41: 233.3899824 | H41: 233.3899824 | I41: 233.3899824 | J41: 233.3899824 | K41: 233.3899824 | N41: =B41 -> CAPEX Installation costs | O41: 17.1652502 | P41: 17.1652502 | Q41: 17.1652502 | R41: 17.1652502 | S41: 17.1652502 | T41: 17.1652502 | U41: 17.1652502
A44: =A37+1 -> 6 | B44: 1x40W Fluorescent | C44: RLMIN | N44: 1x40W Fluorescent
B45: Bracket UNIT price | D45: 40 | E45: 105.0896186 | F45: =E45 -> 105.0896186 | G45: 105.0896186 | H45: 105.0896186 | I45: 105.0896186 | J45: 105.0896186 | K45: 105.0896186 | N45: =B45 -> Bracket UNIT price | O45: 5.305341301 | P45: 5.305341301 | Q45: 5.305341301 | R45: 5.305341301 | S45: 5.305341301 | T45: 5.305341301 | U45: 5.305341301
B46: CAPEX Installation costs | C46: Bracket (40yrs) | D46: 40 | F46: 0 | G46: 0 | H46: 0 | I46: 0 | J46: 0 | K46: 0 | N46: =B46 -> CAPEX Installation costs | O46: 0 | P46: 0 | Q46: 0 | R46: 0 | S46: 0 | T46: 0 | U46: 0
B47: Luminaire UNIT price | D47: 20 | E47: 208.7011113 | F47: 208.7011113 | G47: 208.7011113 | H47: 208.7011113 | I47: 208.7011113 | J47: 208.7011113 | K47: 208.7011113 | N47: =B47 -> Luminaire UNIT price | O47: 15.3494454 | P47: 15.3494454 | Q47: 15.3494454 | R47: 15.3494454 | S47: 15.3494454 | T47: 15.3494454 | U47: 15.3494454
B48: CAPEX Installation costs | C48: Luminaire (20yrs) | D48: 20 | E48: 233.3899824 | F48: 233.3899824 | G48: 233.3899824 | H48: 233.3899824 | I48: 233.3899824 | J48: 233.3899824 | K48: 233.3899824 | N48: =B48 -> CAPEX Installation costs | O48: 17.1652502 | P48: 17.1652502 | Q48: 17.1652502 | R48: 17.1652502 | S48: 17.1652502 | T48: 17.1652502 | U48: 17.1652502
A51: =A44+1 -> 7 | B51: 2x20W Fluorescent | C51: RLMIN | N51: 2x20W Fluorescent
B52: Bracket UNIT price | D52: 40 | E52: 105.0896186 | F52: =E52 -> 105.0896186 | G52: 105.0896186 | H52: 105.0896186 | I52: 105.0896186 | J52: 105.0896186 | K52: 105.0896186 | N52: =B52 -> Bracket UNIT price | O52: 5.305341301 | P52: 5.305341301 | Q52: 5.305341301 | R52: 5.305341301 | S52: 5.305341301 | T52: 5.305341301 | U52: 5.305341301
B53: CAPEX Installation costs | C53: Bracket (40yrs) | D53: 40 | F53: 0 | G53: 0 | H53: 0 | I53: 0 | J53: 0 | K53: 0 | N53: =B53 -> CAPEX Installation costs | O53: 0 | P53: 0 | Q53: 0 | R53: 0 | S53: 0 | T53: 0 | U53: 0
B54: Luminaire UNIT price | D54: 20 | E54: 266.3552545 | F54: 266.3552545 | G54: 266.3552545 | H54: 266.3552545 | I54: 266.3552545 | J54: 266.3552545 | K54: 266.3552545 | N54: =B54 -> Luminaire UNIT price | O54: 19.58976361 | P54: 19.58976361 | Q54: 19.58976361 | R54: 19.58976361 | S54: 19.58976361 | T54: 19.58976361 | U54: 19.58976361
B55: CAPEX Installation costs | C55: Luminaire (20yrs) | D55: 20 | E55: 233.3899824 | F55: 233.3899824 | G55: 233.3899824 | H55: 233.3899824 | I55: 233.3899824 | J55: 233.3899824 | K55: 233.3899824 | N55: =B55 -> CAPEX Installation costs | O55: 17.1652502 | P55: 17.1652502 | Q55: 17.1652502 | R55: 17.1652502 | S55: 17.1652502 | T55: 17.1652502 | U55: 17.1652502
A58: =A51+1 -> 8 | B58: 2x24W Fluorescent | C58: RLMIN | N58: 2x24W Fluorescent
B59: Bracket UNIT price | D59: 40 | E59: 105.0896186 | F59: =E59 -> 105.0896186 | G59: 105.0896186 | H59: 105.0896186 | I59: 105.0896186 | J59: 105.0896186 | K59: 105.0896186 | N59: =B59 -> Bracket UNIT price | O59: 5.305341301 | P59: 5.305341301 | Q59: 5.305341301 | R59: 5.305341301 | S59: 5.305341301 | T59: 5.305341301 | U59: 5.305341301
B60: CAPEX Installation costs | C60: Bracket (40yrs) | D60: 40 | F60: 0 | G60: 0 | H60: 0 | I60: 0 | J60: 0 | K60: 0 | N60: =B60 -> CAPEX Installation costs | O60: 0 | P60: 0 | Q60: 0 | R60: 0 | S60: 0 | T60: 0 | U60: 0
B61: Luminaire UNIT price | D61: 20 | E61: 271.6557954 | F61: 271.6557954 | G61: 271.6557954 | H61: 271.6557954 | I61: 271.6557954 | J61: 271.6557954 | K61: 271.6557954 | N61: =B61 -> Luminaire UNIT price | O61: 19.97960515 | P61: 19.97960515 | Q61: 19.97960515 | R61: 19.97960515 | S61: 19.97960515 | T61: 19.97960515 | U61: 19.97960515
B62: CAPEX Installation costs | C62: Luminaire (20yrs) | D62: 20 | E62: 233.3899824 | F62: 233.3899824 | G62: 233.3899824 | H62: 233.3899824 | I62: 233.3899824 | J62: 233.3899824 | K62: 233.3899824 | N62: =B62 -> CAPEX Installation costs | O62: 17.1652502 | P62: 17.1652502 | Q62: 17.1652502 | R62: 17.1652502 | S62: 17.1652502 | T62: 17.1652502 | U62: 17.1652502
A65: =A58+1 -> 9 | B65: T5 Fluorescent 2 x 24W | C65: RLMIN | N65: T5 Fluorescent 2 x 24W
B66: Bracket UNIT price | D66: 40 | E66: 105.0896186 | F66: =E66 -> 105.0896186 | G66: 105.0896186 | H66: 105.0896186 | I66: 105.0896186 | J66: 105.0896186 | K66: 105.0896186 | N66: =B66 -> Bracket UNIT price | O66: 5.305341301 | P66: 5.305341301 | Q66: 5.305341301 | R66: 5.305341301 | S66: 5.305341301 | T66: 5.305341301 | U66: 5.305341301
B67: CAPEX Installation costs | C67: Bracket (40yrs) | D67: 40 | F67: 0 | G67: 0 | H67: 0 | I67: 0 | J67: 0 | K67: 0 | N67: =B67 -> CAPEX Installation costs | O67: 0 | P67: 0 | Q67: 0 | R67: 0 | S67: 0 | T67: 0 | U67: 0
B68: Luminaire UNIT price | D68: 20 | E68: 266.3552545 | F68: 266.3552545 | G68: 266.3552545 | H68: 266.3552545 | I68: 266.3552545 | J68: 266.3552545 | K68: 266.3552545 | N68: =B68 -> Luminaire UNIT price | O68: 19.58976361 | P68: 19.58976361 | Q68: 19.58976361 | R68: 19.58976361 | S68: 19.58976361 | T68: 19.58976361 | U68: 19.58976361
B69: CAPEX Installation costs | C69: Luminaire (20yrs) | D69: 20 | E69: 233.3899824 | F69: 233.3899824 | G69: 233.3899824 | H69: 233.3899824 | I69: 233.3899824 | J69: 233.3899824 | K69: 233.3899824 | N69: =B69 -> CAPEX Installation costs | O69: 17.1652502 | P69: 17.1652502 | Q69: 17.1652502 | R69: 17.1652502 | S69: 17.1652502 | T69: 17.1652502 | U69: 17.1652502
A72: =A65+1 -> 10 | B72: 20 Fluorescent 1X20FL | C72: RLMIN | N72: 20 Fluorescent 1X20FL
B73: Bracket UNIT price | D73: 40 | E73: 105.0896186 | F73: =E73 -> 105.0896186 | G73: 105.0896186 | H73: 105.0896186 | I73: 105.0896186 | J73: 105.0896186 | K73: 105.0896186 | N73: =B73 -> Bracket UNIT price | O73: 5.305341301 | P73: 5.305341301 | Q73: 5.305341301 | R73: 5.305341301 | S73: 5.305341301 | T73: 5.305341301 | U73: 5.305341301
B74: CAPEX Installation costs | C74: Bracket (40yrs) | D74: 40 | F74: 0 | G74: 0 | H74: 0 | I74: 0 | J74: 0 | K74: 0 | N74: =B74 -> CAPEX Installation costs | O74: 0 | P74: 0 | Q74: 0 | R74: 0 | S74: 0 | T74: 0 | U74: 0
B75: Luminaire UNIT price | D75: 20 | E75: 266.3552545 | F75: 266.3552545 | G75: 266.3552545 | H75: 266.3552545 | I75: 266.3552545 | J75: 266.3552545 | K75: 266.3552545 | N75: =B75 -> Luminaire UNIT price | O75: 19.58976361 | P75: 19.58976361 | Q75: 19.58976361 | R75: 19.58976361 | S75: 19.58976361 | T75: 19.58976361 | U75: 19.58976361
B76: CAPEX Installation costs | C76: Luminaire (20yrs) | D76: 20 | E76: 233.3899824 | F76: 233.3899824 | G76: 233.3899824 | H76: 233.3899824 | I76: 233.3899824 | J76: 233.3899824 | K76: 233.3899824 | N76: =B76 -> CAPEX Installation costs | O76: 17.1652502 | P76: 17.1652502 | Q76: 17.1652502 | R76: 17.1652502 | S76: 17.1652502 | T76: 17.1652502 | U76: 17.1652502
A79: =A72+1 -> 11 | B79: 2x40W Fluorescent | C79: RLMIN | N79: 2x40W Fluorescent
B80: Bracket UNIT price | D80: 40 | E80: 105.0896186 | F80: =E80 -> 105.0896186 | G80: 105.0896186 | H80: 105.0896186 | I80: 105.0896186 | J80: 105.0896186 | K80: 105.0896186 | N80: =B80 -> Bracket UNIT price | O80: 5.305341301 | P80: 5.305341301 | Q80: 5.305341301 | R80: 5.305341301 | S80: 5.305341301 | T80: 5.305341301 | U80: 5.305341301
B81: CAPEX Installation costs | C81: Bracket (40yrs) | D81: 40 | F81: 0 | G81: 0 | H81: 0 | I81: 0 | J81: 0 | K81: 0 | N81: =B81 -> CAPEX Installation costs | O81: 0 | P81: 0 | Q81: 0 | R81: 0 | S81: 0 | T81: 0 | U81: 0
B82: Luminaire UNIT price | D82: 20 | E82: 208.7011113 | F82: 208.7011113 | G82: 208.7011113 | H82: 208.7011113 | I82: 208.7011113 | J82: 208.7011113 | K82: 208.7011113 | N82: =B82 -> Luminaire UNIT price | O82: 15.3494454 | P82: 15.3494454 | Q82: 15.3494454 | R82: 15.3494454 | S82: 15.3494454 | T82: 15.3494454 | U82: 15.3494454
B83: CAPEX Installation costs | C83: Luminaire (20yrs) | D83: 20 | E83: 233.3899824 | F83: 233.3899824 | G83: 233.3899824 | H83: 233.3899824 | I83: 233.3899824 | J83: 233.3899824 | K83: 233.3899824 | N83: =B83 -> CAPEX Installation costs | O83: 17.1652502 | P83: 17.1652502 | Q83: 17.1652502 | R83: 17.1652502 | S83: 17.1652502 | T83: 17.1652502 | U83: 17.1652502
A86: =A79+1 -> 12 | B86: 3x40W Fluorescent | C86: RLMAJ | N86: 3x40W Fluorescent
B87: Bracket UNIT price | D87: 40 | E87: 96 | F87: 96 | G87: 96 | H87: 96 | I87: 96 | J87: 96 | K87: 96 | N87: =B87 -> Bracket UNIT price | O87: 4.846461255 | P87: 4.846461255 | Q87: 4.846461255 | R87: 4.846461255 | S87: 4.846461255 | T87: 4.846461255 | U87: 4.846461255
B88: CAPEX Installation costs | C88: Bracket (40yrs) | D88: 40 | F88: 227.6975438 | G88: 227.6975438 | H88: 227.6975438 | I88: 227.6975438 | J88: 227.6975438 | K88: 227.6975438 | N88: =B88 -> CAPEX Installation costs | O88: 11.49507629 | P88: 11.49507629 | Q88: 11.49507629 | R88: 11.49507629 | S88: 11.49507629 | T88: 11.49507629 | U88: 11.49507629
B89: Luminaire UNIT price | D89: 20 | E89: 188.9071709 | F89: 188.9071709 | G89: 188.9071709 | H89: 188.9071709 | I89: 188.9071709 | J89: 188.9071709 | K89: 188.9071709 | N89: =B89 -> Luminaire UNIT price | O89: 13.89365053 | P89: 13.89365053 | Q89: 13.89365053 | R89: 13.89365053 | S89: 13.89365053 | T89: 13.89365053 | U89: 13.89365053
B90: CAPEX Installation costs | C90: Luminaire (20yrs) | D90: 20 | E90: 227.6975438 | F90: 227.6975438 | G90: 227.6975438 | H90: 227.6975438 | I90: 227.6975438 | J90: 227.6975438 | K90: 227.6975438 | N90: =B90 -> CAPEX Installation costs | O90: 16.74658556 | P90: 16.74658556 | Q90: 16.74658556 | R90: 16.74658556 | S90: 16.74658556 | T90: 16.74658556 | U90: 16.74658556
A93: =A86+1 -> 13 | B93: 4x20 Fluorescent | C93: RLMIN | N93: 4x20 Fluorescent
B94: Bracket UNIT price | D94: 40 | E94: 105.0896186 | F94: =E94 -> 105.0896186 | G94: 105.0896186 | H94: 105.0896186 | I94: 105.0896186 | J94: 105.0896186 | K94: 105.0896186 | N94: =B94 -> Bracket UNIT price | O94: 5.305341301 | P94: 5.305341301 | Q94: 5.305341301 | R94: 5.305341301 | S94: 5.305341301 | T94: 5.305341301 | U94: 5.305341301
B95: CAPEX Installation costs | C95: Bracket (40yrs) | D95: 40 | F95: 0 | G95: 0 | H95: 0 | I95: 0 | J95: 0 | K95: 0 | N95: =B95 -> CAPEX Installation costs | O95: 0 | P95: 0 | Q95: 0 | R95: 0 | S95: 0 | T95: 0 | U95: 0
B96: Luminaire UNIT price | D96: 20 | E96: 266.3552545 | F96: 266.3552545 | G96: 266.3552545 | H96: 266.3552545 | I96: 266.3552545 | J96: 266.3552545 | K96: 266.3552545 | N96: =B96 -> Luminaire UNIT price | O96: 19.58976361 | P96: 19.58976361 | Q96: 19.58976361 | R96: 19.58976361 | S96: 19.58976361 | T96: 19.58976361 | U96: 19.58976361
B97: CAPEX Installation costs | C97: Luminaire (20yrs) | D97: 20 | E97: 233.3899824 | F97: 233.3899824 | G97: 233.3899824 | H97: 233.3899824 | I97: 233.3899824 | J97: 233.3899824 | K97: 233.3899824 | N97: =B97 -> CAPEX Installation costs | O97: 17.1652502 | P97: 17.1652502 | Q97: 17.1652502 | R97: 17.1652502 | S97: 17.1652502 | T97: 17.1652502 | U97: 17.1652502
A100: =A93+1 -> 14 | B100: 4x40W Fluorescent | C100: RLMAJ | N100: 4x40W Fluorescent
B101: Bracket UNIT price | D101: 40 | E101: 105.0896186 | F101: =E101 -> 105.0896186 | G101: 105.0896186 | H101: 105.0896186 | I101: 105.0896186 | J101: 105.0896186 | K101: 105.0896186 | N101: =B101 -> Bracket UNIT price | O101: 5.305341301 | P101: 5.305341301 | Q101: 5.305341301 | R101: 5.305341301 | S101: 5.305341301 | T101: 5.305341301 | U101: 5.305341301
B102: CAPEX Installation costs | C102: Bracket (40yrs) | D102: 40 | F102: 0 | G102: 0 | H102: 0 | I102: 0 | J102: 0 | K102: 0 | N102: =B102 -> CAPEX Installation costs | O102: 0 | P102: 0 | Q102: 0 | R102: 0 | S102: 0 | T102: 0 | U102: 0
B103: Luminaire UNIT price | D103: 20 | E103: 266.3552545 | F103: 266.3552545 | G103: 266.3552545 | H103: 266.3552545 | I103: 266.3552545 | J103: 266.3552545 | K103: 266.3552545 | N103: =B103 -> Luminaire UNIT price | O103: 19.58976361 | P103: 19.58976361 | Q103: 19.58976361 | R103: 19.58976361 | S103: 19.58976361 | T103: 19.58976361 | U103: 19.58976361
B104: CAPEX Installation costs | C104: Luminaire (20yrs) | D104: 20 | E104: 504.2947119 | F104: 504.2947119 | G104: 504.2947119 | H104: 504.2947119 | I104: 504.2947119 | J104: 504.2947119 | K104: 504.2947119 | N104: =B104 -> CAPEX Installation costs | O104: 37.08961633 | P104: 37.08961633 | Q104: 37.08961633 | R104: 37.08961633 | S104: 37.08961633 | T104: 37.08961633 | U104: 37.08961633
A107: =A100+1 -> 15 | B107: 100W Sodium Vapour | C107: RLMAJ | N107: 100W Sodium Vapour
B108: Bracket UNIT price | D108: 40 | E108: 95.33896539 | F108: =E108 -> 95.33896539 | G108: 95.33896539 | H108: 95.33896539 | I108: 95.33896539 | J108: 95.33896539 | K108: 95.33896539 | N108: =B108 -> Bracket UNIT price | O108: 4.813089603 | P108: 4.813089603 | Q108: 4.813089603 | R108: 4.813089603 | S108: 4.813089603 | T108: 4.813089603 | U108: 4.813089603
B109: CAPEX Installation costs | C109: Bracket (40yrs) | D109: 40 | F109: 0 | G109: 0 | H109: 0 | I109: 0 | J109: 0 | K109: 0 | N109: =B109 -> CAPEX Installation costs | O109: 0 | P109: 0 | Q109: 0 | R109: 0 | S109: 0 | T109: 0 | U109: 0
B110: Luminaire UNIT price | D110: 20 | E110: 154.9546348 | F110: 154.9546348 | G110: 154.9546348 | H110: 154.9546348 | I110: 154.9546348 | J110: 154.9546348 | K110: 154.9546348 | N110: =B110 -> Luminaire UNIT price | O110: 11.39652631 | P110: 11.39652631 | Q110: 11.39652631 | R110: 11.39652631 | S110: 11.39652631 | T110: 11.39652631 | U110: 11.39652631
B111: CAPEX Installation costs | C111: Luminaire (20yrs) | D111: 20 | E111: 504.2947119 | F111: 504.2947119 | G111: 504.2947119 | H111: 504.2947119 | I111: 504.2947119 | J111: 504.2947119 | K111: 504.2947119 | N111: =B111 -> CAPEX Installation costs | O111: 37.08961633 | P111: 37.08961633 | Q111: 37.08961633 | R111: 37.08961633 | S111: 37.08961633 | T111: 37.08961633 | U111: 37.08961633
A114: =A107+1 -> 16 | B114: 150W Sodium Vapour | C114: RLMAJ | N114: 150W Sodium Vapour
B115: Bracket UNIT price | D115: 40 | E115: 164.1149907 | F115: =E115 -> 164.1149907 | G115: 164.1149907 | H115: 164.1149907 | I115: 164.1149907 | J115: 164.1149907 | K115: 164.1149907 | N115: =B115 -> Bracket UNIT price | O115: 8.285176501 | P115: 8.285176501 | Q115: 8.285176501 | R115: 8.285176501 | S115: 8.285176501 | T115: 8.285176501 | U115: 8.285176501
B116: CAPEX Installation costs | C116: Bracket (40yrs) | D116: 40 | F116: 0 | G116: 0 | H116: 0 | I116: 0 | J116: 0 | K116: 0 | N116: =B116 -> CAPEX Installation costs | O116: 0 | P116: 0 | Q116: 0 | R116: 0 | S116: 0 | T116: 0 | U116: 0
B117: Luminaire UNIT price | D117: 20 | E117: 216.8718651 | F117: 216.8718651 | G117: 216.8718651 | H117: 216.8718651 | I117: 216.8718651 | J117: 216.8718651 | K117: 216.8718651 | N117: =B117 -> Luminaire UNIT price | O117: 15.95038394 | P117: 15.95038394 | Q117: 15.95038394 | R117: 15.95038394 | S117: 15.95038394 | T117: 15.95038394 | U117: 15.95038394
B118: CAPEX Installation costs | C118: Luminaire (20yrs) | D118: 20 | E118: 504.2947119 | F118: 504.2947119 | G118: 504.2947119 | H118: 504.2947119 | I118: 504.2947119 | J118: 504.2947119 | K118: 504.2947119 | N118: =B118 -> CAPEX Installation costs | O118: 37.08961633 | P118: 37.08961633 | Q118: 37.08961633 | R118: 37.08961633 | S118: 37.08961633 | T118: 37.08961633 | U118: 37.08961633
A121: =A114+1 -> 17 | B121: 250W Sodium Vapour | C121: RLMAJ | N121: 250W Sodium Vapour
B122: Bracket UNIT price | D122: 40 | E122: 210.5968178 | F122: =E122 -> 210.5968178 | G122: 210.5968178 | H122: 210.5968178 | I122: 210.5968178 | J122: 210.5968178 | K122: 210.5968178 | N122: =B122 -> Bracket UNIT price | O122: 10.63176373 | P122: 10.63176373 | Q122: 10.63176373 | R122: 10.63176373 | S122: 10.63176373 | T122: 10.63176373 | U122: 10.63176373
B123: CAPEX Installation costs | C123: Bracket (40yrs) | D123: 40 | F123: 0 | G123: 0 | H123: 0 | I123: 0 | J123: 0 | K123: 0 | N123: =B123 -> CAPEX Installation costs | O123: 0 | P123: 0 | Q123: 0 | R123: 0 | S123: 0 | T123: 0 | U123: 0
B124: Luminaire UNIT price | D124: 20 | E124: 231.9979734 | F124: 231.9979734 | G124: 231.9979734 | H124: 231.9979734 | I124: 231.9979734 | J124: 231.9979734 | K124: 231.9979734 | N124: =B124 -> Luminaire UNIT price | O124: 17.06287141 | P124: 17.06287141 | Q124: 17.06287141 | R124: 17.06287141 | S124: 17.06287141 | T124: 17.06287141 | U124: 17.06287141
B125: CAPEX Installation costs | C125: Luminaire (20yrs) | D125: 20 | E125: 504.2947119 | F125: 504.2947119 | G125: 504.2947119 | H125: 504.2947119 | I125: 504.2947119 | J125: 504.2947119 | K125: 504.2947119 | N125: =B125 -> CAPEX Installation costs | O125: 37.08961633 | P125: 37.08961633 | Q125: 37.08961633 | R125: 37.08961633 | S125: 37.08961633 | T125: 37.08961633 | U125: 37.08961633
A128: =A121+1 -> 18 | B128: 250W Sodium Vapour - Flood Light | C128: RLMAJ | N128: 250W Sodium Vapour - Flood Light
B129: Bracket UNIT price | D129: 40 | E129: 210.5968178 | F129: =E129 -> 210.5968178 | G129: 210.5968178 | H129: 210.5968178 | I129: 210.5968178 | J129: 210.5968178 | K129: 210.5968178 | N129: =B129 -> Bracket UNIT price | O129: 10.63176373 | P129: 10.63176373 | Q129: 10.63176373 | R129: 10.63176373 | S129: 10.63176373 | T129: 10.63176373 | U129: 10.63176373
B130: CAPEX Installation costs | C130: Bracket (40yrs) | D130: 40 | F130: 0 | G130: 0 | H130: 0 | I130: 0 | J130: 0 | K130: 0 | N130: =B130 -> CAPEX Installation costs | O130: 0 | P130: 0 | Q130: 0 | R130: 0 | S130: 0 | T130: 0 | U130: 0
B131: Luminaire UNIT price | D131: 20 | E131: 418.8797749 | F131: 418.8797749 | G131: 418.8797749 | H131: 418.8797749 | I131: 418.8797749 | J131: 418.8797749 | K131: 418.8797749 | N131: =B131 -> Luminaire UNIT price | O131: 30.80756108 | P131: 30.80756108 | Q131: 30.80756108 | R131: 30.80756108 | S131: 30.80756108 | T131: 30.80756108 | U131: 30.80756108
B132: CAPEX Installation costs | C132: Luminaire (20yrs) | D132: 20 | E132: 504.2947119 | F132: 504.2947119 | G132: 504.2947119 | H132: 504.2947119 | I132: 504.2947119 | J132: 504.2947119 | K132: 504.2947119 | N132: =B132 -> CAPEX Installation costs | O132: 37.08961633 | P132: 37.08961633 | Q132: 37.08961633 | R132: 37.08961633 | S132: 37.08961633 | T132: 37.08961633 | U132: 37.08961633
A135: =A128+1 -> 19 | B135: 400W Sodium Vapour | C135: RLMAJ | N135: 400W Sodium Vapour
B136: Bracket UNIT price | D136: 40 | E136: 151.924989 | F136: =E136 -> 151.924989 | G136: 151.924989 | H136: 151.924989 | I136: 151.924989 | J136: 151.924989 | K136: 151.924989 | N136: =B136 -> Bracket UNIT price | O136: 7.6697768 | P136: 7.6697768 | Q136: 7.6697768 | R136: 7.6697768 | S136: 7.6697768 | T136: 7.6697768 | U136: 7.6697768
B137: CAPEX Installation costs | C137: Bracket (40yrs) | D137: 40 | F137: 0 | G137: 0 | H137: 0 | I137: 0 | J137: 0 | K137: 0 | N137: =B137 -> CAPEX Installation costs | O137: 0 | P137: 0 | Q137: 0 | R137: 0 | S137: 0 | T137: 0 | U137: 0
B138: Luminaire UNIT price | D138: 20 | E138: 308.1310004 | F138: 308.1310004 | G138: 308.1310004 | H138: 308.1310004 | I138: 308.1310004 | J138: 308.1310004 | K138: 308.1310004 | N138: =B138 -> Luminaire UNIT price | O138: 22.66226537 | P138: 22.66226537 | Q138: 22.66226537 | R138: 22.66226537 | S138: 22.66226537 | T138: 22.66226537 | U138: 22.66226537
B139: CAPEX Installation costs | C139: Luminaire (20yrs) | D139: 20 | E139: 504.2947119 | F139: 504.2947119 | G139: 504.2947119 | H139: 504.2947119 | I139: 504.2947119 | J139: 504.2947119 | K139: 504.2947119 | N139: =B139 -> CAPEX Installation costs | O139: 37.08961633 | P139: 37.08961633 | Q139: 37.08961633 | R139: 37.08961633 | S139: 37.08961633 | T139: 37.08961633 | U139: 37.08961633
A142: =A135+1 -> 20 | B142: 400W Sodium Vapour - Flood Light | C142: RLMAJ | N142: 400W Sodium Vapour - Flood Light
B143: Bracket UNIT price | D143: 40 | E143: 151.924989 | F143: =E143 -> 151.924989 | G143: 151.924989 | H143: 151.924989 | I143: 151.924989 | J143: 151.924989 | K143: 151.924989 | N143: =B143 -> Bracket UNIT price | O143: 7.6697768 | P143: 7.6697768 | Q143: 7.6697768 | R143: 7.6697768 | S143: 7.6697768 | T143: 7.6697768 | U143: 7.6697768
B144: CAPEX Installation costs | C144: Bracket (40yrs) | D144: 40 | F144: 0 | G144: 0 | H144: 0 | I144: 0 | J144: 0 | K144: 0 | N144: =B144 -> CAPEX Installation costs | O144: 0 | P144: 0 | Q144: 0 | R144: 0 | S144: 0 | T144: 0 | U144: 0
B145: Luminaire UNIT price | D145: 20 | E145: 431.3864287 | F145: 431.3864287 | G145: 431.3864287 | H145: 431.3864287 | I145: 431.3864287 | J145: 431.3864287 | K145: 431.3864287 | N145: =B145 -> Luminaire UNIT price | O145: 31.72739422 | P145: 31.72739422 | Q145: 31.72739422 | R145: 31.72739422 | S145: 31.72739422 | T145: 31.72739422 | U145: 31.72739422
B146: CAPEX Installation costs | C146: Luminaire (20yrs) | D146: 20 | E146: 504.2947119 | F146: 504.2947119 | G146: 504.2947119 | H146: 504.2947119 | I146: 504.2947119 | J146: 504.2947119 | K146: 504.2947119 | N146: =B146 -> CAPEX Installation costs | O146: 37.08961633 | P146: 37.08961633 | Q146: 37.08961633 | R146: 37.08961633 | S146: 37.08961633 | T146: 37.08961633 | U146: 37.08961633
A149: =A142+1 -> 21 | B149: 70W Sodium Vapour | C149: RLMIN | N149: 70W Sodium Vapour
B150: Bracket UNIT price | D150: 40 | E150: 92.17934605 | F150: =E150 -> 92.17934605 | G150: 92.17934605 | H150: 92.17934605 | I150: 92.17934605 | J150: 92.17934605 | K150: 92.17934605 | N150: =B150 -> Bracket UNIT price | O150: 4.653579471 | P150: 4.653579471 | Q150: 4.653579471 | R150: 4.653579471 | S150: 4.653579471 | T150: 4.653579471 | U150: 4.653579471
B151: CAPEX Installation costs | C151: Bracket (40yrs) | D151: 40 | F151: 0 | G151: 0 | H151: 0 | I151: 0 | J151: 0 | K151: 0 | N151: =B151 -> CAPEX Installation costs | O151: 0 | P151: 0 | Q151: 0 | R151: 0 | S151: 0 | T151: 0 | U151: 0
B152: Luminaire UNIT price | D152: 20 | E152: 161.144613 | F152: 161.144613 | G152: 161.144613 | H152: 161.144613 | I152: 161.144613 | J152: 161.144613 | K152: 161.144613 | N152: =B152 -> Luminaire UNIT price | O152: 11.85178375 | P152: 11.85178375 | Q152: 11.85178375 | R152: 11.85178375 | S152: 11.85178375 | T152: 11.85178375 | U152: 11.85178375
B153: CAPEX Installation costs | C153: Luminaire (20yrs) | D153: 20 | E153: 233.3899824 | F153: 233.3899824 | G153: 233.3899824 | H153: 233.3899824 | I153: 233.3899824 | J153: 233.3899824 | K153: 233.3899824 | N153: =B153 -> CAPEX Installation costs | O153: 17.1652502 | P153: 17.1652502 | Q153: 17.1652502 | R153: 17.1652502 | S153: 17.1652502 | T153: 17.1652502 | U153: 17.1652502
A156: =A149+1 -> 22 | B156: 100W Incandescent | C156: RLMAJ | N156: 100W Incandescent
B157: Bracket UNIT price | D157: 40 | E157: 68.54967419 | F157: =E157 -> 68.54967419 | G157: 68.54967419 | H157: 68.54967419 | I157: 68.54967419 | J157: 68.54967419 | K157: 68.54967419 | N157: =B157 -> Bracket UNIT price | O157: 3.460659792 | P157: 3.460659792 | Q157: 3.460659792 | R157: 3.460659792 | S157: 3.460659792 | T157: 3.460659792 | U157: 3.460659792
B158: CAPEX Installation costs | C158: Bracket (40yrs) | D158: 40 | F158: 0 | G158: 0 | H158: 0 | I158: 0 | J158: 0 | K158: 0 | N158: =B158 -> CAPEX Installation costs | O158: 0 | P158: 0 | Q158: 0 | R158: 0 | S158: 0 | T158: 0 | U158: 0
B159: Luminaire UNIT price | D159: 20 | E159: 58.67489699 | F159: 58.67489699 | G159: 58.67489699 | H159: 58.67489699 | I159: 58.67489699 | J159: 58.67489699 | K159: 58.67489699 | N159: =B159 -> Luminaire UNIT price | O159: 4.315392104 | P159: 4.315392104 | Q159: 4.315392104 | R159: 4.315392104 | S159: 4.315392104 | T159: 4.315392104 | U159: 4.315392104
B160: CAPEX Installation costs | C160: Luminaire (20yrs) | D160: 20 | E160: 504.2947119 | F160: 504.2947119 | G160: 504.2947119 | H160: 504.2947119 | I160: 504.2947119 | J160: 504.2947119 | K160: 504.2947119 | N160: =B160 -> CAPEX Installation costs | O160: 37.08961633 | P160: 37.08961633 | Q160: 37.08961633 | R160: 37.08961633 | S160: 37.08961633 | T160: 37.08961633 | U160: 37.08961633
A163: =A156+1 -> 23 | B163: 60W Incandescent | C163: RLMIN | N163: 60W Incandescent
B164: Bracket UNIT price | D164: 40 | E164: 68.54967419 | F164: =E164 -> 68.54967419 | G164: 68.54967419 | H164: 68.54967419 | I164: 68.54967419 | J164: 68.54967419 | K164: 68.54967419 | N164: =B164 -> Bracket UNIT price | O164: 3.460659792 | P164: 3.460659792 | Q164: 3.460659792 | R164: 3.460659792 | S164: 3.460659792 | T164: 3.460659792 | U164: 3.460659792
B165: CAPEX Installation costs | C165: Bracket (40yrs) | D165: 40 | F165: 0 | G165: 0 | H165: 0 | I165: 0 | J165: 0 | K165: 0 | N165: =B165 -> CAPEX Installation costs | O165: 0 | P165: 0 | Q165: 0 | R165: 0 | S165: 0 | T165: 0 | U165: 0
B166: Luminaire UNIT price | D166: 20 | E166: 58.67489699 | F166: 58.67489699 | G166: 58.67489699 | H166: 58.67489699 | I166: 58.67489699 | J166: 58.67489699 | K166: 58.67489699 | N166: =B166 -> Luminaire UNIT price | O166: 4.315392104 | P166: 4.315392104 | Q166: 4.315392104 | R166: 4.315392104 | S166: 4.315392104 | T166: 4.315392104 | U166: 4.315392104
B167: CAPEX Installation costs | C167: Luminaire (20yrs) | D167: 20 | E167: 233.3899824 | F167: 233.3899824 | G167: 233.3899824 | H167: 233.3899824 | I167: 233.3899824 | J167: 233.3899824 | K167: 233.3899824 | N167: =B167 -> CAPEX Installation costs | O167: 17.1652502 | P167: 17.1652502 | Q167: 17.1652502 | R167: 17.1652502 | S167: 17.1652502 | T167: 17.1652502 | U167: 17.1652502
A170: =A163+1 -> 24 | B170: 18W LED | C170: RLMIN | N170: 18W LED
B171: Bracket UNIT price | D171: 40 | E171: 78.65643769 | F171: =E171 -> 78.65643769 | G171: 78.65643769 | H171: 78.65643769 | I171: 78.65643769 | J171: 78.65643769 | K171: 78.65643769 | N171: =B171 -> Bracket UNIT price | O171: 3.970889351 | P171: 3.970889351 | Q171: 3.970889351 | R171: 3.970889351 | S171: 3.970889351 | T171: 3.970889351 | U171: 3.970889351
B172: CAPEX Installation costs | C172: Bracket (40yrs) | D172: 40 | F172: 0 | G172: 0 | H172: 0 | I172: 0 | J172: 0 | K172: 0 | N172: =B172 -> CAPEX Installation costs | O172: 0 | P172: 0 | Q172: 0 | R172: 0 | S172: 0 | T172: 0 | U172: 0
B173: Luminaire UNIT price | D173: 20 | E173: 376.68748 | F173: 376.68748 | G173: 376.68748 | H173: 376.68748 | I173: 376.68748 | J173: 376.68748 | K173: 376.68748 | N173: =B173 -> Luminaire UNIT price | O173: 27.70442319 | P173: 27.70442319 | Q173: 27.70442319 | R173: 27.70442319 | S173: 27.70442319 | T173: 27.70442319 | U173: 27.70442319
B174: CAPEX Installation costs | C174: Luminaire (20yrs) | D174: 20 | E174: 233.3899824 | F174: 233.3899824 | G174: 233.3899824 | H174: 233.3899824 | I174: 233.3899824 | J174: 233.3899824 | K174: 233.3899824 | N174: =B174 -> CAPEX Installation costs | O174: 17.1652502 | P174: 17.1652502 | Q174: 17.1652502 | R174: 17.1652502 | S174: 17.1652502 | T174: 17.1652502 | U174: 17.1652502
A177: =A170+1 -> 25 | B177: 25W LED | C177: RLMIN | N177: 25W LED
B178: Bracket UNIT price | D178: 40 | E178: 78.65643769 | F178: =E178 -> 78.65643769 | G178: 78.65643769 | H178: 78.65643769 | I178: 78.65643769 | J178: 78.65643769 | K178: 78.65643769 | N178: =B178 -> Bracket UNIT price | O178: 3.970889351 | P178: 3.970889351 | Q178: 3.970889351 | R178: 3.970889351 | S178: 3.970889351 | T178: 3.970889351 | U178: 3.970889351
B179: CAPEX Installation costs | C179: Bracket (40yrs) | D179: 40 | F179: 0 | G179: 0 | H179: 0 | I179: 0 | J179: 0 | K179: 0 | N179: =B179 -> CAPEX Installation costs | O179: 0 | P179: 0 | Q179: 0 | R179: 0 | S179: 0 | T179: 0 | U179: 0
B180: Luminaire UNIT price | D180: 20 | E180: 376.68748 | F180: 376.68748 | G180: 376.68748 | H180: 376.68748 | I180: 376.68748 | J180: 376.68748 | K180: 376.68748 | N180: =B180 -> Luminaire UNIT price | O180: 27.70442319 | P180: 27.70442319 | Q180: 27.70442319 | R180: 27.70442319 | S180: 27.70442319 | T180: 27.70442319 | U180: 27.70442319
